Workbook

Sheet ACCUEILPRO
A1: Accueil
F7: =ACCUEIL!F7 -> 2022-12-04

Sheet ACCUEILPREM
A1: Accueil
F7: =ACCUEIL!F7 -> 2022-12-04

Sheet ACCUEILGP
A1: Accueil
F7: =ACCUEIL!F7 -> 2022-12-04

Sheet ACCUEIL
F7: 2022-12-04

Sheet Accueilagence
A1: Accueil
E7: =ACCUEIL!F7 -> 2022-12-04

Sheet Accueilsecteur
A1: Accueil
E7: =ACCUEIL!F7 -> 2022-12-04

Sheet AccueilDircom
A1: Accueil
E7: =ACCUEIL!F7 -> 2022-12-04

Sheet DC_FICHE
A1: Accueil
A2: BAROMETRE BDD
A4: UNITE: | B4: DIRECTION REGIONALE | E4: ETP perf : | F4: =VLOOKUP(A5,'RECAP DIRCOM'!$G$6:$I$12,3,FALSE) -> 218.53
A5: =VLOOKUP(B5,LISTES!$M$6:$N$12,2,FALSE) -> 262 | B5: BAS-RHIN
C6: Coefficient du critére | E6: Résultats | I6: Ecart au 1ier | M6: Evolution | O6: Rang
E7: du 1ier | G7: DIRECTION | I7: Du mois | K7: Au 31/12/2019
A9: RANG au CLASSEMENT GENERAL | K9: =VLOOKUP($A$5,#REF!,168,FALSE) ->  | M9: =+K9-O9 ->  | O9: =VLOOKUP($A$5,'RECAP DIRCOM'!$G$6:$CY$312,168,FALSE) -> 
A11: CRITERE CLIENTS | C11: 15% | O11: =VLOOKUP($A$5,'RECAP DIRCOM'!$G$6:$CY$312,23,FALSE) -> 55.06795406
B12: PNB Evolution nette Clients BP | C12: 4% | E12: ='RECAP DIRCOM'!#REF! ->  | G12: =VLOOKUP($A$5,'RECAP DIRCOM'!$G$6:$CY$312,6,FALSE) -> 0.7 | I12: =VLOOKUP($A$5,'RECAP DIRCOM'!$G$6:$CY$312,7,FALSE) -> 500% | K12: =VLOOKUP($A$5,#REF!,7,FALSE) ->  | M12: =+K12-I12 ->  | O12: =VLOOKUP($A$5,'RECAP DIRCOM'!$G$6:$CY$312,8,FALSE) -> 0.6171428758
B13: PNB Evolution nette Clients PREMIUM | C13: 5% | E13: ='RECAP DIRCOM'!#REF! ->  | G13: =VLOOKUP($A$5,'RECAP DIRCOM'!$G$6:$CY$312,10,FALSE) -> 3.0 | I13: =VLOOKUP($A$5,'RECAP DIRCOM'!$G$6:$CY$312,11,FALSE) -> 40% | K13: =VLOOKUP($A$5,#REF!,11,FALSE) ->  | M13: =+K13-I13 ->  | O13: =VLOOKUP($A$5,'RECAP DIRCOM'!$G$6:$CY$312,12,FALSE) -> 0.4042618222
B14: PNB Evolution nette Clients Jeunes Equipés | C14: 3% | E14: ='RECAP DIRCOM'!#REF! ->  | G14: =VLOOKUP($A$5,'RECAP DIRCOM'!$G$6:$CY$312,14,FALSE) -> 0.0 | I14: =VLOOKUP($A$5,'RECAP DIRCOM'!$G$6:$CY$312,15,FALSE) -> 0% | K14: =VLOOKUP($A$5,#REF!,15,FALSE) ->  | M14: =+K14-I14 ->  | O14: =VLOOKUP($A$5,'RECAP DIRCOM'!$G$6:$CY$312,16,FALSE) -> 0
B15: PNB Evolution nette Clients Pro Actifs Equipés | C15: 3% | E15: ='RECAP DIRCOM'!W4 -> 0.0 | G15: =VLOOKUP($A$5,'RECAP DIRCOM'!$G$6:$CY$312,18,FALSE) -> 3587.0 | I15: =VLOOKUP($A$5,'RECAP DIRCOM'!$G$6:$CY$312,19,FALSE) -> 1641% | K15: =VLOOKUP($A$5,#REF!,19,FALSE) ->  | M15: =+K15-I15 ->  | O15: =VLOOKUP($A$5,'RECAP DIRCOM'!$G$6:$CY$312,20,FALSE) -> 0.3527334639
A17: CRITERE BANCARISATION | C17: 15% | O17: =VLOOKUP($A$5,'RECAP DIRCOM'!$G$6:$CY$312,48,FALSE) -> 49211.48207
B18: PNB Ventes nettes forfaits | C18: 4% | E18: ='RECAP DIRCOM'!X4 -> 25.4 | G18: =VLOOKUP($A$5,'RECAP DIRCOM'!$G$6:$CY$312,31,FALSE) -> 0.0 | I18: =VLOOKUP($A$5,'RECAP DIRCOM'!$G$6:$CY$312,32,FALSE) -> 0% | K18: =VLOOKUP($A$5,#REF!,32,FALSE) ->  | M18: =+K18-I18 ->  | O18: =VLOOKUP($A$5,'RECAP DIRCOM'!$G$6:$CY$312,33,FALSE) -> 72567.49841
B19: PNB Ventes nettes IZICARTES Débit Différé | C19: 4% | E19: ='RECAP DIRCOM'!AB4 -> 68.6 | G19: =VLOOKUP($A$5,'RECAP DIRCOM'!$G$6:$CY$312,35,FALSE) -> 0.0 | I19: =VLOOKUP($A$5,'RECAP DIRCOM'!$G$6:$CY$312,36,FALSE) -> 100% | K19: =VLOOKUP($A$5,#REF!,36,FALSE) ->  | M19: =+K19-I19 ->  | O19: =VLOOKUP($A$5,'RECAP DIRCOM'!$G$6:$CY$312,37,FALSE) -> 12156
B20: PNB Ventes nettes cartes HDG Débit Différé | C20: 4% | E20: ='RECAP DIRCOM'!#REF! ->  | G20: =VLOOKUP($A$5,'RECAP DIRCOM'!$G$6:$CY$312,39,FALSE) -> 0.2 | I20: =VLOOKUP($A$5,'RECAP DIRCOM'!$G$6:$CY$312,40,FALSE) -> 300% | K20: =VLOOKUP($A$5,#REF!,40,FALSE) ->  | M20: =+K20-I20 ->  | O20: =VLOOKUP($A$5,'RECAP DIRCOM'!$G$6:$CY$312,41,FALSE) -> 0.09457063321
B21: PNB Ventes nettes Forfaits Pro, Carte pro | C21: 3% | E21: ='RECAP DIRCOM'!#REF! ->  | G21: =VLOOKUP($A$5,'RECAP DIRCOM'!$G$6:$CY$312,43,FALSE) -> 2.0 | I21: =VLOOKUP($A$5,'RECAP DIRCOM'!$G$6:$CY$312,44,FALSE) -> 0% | K21: =VLOOKUP($A$5,#REF!,44,FALSE) ->  | M21: =+K21-I21 ->  | O21: =VLOOKUP($A$5,'RECAP DIRCOM'!$G$6:$CY$312,45,FALSE) -> 0
A23: CRITERE EPARGNE | C23: 10% | O23: =VLOOKUP($A$5,'RECAP DIRCOM'!$G$6:$CY$312,69,FALSE) -> 0.3877793647
B24: PNB Epargne Liquide | C24: 3% | E24: ='RECAP DIRCOM'!AM4 -> 332.1 | G24: =VLOOKUP($A$5,'RECAP DIRCOM'!$G$6:$CY$312,56,FALSE) -> 4216.0 | I24: =VLOOKUP($A$5,'RECAP DIRCOM'!$G$6:$CY$312,57,FALSE) -> 1929% | K24: =VLOOKUP($A$5,#REF!,57,FALSE) ->  | M24: =+K24-I24 ->  | O24: =VLOOKUP($A$5,'RECAP DIRCOM'!$G$6:$CY$312,58,FALSE) -> 0.4058611622
B25: PNB CA UC + arbitrage | C25: 4% | E25: ='RECAP DIRCOM'!AQ4 -> 72.8 | G25: =VLOOKUP($A$5,'RECAP DIRCOM'!$G$6:$CY$312,60,FALSE) -> 0.4 | I25: =VLOOKUP($A$5,'RECAP DIRCOM'!$G$6:$CY$312,61,FALSE) -> 36% | K25: =VLOOKUP($A$5,#REF!,61,FALSE) ->  | M25: =+K25-I25 ->  | O25: =VLOOKUP($A$5,'RECAP DIRCOM'!$G$6:$CY$312,62,FALSE) -> 6
B26: PNB Excédent assurance vie | C26: 3% | E26: ='RECAP DIRCOM'!#REF! ->  | G26: =VLOOKUP($A$5,'RECAP DIRCOM'!$G$6:$CY$312,64,FALSE) -> 0.0 | I26: =VLOOKUP($A$5,'RECAP DIRCOM'!$G$6:$CY$312,65,FALSE) -> 0% | K26: =VLOOKUP($A$5,#REF!,65,FALSE) ->  | M26: =+K26-I26 ->  | O26: =VLOOKUP($A$5,'RECAP DIRCOM'!$G$6:$CY$312,66,FALSE) -> 0
A28: CRITERE CREDITS | C28: 15% | O28: =VLOOKUP($A$5,'RECAP DIRCOM'!$G$6:$CY$312,102,FALSE) -> 
B29: PNB crédit conso | C29: 4% | E29: ='RECAP DIRCOM'!BB4 -> 452.1 | G29: =VLOOKUP($A$5,'RECAP DIRCOM'!$G$6:$CY$312,77,FALSE) -> 5.0 | I29: =VLOOKUP($A$5,'RECAP DIRCOM'!$G$6:$CY$312,78,FALSE) -> 0% | K29: =VLOOKUP($A$5,#REF!,78,FALSE) ->  | M29: =+K29-I29 ->  | O29: =VLOOKUP($A$5,'RECAP DIRCOM'!$G$6:$CY$312,79,FALSE) -> 0
B30: PNB ADE crédit conso | C30: 1% | E30: ='RECAP DIRCOM'!#REF! ->  | G30: =VLOOKUP($A$5,'RECAP DIRCOM'!$G$6:$CY$312,81,FALSE) -> 0.0 | I30: =VLOOKUP($A$5,'RECAP DIRCOM'!$G$6:$CY$312,82,FALSE) -> 0% | K30: =VLOOKUP($A$5,#REF!,82,FALSE) ->  | O30: =VLOOKUP($A$5,'RECAP DIRCOM'!$G$6:$CY$312,83,FALSE) -> 0
B31: PNB crédit immo | C31: 4% | E31: ='RECAP DIRCOM'!BF4 -> 54.8 | G31: =VLOOKUP($A$5,'RECAP DIRCOM'!$G$6:$CY$312,85,FALSE) -> 0.0 | I31: =VLOOKUP($A$5,'RECAP DIRCOM'!$G$6:$CY$312,86,FALSE) -> 0% | K31: =VLOOKUP($A$5,#REF!,86,FALSE) ->  | O31: =VLOOKUP($A$5,'RECAP DIRCOM'!$G$6:$CY$312,87,FALSE) -> 0
B32: PNB ADE crédit immo | C32: 2% | E32: ='RECAP DIRCOM'!#REF! ->  | G32: =VLOOKUP($A$5,'RECAP DIRCOM'!$G$6:$CY$312,89,FALSE) -> 0.0 | I32: =VLOOKUP($A$5,'RECAP DIRCOM'!$G$6:$CY$312,90,FALSE) -> 0% | K32: =VLOOKUP($A$5,#REF!,90,FALSE) ->  | O32: =VLOOKUP($A$5,'RECAP DIRCOM'!$G$6:$CY$312,91,FALSE) -> 0
B33: PNB SACCEF | C33: 2% | E33: ='RECAP DIRCOM'!#REF! ->  | G33: =VLOOKUP($A$5,'RECAP DIRCOM'!$G$6:$CY$312,93,FALSE) -> 0.0 | I33: =VLOOKUP($A$5,'RECAP DIRCOM'!$G$6:$CY$312,94,FALSE) -> 29% | K33: =VLOOKUP($A$5,#REF!,94,FALSE) ->  | O33: =VLOOKUP($A$5,'RECAP DIRCOM'!$G$6:$CY$312,95,FALSE) -> 0.2389200838
B34: PNB Crédit MLT + Crédit Bail | C34: 2% | E34: ='RECAP DIRCOM'!BJ4 -> 32.5 | G34: =VLOOKUP($A$5,'RECAP DIRCOM'!$G$6:$CY$312,97,FALSE) -> 0.0 | I34: =VLOOKUP($A$5,'RECAP DIRCOM'!$G$6:$CY$312,98,FALSE) ->  | K34: =VLOOKUP($A$5,#REF!,98,FALSE) ->  | O34: =VLOOKUP($A$5,'RECAP DIRCOM'!$G$6:$CY$312,99,FALSE) -> 
A36: CRITERE IARD PREVOYANCE | C36: 15% | O36: =VLOOKUP($A$5,'RECAP DIRCOM'!$G$6:$CY$312,119,FALSE) -> 
B37: PNB Ventes nettes IARD | C37: 9% | E37: ='RECAP DIRCOM'!BU4 -> 148.3 | G37: =VLOOKUP($A$5,'RECAP DIRCOM'!$G$6:$CY$312,110,FALSE) ->  | I37: =VLOOKUP($A$5,'RECAP DIRCOM'!$G$6:$CY$312,111,FALSE) ->  | K37: =VLOOKUP($A$5,#REF!,111,FALSE) ->  | M37: =+K37-I37 ->  | O37: =VLOOKUP($A$5,'RECAP DIRCOM'!$G$6:$CY$312,112,FALSE) -> 
B38: PNB Ventes nettes Prévoyance | C38: 6% | E38: ='RECAP DIRCOM'!BY4 -> 45.8 | G38: =VLOOKUP($A$5,'RECAP DIRCOM'!$G$6:$CY$312,114,FALSE) ->  | I38: =VLOOKUP($A$5,'RECAP DIRCOM'!$G$6:$CY$312,115,FALSE) ->  | K38: =VLOOKUP($A$5,#REF!,115,FALSE) ->  | M38: =+K38-I38 ->  | O38: =VLOOKUP($A$5,'RECAP DIRCOM'!$G$6:$CY$312,116,FALSE) -> 
A40: CRITERE ACCELERATEURS PNB | C40: 15% | O40: =VLOOKUP($A$5,'RECAP DIRCOM'!$G$6:$CY$312,144,FALSE) -> 
B41: PNB Ventes brutes SED Finalisées | C41: 6% | E41: ='RECAP DIRCOM'!#REF! ->  | G41: =VLOOKUP($A$5,'RECAP DIRCOM'!$G$6:$CY$312,127,FALSE) ->  | I41: =VLOOKUP($A$5,'RECAP DIRCOM'!$G$6:$CY$312,128,FALSE) ->  | K41: =VLOOKUP($A$5,#REF!,128,FALSE) ->  | M41: =+K41-I41 ->  | O41: =VLOOKUP($A$5,'RECAP DIRCOM'!$G$6:$CY$312,129,FALSE) -> 
B42: PNB clients équipés E documents | C42: 3% | E42: ='RECAP DIRCOM'!#REF! ->  | G42: =VLOOKUP($A$5,'RECAP DIRCOM'!$G$6:$CY$312,131,FALSE) ->  | I42: =VLOOKUP($A$5,'RECAP DIRCOM'!$G$6:$CY$312,132,FALSE) ->  | K42: =VLOOKUP($A$5,#REF!,132,FALSE) ->  | M42: =+K42-I42 ->  | O42: =VLOOKUP($A$5,'RECAP DIRCOM'!$G$6:$CY$312,133,FALSE) -> 
B43: Economie opt'in | C43: 3% | E43: ='RECAP DIRCOM'!#REF! ->  | G43: =VLOOKUP($A$5,'RECAP DIRCOM'!$G$6:$CY$312,135,FALSE) ->  | I43: =VLOOKUP($A$5,'RECAP DIRCOM'!$G$6:$CY$312,136,FALSE) ->  | K43: =VLOOKUP($A$5,#REF!,136,FALSE) ->  | M43: =+K43-I43 ->  | O43: =VLOOKUP($A$5,'RECAP DIRCOM'!$G$6:$CY$312,137,FALSE) -> 
B44: Remises commerciales | C44: 3% | E44: ='RECAP DIRCOM'!#REF! ->  | G44: =VLOOKUP($A$5,'RECAP DIRCOM'!$G$6:$CY$312,139,FALSE) ->  | I44: =VLOOKUP($A$5,'RECAP DIRCOM'!$G$6:$CY$312,140,FALSE) ->  | K44: =VLOOKUP($A$5,#REF!,140,FALSE) ->  | M44: =+K44-I44 ->  | O44: =VLOOKUP($A$5,'RECAP DIRCOM'!$G$6:$CY$312,141,FALSE) -> 
A46: CRITERE Qualité-Satisfaction Clients | C46: 15% | O46: =VLOOKUP($A$5,'RECAP DIRCOM'!$G$6:$CY$312,159,FALSE) -> 
B47: Objectifs NPS* | C47: 8% | E47: ='RECAP DIRCOM'!K4 -> 23 | G47: =VLOOKUP($A$5,'RECAP DIRCOM'!$G$6:$CY$312,151,FALSE) ->  | I47: =VLOOKUP($A$5,'RECAP DIRCOM'!$G$6:$CY$312,152,FALSE) ->  | K47: =VLOOKUP($A$5,#REF!,152,FALSE) ->  | M47: =+K47-I47 ->  | O47: =VLOOKUP($A$5,'RECAP DIRCOM'!$G$6:$CY$312,153,FALSE) -> 
B48: Enquête Qualité Haute Définition | C48: 7% | E48: ='RECAP DIRCOM'!N4 -> 69% | G48: =VLOOKUP($A$5,'RECAP DIRCOM'!$G$6:$CY$312,154,FALSE) ->  | I48: =VLOOKUP($A$5,'RECAP DIRCOM'!$G$6:$CY$312,155,FALSE) ->  | K48: =VLOOKUP($A$5,#REF!,155,FALSE) ->  | M48: =+K48-I48 ->  | O48: =VLOOKUP($A$5,'RECAP DIRCOM'!$G$6:$CY$312,156,FALSE) -> 

Sheet DC_TOTAL
B1: Accueil | D1: BAROMETRE BDD - DIRECTIONS REGIONALES
D2: TOTAL GENERAL
D3: =ACCUEIL!F7 -> 2022-12-04
D7: TOTAL GENERAL | G7: Total Satisfaction Clients | J7: Total Bancarisation | M7: Total Epargne | P7: Total IARD Prévoyance | S7: Total Crédits
E8: coef | F8: =+I8+L8+O8+R8+U8 -> 100% | H8: coef | I8: =DC_SATISFACTION!L8 -> 20% | K8: coef | L8: =DC_BANCA!N8 -> 20% | N8: coef | O8: =DC_EPARGNE!N8 -> 20% | Q8: coef | R8: =DC_IARD!N8 -> 20% | T8: coef | U8: =DC_CREDIT!R8 -> 20%
A9: eds | B9: Direction | C9: ="ETP perf "&DATEMAJ!$C$28 -> ETP perf 04-déc | D9: Moyenne ecart au 1er | E9: % Ecart au 1er | F9: Rang CEGEE | G9: Moyenne ecart au 1er | H9: % Ecart au 1er | I9: Rang CEGEE | J9: Moyenne ecart au 1er | K9: % Ecart au 1er | L9: Rang CEGEE | M9: Moyenne ecart au 1er | N9: % Ecart au 1er | O9: Rang CEGEE | P9: Moyenne ecart au 1er | Q9: % Ecart au 1er | R9: Rang CEGEE | S9: Moyenne ecart au 1er | T9: % Ecart au 1er | U9: Rang CEGEE
A10: 50 | B10: Marne-Ardennes | C10: 193 | D10: 5% | E10: 0% | F10: 1 | G10: 16% | H10: 16% | I10: 2 | J10: 0% | K10: 0% | L10: 1 | M10: 10% | N10: 8% | O10: 3 | P10: 0% | Q10: 0% | R10: 1 | S10: 3% | T10: 0% | U10: 1
A11: 262 | B11: Moselle | C11: 220 | D11: 8% | E11: 3% | F11: 2 | G11: 23% | H11: 23% | I11: 3 | J11: 7% | K11: 7% | L11: 2 | M11: 2% | N11: 0% | O11: 1 | P11: 4% | Q11: 4% | R11: 2 | S11: 9% | T11: 5% | U11: 2
A12: 264 | B12: Meurthe et Moselle Meuse | C12: 204 | D12: 22% | E12: 18% | F12: 3 | G12: 31% | H12: 31% | I12: 4 | J12: 30% | K12: 30% | L12: 4 | M12: 12% | N12: 10% | O12: 4 | P12: 26% | Q12: 26% | R12: 4 | S12: 19% | T12: 16% | U12: 3
A13: 30 | B13: Vosges | C13: 117 | D13: 25% | E13: 21% | F13: 4 | G13: 0% | H13: 0% | I13: 1 | J13: 35% | K13: 35% | L13: 5 | M13: 24% | N13: 23% | O13: 5 | P13: 38% | Q13: 38% | R13: 6 | S13: 35% | T13: 31% | U13: 4
A14: 110 | B14: Bas-Rhin | C14: 219 | D14: 29% | E14: 24% | F14: 5 | G14: 40% | H14: 40% | I14: 5 | J14: 29% | K14: 29% | L14: 3 | M14: 9% | N14: 8% | O14: 2 | P14: 31% | Q14: 31% | R14: 5 | S14: 39% | T14: 36% | U14: 6
A15: 160 | B15: Aube Haute Marne | C15: 112 | D15: 39% | E15: 35% | F15: 6 | G15: 52% | H15: 52% | I15: 6 | J15: 48% | K15: 48% | L15: 6 | M15: 40% | N15: 38% | O15: 6 | P15: 25% | Q15: 25% | R15: 3 | S15: 37% | T15: 33% | U15: 5
A16: 80 | B16: Haut-Rhin | C16: 123 | D16: 64% | E16: 59% | F16: 7 | G16: 61% | H16: 61% | I16: 7 | J16: 67% | K16: 67% | L16: 7 | M16: 81% | N16: 79% | O16: 7 | P16: 68% | Q16: 68% | R16: 7 | S16: 48% | T16: 45% | U16: 7
B17: Total CEGEE Directions Régionales | C17: =SUM(C10:C16) -> 1186

Sheet DC_BANCA
B1: Accueil | D1: BAROMETRE BDD - DIRECTIONS REGIONALES
D2: BANCARISATION
D3: =ACCUEIL!F7 -> 2022-12-04
D7: Ventes Nettes produits pondérés | H7: Ventes sur client non détenteur de l’univers | L7: Total Bancarisation
D8: =DATEMAJ!C8 -> au 04/12 | F8: coef | G8: ='RECAP DIRCOM'!AA4 -> 12% | H8: =DATEMAJ!C9 -> au 04/12 | J8: coef | K8: ='RECAP DIRCOM'!AE4 -> 8% | M8: coef | N8: ='RECAP DIRCOM'!AH4 -> 20%
B9: Direction | C9: ="ETP perf "&DATEMAJ!$C$28 -> ETP perf 04-déc | D9: VN | E9: VN / ETP | F9: % Ecart au 1er | G9: Rang | H9: VB | I9: VB / ETP | J9: % Ecart au 1er | K9: Rang | L9: Moyenne ecart au 1er | M9: % Ecart au 1er | N9: Rang CEGEE
A10: 50 | B10: Aube Haute Marne | C10: =VLOOKUP($A10,'RECAP DIRCOM'!$G$6:$CU$12,3,FALSE) -> 112 | D10: =VLOOKUP($A10,'RECAP DIRCOM'!$G$6:$CU$12,18,FALSE) -> 994 | E10: =VLOOKUP($A10,'RECAP DIRCOM'!$G$6:$CU$12,19,FALSE) -> 8.87 | F10: =VLOOKUP($A10,'RECAP DIRCOM'!$G$6:$CU$12,20,FALSE) -> 65% | G10: =VLOOKUP($A10,'RECAP DIRCOM'!$G$6:$CU$12,21,FALSE) -> 6 | H10: =VLOOKUP($A10,'RECAP DIRCOM'!$G$6:$CU$12,22,FALSE) -> 5,890 | I10: =VLOOKUP($A10,'RECAP DIRCOM'!$G$6:$CU$12,23,FALSE) -> 52.58 | J10: =VLOOKUP($A10,'RECAP DIRCOM'!$G$6:$CU$12,24,FALSE) -> 23% | K10: =VLOOKUP($A10,'RECAP DIRCOM'!$G$6:$CU$12,25,FALSE) -> 5 | L10: =VLOOKUP($A10,'RECAP DIRCOM'!$G$6:$CU$12,26,FALSE) -> 48% | M10: =VLOOKUP($A10,'RECAP DIRCOM'!$G$6:$CU$12,27,FALSE) -> 48% | N10: =VLOOKUP($A10,'RECAP DIRCOM'!$G$6:$CU$12,28,FALSE) -> 6
A11: 262 | B11: Bas-Rhin | C11: =VLOOKUP($A11,'RECAP DIRCOM'!$G$6:$CU$12,3,FALSE) -> 219 | D11: =VLOOKUP($A11,'RECAP DIRCOM'!$G$6:$CU$12,18,FALSE) -> 3,587 | E11: =VLOOKUP($A11,'RECAP DIRCOM'!$G$6:$CU$12,19,FALSE) -> 16.41 | F11: =VLOOKUP($A11,'RECAP DIRCOM'!$G$6:$CU$12,20,FALSE) -> 35% | G11: =VLOOKUP($A11,'RECAP DIRCOM'!$G$6:$CU$12,21,FALSE) -> 3 | H11: =VLOOKUP($A11,'RECAP DIRCOM'!$G$6:$CU$12,22,FALSE) -> 12,034 | I11: =VLOOKUP($A11,'RECAP DIRCOM'!$G$6:$CU$12,23,FALSE) -> 55.07 | J11: =VLOOKUP($A11,'RECAP DIRCOM'!$G$6:$CU$12,24,FALSE) -> 20% | K11: =VLOOKUP($A11,'RECAP DIRCOM'!$G$6:$CU$12,25,FALSE) -> 4 | L11: =VLOOKUP($A11,'RECAP DIRCOM'!$G$6:$CU$12,26,FALSE) -> 29% | M11: =VLOOKUP($A11,'RECAP DIRCOM'!$G$6:$CU$12,27,FALSE) -> 29% | N11: =VLOOKUP($A11,'RECAP DIRCOM'!$G$6:$CU$12,28,FALSE) -> 3
A12: 264 | B12: Haut-Rhin | C12: =VLOOKUP($A12,'RECAP DIRCOM'!$G$6:$CU$12,3,FALSE) -> 123 | D12: =VLOOKUP($A12,'RECAP DIRCOM'!$G$6:$CU$12,18,FALSE) -> 369 | E12: =VLOOKUP($A12,'RECAP DIRCOM'!$G$6:$CU$12,19,FALSE) -> 3.00 | F12: =VLOOKUP($A12,'RECAP DIRCOM'!$G$6:$CU$12,20,FALSE) -> 88% | G12: =VLOOKUP($A12,'RECAP DIRCOM'!$G$6:$CU$12,21,FALSE) -> 7 | H12: =VLOOKUP($A12,'RECAP DIRCOM'!$G$6:$CU$12,22,FALSE) -> 5,480 | I12: =VLOOKUP($A12,'RECAP DIRCOM'!$G$6:$CU$12,23,FALSE) -> 44.61 | J12: =VLOOKUP($A12,'RECAP DIRCOM'!$G$6:$CU$12,24,FALSE) -> 35% | K12: =VLOOKUP($A12,'RECAP DIRCOM'!$G$6:$CU$12,25,FALSE) -> 7 | L12: =VLOOKUP($A12,'RECAP DIRCOM'!$G$6:$CU$12,26,FALSE) -> 67% | M12: =VLOOKUP($A12,'RECAP DIRCOM'!$G$6:$CU$12,27,FALSE) -> 67% | N12: =VLOOKUP($A12,'RECAP DIRCOM'!$G$6:$CU$12,28,FALSE) -> 7
A13: 30 | B13: Marne-Ardennes | C13: =VLOOKUP($A13,'RECAP DIRCOM'!$G$6:$CU$12,3,FALSE) -> 193 | D13: =VLOOKUP($A13,'RECAP DIRCOM'!$G$6:$CU$12,18,FALSE) -> 4,884 | E13: =VLOOKUP($A13,'RECAP DIRCOM'!$G$6:$CU$12,19,FALSE) -> 25.36 | F13: =VLOOKUP($A13,'RECAP DIRCOM'!$G$6:$CU$12,20,FALSE) -> 0% | G13: =VLOOKUP($A13,'RECAP DIRCOM'!$G$6:$CU$12,21,FALSE) -> 1 | H13: =VLOOKUP($A13,'RECAP DIRCOM'!$G$6:$CU$12,22,FALSE) -> 13,214 | I13: =VLOOKUP($A13,'RECAP DIRCOM'!$G$6:$CU$12,23,FALSE) -> 68.61 | J13: =VLOOKUP($A13,'RECAP DIRCOM'!$G$6:$CU$12,24,FALSE) -> 0% | K13: =VLOOKUP($A13,'RECAP DIRCOM'!$G$6:$CU$12,25,FALSE) -> 1 | L13: =VLOOKUP($A13,'RECAP DIRCOM'!$G$6:$CU$12,26,FALSE) -> 0% | M13: =VLOOKUP($A13,'RECAP DIRCOM'!$G$6:$CU$12,27,FALSE) -> 0% | N13: =VLOOKUP($A13,'RECAP DIRCOM'!$G$6:$CU$12,28,FALSE) -> 1
A14: 110 | B14: Meurthe et Moselle Meuse | C14: =VLOOKUP($A14,'RECAP DIRCOM'!$G$6:$CU$12,3,FALSE) -> 204 | D14: =VLOOKUP($A14,'RECAP DIRCOM'!$G$6:$CU$12,18,FALSE) -> 3,003 | E14: =VLOOKUP($A14,'RECAP DIRCOM'!$G$6:$CU$12,19,FALSE) -> 14.74 | F14: =VLOOKUP($A14,'RECAP DIRCOM'!$G$6:$CU$12,20,FALSE) -> 42% | G14: =VLOOKUP($A14,'RECAP DIRCOM'!$G$6:$CU$12,21,FALSE) -> 5 | H14: =VLOOKUP($A14,'RECAP DIRCOM'!$G$6:$CU$12,22,FALSE) -> 12,329 | I14: =VLOOKUP($A14,'RECAP DIRCOM'!$G$6:$CU$12,23,FALSE) -> 60.54 | J14: =VLOOKUP($A14,'RECAP DIRCOM'!$G$6:$CU$12,24,FALSE) -> 12% | K14: =VLOOKUP($A14,'RECAP DIRCOM'!$G$6:$CU$12,25,FALSE) -> 3 | L14: =VLOOKUP($A14,'RECAP DIRCOM'!$G$6:$CU$12,26,FALSE) -> 30% | M14: =VLOOKUP($A14,'RECAP DIRCOM'!$G$6:$CU$12,27,FALSE) -> 30% | N14: =VLOOKUP($A14,'RECAP DIRCOM'!$G$6:$CU$12,28,FALSE) -> 4
A15: 160 | B15: Moselle | C15: =VLOOKUP($A15,'RECAP DIRCOM'!$G$6:$CU$12,3,FALSE) -> 220 | D15: =VLOOKUP($A15,'RECAP DIRCOM'!$G$6:$CU$12,18,FALSE) -> 4,967 | E15: =VLOOKUP($A15,'RECAP DIRCOM'!$G$6:$CU$12,19,FALSE) -> 22.56 | F15: =VLOOKUP($A15,'RECAP DIRCOM'!$G$6:$CU$12,20,FALSE) -> 11% | G15: =VLOOKUP($A15,'RECAP DIRCOM'!$G$6:$CU$12,21,FALSE) -> 2 | H15: =VLOOKUP($A15,'RECAP DIRCOM'!$G$6:$CU$12,22,FALSE) -> 14,898 | I15: =VLOOKUP($A15,'RECAP DIRCOM'!$G$6:$CU$12,23,FALSE) -> 67.65 | J15: =VLOOKUP($A15,'RECAP DIRCOM'!$G$6:$CU$12,24,FALSE) -> 1% | K15: =VLOOKUP($A15,'RECAP DIRCOM'!$G$6:$CU$12,25,FALSE) -> 2 | L15: =VLOOKUP($A15,'RECAP DIRCOM'!$G$6:$CU$12,26,FALSE) -> 7% | M15: =VLOOKUP($A15,'RECAP DIRCOM'!$G$6:$CU$12,27,FALSE) -> 7% | N15: =VLOOKUP($A15,'RECAP DIRCOM'!$G$6:$CU$12,28,FALSE) -> 2
A16: 80 | B16: Vosges | C16: =VLOOKUP($A16,'RECAP DIRCOM'!$G$6:$CU$12,3,FALSE) -> 117 | D16: =VLOOKUP($A16,'RECAP DIRCOM'!$G$6:$CU$12,18,FALSE) -> 1,752 | E16: =VLOOKUP($A16,'RECAP DIRCOM'!$G$6:$CU$12,19,FALSE) -> 15.03 | F16: =VLOOKUP($A16,'RECAP DIRCOM'!$G$6:$CU$12,20,FALSE) -> 41% | G16: =VLOOKUP($A16,'RECAP DIRCOM'!$G$6:$CU$12,21,FALSE) -> 4 | H16: =VLOOKUP($A16,'RECAP DIRCOM'!$G$6:$CU$12,22,FALSE) -> 5,809 | I16: =VLOOKUP($A16,'RECAP DIRCOM'!$G$6:$CU$12,23,FALSE) -> 49.85 | J16: =VLOOKUP($A16,'RECAP DIRCOM'!$G$6:$CU$12,24,FALSE) -> 27% | K16: =VLOOKUP($A16,'RECAP DIRCOM'!$G$6:$CU$12,25,FALSE) -> 6 | L16: =VLOOKUP($A16,'RECAP DIRCOM'!$G$6:$CU$12,26,FALSE) -> 35% | M16: =VLOOKUP($A16,'RECAP DIRCOM'!$G$6:$CU$12,27,FALSE) -> 35% | N16: =VLOOKUP($A16,'RECAP DIRCOM'!$G$6:$CU$12,28,FALSE) -> 5
B17: Total CEGEE Directions Régionales | C17: =SUM(C10:C16) -> 1186

Sheet DC_EPARGNE
B1: Accueil | D1: BAROMETRE BDD - DIRECTIONS REGIONALES
D2: EPARGNE
D3: =ACCUEIL!F7 -> 2022-12-04
D7: Excédent Epargne hors DAV pondéré | H7: Ventes sur client non détenteur de l’univers | L7: Total Epargne
D8: =DATEMAJ!C14 -> au 04/12 | F8: coef | G8: ='RECAP DIRCOM'!AP4 -> 12% | H8: =DATEMAJ!C15 -> au 04/12 | J8: coef | K8: ='RECAP DIRCOM'!AT4 -> 8% | M8: coef | N8: ='RECAP DIRCOM'!AW4 -> 20%
B9: Direction | C9: ="ETP perf "&DATEMAJ!$C$28 -> ETP perf 04-déc | D9: Excédent | E9: Excédent / ETP | F9: % Ecart au 1er | G9: Rang | H9: VB | I9: VB / ETP | J9: % Ecart au 1er | K9: Rang | L9: Moyenne ecart au 1er | M9: % Ecart au 1er | N9: Rang CEGEE
A10: 50 | B10: Aube Haute Marne | C10: =VLOOKUP($A10,'RECAP DIRCOM'!$G$6:$CU$12,3,FALSE) -> 112 | D10: =VLOOKUP($A10,'RECAP DIRCOM'!$G$6:$CU$12,33,FALSE) -> 19,768 | E10: =VLOOKUP($A10,'RECAP DIRCOM'!$G$6:$CU$12,34,FALSE) -> 176.49 | F10: =VLOOKUP($A10,'RECAP DIRCOM'!$G$6:$CU$12,35,FALSE) -> 47% | G10: =VLOOKUP($A10,'RECAP DIRCOM'!$G$6:$CU$12,36,FALSE) -> 6 | H10: =VLOOKUP($A10,'RECAP DIRCOM'!$G$6:$CU$12,37,FALSE) -> 5,688 | I10: =VLOOKUP($A10,'RECAP DIRCOM'!$G$6:$CU$12,38,FALSE) -> 50.78 | J10: =VLOOKUP($A10,'RECAP DIRCOM'!$G$6:$CU$12,39,FALSE) -> 30% | K10: =VLOOKUP($A10,'RECAP DIRCOM'!$G$6:$CU$12,40,FALSE) -> 5 | L10: =VLOOKUP($A10,'RECAP DIRCOM'!$G$6:$CU$12,41,FALSE) -> 40% | M10: =VLOOKUP($A10,'RECAP DIRCOM'!$G$6:$CU$12,42,FALSE) -> 38% | N10: =VLOOKUP($A10,'RECAP DIRCOM'!$G$6:$CU$12,43,FALSE) -> 6
A11: 262 | B11: Bas-Rhin | C11: =VLOOKUP($A11,'RECAP DIRCOM'!$G$6:$CU$12,3,FALSE) -> 219 | D11: =VLOOKUP($A11,'RECAP DIRCOM'!$G$6:$CU$12,33,FALSE) -> 72,567 | E11: =VLOOKUP($A11,'RECAP DIRCOM'!$G$6:$CU$12,34,FALSE) -> 332.07 | F11: =VLOOKUP($A11,'RECAP DIRCOM'!$G$6:$CU$12,35,FALSE) -> 0% | G11: =VLOOKUP($A11,'RECAP DIRCOM'!$G$6:$CU$12,36,FALSE) -> 1 | H11: =VLOOKUP($A11,'RECAP DIRCOM'!$G$6:$CU$12,37,FALSE) -> 12,156 | I11: =VLOOKUP($A11,'RECAP DIRCOM'!$G$6:$CU$12,38,FALSE) -> 55.63 | J11: =VLOOKUP($A11,'RECAP DIRCOM'!$G$6:$CU$12,39,FALSE) -> 24% | K11: =VLOOKUP($A11,'RECAP DIRCOM'!$G$6:$CU$12,40,FALSE) -> 3 | L11: =VLOOKUP($A11,'RECAP DIRCOM'!$G$6:$CU$12,41,FALSE) -> 9% | M11: =VLOOKUP($A11,'RECAP DIRCOM'!$G$6:$CU$12,42,FALSE) -> 8% | N11: =VLOOKUP($A11,'RECAP DIRCOM'!$G$6:$CU$12,43,FALSE) -> 2
A12: 264 | B12: Haut-Rhin | C12: =VLOOKUP($A12,'RECAP DIRCOM'!$G$6:$CU$12,3,FALSE) -> 123 | D12: =VLOOKUP($A12,'RECAP DIRCOM'!$G$6:$CU$12,33,FALSE) -> -2,479 | E12: =VLOOKUP($A12,'RECAP DIRCOM'!$G$6:$CU$12,34,FALSE) -> -20.18 | F12: =VLOOKUP($A12,'RECAP DIRCOM'!$G$6:$CU$12,35,FALSE) -> 106% | G12: =VLOOKUP($A12,'RECAP DIRCOM'!$G$6:$CU$12,36,FALSE) -> 7 | H12: =VLOOKUP($A12,'RECAP DIRCOM'!$G$6:$CU$12,37,FALSE) -> 5,033 | I12: =VLOOKUP($A12,'RECAP DIRCOM'!$G$6:$CU$12,38,FALSE) -> 40.98 | J12: =VLOOKUP($A12,'RECAP DIRCOM'!$G$6:$CU$12,39,FALSE) -> 44% | K12: =VLOOKUP($A12,'RECAP DIRCOM'!$G$6:$CU$12,40,FALSE) -> 7 | L12: =VLOOKUP($A12,'RECAP DIRCOM'!$G$6:$CU$12,41,FALSE) -> 81% | M12: =VLOOKUP($A12,'RECAP DIRCOM'!$G$6:$CU$12,42,FALSE) -> 79% | N12: =VLOOKUP($A12,'RECAP DIRCOM'!$G$6:$CU$12,43,FALSE) -> 7
A13: 30 | B13: Marne-Ardennes | C13: =VLOOKUP($A13,'RECAP DIRCOM'!$G$6:$CU$12,3,FALSE) -> 193 | D13: =VLOOKUP($A13,'RECAP DIRCOM'!$G$6:$CU$12,33,FALSE) -> 54,169 | E13: =VLOOKUP($A13,'RECAP DIRCOM'!$G$6:$CU$12,34,FALSE) -> 281.25 | F13: =VLOOKUP($A13,'RECAP DIRCOM'!$G$6:$CU$12,35,FALSE) -> 15% | G13: =VLOOKUP($A13,'RECAP DIRCOM'!$G$6:$CU$12,36,FALSE) -> 4 | H13: =VLOOKUP($A13,'RECAP DIRCOM'!$G$6:$CU$12,37,FALSE) -> 13,707 | I13: =VLOOKUP($A13,'RECAP DIRCOM'!$G$6:$CU$12,38,FALSE) -> 71.17 | J13: =VLOOKUP($A13,'RECAP DIRCOM'!$G$6:$CU$12,39,FALSE) -> 2% | K13: =VLOOKUP($A13,'RECAP DIRCOM'!$G$6:$CU$12,40,FALSE) -> 2 | L13: =VLOOKUP($A13,'RECAP DIRCOM'!$G$6:$CU$12,41,FALSE) -> 10% | M13: =VLOOKUP($A13,'RECAP DIRCOM'!$G$6:$CU$12,42,FALSE) -> 8% | N13: =VLOOKUP($A13,'RECAP DIRCOM'!$G$6:$CU$12,43,FALSE) -> 3
A14: 110 | B14: Meurthe et Moselle Meuse | C14: =VLOOKUP($A14,'RECAP DIRCOM'!$G$6:$CU$12,3,FALSE) -> 204 | D14: =VLOOKUP($A14,'RECAP DIRCOM'!$G$6:$CU$12,33,FALSE) -> 65,176 | E14: =VLOOKUP($A14,'RECAP DIRCOM'!$G$6:$CU$12,34,FALSE) -> 320.04 | F14: =VLOOKUP($A14,'RECAP DIRCOM'!$G$6:$CU$12,35,FALSE) -> 4% | G14: =VLOOKUP($A14,'RECAP DIRCOM'!$G$6:$CU$12,36,FALSE) -> 3 | H14: =VLOOKUP($A14,'RECAP DIRCOM'!$G$6:$CU$12,37,FALSE) -> 11,171 | I14: =VLOOKUP($A14,'RECAP DIRCOM'!$G$6:$CU$12,38,FALSE) -> 54.85 | J14: =VLOOKUP($A14,'RECAP DIRCOM'!$G$6:$CU$12,39,FALSE) -> 25% | K14: =VLOOKUP($A14,'RECAP DIRCOM'!$G$6:$CU$12,40,FALSE) -> 4 | L14: =VLOOKUP($A14,'RECAP DIRCOM'!$G$6:$CU$12,41,FALSE) -> 12% | M14: =VLOOKUP($A14,'RECAP DIRCOM'!$G$6:$CU$12,42,FALSE) -> 10% | N14: =VLOOKUP($A14,'RECAP DIRCOM'!$G$6:$CU$12,43,FALSE) -> 4
A15: 160 | B15: Moselle | C15: =VLOOKUP($A15,'RECAP DIRCOM'!$G$6:$CU$12,3,FALSE) -> 220 | D15: =VLOOKUP($A15,'RECAP DIRCOM'!$G$6:$CU$12,33,FALSE) -> 70,772 | E15: =VLOOKUP($A15,'RECAP DIRCOM'!$G$6:$CU$12,34,FALSE) -> 321.37 | F15: =VLOOKUP($A15,'RECAP DIRCOM'!$G$6:$CU$12,35,FALSE) -> 3% | G15: =VLOOKUP($A15,'RECAP DIRCOM'!$G$6:$CU$12,36,FALSE) -> 2 | H15: =VLOOKUP($A15,'RECAP DIRCOM'!$G$6:$CU$12,37,FALSE) -> 16,043 | I15: =VLOOKUP($A15,'RECAP DIRCOM'!$G$6:$CU$12,38,FALSE) -> 72.85 | J15: =VLOOKUP($A15,'RECAP DIRCOM'!$G$6:$CU$12,39,FALSE) -> 0% | K15: =VLOOKUP($A15,'RECAP DIRCOM'!$G$6:$CU$12,40,FALSE) -> 1 | L15: =VLOOKUP($A15,'RECAP DIRCOM'!$G$6:$CU$12,41,FALSE) -> 2% | M15: =VLOOKUP($A15,'RECAP DIRCOM'!$G$6:$CU$12,42,FALSE) -> 0% | N15: =VLOOKUP($A15,'RECAP DIRCOM'!$G$6:$CU$12,43,FALSE) -> 1
A16: 80 | B16: Vosges | C16: =VLOOKUP($A16,'RECAP DIRCOM'!$G$6:$CU$12,3,FALSE) -> 117 | D16: =VLOOKUP($A16,'RECAP DIRCOM'!$G$6:$CU$12,33,FALSE) -> 31,719 | E16: =VLOOKUP($A16,'RECAP DIRCOM'!$G$6:$CU$12,34,FALSE) -> 272.20 | F16: =VLOOKUP($A16,'RECAP DIRCOM'!$G$6:$CU$12,35,FALSE) -> 18% | G16: =VLOOKUP($A16,'RECAP DIRCOM'!$G$6:$CU$12,36,FALSE) -> 5 | H16: =VLOOKUP($A16,'RECAP DIRCOM'!$G$6:$CU$12,37,FALSE) -> 5,594 | I16: =VLOOKUP($A16,'RECAP DIRCOM'!$G$6:$CU$12,38,FALSE) -> 48.00 | J16: =VLOOKUP($A16,'RECAP DIRCOM'!$G$6:$CU$12,39,FALSE) -> 34% | K16: =VLOOKUP($A16,'RECAP DIRCOM'!$G$6:$CU$12,40,FALSE) -> 6 | L16: =VLOOKUP($A16,'RECAP DIRCOM'!$G$6:$CU$12,41,FALSE) -> 24% | M16: =VLOOKUP($A16,'RECAP DIRCOM'!$G$6:$CU$12,42,FALSE) -> 23% | N16: =VLOOKUP($A16,'RECAP DIRCOM'!$G$6:$CU$12,43,FALSE) -> 5
B17: Total CEGEE Directions Régionales | C17: =SUM(C10:C16) -> 1186

Sheet DC_CREDIT
B1: Accueil | D1: BAROMETRE BDD - DIRECTIONS REGIONALES
D2: CREDITS
D3: =ACCUEIL!F7 -> 2022-12-04
D7: Engagements et ventes accessoires pondérés Immo | H7: Engagements et ventes accessoires pondérés Conso | L7: Ventes sur client non détenteur de l’univers | P7: Total Crédits
D8: =DATEMAJ!C18 -> au 04/12 | F8: coef | G8: ='RECAP DIRCOM'!BE4 -> 6% | H8: =DATEMAJ!C19 -> au 04/12 | J8: coef | K8: ='RECAP DIRCOM'!BI4 -> 6% | L8: =DATEMAJ!C20 -> au 04/12 | N8: coef | O8: ='RECAP DIRCOM'!BM4 -> 8% | Q8: coef | R8: ='RECAP DIRCOM'!BP4 -> 20%
B9: Direction | C9: ="ETP perf "&DATEMAJ!$C$28 -> ETP perf 04-déc | D9: PNB | E9: PNB / ETP | F9: % Ecart au 1er | G9: Rang | H9: PNB | I9: PNB / ETP | J9: % Ecart au 1er | K9: Rang | L9: VB | M9: VB / ETP | N9: % Ecart au 1er | O9: Rang | P9: Moyenne ecart au 1er | Q9: % Ecart au 1er | R9: Rang CEGEE
A10: 50 | B10: Aube Haute Marne | C10: =VLOOKUP($A10,'RECAP DIRCOM'!$G$6:$CU$12,3,FALSE) -> 112 | D10: =VLOOKUP($A10,'RECAP DIRCOM'!$G$6:$CU$12,48,FALSE) -> 22,357 | E10: =VLOOKUP($A10,'RECAP DIRCOM'!$G$6:$CU$12,49,FALSE) -> 199.60 | F10: =VLOOKUP($A10,'RECAP DIRCOM'!$G$6:$CU$12,50,FALSE) -> 56% | G10: =VLOOKUP($A10,'RECAP DIRCOM'!$G$6:$CU$12,51,FALSE) -> 6 | H10: =VLOOKUP($A10,'RECAP DIRCOM'!$G$6:$CU$12,52,FALSE) -> 5,316 | I10: =VLOOKUP($A10,'RECAP DIRCOM'!$G$6:$CU$12,53,FALSE) -> 47.46 | J10: =VLOOKUP($A10,'RECAP DIRCOM'!$G$6:$CU$12,54,FALSE) -> 13% | K10: =VLOOKUP($A10,'RECAP DIRCOM'!$G$6:$CU$12,55,FALSE) -> 4 | L10: =VLOOKUP($A10,'RECAP DIRCOM'!$G$6:$CU$12,56,FALSE) -> 2,191 | M10: =VLOOKUP($A10,'RECAP DIRCOM'!$G$6:$CU$12,57,FALSE) -> 19.56 | N10: =VLOOKUP($A10,'RECAP DIRCOM'!$G$6:$CU$12,58,FALSE) -> 40% | O10: =VLOOKUP($A10,'RECAP DIRCOM'!$G$6:$CU$12,59,FALSE) -> 5 | P10: =VLOOKUP($A10,'RECAP DIRCOM'!$G$6:$CU$12,60,FALSE) -> 37% | Q10: =VLOOKUP($A10,'RECAP DIRCOM'!$G$6:$CU$12,61,FALSE) -> 33% | R10: =VLOOKUP($A10,'RECAP DIRCOM'!$G$6:$CU$12,62,FALSE) -> 5
A11: 262 | B11: Bas-Rhin | C11: =VLOOKUP($A11,'RECAP DIRCOM'!$G$6:$CU$12,3,FALSE) -> 219 | D11: =VLOOKUP($A11,'RECAP DIRCOM'!$G$6:$CU$12,48,FALSE) -> 49,211 | E11: =VLOOKUP($A11,'RECAP DIRCOM'!$G$6:$CU$12,49,FALSE) -> 225.19 | F11: =VLOOKUP($A11,'RECAP DIRCOM'!$G$6:$CU$12,50,FALSE) -> 50% | G11: =VLOOKUP($A11,'RECAP DIRCOM'!$G$6:$CU$12,51,FALSE) -> 4 | H11: =VLOOKUP($A11,'RECAP DIRCOM'!$G$6:$CU$12,52,FALSE) -> 8,783 | I11: =VLOOKUP($A11,'RECAP DIRCOM'!$G$6:$CU$12,53,FALSE) -> 40.19 | J11: =VLOOKUP($A11,'RECAP DIRCOM'!$G$6:$CU$12,54,FALSE) -> 27% | K11: =VLOOKUP($A11,'RECAP DIRCOM'!$G$6:$CU$12,55,FALSE) -> 6 | L11: =VLOOKUP($A11,'RECAP DIRCOM'!$G$6:$CU$12,56,FALSE) -> 4,216 | M11: =VLOOKUP($A11,'RECAP DIRCOM'!$G$6:$CU$12,57,FALSE) -> 19.29 | N11: =VLOOKUP($A11,'RECAP DIRCOM'!$G$6:$CU$12,58,FALSE) -> 41% | O11: =VLOOKUP($A11,'RECAP DIRCOM'!$G$6:$CU$12,59,FALSE) -> 6 | P11: =VLOOKUP($A11,'RECAP DIRCOM'!$G$6:$CU$12,60,FALSE) -> 39% | Q11: =VLOOKUP($A11,'RECAP DIRCOM'!$G$6:$CU$12,61,FALSE) -> 36% | R11: =VLOOKUP($A11,'RECAP DIRCOM'!$G$6:$CU$12,62,FALSE) -> 6
A12: 264 | B12: Haut-Rhin | C12: =VLOOKUP($A12,'RECAP DIRCOM'!$G$6:$CU$12,3,FALSE) -> 123 | D12: =VLOOKUP($A12,'RECAP DIRCOM'!$G$6:$CU$12,48,FALSE) -> 22,327 | E12: =VLOOKUP($A12,'RECAP DIRCOM'!$G$6:$CU$12,49,FALSE) -> 181.77 | F12: =VLOOKUP($A12,'RECAP DIRCOM'!$G$6:$CU$12,50,FALSE) -> 60% | G12: =VLOOKUP($A12,'RECAP DIRCOM'!$G$6:$CU$12,51,FALSE) -> 7 | H12: =VLOOKUP($A12,'RECAP DIRCOM'!$G$6:$CU$12,52,FALSE) -> 4,708 | I12: =VLOOKUP($A12,'RECAP DIRCOM'!$G$6:$CU$12,53,FALSE) -> 38.33 | J12: =VLOOKUP($A12,'RECAP DIRCOM'!$G$6:$CU$12,54,FALSE) -> 30% | K12: =VLOOKUP($A12,'RECAP DIRCOM'!$G$6:$CU$12,55,FALSE) -> 7 | L12: =VLOOKUP($A12,'RECAP DIRCOM'!$G$6:$CU$12,56,FALSE) -> 1,897 | M12: =VLOOKUP($A12,'RECAP DIRCOM'!$G$6:$CU$12,57,FALSE) -> 15.44 | N12: =VLOOKUP($A12,'RECAP DIRCOM'!$G$6:$CU$12,58,FALSE) -> 52% | O12: =VLOOKUP($A12,'RECAP DIRCOM'!$G$6:$CU$12,59,FALSE) -> 7 | P12: =VLOOKUP($A12,'RECAP DIRCOM'!$G$6:$CU$12,60,FALSE) -> 48% | Q12: =VLOOKUP($A12,'RECAP DIRCOM'!$G$6:$CU$12,61,FALSE) -> 45% | R12: =VLOOKUP($A12,'RECAP DIRCOM'!$G$6:$CU$12,62,FALSE) -> 7
A13: 30 | B13: Marne-Ardennes | C13: =VLOOKUP($A13,'RECAP DIRCOM'!$G$6:$CU$12,3,FALSE) -> 193 | D13: =VLOOKUP($A13,'RECAP DIRCOM'!$G$6:$CU$12,48,FALSE) -> 87,065 | E13: =VLOOKUP($A13,'RECAP DIRCOM'!$G$6:$CU$12,49,FALSE) -> 452.05 | F13: =VLOOKUP($A13,'RECAP DIRCOM'!$G$6:$CU$12,50,FALSE) -> 0% | G13: =VLOOKUP($A13,'RECAP DIRCOM'!$G$6:$CU$12,51,FALSE) -> 1 | H13: =VLOOKUP($A13,'RECAP DIRCOM'!$G$6:$CU$12,52,FALSE) -> 9,364 | I13: =VLOOKUP($A13,'RECAP DIRCOM'!$G$6:$CU$12,53,FALSE) -> 48.62 | J13: =VLOOKUP($A13,'RECAP DIRCOM'!$G$6:$CU$12,54,FALSE) -> 11% | K13: =VLOOKUP($A13,'RECAP DIRCOM'!$G$6:$CU$12,55,FALSE) -> 3 | L13: =VLOOKUP($A13,'RECAP DIRCOM'!$G$6:$CU$12,56,FALSE) -> 6,254 | M13: =VLOOKUP($A13,'RECAP DIRCOM'!$G$6:$CU$12,57,FALSE) -> 32.47 | N13: =VLOOKUP($A13,'RECAP DIRCOM'!$G$6:$CU$12,58,FALSE) -> 0% | O13: =VLOOKUP($A13,'RECAP DIRCOM'!$G$6:$CU$12,59,FALSE) -> 1 | P13: =VLOOKUP($A13,'RECAP DIRCOM'!$G$6:$CU$12,60,FALSE) -> 3% | Q13: =VLOOKUP($A13,'RECAP DIRCOM'!$G$6:$CU$12,61,FALSE) -> 0% | R13: =VLOOKUP($A13,'RECAP DIRCOM'!$G$6:$CU$12,62,FALSE) -> 1
A14: 110 | B14: Meurthe et Moselle Meuse | C14: =VLOOKUP($A14,'RECAP DIRCOM'!$G$6:$CU$12,3,FALSE) -> 204 | D14: =VLOOKUP($A14,'RECAP DIRCOM'!$G$6:$CU$12,48,FALSE) -> 68,914 | E14: =VLOOKUP($A14,'RECAP DIRCOM'!$G$6:$CU$12,49,FALSE) -> 338.39 | F14: =VLOOKUP($A14,'RECAP DIRCOM'!$G$6:$CU$12,50,FALSE) -> 25% | G14: =VLOOKUP($A14,'RECAP DIRCOM'!$G$6:$CU$12,51,FALSE) -> 3 | H14: =VLOOKUP($A14,'RECAP DIRCOM'!$G$6:$CU$12,52,FALSE) -> 10,491 | I14: =VLOOKUP($A14,'RECAP DIRCOM'!$G$6:$CU$12,53,FALSE) -> 51.52 | J14: =VLOOKUP($A14,'RECAP DIRCOM'!$G$6:$CU$12,54,FALSE) -> 6% | K14: =VLOOKUP($A14,'RECAP DIRCOM'!$G$6:$CU$12,55,FALSE) -> 2 | L14: =VLOOKUP($A14,'RECAP DIRCOM'!$G$6:$CU$12,56,FALSE) -> 5,034 | M14: =VLOOKUP($A14,'RECAP DIRCOM'!$G$6:$CU$12,57,FALSE) -> 24.72 | N14: =VLOOKUP($A14,'RECAP DIRCOM'!$G$6:$CU$12,58,FALSE) -> 24% | O14: =VLOOKUP($A14,'RECAP DIRCOM'!$G$6:$CU$12,59,FALSE) -> 3 | P14: =VLOOKUP($A14,'RECAP DIRCOM'!$G$6:$CU$12,60,FALSE) -> 19% | Q14: =VLOOKUP($A14,'RECAP DIRCOM'!$G$6:$CU$12,61,FALSE) -> 16% | R14: =VLOOKUP($A14,'RECAP DIRCOM'!$G$6:$CU$12,62,FALSE) -> 3
A15: 160 | B15: Moselle | C15: =VLOOKUP($A15,'RECAP DIRCOM'!$G$6:$CU$12,3,FALSE) -> 220 | D15: =VLOOKUP($A15,'RECAP DIRCOM'!$G$6:$CU$12,48,FALSE) -> 90,078 | E15: =VLOOKUP($A15,'RECAP DIRCOM'!$G$6:$CU$12,49,FALSE) -> 409.04 | F15: =VLOOKUP($A15,'RECAP DIRCOM'!$G$6:$CU$12,50,FALSE) -> 10% | G15: =VLOOKUP($A15,'RECAP DIRCOM'!$G$6:$CU$12,51,FALSE) -> 2 | H15: =VLOOKUP($A15,'RECAP DIRCOM'!$G$6:$CU$12,52,FALSE) -> 12,079 | I15: =VLOOKUP($A15,'RECAP DIRCOM'!$G$6:$CU$12,53,FALSE) -> 54.85 | J15: =VLOOKUP($A15,'RECAP DIRCOM'!$G$6:$CU$12,54,FALSE) -> 0% | K15: =VLOOKUP($A15,'RECAP DIRCOM'!$G$6:$CU$12,55,FALSE) -> 1 | L15: =VLOOKUP($A15,'RECAP DIRCOM'!$G$6:$CU$12,56,FALSE) -> 6,115 | M15: =VLOOKUP($A15,'RECAP DIRCOM'!$G$6:$CU$12,57,FALSE) -> 27.77 | N15: =VLOOKUP($A15,'RECAP DIRCOM'!$G$6:$CU$12,58,FALSE) -> 14% | O15: =VLOOKUP($A15,'RECAP DIRCOM'!$G$6:$CU$12,59,FALSE) -> 2 | P15: =VLOOKUP($A15,'RECAP DIRCOM'!$G$6:$CU$12,60,FALSE) -> 9% | Q15: =VLOOKUP($A15,'RECAP DIRCOM'!$G$6:$CU$12,61,FALSE) -> 5% | R15: =VLOOKUP($A15,'RECAP DIRCOM'!$G$6:$CU$12,62,FALSE) -> 2
A16: 80 | B16: Vosges | C16: =VLOOKUP($A16,'RECAP DIRCOM'!$G$6:$CU$12,3,FALSE) -> 117 | D16: =VLOOKUP($A16,'RECAP DIRCOM'!$G$6:$CU$12,48,FALSE) -> 26,214 | E16: =VLOOKUP($A16,'RECAP DIRCOM'!$G$6:$CU$12,49,FALSE) -> 224.95 | F16: =VLOOKUP($A16,'RECAP DIRCOM'!$G$6:$CU$12,50,FALSE) -> 50% | G16: =VLOOKUP($A16,'RECAP DIRCOM'!$G$6:$CU$12,51,FALSE) -> 5 | H16: =VLOOKUP($A16,'RECAP DIRCOM'!$G$6:$CU$12,52,FALSE) -> 4,989 | I16: =VLOOKUP($A16,'RECAP DIRCOM'!$G$6:$CU$12,53,FALSE) -> 42.81 | J16: =VLOOKUP($A16,'RECAP DIRCOM'!$G$6:$CU$12,54,FALSE) -> 22% | K16: =VLOOKUP($A16,'RECAP DIRCOM'!$G$6:$CU$12,55,FALSE) -> 5 | L16: =VLOOKUP($A16,'RECAP DIRCOM'!$G$6:$CU$12,56,FALSE) -> 2,543 | M16: =VLOOKUP($A16,'RECAP DIRCOM'!$G$6:$CU$12,57,FALSE) -> 21.82 | N16: =VLOOKUP($A16,'RECAP DIRCOM'!$G$6:$CU$12,58,FALSE) -> 33% | O16: =VLOOKUP($A16,'RECAP DIRCOM'!$G$6:$CU$12,59,FALSE) -> 4 | P16: =VLOOKUP($A16,'RECAP DIRCOM'!$G$6:$CU$12,60,FALSE) -> 35% | Q16: =VLOOKUP($A16,'RECAP DIRCOM'!$G$6:$CU$12,61,FALSE) -> 31% | R16: =VLOOKUP($A16,'RECAP DIRCOM'!$G$6:$CU$12,62,FALSE) -> 4
B17: Total CEGEE Directions Régionales | C17: =SUM(C10:C16) -> 1186

Sheet DC_IARD
B1: Accueil | D1: BAROMETRE BDD - DIRECTIONS REGIONALES
D2: IARD ET PREVOYANCE
D3: =ACCUEIL!F7 -> 2022-12-04
D7: Ventes Nettes produits pondérés | H7: Ventes sur client non détenteur de l’univers | L7: Total IARD Prévoyance
D8: =DATEMAJ!C23 -> au 04/12 | F8: coef | G8: ='RECAP DIRCOM'!BX4 -> 12% | H8: =DATEMAJ!C24 -> au 04/12 | J8: coef | K8: ='RECAP DIRCOM'!CB4 -> 8% | M8: coef | N8: ='RECAP DIRCOM'!CE4 -> 20%
B9: Direction | C9: ="ETP perf "&DATEMAJ!$C$28 -> ETP perf 04-déc | D9: VN | E9: VN / ETP | F9: % Ecart au 1er | G9: Rang | H9: VB | I9: VB / ETP | J9: % Ecart au 1er | K9: Rang | L9: Moyenne ecart au 1er | M9: % Ecart au 1er | N9: Rang CEGEE
A10: 50 | B10: Aube Haute Marne | C10: =VLOOKUP($A10,'RECAP DIRCOM'!$G$6:$CU$12,3,FALSE) -> 112 | D10: =VLOOKUP($A10,'RECAP DIRCOM'!$G$6:$CU$12,67,FALSE) -> 12,135 | E10: =VLOOKUP($A10,'RECAP DIRCOM'!$G$6:$CU$12,68,FALSE) -> 108.34 | F10: =VLOOKUP($A10,'RECAP DIRCOM'!$G$6:$CU$12,69,FALSE) -> 27% | G10: =VLOOKUP($A10,'RECAP DIRCOM'!$G$6:$CU$12,70,FALSE) -> 3 | H10: =VLOOKUP($A10,'RECAP DIRCOM'!$G$6:$CU$12,71,FALSE) -> 3,948 | I10: =VLOOKUP($A10,'RECAP DIRCOM'!$G$6:$CU$12,72,FALSE) -> 35.25 | J10: =VLOOKUP($A10,'RECAP DIRCOM'!$G$6:$CU$12,73,FALSE) -> 23% | K10: =VLOOKUP($A10,'RECAP DIRCOM'!$G$6:$CU$12,74,FALSE) -> 5 | L10: =VLOOKUP($A10,'RECAP DIRCOM'!$G$6:$CU$12,75,FALSE) -> 25% | M10: =VLOOKUP($A10,'RECAP DIRCOM'!$G$6:$CU$12,76,FALSE) -> 25% | N10: =VLOOKUP($A10,'RECAP DIRCOM'!$G$6:$CU$12,77,FALSE) -> 3
A11: 262 | B11: Bas-Rhin | C11: =VLOOKUP($A11,'RECAP DIRCOM'!$G$6:$CU$12,3,FALSE) -> 219 | D11: =VLOOKUP($A11,'RECAP DIRCOM'!$G$6:$CU$12,67,FALSE) -> 19,846 | E11: =VLOOKUP($A11,'RECAP DIRCOM'!$G$6:$CU$12,68,FALSE) -> 90.82 | F11: =VLOOKUP($A11,'RECAP DIRCOM'!$G$6:$CU$12,69,FALSE) -> 39% | G11: =VLOOKUP($A11,'RECAP DIRCOM'!$G$6:$CU$12,70,FALSE) -> 5 | H11: =VLOOKUP($A11,'RECAP DIRCOM'!$G$6:$CU$12,71,FALSE) -> 8,156 | I11: =VLOOKUP($A11,'RECAP DIRCOM'!$G$6:$CU$12,72,FALSE) -> 37.32 | J11: =VLOOKUP($A11,'RECAP DIRCOM'!$G$6:$CU$12,73,FALSE) -> 18% | K11: =VLOOKUP($A11,'RECAP DIRCOM'!$G$6:$CU$12,74,FALSE) -> 4 | L11: =VLOOKUP($A11,'RECAP DIRCOM'!$G$6:$CU$12,75,FALSE) -> 31% | M11: =VLOOKUP($A11,'RECAP DIRCOM'!$G$6:$CU$12,76,FALSE) -> 31% | N11: =VLOOKUP($A11,'RECAP DIRCOM'!$G$6:$CU$12,77,FALSE) -> 5
A12: 264 | B12: Haut-Rhin | C12: =VLOOKUP($A12,'RECAP DIRCOM'!$G$6:$CU$12,3,FALSE) -> 123 | D12: =VLOOKUP($A12,'RECAP DIRCOM'!$G$6:$CU$12,67,FALSE) -> 2,248 | E12: =VLOOKUP($A12,'RECAP DIRCOM'!$G$6:$CU$12,68,FALSE) -> 18.30 | F12: =VLOOKUP($A12,'RECAP DIRCOM'!$G$6:$CU$12,69,FALSE) -> 88% | G12: =VLOOKUP($A12,'RECAP DIRCOM'!$G$6:$CU$12,70,FALSE) -> 7 | H12: =VLOOKUP($A12,'RECAP DIRCOM'!$G$6:$CU$12,71,FALSE) -> 3,475 | I12: =VLOOKUP($A12,'RECAP DIRCOM'!$G$6:$CU$12,72,FALSE) -> 28.29 | J12: =VLOOKUP($A12,'RECAP DIRCOM'!$G$6:$CU$12,73,FALSE) -> 38% | K12: =VLOOKUP($A12,'RECAP DIRCOM'!$G$6:$CU$12,74,FALSE) -> 7 | L12: =VLOOKUP($A12,'RECAP DIRCOM'!$G$6:$CU$12,75,FALSE) -> 68% | M12: =VLOOKUP($A12,'RECAP DIRCOM'!$G$6:$CU$12,76,FALSE) -> 68% | N12: =VLOOKUP($A12,'RECAP DIRCOM'!$G$6:$CU$12,77,FALSE) -> 7
A13: 30 | B13: Marne-Ardennes | C13: =VLOOKUP($A13,'RECAP DIRCOM'!$G$6:$CU$12,3,FALSE) -> 193 | D13: =VLOOKUP($A13,'RECAP DIRCOM'!$G$6:$CU$12,67,FALSE) -> 28,570 | E13: =VLOOKUP($A13,'RECAP DIRCOM'!$G$6:$CU$12,68,FALSE) -> 148.34 | F13: =VLOOKUP($A13,'RECAP DIRCOM'!$G$6:$CU$12,69,FALSE) -> 0% | G13: =VLOOKUP($A13,'RECAP DIRCOM'!$G$6:$CU$12,70,FALSE) -> 1 | H13: =VLOOKUP($A13,'RECAP DIRCOM'!$G$6:$CU$12,71,FALSE) -> 8,813 | I13: =VLOOKUP($A13,'RECAP DIRCOM'!$G$6:$CU$12,72,FALSE) -> 45.76 | J13: =VLOOKUP($A13,'RECAP DIRCOM'!$G$6:$CU$12,73,FALSE) -> 0% | K13: =VLOOKUP($A13,'RECAP DIRCOM'!$G$6:$CU$12,74,FALSE) -> 1 | L13: =VLOOKUP($A13,'RECAP DIRCOM'!$G$6:$CU$12,75,FALSE) -> 0% | M13: =VLOOKUP($A13,'RECAP DIRCOM'!$G$6:$CU$12,76,FALSE) -> 0% | N13: =VLOOKUP($A13,'RECAP DIRCOM'!$G$6:$CU$12,77,FALSE) -> 1
A14: 110 | B14: Meurthe et Moselle Meuse | C14: =VLOOKUP($A14,'RECAP DIRCOM'!$G$6:$CU$12,3,FALSE) -> 204 | D14: =VLOOKUP($A14,'RECAP DIRCOM'!$G$6:$CU$12,67,FALSE) -> 20,104 | E14: =VLOOKUP($A14,'RECAP DIRCOM'!$G$6:$CU$12,68,FALSE) -> 98.72 | F14: =VLOOKUP($A14,'RECAP DIRCOM'!$G$6:$CU$12,69,FALSE) -> 33% | G14: =VLOOKUP($A14,'RECAP DIRCOM'!$G$6:$CU$12,70,FALSE) -> 4 | H14: =VLOOKUP($A14,'RECAP DIRCOM'!$G$6:$CU$12,71,FALSE) -> 8,005 | I14: =VLOOKUP($A14,'RECAP DIRCOM'!$G$6:$CU$12,72,FALSE) -> 39.31 | J14: =VLOOKUP($A14,'RECAP DIRCOM'!$G$6:$CU$12,73,FALSE) -> 14% | K14: =VLOOKUP($A14,'RECAP DIRCOM'!$G$6:$CU$12,74,FALSE) -> 3 | L14: =VLOOKUP($A14,'RECAP DIRCOM'!$G$6:$CU$12,75,FALSE) -> 26% | M14: =VLOOKUP($A14,'RECAP DIRCOM'!$G$6:$CU$12,76,FALSE) -> 26% | N14: =VLOOKUP($A14,'RECAP DIRCOM'!$G$6:$CU$12,77,FALSE) -> 4
A15: 160 | B15: Moselle | C15: =VLOOKUP($A15,'RECAP DIRCOM'!$G$6:$CU$12,3,FALSE) -> 220 | D15: =VLOOKUP($A15,'RECAP DIRCOM'!$G$6:$CU$12,67,FALSE) -> 30,566 | E15: =VLOOKUP($A15,'RECAP DIRCOM'!$G$6:$CU$12,68,FALSE) -> 138.80 | F15: =VLOOKUP($A15,'RECAP DIRCOM'!$G$6:$CU$12,69,FALSE) -> 6% | G15: =VLOOKUP($A15,'RECAP DIRCOM'!$G$6:$CU$12,70,FALSE) -> 2 | H15: =VLOOKUP($A15,'RECAP DIRCOM'!$G$6:$CU$12,71,FALSE) -> 9,945 | I15: =VLOOKUP($A15,'RECAP DIRCOM'!$G$6:$CU$12,72,FALSE) -> 45.16 | J15: =VLOOKUP($A15,'RECAP DIRCOM'!$G$6:$CU$12,73,FALSE) -> 1% | K15: =VLOOKUP($A15,'RECAP DIRCOM'!$G$6:$CU$12,74,FALSE) -> 2 | L15: =VLOOKUP($A15,'RECAP DIRCOM'!$G$6:$CU$12,75,FALSE) -> 4% | M15: =VLOOKUP($A15,'RECAP DIRCOM'!$G$6:$CU$12,76,FALSE) -> 4% | N15: =VLOOKUP($A15,'RECAP DIRCOM'!$G$6:$CU$12,77,FALSE) -> 2
A16: 80 | B16: Vosges | C16: =VLOOKUP($A16,'RECAP DIRCOM'!$G$6:$CU$12,3,FALSE) -> 117 | D16: =VLOOKUP($A16,'RECAP DIRCOM'!$G$6:$CU$12,67,FALSE) -> 9,697 | E16: =VLOOKUP($A16,'RECAP DIRCOM'!$G$6:$CU$12,68,FALSE) -> 83.21 | F16: =VLOOKUP($A16,'RECAP DIRCOM'!$G$6:$CU$12,69,FALSE) -> 44% | G16: =VLOOKUP($A16,'RECAP DIRCOM'!$G$6:$CU$12,70,FALSE) -> 6 | H16: =VLOOKUP($A16,'RECAP DIRCOM'!$G$6:$CU$12,71,FALSE) -> 3,784 | I16: =VLOOKUP($A16,'RECAP DIRCOM'!$G$6:$CU$12,72,FALSE) -> 32.47 | J16: =VLOOKUP($A16,'RECAP DIRCOM'!$G$6:$CU$12,73,FALSE) -> 29% | K16: =VLOOKUP($A16,'RECAP DIRCOM'!$G$6:$CU$12,74,FALSE) -> 6 | L16: =VLOOKUP($A16,'RECAP DIRCOM'!$G$6:$CU$12,75,FALSE) -> 38% | M16: =VLOOKUP($A16,'RECAP DIRCOM'!$G$6:$CU$12,76,FALSE) -> 38% | N16: =VLOOKUP($A16,'RECAP DIRCOM'!$G$6:$CU$12,77,FALSE) -> 6
B17: Total CEGEE Directions Régionales | C17: =SUM(C10:C16) -> 1186

Sheet DC_SATISFACTION
B1: Accueil | D1: BAROMETRE BDD - DIRECTIONS REGIONALES
D2: SATISFACTION
D3: =ACCUEIL!F7 -> 2022-12-04
D7: NPS à froid (SAE) | G7: NPS à chaud (QHD) | J7: Total Satisfaction Clients
D8: =DATEMAJ!E4 -> au 31/10 | E8: coef | F8: ='RECAP DIRCOM'!M4 -> 10% | G8: =DATEMAJ!C5 -> au 30/09 | H8: coef | I8: ='RECAP DIRCOM'!P4 -> 10% | K8: coef | L8: ='RECAP DIRCOM'!S4 -> 20%
B9: Direction | C9: ="ETP perf "&DATEMAJ!$C$28 -> ETP perf 04-déc | E9: % Ecart au 1er | F9: Rang | H9: % Ecart au 1er | I9: Rang | J9: Moyenne ecart au 1er | K9: % Ecart au 1er | L9: Rang CEGEE
A10: 50 | B10: Aube Haute Marne | C10: =VLOOKUP($A10,'RECAP DIRCOM'!$G$6:$CU$12,3,FALSE) -> 112 | D10: =VLOOKUP($A10,'RECAP DIRCOM'!$G$6:$CU$12,5,FALSE) -> 4.25 | E10: =VLOOKUP($A10,'RECAP DIRCOM'!$G$6:$CU$12,6,FALSE) -> 82% | F10: =VLOOKUP($A10,'RECAP DIRCOM'!$G$6:$CU$12,7,FALSE) -> 6 | G10: =VLOOKUP($A10,'RECAP DIRCOM'!$G$6:$CU$12,8,FALSE) -> 54% | H10: =VLOOKUP($A10,'RECAP DIRCOM'!$G$6:$CU$12,9,FALSE) -> 21% | I10: =VLOOKUP($A10,'RECAP DIRCOM'!$G$6:$CU$12,10,FALSE) -> 6 | J10: =VLOOKUP($A10,'RECAP DIRCOM'!$G$6:$CU$12,11,FALSE) -> 52% | K10: =VLOOKUP($A10,'RECAP DIRCOM'!$G$6:$CU$12,12,FALSE) -> 52% | L10: =VLOOKUP($A10,'RECAP DIRCOM'!$G$6:$CU$12,13,FALSE) -> 6
A11: 262 | B11: Bas-Rhin | C11: =VLOOKUP($A11,'RECAP DIRCOM'!$G$6:$CU$12,3,FALSE) -> 219 | D11: =VLOOKUP($A11,'RECAP DIRCOM'!$G$6:$CU$12,5,FALSE) -> 7 | E11: =VLOOKUP($A11,'RECAP DIRCOM'!$G$6:$CU$12,6,FALSE) -> 70% | F11: =VLOOKUP($A11,'RECAP DIRCOM'!$G$6:$CU$12,7,FALSE) -> 5 | G11: =VLOOKUP($A11,'RECAP DIRCOM'!$G$6:$CU$12,8,FALSE) -> 62% | H11: =VLOOKUP($A11,'RECAP DIRCOM'!$G$6:$CU$12,9,FALSE) -> 11% | I11: =VLOOKUP($A11,'RECAP DIRCOM'!$G$6:$CU$12,10,FALSE) -> 3 | J11: =VLOOKUP($A11,'RECAP DIRCOM'!$G$6:$CU$12,11,FALSE) -> 40% | K11: =VLOOKUP($A11,'RECAP DIRCOM'!$G$6:$CU$12,12,FALSE) -> 40% | L11: =VLOOKUP($A11,'RECAP DIRCOM'!$G$6:$CU$12,13,FALSE) -> 5
A12: 264 | B12: Haut-Rhin | C12: =VLOOKUP($A12,'RECAP DIRCOM'!$G$6:$CU$12,3,FALSE) -> 123 | D12: =VLOOKUP($A12,'RECAP DIRCOM'!$G$6:$CU$12,5,FALSE) -> 2.75 | E12: =VLOOKUP($A12,'RECAP DIRCOM'!$G$6:$CU$12,6,FALSE) -> 88% | F12: =VLOOKUP($A12,'RECAP DIRCOM'!$G$6:$CU$12,7,FALSE) -> 7 | G12: =VLOOKUP($A12,'RECAP DIRCOM'!$G$6:$CU$12,8,FALSE) -> 46% | H12: =VLOOKUP($A12,'RECAP DIRCOM'!$G$6:$CU$12,9,FALSE) -> 33% | I12: =VLOOKUP($A12,'RECAP DIRCOM'!$G$6:$CU$12,10,FALSE) -> 7 | J12: =VLOOKUP($A12,'RECAP DIRCOM'!$G$6:$CU$12,11,FALSE) -> 61% | K12: =VLOOKUP($A12,'RECAP DIRCOM'!$G$6:$CU$12,12,FALSE) -> 61% | L12: =VLOOKUP($A12,'RECAP DIRCOM'!$G$6:$CU$12,13,FALSE) -> 7
A13: 30 | B13: Marne-Ardennes | C13: =VLOOKUP($A13,'RECAP DIRCOM'!$G$6:$CU$12,3,FALSE) -> 193 | D13: =VLOOKUP($A13,'RECAP DIRCOM'!$G$6:$CU$12,5,FALSE) -> 17.25 | E13: =VLOOKUP($A13,'RECAP DIRCOM'!$G$6:$CU$12,6,FALSE) -> 26% | F13: =VLOOKUP($A13,'RECAP DIRCOM'!$G$6:$CU$12,7,FALSE) -> 2 | G13: =VLOOKUP($A13,'RECAP DIRCOM'!$G$6:$CU$12,8,FALSE) -> 65% | H13: =VLOOKUP($A13,'RECAP DIRCOM'!$G$6:$CU$12,9,FALSE) -> 6% | I13: =VLOOKUP($A13,'RECAP DIRCOM'!$G$6:$CU$12,10,FALSE) -> 2 | J13: =VLOOKUP($A13,'RECAP DIRCOM'!$G$6:$CU$12,11,FALSE) -> 16% | K13: =VLOOKUP($A13,'RECAP DIRCOM'!$G$6:$CU$12,12,FALSE) -> 16% | L13: =VLOOKUP($A13,'RECAP DIRCOM'!$G$6:$CU$12,13,FALSE) -> 2
A14: 110 | B14: Meurthe et Moselle Meuse | C14: =VLOOKUP($A14,'RECAP DIRCOM'!$G$6:$CU$12,3,FALSE) -> 204 | D14: =VLOOKUP($A14,'RECAP DIRCOM'!$G$6:$CU$12,5,FALSE) -> 12 | E14: =VLOOKUP($A14,'RECAP DIRCOM'!$G$6:$CU$12,6,FALSE) -> 48% | F14: =VLOOKUP($A14,'RECAP DIRCOM'!$G$6:$CU$12,7,FALSE) -> 4 | G14: =VLOOKUP($A14,'RECAP DIRCOM'!$G$6:$CU$12,8,FALSE) -> 60% | H14: =VLOOKUP($A14,'RECAP DIRCOM'!$G$6:$CU$12,9,FALSE) -> 13% | I14: =VLOOKUP($A14,'RECAP DIRCOM'!$G$6:$CU$12,10,FALSE) -> 5 | J14: =VLOOKUP($A14,'RECAP DIRCOM'!$G$6:$CU$12,11,FALSE) -> 31% | K14: =VLOOKUP($A14,'RECAP DIRCOM'!$G$6:$CU$12,12,FALSE) -> 31% | L14: =VLOOKUP($A14,'RECAP DIRCOM'!$G$6:$CU$12,13,FALSE) -> 4
A15: 160 | B15: Moselle | C15: =VLOOKUP($A15,'RECAP DIRCOM'!$G$6:$CU$12,3,FALSE) -> 220 | D15: =VLOOKUP($A15,'RECAP DIRCOM'!$G$6:$CU$12,5,FALSE) -> 15.25 | E15: =VLOOKUP($A15,'RECAP DIRCOM'!$G$6:$CU$12,6,FALSE) -> 34% | F15: =VLOOKUP($A15,'RECAP DIRCOM'!$G$6:$CU$12,7,FALSE) -> 3 | G15: =VLOOKUP($A15,'RECAP DIRCOM'!$G$6:$CU$12,8,FALSE) -> 61% | H15: =VLOOKUP($A15,'RECAP DIRCOM'!$G$6:$CU$12,9,FALSE) -> 11% | I15: =VLOOKUP($A15,'RECAP DIRCOM'!$G$6:$CU$12,10,FALSE) -> 4 | J15: =VLOOKUP($A15,'RECAP DIRCOM'!$G$6:$CU$12,11,FALSE) -> 23% | K15: =VLOOKUP($A15,'RECAP DIRCOM'!$G$6:$CU$12,12,FALSE) -> 23% | L15: =VLOOKUP($A15,'RECAP DIRCOM'!$G$6:$CU$12,13,FALSE) -> 3
A16: 80 | B16: Vosges | C16: =VLOOKUP($A16,'RECAP DIRCOM'!$G$6:$CU$12,3,FALSE) -> 117 | D16: =VLOOKUP($A16,'RECAP DIRCOM'!$G$6:$CU$12,5,FALSE) -> 23.25 | E16: =VLOOKUP($A16,'RECAP DIRCOM'!$G$6:$CU$12,6,FALSE) -> 0% | F16: =VLOOKUP($A16,'RECAP DIRCOM'!$G$6:$CU$12,7,FALSE) -> 1 | G16: =VLOOKUP($A16,'RECAP DIRCOM'!$G$6:$CU$12,8,FALSE) -> 69% | H16: =VLOOKUP($A16,'RECAP DIRCOM'!$G$6:$CU$12,9,FALSE) -> 0% | I16: =VLOOKUP($A16,'RECAP DIRCOM'!$G$6:$CU$12,10,FALSE) -> 1 | J16: =VLOOKUP($A16,'RECAP DIRCOM'!$G$6:$CU$12,11,FALSE) -> 0% | K16: =VLOOKUP($A16,'RECAP DIRCOM'!$G$6:$CU$12,12,FALSE) -> 0% | L16: =VLOOKUP($A16,'RECAP DIRCOM'!$G$6:$CU$12,13,FALSE) -> 1
B17: Total CEGEE Directions Régionales | C17: =SUM(C10:C16) -> 1186

Sheet SE_FICHE
A1: Accueil
A2: BAROMETRE BDD
A4: UNITE: | B4: TERRITOIRE | E4: ETP perf : | F4: =VLOOKUP(A5,'RECAP SECT'!$G$6:$I$23,3,FALSE) -> 45.36
A5: =VLOOKUP(B5,LISTES!$H$6:$I$23,2,FALSE) -> 5130 | B5: COLMAR
C6: Coefficient du critére | E6: Résultats | I6: Ecart au 1ier | M6: Evolution | O6: Rang
E7: du 1ier | G7: du territoire | I7: Du mois | K7: Au 31/12/2019
A9: RANG au CLASSEMENT GENERAL | K9: =VLOOKUP($A$5,#REF!,168,FALSE) ->  | M9: =+K9-O9 ->  | O9: =VLOOKUP($A$5,'RECAP SECT'!$G$6:$CY$312,168,FALSE) ->  | S9: =VLOOKUP($A$5,#REF!,154,FALSE) ->  | U9: =+S9-O9 -> 
A11: CRITERE CONQUETE | C11: 15% | O11: =VLOOKUP($A$5,'RECAP SECT'!$G$6:$CY$312,23,FALSE) -> 55.42328042
B12: PNB Evolution nette Clients BP | C12: 4% | E12: ='RECAP SECT'!#REF! ->  | G12: =VLOOKUP($A$5,'RECAP SECT'!$G$6:$CY$312,6,FALSE) -> 0.9 | I12: =VLOOKUP($A$5,'RECAP SECT'!$G$6:$CY$312,7,FALSE) -> 1600% | K12: =VLOOKUP($A$5,#REF!,7,FALSE) ->  | M12: =+K12-I12 ->  | O12: =VLOOKUP($A$5,'RECAP SECT'!$G$6:$CY$312,8,FALSE) -> 0.4867710882 | S12: =VLOOKUP($A$5,#REF!,6,FALSE) ->  | U12: =+S12-I12 -> 
B13: PNB Evolution nette Clients PREMIUM | C13: 5% | E13: ='RECAP SECT'!#REF! ->  | G13: =VLOOKUP($A$5,'RECAP SECT'!$G$6:$CY$312,10,FALSE) -> 16.0 | I13: =VLOOKUP($A$5,'RECAP SECT'!$G$6:$CY$312,11,FALSE) -> 62% | K13: =VLOOKUP($A$5,#REF!,11,FALSE) ->  | M13: =+K13-I13 ->  | O13: =VLOOKUP($A$5,'RECAP SECT'!$G$6:$CY$312,12,FALSE) -> 0.6188481511 | S13: =VLOOKUP($A$5,#REF!,9,FALSE) ->  | U13: =+S13-I13 -> 
B14: PNB Evolution nette Clients Jeunes Equipés | C14: 3% | E14: ='RECAP SECT'!#REF! ->  | G14: =VLOOKUP($A$5,'RECAP SECT'!$G$6:$CY$312,14,FALSE) -> 0.0 | I14: =VLOOKUP($A$5,'RECAP SECT'!$G$6:$CY$312,15,FALSE) -> 0% | K14: =VLOOKUP($A$5,#REF!,15,FALSE) ->  | M14: =+K14-I14 ->  | O14: =VLOOKUP($A$5,'RECAP SECT'!$G$6:$CY$312,16,FALSE) -> 0 | S14: =VLOOKUP($A$5,#REF!,12,FALSE) ->  | U14: =+S14-I14 -> 
B15: PNB Evolution nette Clients Pro Actifs Equipés | C15: 3% | E15: ='RECAP SECT'!W4 -> 0.0 | G15: =VLOOKUP($A$5,'RECAP SECT'!$G$6:$CY$312,18,FALSE) -> 387.3 | I15: =VLOOKUP($A$5,'RECAP SECT'!$G$6:$CY$312,19,FALSE) -> 854% | K15: =VLOOKUP($A$5,#REF!,19,FALSE) ->  | M15: =+K15-I15 ->  | O15: =VLOOKUP($A$5,'RECAP SECT'!$G$6:$CY$312,20,FALSE) -> 0.7794706739 | S15: =VLOOKUP($A$5,#REF!,15,FALSE) ->  | U15: =+S15-I15 -> 
A17: CRITERE BANCARISATION | C17: 15% | O17: =VLOOKUP($A$5,'RECAP SECT'!$G$6:$CY$312,48,FALSE) -> 9847.487714
B18: PNB Ventes nettes forfaits | C18: 4% | E18: ='RECAP SECT'!X4 -> 38.7 | G18: =VLOOKUP($A$5,'RECAP SECT'!$G$6:$CY$312,31,FALSE) -> 0.0 | I18: =VLOOKUP($A$5,'RECAP SECT'!$G$6:$CY$312,32,FALSE) -> 0% | K18: =VLOOKUP($A$5,#REF!,32,FALSE) ->  | M18: =+K18-I18 ->  | O18: =VLOOKUP($A$5,'RECAP SECT'!$G$6:$CY$312,33,FALSE) -> 758.2685585 | S18: =VLOOKUP($A$5,#REF!,27,FALSE) ->  | U18: =+S18-I18 -> 
B19: PNB Ventes nettes IZICARTES Débit Différé | C19: 4% | E19: ='RECAP SECT'!AB4 -> 98.3 | G19: =VLOOKUP($A$5,'RECAP SECT'!$G$6:$CY$312,35,FALSE) -> 1.0 | I19: =VLOOKUP($A$5,'RECAP SECT'!$G$6:$CY$312,36,FALSE) -> 1700% | K19: =VLOOKUP($A$5,#REF!,36,FALSE) ->  | M19: =+K19-I19 ->  | O19: =VLOOKUP($A$5,'RECAP SECT'!$G$6:$CY$312,37,FALSE) -> 2284 | S19: =VLOOKUP($A$5,#REF!,30,FALSE) ->  | U19: =+S19-I19 -> 
B20: PNB Ventes nettes cartes HDG Débit Différé | C20: 4% | E20: ='RECAP SECT'!#REF! ->  | G20: =VLOOKUP($A$5,'RECAP SECT'!$G$6:$CY$312,39,FALSE) -> 0.5 | I20: =VLOOKUP($A$5,'RECAP SECT'!$G$6:$CY$312,40,FALSE) -> 1800% | K20: =VLOOKUP($A$5,#REF!,40,FALSE) ->  | M20: =+K20-I20 ->  | O20: =VLOOKUP($A$5,'RECAP SECT'!$G$6:$CY$312,41,FALSE) -> 0.7762361301 | S20: =VLOOKUP($A$5,#REF!,33,FALSE) ->  | U20: =+S20-I20 -> 
B21: PNB Ventes nettes Forfaits Pro, Carte pro | C21: 3% | E21: ='RECAP SECT'!#REF! ->  | G21: =VLOOKUP($A$5,'RECAP SECT'!$G$6:$CY$312,43,FALSE) -> 17.0 | I21: =VLOOKUP($A$5,'RECAP SECT'!$G$6:$CY$312,44,FALSE) -> 0% | K21: =VLOOKUP($A$5,#REF!,44,FALSE) ->  | M21: =+K21-I21 ->  | O21: =VLOOKUP($A$5,'RECAP SECT'!$G$6:$CY$312,45,FALSE) -> 0 | S21: =VLOOKUP($A$5,#REF!,39,FALSE) ->  | U21: =+S21-I21 -> 
A23: CRITERE EPARGNE | C23: 10% | O23: =VLOOKUP($A$5,'RECAP SECT'!$G$6:$CY$312,69,FALSE) -> 0.7112298114
B24: PNB Epargne Liquide | C24: 3% | E24: ='RECAP SECT'!AM4 -> 532.6 | G24: =VLOOKUP($A$5,'RECAP SECT'!$G$6:$CY$312,56,FALSE) -> 937.0 | I24: =VLOOKUP($A$5,'RECAP SECT'!$G$6:$CY$312,57,FALSE) -> 2066% | K24: =VLOOKUP($A$5,#REF!,57,FALSE) ->  | M24: =+K24-I24 ->  | O24: =VLOOKUP($A$5,'RECAP SECT'!$G$6:$CY$312,58,FALSE) -> 0.5605617414 | S24: =VLOOKUP($A$5,#REF!,51,FALSE) ->  | U24: =+S24-I24 -> 
B25: PNB CA UC + arbitrage | C25: 4% | E25: ='RECAP SECT'!AQ4 -> 98.3 | G25: =VLOOKUP($A$5,'RECAP SECT'!$G$6:$CY$312,60,FALSE) -> 0.5 | I25: =VLOOKUP($A$5,'RECAP SECT'!$G$6:$CY$312,61,FALSE) -> 46% | K25: =VLOOKUP($A$5,#REF!,61,FALSE) ->  | M25: =+K25-I25 ->  | O25: =VLOOKUP($A$5,'RECAP SECT'!$G$6:$CY$312,62,FALSE) -> 17 | S25: =VLOOKUP($A$5,#REF!,57,FALSE) ->  | U25: =+S25-I25 -> 
B26: PNB Excédent assurance vie | C26: 3% | E26: ='RECAP SECT'!#REF! ->  | G26: =VLOOKUP($A$5,'RECAP SECT'!$G$6:$CY$312,64,FALSE) -> 0.0 | I26: =VLOOKUP($A$5,'RECAP SECT'!$G$6:$CY$312,65,FALSE) -> 0% | K26: =VLOOKUP($A$5,#REF!,65,FALSE) ->  | M26: =+K26-I26 ->  | O26: =VLOOKUP($A$5,'RECAP SECT'!$G$6:$CY$312,66,FALSE) -> 0 | S26: =VLOOKUP($A$5,#REF!,60,FALSE) ->  | U26: =+S26-I26 -> 
A28: CRITERE CREDITS | C28: 15% | O28: =VLOOKUP($A$5,'RECAP SECT'!$G$6:$CY$312,102,FALSE) -> 
B29: PNB crédit conso | C29: 4% | E29: ='RECAP SECT'!BB4 -> 689.1 | G29: =VLOOKUP($A$5,'RECAP SECT'!$G$6:$CY$312,77,FALSE) -> 17.0 | I29: =VLOOKUP($A$5,'RECAP SECT'!$G$6:$CY$312,78,FALSE) -> 0% | K29: =VLOOKUP($A$5,#REF!,78,FALSE) ->  | M29: =+K29-I29 ->  | O29: =VLOOKUP($A$5,'RECAP SECT'!$G$6:$CY$312,79,FALSE) -> 0 | S29: =VLOOKUP($A$5,#REF!,75,FALSE) ->  | U29: =+S29-I29 -> 
B30: PNB ADE crédit conso | C30: 1% | E30: ='RECAP SECT'!#REF! ->  | G30: =VLOOKUP($A$5,'RECAP SECT'!$G$6:$CY$312,81,FALSE) -> 0.0 | I30: =VLOOKUP($A$5,'RECAP SECT'!$G$6:$CY$312,82,FALSE) -> 0% | K30: =VLOOKUP($A$5,#REF!,82,FALSE) ->  | O30: =VLOOKUP($A$5,'RECAP SECT'!$G$6:$CY$312,83,FALSE) -> 0 | S30: =VLOOKUP($A$5,#REF!,78,FALSE) -> 
B31: PNB crédit immo | C31: 4% | E31: ='RECAP SECT'!BF4 -> 70.0 | G31: =VLOOKUP($A$5,'RECAP SECT'!$G$6:$CY$312,85,FALSE) -> 0.0 | I31: =VLOOKUP($A$5,'RECAP SECT'!$G$6:$CY$312,86,FALSE) -> 0% | K31: =VLOOKUP($A$5,#REF!,86,FALSE) ->  | O31: =VLOOKUP($A$5,'RECAP SECT'!$G$6:$CY$312,87,FALSE) -> 0 | S31: =VLOOKUP($A$5,#REF!,81,FALSE) -> 
B32: PNB ADE crédit immo | C32: 2% | E32: ='RECAP SECT'!#REF! ->  | G32: =VLOOKUP($A$5,'RECAP SECT'!$G$6:$CY$312,89,FALSE) -> 0.0 | I32: =VLOOKUP($A$5,'RECAP SECT'!$G$6:$CY$312,90,FALSE) -> 0% | K32: =VLOOKUP($A$5,#REF!,90,FALSE) ->  | O32: =VLOOKUP($A$5,'RECAP SECT'!$G$6:$CY$312,91,FALSE) -> 0 | S32: =VLOOKUP($A$5,#REF!,84,FALSE) -> 
B33: PNB SACCEF | C33: 2% | E33: ='RECAP SECT'!#REF! ->  | G33: =VLOOKUP($A$5,'RECAP SECT'!$G$6:$CY$312,93,FALSE) -> 0.0 | I33: =VLOOKUP($A$5,'RECAP SECT'!$G$6:$CY$312,94,FALSE) -> 60% | K33: =VLOOKUP($A$5,#REF!,94,FALSE) ->  | O33: =VLOOKUP($A$5,'RECAP SECT'!$G$6:$CY$312,95,FALSE) -> 0.4903572395 | S33: =VLOOKUP($A$5,#REF!,87,FALSE) -> 
B34: PNB Crédit MLT + Crédit Bail | C34: 2% | E34: ='RECAP SECT'!BJ4 -> 47.0 | G34: =VLOOKUP($A$5,'RECAP SECT'!$G$6:$CY$312,97,FALSE) -> 0.0 | I34: =VLOOKUP($A$5,'RECAP SECT'!$G$6:$CY$312,98,FALSE) ->  | K34: =VLOOKUP($A$5,#REF!,98,FALSE) ->  | O34: =VLOOKUP($A$5,'RECAP SECT'!$G$6:$CY$312,99,FALSE) ->  | S34: =VLOOKUP($A$5,#REF!,90,FALSE) -> 
A36: CRITERE IARD PREVOYANCE | C36: 15% | O36: =VLOOKUP($A$5,'RECAP SECT'!$G$6:$CY$312,119,FALSE) -> 
B37: PNB Ventes nettes IARD | C37: 9% | E37: ='RECAP SECT'!BU4 -> 211.1 | G37: =VLOOKUP($A$5,'RECAP SECT'!$G$6:$CY$312,110,FALSE) ->  | I37: =VLOOKUP($A$5,'RECAP SECT'!$G$6:$CY$312,111,FALSE) ->  | K37: =VLOOKUP($A$5,#REF!,111,FALSE) ->  | M37: =+K37-I37 ->  | O37: =VLOOKUP($A$5,'RECAP SECT'!$G$6:$CY$312,112,FALSE) ->  | S37: =VLOOKUP($A$5,#REF!,102,FALSE) ->  | U37: =+S37-I37 -> 
B38: PNB Ventes nettes Prévoyance | C38: 6% | E38: ='RECAP SECT'!BY4 -> 62.8 | G38: =VLOOKUP($A$5,'RECAP SECT'!$G$6:$CY$312,114,FALSE) ->  | I38: =VLOOKUP($A$5,'RECAP SECT'!$G$6:$CY$312,115,FALSE) ->  | K38: =VLOOKUP($A$5,#REF!,115,FALSE) ->  | M38: =+K38-I38 ->  | O38: =VLOOKUP($A$5,'RECAP SECT'!$G$6:$CY$312,116,FALSE) ->  | S38: =VLOOKUP($A$5,#REF!,105,FALSE) ->  | U38: =+S38-I38 -> 
A40: CRITERE ACCELERATEURS PNB | C40: 15% | O40: =VLOOKUP($A$5,'RECAP SECT'!$G$6:$CY$312,144,FALSE) -> 
B41: PNB Ventes brutes SED Finalisées | C41: 6% | E41: ='RECAP SECT'!#REF! ->  | G41: =VLOOKUP($A$5,'RECAP SECT'!$G$6:$CY$312,127,FALSE) ->  | I41: =VLOOKUP($A$5,'RECAP SECT'!$G$6:$CY$312,128,FALSE) ->  | K41: =VLOOKUP($A$5,#REF!,128,FALSE) ->  | M41: =+K41-I41 ->  | O41: =VLOOKUP($A$5,'RECAP SECT'!$G$6:$CY$312,129,FALSE) ->  | S41: =VLOOKUP($A$5,#REF!,120,FALSE) ->  | U41: =+S41-I41 -> 
B42: PNB clients équipés E documents | C42: 3% | E42: ='RECAP SECT'!#REF! ->  | G42: =VLOOKUP($A$5,'RECAP SECT'!$G$6:$CY$312,131,FALSE) ->  | I42: =VLOOKUP($A$5,'RECAP SECT'!$G$6:$CY$312,132,FALSE) ->  | K42: =VLOOKUP($A$5,#REF!,132,FALSE) ->  | M42: =+K42-I42 ->  | O42: =VLOOKUP($A$5,'RECAP SECT'!$G$6:$CY$312,133,FALSE) ->  | S42: =VLOOKUP($A$5,#REF!,123,FALSE) ->  | U42: =+S42-I42 -> 
B43: Economie opt'in | C43: 3% | E43: ='RECAP SECT'!#REF! ->  | G43: =VLOOKUP($A$5,'RECAP SECT'!$G$6:$CY$312,135,FALSE) ->  | I43: =VLOOKUP($A$5,'RECAP SECT'!$G$6:$CY$312,136,FALSE) ->  | K43: =VLOOKUP($A$5,#REF!,136,FALSE) ->  | M43: =+K43-I43 ->  | O43: =VLOOKUP($A$5,'RECAP SECT'!$G$6:$CY$312,137,FALSE) -> 
B44: Remises commerciales | C44: 3% | E44: ='RECAP SECT'!#REF! ->  | G44: =VLOOKUP($A$5,'RECAP SECT'!$G$6:$CY$312,139,FALSE) ->  | I44: =VLOOKUP($A$5,'RECAP SECT'!$G$6:$CY$312,140,FALSE) ->  | K44: =VLOOKUP($A$5,#REF!,140,FALSE) ->  | M44: =+K44-I44 ->  | O44: =VLOOKUP($A$5,'RECAP SECT'!$G$6:$CY$312,141,FALSE) ->  | S44: =VLOOKUP($A$5,#REF!,126,FALSE) ->  | U44: =+S44-I44 -> 
A46: CRITERE Satisfaction Clients | C46: 15% | O46: =VLOOKUP($A$5,'RECAP SECT'!$G$6:$CY$312,159,FALSE) -> 
B47: Objectifs NPS* | C47: 8% | E47: ='RECAP SECT'!K4 -> 25 | G47: =VLOOKUP($A$5,'RECAP SECT'!$G$6:$CY$312,151,FALSE) ->  | I47: =VLOOKUP($A$5,'RECAP SECT'!$G$6:$CY$312,152,FALSE) ->  | K47: =VLOOKUP($A$5,#REF!,152,FALSE) ->  | M47: =+K47-I47 ->  | O47: =VLOOKUP($A$5,'RECAP SECT'!$G$6:$CY$312,153,FALSE) ->  | S47: =VLOOKUP($A$5,#REF!,138,FALSE) ->  | U47: =+S47-I47 -> 
B48: Enquête Qualité Haute Définition | C48: 7% | E48: ='RECAP SECT'!N4 -> 73% | G48: =VLOOKUP($A$5,'RECAP SECT'!$G$6:$CY$312,154,FALSE) ->  | I48: =VLOOKUP($A$5,'RECAP SECT'!$G$6:$CY$312,155,FALSE) ->  | K48: =VLOOKUP($A$5,#REF!,155,FALSE) ->  | M48: =+K48-I48 ->  | O48: =VLOOKUP($A$5,'RECAP SECT'!$G$6:$CY$312,156,FALSE) ->  | S48: =VLOOKUP($A$5,#REF!,141,FALSE) ->  | U48: =+S48-I48 -> 

Sheet SE_TOTAL
B1: Accueil | F1: BAROMETRE BDD - TERRITOIRES
F2: TOTAL GENERAL
F3: =ACCUEIL!F7 -> 2022-12-04
F7: TOTAL GENERAL | I7: Total Satisfaction Clients | L7: Total Bancarisation | O7: Total Epargne | R7: Total IARD Prévoyance | U7: Total Crédits
G8: coef | H8: =K8+N8+Q8+T8+W8 -> 100% | J8: coef | K8: =SE_SATISFACTION!N8 -> 20% | M8: coef | N8: =SE_BANCA!P8 -> 20% | P8: coef | Q8: =SE_EPARGNE!P8 -> 20% | S8: coef | T8: =SE_IARD!P8 -> 20% | V8: coef | W8: =SE_CREDIT!T8 -> 20%
B9: Direction | C9: eds | D9: Territoire | E9: ="ETP perf "&DATEMAJ!$C$28 -> ETP perf 04-déc | F9: Moyenne ecart au 1er | G9: % Ecart au 1er | H9: Rang CEGEE | I9: Moyenne ecart au 1er | J9: % Ecart au 1er | K9: Rang CEGEE | L9: Moyenne ecart au 1er | M9: % Ecart au 1er | N9: Rang CEGEE | O9: Moyenne ecart au 1er | P9: % Ecart au 1er | Q9: Rang CEGEE | R9: Moyenne ecart au 1er | S9: % Ecart au 1er | T9: Rang CEGEE | U9: Moyenne ecart au 1er | V9: % Ecart au 1er | W9: Rang CEGEE
A10: 50 | B10: MARNE-ARDENNES | C10: 11 | D10: REIMS | E10: 67.8 | F10: 11% | G10: 0% | H10: 1 | I10: 27% | J10: 26% | K10: 8 | L10: 0% | M10: 0% | N10: 1 | O10: 28% | P10: 22% | Q10: 10 | R10: 9% | S10: 8% | T10: 2 | U10: 5% | V10: 0% | W10: 1
A11: 50 | B11: MARNE-ARDENNES | C11: 6 | D11: CHALONS EN CHAMPAGNE | E11: 37.3 | F11: 13% | G11: 1% | H11: 2 | I11: 0% | J11: 0% | K11: 1 | L11: 19% | M11: 19% | N11: 3 | O11: 21% | P11: 15% | Q11: 5 | R11: 11% | S11: 10% | T11: 3 | U11: 24% | V11: 19% | W11: 4
A12: 262 | B12: MOSELLE | C12: 44 | D12: MOSELLE NORD | E12: 55.3 | F12: 16% | G12: 5% | H12: 3 | I12: 40% | J12: 39% | K12: 13 | L12: 6% | M12: 6% | N12: 2 | O12: 36% | P12: 30% | Q12: 13 | R12: 0% | S12: 0% | T12: 1 | U12: 9% | V12: 4% | W12: 2
A13: 262 | B13: MOSELLE | C13: 42 | D13: MOSELLE EST | E13: 57.6 | F13: 20% | G13: 9% | H13: 4 | I13: 16% | J13: 15% | K13: 5 | L13: 27% | M13: 27% | N13: 4 | O13: 26% | P13: 20% | Q13: 8 | R13: 17% | S13: 16% | T13: 6 | U13: 27% | V13: 22% | W13: 7
A14: 262 | B14: MARNE-ARDENNES | C14: 2 | D14: CHARLEVILLE MEZIERES | E14: 48.1 | F14: 21% | G14: 9% | H14: 5 | I14: 27% | J14: 26% | K14: 7 | L14: 35% | M14: 35% | N14: 6 | O14: 21% | P14: 14% | Q14: 4 | R14: 13% | S14: 12% | T14: 4 | U14: 20% | V14: 16% | W14: 3
A15: 264 | B15: BAS-RHIN | C15: 5006 | D15: STRASBOURG | E15: 64.5 | F15: 25% | G15: 14% | H15: 6 | I15: 38% | J15: 38% | K15: 12 | L15: 32% | M15: 32% | N15: 5 | O15: 6% | P15: 0% | Q15: 1 | R15: 21% | S15: 20% | T15: 7 | U15: 40% | V15: 35% | W15: 11
A16: 264 | B16: AUBE HAUTE MARNE | C16: 21 | D16: CHAUMONT | E16: 33.5 | F16: 25% | G16: 14% | H16: 7 | I16: 16% | J16: 15% | K16: 6 | L16: 46% | M16: 46% | N16: 14 | O16: 22% | P16: 16% | Q16: 6 | R16: 16% | S16: 15% | T16: 5 | U16: 37% | V16: 33% | W16: 10
A17: 30 | B17: MOSELLE | C17: 45 | D17: METZ | E17: 72.4 | F17: 26% | G17: 15% | H17: 8 | I17: 30% | J17: 29% | K17: 9 | L17: 39% | M17: 39% | N17: 8 | O17: 7% | P17: 1% | Q17: 2 | R17: 35% | S17: 34% | T17: 9 | U17: 30% | V17: 25% | W17: 8
A18: 30 | B18: VOSGES | C18: 57 | D18: EPINAL | E18: 53.0 | F18: 29% | G18: 18% | H18: 9 | I18: 8% | J18: 8% | K18: 3 | L18: 39% | M18: 39% | N18: 9 | O18: 25% | P18: 19% | Q18: 7 | R18: 43% | S18: 43% | T18: 13 | U18: 41% | V18: 36% | W18: 12
A19: 30 | B19: MEURTHE ET MOSELLE MEUSE | C19: 31 | D19: VERDUN | E19: 48.7 | F19: 29% | G19: 18% | H19: 10 | I19: 13% | J19: 13% | K19: 4 | L19: 37% | M19: 37% | N19: 7 | O19: 37% | P19: 31% | Q19: 14 | R19: 39% | S19: 38% | T19: 11 | U19: 33% | V19: 28% | W19: 9
A20: 110 | B20: MEURTHE ET MOSELLE MEUSE | C20: 26 | D20: NANCY | E20: 54.9 | F20: 30% | G20: 19% | H20: 11 | I20: 32% | J20: 31% | K20: 10 | L20: 43% | M20: 43% | N20: 12 | O20: 27% | P20: 21% | Q20: 9 | R20: 37% | S20: 36% | T20: 10 | U20: 25% | V20: 20% | W20: 5
A21: 110 | B21: MEURTHE ET MOSELLE MEUSE | C21: 27 | D21: PONT A MOUSSON | E21: 59.7 | F21: 31% | G21: 20% | H21: 12 | I21: 54% | J21: 53% | K21: 14 | L21: 42% | M21: 42% | N21: 11 | O21: 19% | P21: 13% | Q21: 3 | R21: 27% | S21: 27% | T21: 8 | U21: 27% | V21: 22% | W21: 6
A22: 110 | B22: VOSGES | C22: 55 | D22: SAINT DIE | E22: 40.0 | F22: 37% | G22: 26% | H22: 13 | I22: 3% | J22: 3% | K22: 2 | L22: 53% | M22: 53% | N22: 15 | O22: 53% | P22: 46% | Q22: 15 | R22: 46% | S22: 46% | T22: 15 | U22: 42% | V22: 37% | W22: 13
A23: 160 | B23: BAS-RHIN | C23: 5060 | D23: HAGUENAU | E23: 55.8 | F23: 39% | G23: 28% | H23: 14 | I23: 36% | J23: 36% | K23: 11 | L23: 41% | M23: 41% | N23: 10 | O23: 34% | P23: 28% | Q23: 12 | R23: 46% | S23: 46% | T23: 14 | U23: 48% | V23: 44% | W23: 16
A24: 160 | B24: BAS-RHIN | C24: 5101 | D24: SELESTAT | E24: 50.6 | F24: 43% | G24: 32% | H24: 15 | I24: 55% | J24: 54% | K24: 15 | L24: 45% | M24: 45% | N24: 13 | O24: 33% | P24: 27% | Q24: 11 | R24: 46% | S24: 46% | T24: 16 | U24: 46% | V24: 42% | W24: 15
A25: 160 | B25: AUBE HAUTE MARNE | C25: 14 | D25: TROYES | E25: 53.8 | F25: 53% | G25: 42% | H25: 16 | I25: 67% | J25: 67% | K25: 18 | L25: 60% | M25: 60% | N25: 16 | O25: 64% | P25: 58% | Q25: 16 | R25: 42% | S25: 41% | T25: 12 | U25: 44% | V25: 39% | W25: 14
A26: 80 | B26: HAUT-RHIN | C26: 5130 | D26: COLMAR | E26: 45.4 | F26: 60% | G26: 49% | H26: 17 | I26: 62% | J26: 62% | K26: 16 | L26: 64% | M26: 64% | N26: 17 | O26: 78% | P26: 71% | Q26: 17 | R26: 58% | S26: 58% | T26: 17 | U26: 50% | V26: 46% | W26: 17
A27: 80 | B27: HAUT-RHIN | C27: 5169 | D27: MULHOUSE | E27: 47.3 | F27: 68% | G27: 57% | H27: 18 | I27: 63% | J27: 63% | K27: 17 | L27: 75% | M27: 75% | N27: 18 | O27: 84% | P27: 78% | Q27: 18 | R27: 80% | S27: 79% | T27: 18 | U27: 50% | V27: 46% | W27: 18
A28: Total CEGEE Directions Régionales | E28: =SUM(E10:E27) -> 946

Sheet SE_BANCA
B1: Accueil | F1: BAROMETRE BDD - TERRITOIRES
F2: BANCARISATION
F3: =ACCUEIL!F7 -> 2022-12-04
F7: Ventes Nettes produits pondérés | J7: Ventes sur client non détenteur de l’univers | N7: Total Bancarisation
F8: =DATEMAJ!C8 -> au 04/12 | H8: coef | I8: ='RECAP DIRCOM'!AA4 -> 12% | J8: =DATEMAJ!C9 -> au 04/12 | L8: coef | M8: ='RECAP DIRCOM'!AE4 -> 8% | O8: coef | P8: ='RECAP DIRCOM'!AH4 -> 20%
B9: Direction | C9: eds | D9: Territoire | E9: ="ETP perf "&DATEMAJ!$C$28 -> ETP perf 04-déc | F9: VN | G9: VN / ETP | H9: % Ecart au 1er | I9: Rang | J9: VB | K9: VB / ETP | L9: % Ecart au 1er | M9: Rang | N9: Moyenne ecart au 1er | O9: % Ecart au 1er | P9: Rang CEGEE
A10: 50 | B10: AUBE HAUTE MARNE | C10: 21 | D10: CHAUMONT | E10: =VLOOKUP($C10,'RECAP SECT'!$G$6:$CU$253,3,FALSE) -> 33.5 | F10: =VLOOKUP($C10,'RECAP SECT'!$G$6:$CU$253,18,FALSE) -> 575 | G10: =VLOOKUP($C10,'RECAP SECT'!$G$6:$CU$253,19,FALSE) -> 17.17 | H10: =VLOOKUP($C10,'RECAP SECT'!$G$6:$CU$253,20,FALSE) -> 56% | I10: =VLOOKUP($C10,'RECAP SECT'!$G$6:$CU$253,21,FALSE) -> 12 | J10: =VLOOKUP($C10,'RECAP SECT'!$G$6:$CU$253,22,FALSE) -> 2,246 | K10: =VLOOKUP($C10,'RECAP SECT'!$G$6:$CU$253,23,FALSE) -> 67.12 | L10: =VLOOKUP($C10,'RECAP SECT'!$G$6:$CU$253,24,FALSE) -> 32% | M10: =VLOOKUP($C10,'RECAP SECT'!$G$6:$CU$253,25,FALSE) -> 12 | N10: =VLOOKUP($C10,'RECAP SECT'!$G$6:$CU$253,26,FALSE) -> 46% | O10: =VLOOKUP($C10,'RECAP SECT'!$G$6:$CU$253,27,FALSE) -> 46% | P10: =VLOOKUP($C10,'RECAP SECT'!$G$6:$CU$253,28,FALSE) -> 14
A11: 50 | B11: AUBE HAUTE MARNE | C11: 14 | D11: TROYES | E11: =VLOOKUP($C11,'RECAP SECT'!$G$6:$CU$253,3,FALSE) -> 53.8 | F11: =VLOOKUP($C11,'RECAP SECT'!$G$6:$CU$253,18,FALSE) -> 419 | G11: =VLOOKUP($C11,'RECAP SECT'!$G$6:$CU$253,19,FALSE) -> 7.78 | H11: =VLOOKUP($C11,'RECAP SECT'!$G$6:$CU$253,20,FALSE) -> 80% | I11: =VLOOKUP($C11,'RECAP SECT'!$G$6:$CU$253,21,FALSE) -> 17 | J11: =VLOOKUP($C11,'RECAP SECT'!$G$6:$CU$253,22,FALSE) -> 3,644 | K11: =VLOOKUP($C11,'RECAP SECT'!$G$6:$CU$253,23,FALSE) -> 67.68 | L11: =VLOOKUP($C11,'RECAP SECT'!$G$6:$CU$253,24,FALSE) -> 31% | M11: =VLOOKUP($C11,'RECAP SECT'!$G$6:$CU$253,25,FALSE) -> 11 | N11: =VLOOKUP($C11,'RECAP SECT'!$G$6:$CU$253,26,FALSE) -> 60% | O11: =VLOOKUP($C11,'RECAP SECT'!$G$6:$CU$253,27,FALSE) -> 60% | P11: =VLOOKUP($C11,'RECAP SECT'!$G$6:$CU$253,28,FALSE) -> 16
A12: 262 | B12: BAS-RHIN | C12: 5060 | D12: HAGUENAU | E12: =VLOOKUP($C12,'RECAP SECT'!$G$6:$CU$253,3,FALSE) -> 55.8 | F12: =VLOOKUP($C12,'RECAP SECT'!$G$6:$CU$253,18,FALSE) -> 1,226 | G12: =VLOOKUP($C12,'RECAP SECT'!$G$6:$CU$253,19,FALSE) -> 21.98 | H12: =VLOOKUP($C12,'RECAP SECT'!$G$6:$CU$253,20,FALSE) -> 43% | I12: =VLOOKUP($C12,'RECAP SECT'!$G$6:$CU$253,21,FALSE) -> 5 | J12: =VLOOKUP($C12,'RECAP SECT'!$G$6:$CU$253,22,FALSE) -> 3,390 | K12: =VLOOKUP($C12,'RECAP SECT'!$G$6:$CU$253,23,FALSE) -> 60.81 | L12: =VLOOKUP($C12,'RECAP SECT'!$G$6:$CU$253,24,FALSE) -> 38% | M12: =VLOOKUP($C12,'RECAP SECT'!$G$6:$CU$253,25,FALSE) -> 15 | N12: =VLOOKUP($C12,'RECAP SECT'!$G$6:$CU$253,26,FALSE) -> 41% | O12: =VLOOKUP($C12,'RECAP SECT'!$G$6:$CU$253,27,FALSE) -> 41% | P12: =VLOOKUP($C12,'RECAP SECT'!$G$6:$CU$253,28,FALSE) -> 10
A13: 262 | B13: BAS-RHIN | C13: 5101 | D13: SELESTAT | E13: =VLOOKUP($C13,'RECAP SECT'!$G$6:$CU$253,3,FALSE) -> 50.6 | F13: =VLOOKUP($C13,'RECAP SECT'!$G$6:$CU$253,18,FALSE) -> 991 | G13: =VLOOKUP($C13,'RECAP SECT'!$G$6:$CU$253,19,FALSE) -> 19.59 | H13: =VLOOKUP($C13,'RECAP SECT'!$G$6:$CU$253,20,FALSE) -> 49% | I13: =VLOOKUP($C13,'RECAP SECT'!$G$6:$CU$253,21,FALSE) -> 11 | J13: =VLOOKUP($C13,'RECAP SECT'!$G$6:$CU$253,22,FALSE) -> 3,040 | K13: =VLOOKUP($C13,'RECAP SECT'!$G$6:$CU$253,23,FALSE) -> 60.08 | L13: =VLOOKUP($C13,'RECAP SECT'!$G$6:$CU$253,24,FALSE) -> 39% | M13: =VLOOKUP($C13,'RECAP SECT'!$G$6:$CU$253,25,FALSE) -> 16 | N13: =VLOOKUP($C13,'RECAP SECT'!$G$6:$CU$253,26,FALSE) -> 45% | O13: =VLOOKUP($C13,'RECAP SECT'!$G$6:$CU$253,27,FALSE) -> 45% | P13: =VLOOKUP($C13,'RECAP SECT'!$G$6:$CU$253,28,FALSE) -> 13
A14: 262 | B14: BAS-RHIN | C14: 5006 | D14: STRASBOURG | E14: =VLOOKUP($C14,'RECAP SECT'!$G$6:$CU$253,3,FALSE) -> 64.5 | F14: =VLOOKUP($C14,'RECAP SECT'!$G$6:$CU$253,18,FALSE) -> 1,370 | G14: =VLOOKUP($C14,'RECAP SECT'!$G$6:$CU$253,19,FALSE) -> 21.25 | H14: =VLOOKUP($C14,'RECAP SECT'!$G$6:$CU$253,20,FALSE) -> 45% | I14: =VLOOKUP($C14,'RECAP SECT'!$G$6:$CU$253,21,FALSE) -> 9 | J14: =VLOOKUP($C14,'RECAP SECT'!$G$6:$CU$253,22,FALSE) -> 5,604 | K14: =VLOOKUP($C14,'RECAP SECT'!$G$6:$CU$253,23,FALSE) -> 86.90 | L14: =VLOOKUP($C14,'RECAP SECT'!$G$6:$CU$253,24,FALSE) -> 12% | M14: =VLOOKUP($C14,'RECAP SECT'!$G$6:$CU$253,25,FALSE) -> 3 | N14: =VLOOKUP($C14,'RECAP SECT'!$G$6:$CU$253,26,FALSE) -> 32% | O14: =VLOOKUP($C14,'RECAP SECT'!$G$6:$CU$253,27,FALSE) -> 32% | P14: =VLOOKUP($C14,'RECAP SECT'!$G$6:$CU$253,28,FALSE) -> 5
A15: 264 | B15: HAUT-RHIN | C15: 5130 | D15: COLMAR | E15: =VLOOKUP($C15,'RECAP SECT'!$G$6:$CU$253,3,FALSE) -> 45.4 | F15: =VLOOKUP($C15,'RECAP SECT'!$G$6:$CU$253,18,FALSE) -> 387 | G15: =VLOOKUP($C15,'RECAP SECT'!$G$6:$CU$253,19,FALSE) -> 8.54 | H15: =VLOOKUP($C15,'RECAP SECT'!$G$6:$CU$253,20,FALSE) -> 78% | I15: =VLOOKUP($C15,'RECAP SECT'!$G$6:$CU$253,21,FALSE) -> 16 | J15: =VLOOKUP($C15,'RECAP SECT'!$G$6:$CU$253,22,FALSE) -> 2,514 | K15: =VLOOKUP($C15,'RECAP SECT'!$G$6:$CU$253,23,FALSE) -> 55.42 | L15: =VLOOKUP($C15,'RECAP SECT'!$G$6:$CU$253,24,FALSE) -> 44% | M15: =VLOOKUP($C15,'RECAP SECT'!$G$6:$CU$253,25,FALSE) -> 18 | N15: =VLOOKUP($C15,'RECAP SECT'!$G$6:$CU$253,26,FALSE) -> 64% | O15: =VLOOKUP($C15,'RECAP SECT'!$G$6:$CU$253,27,FALSE) -> 64% | P15: =VLOOKUP($C15,'RECAP SECT'!$G$6:$CU$253,28,FALSE) -> 17
A16: 264 | B16: HAUT-RHIN | C16: 5169 | D16: MULHOUSE | E16: =VLOOKUP($C16,'RECAP SECT'!$G$6:$CU$253,3,FALSE) -> 47.3 | F16: =VLOOKUP($C16,'RECAP SECT'!$G$6:$CU$253,18,FALSE) -> -18 | G16: =VLOOKUP($C16,'RECAP SECT'!$G$6:$CU$253,19,FALSE) -> -0.39 | H16: =VLOOKUP($C16,'RECAP SECT'!$G$6:$CU$253,20,FALSE) -> 101% | I16: =VLOOKUP($C16,'RECAP SECT'!$G$6:$CU$253,21,FALSE) -> 18 | J16: =VLOOKUP($C16,'RECAP SECT'!$G$6:$CU$253,22,FALSE) -> 2,966 | K16: =VLOOKUP($C16,'RECAP SECT'!$G$6:$CU$253,23,FALSE) -> 62.68 | L16: =VLOOKUP($C16,'RECAP SECT'!$G$6:$CU$253,24,FALSE) -> 36% | M16: =VLOOKUP($C16,'RECAP SECT'!$G$6:$CU$253,25,FALSE) -> 14 | N16: =VLOOKUP($C16,'RECAP SECT'!$G$6:$CU$253,26,FALSE) -> 75% | O16: =VLOOKUP($C16,'RECAP SECT'!$G$6:$CU$253,27,FALSE) -> 75% | P16: =VLOOKUP($C16,'RECAP SECT'!$G$6:$CU$253,28,FALSE) -> 18
A17: 30 | B17: MARNE-ARDENNES | C17: 6 | D17: CHALONS EN CHAMPAGNE | E17: =VLOOKUP($C17,'RECAP SECT'!$G$6:$CU$253,3,FALSE) -> 37.3 | F17: =VLOOKUP($C17,'RECAP SECT'!$G$6:$CU$253,18,FALSE) -> 1,220 | G17: =VLOOKUP($C17,'RECAP SECT'!$G$6:$CU$253,19,FALSE) -> 32.74 | H17: =VLOOKUP($C17,'RECAP SECT'!$G$6:$CU$253,20,FALSE) -> 15% | I17: =VLOOKUP($C17,'RECAP SECT'!$G$6:$CU$253,21,FALSE) -> 3 | J17: =VLOOKUP($C17,'RECAP SECT'!$G$6:$CU$253,22,FALSE) -> 2,808 | K17: =VLOOKUP($C17,'RECAP SECT'!$G$6:$CU$253,23,FALSE) -> 75.34 | L17: =VLOOKUP($C17,'RECAP SECT'!$G$6:$CU$253,24,FALSE) -> 23% | M17: =VLOOKUP($C17,'RECAP SECT'!$G$6:$CU$253,25,FALSE) -> 8 | N17: =VLOOKUP($C17,'RECAP SECT'!$G$6:$CU$253,26,FALSE) -> 19% | O17: =VLOOKUP($C17,'RECAP SECT'!$G$6:$CU$253,27,FALSE) -> 19% | P17: =VLOOKUP($C17,'RECAP SECT'!$G$6:$CU$253,28,FALSE) -> 3
A18: 30 | B18: MARNE-ARDENNES | C18: 2 | D18: CHARLEVILLE MEZIERES | E18: =VLOOKUP($C18,'RECAP SECT'!$G$6:$CU$253,3,FALSE) -> 48.1 | F18: =VLOOKUP($C18,'RECAP SECT'!$G$6:$CU$253,18,FALSE) -> 1,037 | G18: =VLOOKUP($C18,'RECAP SECT'!$G$6:$CU$253,19,FALSE) -> 21.55 | H18: =VLOOKUP($C18,'RECAP SECT'!$G$6:$CU$253,20,FALSE) -> 44% | I18: =VLOOKUP($C18,'RECAP SECT'!$G$6:$CU$253,21,FALSE) -> 8 | J18: =VLOOKUP($C18,'RECAP SECT'!$G$6:$CU$253,22,FALSE) -> 3,739 | K18: =VLOOKUP($C18,'RECAP SECT'!$G$6:$CU$253,23,FALSE) -> 77.67 | L18: =VLOOKUP($C18,'RECAP SECT'!$G$6:$CU$253,24,FALSE) -> 21% | M18: =VLOOKUP($C18,'RECAP SECT'!$G$6:$CU$253,25,FALSE) -> 5 | N18: =VLOOKUP($C18,'RECAP SECT'!$G$6:$CU$253,26,FALSE) -> 35% | O18: =VLOOKUP($C18,'RECAP SECT'!$G$6:$CU$253,27,FALSE) -> 35% | P18: =VLOOKUP($C18,'RECAP SECT'!$G$6:$CU$253,28,FALSE) -> 6
A19: 30 | B19: MARNE-ARDENNES | C19: 11 | D19: REIMS | E19: =VLOOKUP($C19,'RECAP SECT'!$G$6:$CU$253,3,FALSE) -> 67.8 | F19: =VLOOKUP($C19,'RECAP SECT'!$G$6:$CU$253,18,FALSE) -> 2,627 | G19: =VLOOKUP($C19,'RECAP SECT'!$G$6:$CU$253,19,FALSE) -> 38.72 | H19: =VLOOKUP($C19,'RECAP SECT'!$G$6:$CU$253,20,FALSE) -> 0% | I19: =VLOOKUP($C19,'RECAP SECT'!$G$6:$CU$253,21,FALSE) -> 1 | J19: =VLOOKUP($C19,'RECAP SECT'!$G$6:$CU$253,22,FALSE) -> 6,667 | K19: =VLOOKUP($C19,'RECAP SECT'!$G$6:$CU$253,23,FALSE) -> 98.28 | L19: =VLOOKUP($C19,'RECAP SECT'!$G$6:$CU$253,24,FALSE) -> 0% | M19: =VLOOKUP($C19,'RECAP SECT'!$G$6:$CU$253,25,FALSE) -> 1 | N19: =VLOOKUP($C19,'RECAP SECT'!$G$6:$CU$253,26,FALSE) -> 0% | O19: =VLOOKUP($C19,'RECAP SECT'!$G$6:$CU$253,27,FALSE) -> 0% | P19: =VLOOKUP($C19,'RECAP SECT'!$G$6:$CU$253,28,FALSE) -> 1
A20: 110 | B20: MEURTHE ET MOSELLE MEUSE | C20: 26 | D20: NANCY | E20: =VLOOKUP($C20,'RECAP SECT'!$G$6:$CU$253,3,FALSE) -> 54.9 | F20: =VLOOKUP($C20,'RECAP SECT'!$G$6:$CU$253,18,FALSE) -> 919 | G20: =VLOOKUP($C20,'RECAP SECT'!$G$6:$CU$253,19,FALSE) -> 16.75 | H20: =VLOOKUP($C20,'RECAP SECT'!$G$6:$CU$253,20,FALSE) -> 57% | I20: =VLOOKUP($C20,'RECAP SECT'!$G$6:$CU$253,21,FALSE) -> 14 | J20: =VLOOKUP($C20,'RECAP SECT'!$G$6:$CU$253,22,FALSE) -> 4,186 | K20: =VLOOKUP($C20,'RECAP SECT'!$G$6:$CU$253,23,FALSE) -> 76.29 | L20: =VLOOKUP($C20,'RECAP SECT'!$G$6:$CU$253,24,FALSE) -> 22% | M20: =VLOOKUP($C20,'RECAP SECT'!$G$6:$CU$253,25,FALSE) -> 7 | N20: =VLOOKUP($C20,'RECAP SECT'!$G$6:$CU$253,26,FALSE) -> 43% | O20: =VLOOKUP($C20,'RECAP SECT'!$G$6:$CU$253,27,FALSE) -> 43% | P20: =VLOOKUP($C20,'RECAP SECT'!$G$6:$CU$253,28,FALSE) -> 12
A21: 110 | B21: MEURTHE ET MOSELLE MEUSE | C21: 27 | D21: PONT A MOUSSON | E21: =VLOOKUP($C21,'RECAP SECT'!$G$6:$CU$253,3,FALSE) -> 59.7 | F21: =VLOOKUP($C21,'RECAP SECT'!$G$6:$CU$253,18,FALSE) -> 1,017 | G21: =VLOOKUP($C21,'RECAP SECT'!$G$6:$CU$253,19,FALSE) -> 17.04 | H21: =VLOOKUP($C21,'RECAP SECT'!$G$6:$CU$253,20,FALSE) -> 56% | I21: =VLOOKUP($C21,'RECAP SECT'!$G$6:$CU$253,21,FALSE) -> 13 | J21: =VLOOKUP($C21,'RECAP SECT'!$G$6:$CU$253,22,FALSE) -> 4,634 | K21: =VLOOKUP($C21,'RECAP SECT'!$G$6:$CU$253,23,FALSE) -> 77.66 | L21: =VLOOKUP($C21,'RECAP SECT'!$G$6:$CU$253,24,FALSE) -> 21% | M21: =VLOOKUP($C21,'RECAP SECT'!$G$6:$CU$253,25,FALSE) -> 6 | N21: =VLOOKUP($C21,'RECAP SECT'!$G$6:$CU$253,26,FALSE) -> 42% | O21: =VLOOKUP($C21,'RECAP SECT'!$G$6:$CU$253,27,FALSE) -> 42% | P21: =VLOOKUP($C21,'RECAP SECT'!$G$6:$CU$253,28,FALSE) -> 11
A22: 110 | B22: MEURTHE ET MOSELLE MEUSE | C22: 31 | D22: VERDUN | E22: =VLOOKUP($C22,'RECAP SECT'!$G$6:$CU$253,3,FALSE) -> 48.7 | F22: =VLOOKUP($C22,'RECAP SECT'!$G$6:$CU$253,18,FALSE) -> 1,067 | G22: =VLOOKUP($C22,'RECAP SECT'!$G$6:$CU$253,19,FALSE) -> 21.89 | H22: =VLOOKUP($C22,'RECAP SECT'!$G$6:$CU$253,20,FALSE) -> 43% | I22: =VLOOKUP($C22,'RECAP SECT'!$G$6:$CU$253,21,FALSE) -> 6 | J22: =VLOOKUP($C22,'RECAP SECT'!$G$6:$CU$253,22,FALSE) -> 3,509 | K22: =VLOOKUP($C22,'RECAP SECT'!$G$6:$CU$253,23,FALSE) -> 71.99 | L22: =VLOOKUP($C22,'RECAP SECT'!$G$6:$CU$253,24,FALSE) -> 27% | M22: =VLOOKUP($C22,'RECAP SECT'!$G$6:$CU$253,25,FALSE) -> 10 | N22: =VLOOKUP($C22,'RECAP SECT'!$G$6:$CU$253,26,FALSE) -> 37% | O22: =VLOOKUP($C22,'RECAP SECT'!$G$6:$CU$253,27,FALSE) -> 37% | P22: =VLOOKUP($C22,'RECAP SECT'!$G$6:$CU$253,28,FALSE) -> 7
A23: 160 | B23: MOSELLE | C23: 45 | D23: METZ | E23: =VLOOKUP($C23,'RECAP SECT'!$G$6:$CU$253,3,FALSE) -> 72.4 | F23: =VLOOKUP($C23,'RECAP SECT'!$G$6:$CU$253,18,FALSE) -> 1,420 | G23: =VLOOKUP($C23,'RECAP SECT'!$G$6:$CU$253,19,FALSE) -> 19.61 | H23: =VLOOKUP($C23,'RECAP SECT'!$G$6:$CU$253,20,FALSE) -> 49% | I23: =VLOOKUP($C23,'RECAP SECT'!$G$6:$CU$253,21,FALSE) -> 10 | J23: =VLOOKUP($C23,'RECAP SECT'!$G$6:$CU$253,22,FALSE) -> 5,400 | K23: =VLOOKUP($C23,'RECAP SECT'!$G$6:$CU$253,23,FALSE) -> 74.58 | L23: =VLOOKUP($C23,'RECAP SECT'!$G$6:$CU$253,24,FALSE) -> 24% | M23: =VLOOKUP($C23,'RECAP SECT'!$G$6:$CU$253,25,FALSE) -> 9 | N23: =VLOOKUP($C23,'RECAP SECT'!$G$6:$CU$253,26,FALSE) -> 39% | O23: =VLOOKUP($C23,'RECAP SECT'!$G$6:$CU$253,27,FALSE) -> 39% | P23: =VLOOKUP($C23,'RECAP SECT'!$G$6:$CU$253,28,FALSE) -> 8
A24: 160 | B24: MOSELLE | C24: 42 | D24: MOSELLE EST | E24: =VLOOKUP($C24,'RECAP SECT'!$G$6:$CU$253,3,FALSE) -> 57.6 | F24: =VLOOKUP($C24,'RECAP SECT'!$G$6:$CU$253,18,FALSE) -> 1,505 | G24: =VLOOKUP($C24,'RECAP SECT'!$G$6:$CU$253,19,FALSE) -> 26.16 | H24: =VLOOKUP($C24,'RECAP SECT'!$G$6:$CU$253,20,FALSE) -> 32% | I24: =VLOOKUP($C24,'RECAP SECT'!$G$6:$CU$253,21,FALSE) -> 4 | J24: =VLOOKUP($C24,'RECAP SECT'!$G$6:$CU$253,22,FALSE) -> 4,530 | K24: =VLOOKUP($C24,'RECAP SECT'!$G$6:$CU$253,23,FALSE) -> 78.71 | L24: =VLOOKUP($C24,'RECAP SECT'!$G$6:$CU$253,24,FALSE) -> 20% | M24: =VLOOKUP($C24,'RECAP SECT'!$G$6:$CU$253,25,FALSE) -> 4 | N24: =VLOOKUP($C24,'RECAP SECT'!$G$6:$CU$253,26,FALSE) -> 27% | O24: =VLOOKUP($C24,'RECAP SECT'!$G$6:$CU$253,27,FALSE) -> 27% | P24: =VLOOKUP($C24,'RECAP SECT'!$G$6:$CU$253,28,FALSE) -> 4
A25: 160 | B25: MOSELLE | C25: 44 | D25: MOSELLE NORD | E25: =VLOOKUP($C25,'RECAP SECT'!$G$6:$CU$253,3,FALSE) -> 55.3 | F25: =VLOOKUP($C25,'RECAP SECT'!$G$6:$CU$253,18,FALSE) -> 2,042 | G25: =VLOOKUP($C25,'RECAP SECT'!$G$6:$CU$253,19,FALSE) -> 36.95 | H25: =VLOOKUP($C25,'RECAP SECT'!$G$6:$CU$253,20,FALSE) -> 5% | I25: =VLOOKUP($C25,'RECAP SECT'!$G$6:$CU$253,21,FALSE) -> 2 | J25: =VLOOKUP($C25,'RECAP SECT'!$G$6:$CU$253,22,FALSE) -> 4,968 | K25: =VLOOKUP($C25,'RECAP SECT'!$G$6:$CU$253,23,FALSE) -> 89.89 | L25: =VLOOKUP($C25,'RECAP SECT'!$G$6:$CU$253,24,FALSE) -> 9% | M25: =VLOOKUP($C25,'RECAP SECT'!$G$6:$CU$253,25,FALSE) -> 2 | N25: =VLOOKUP($C25,'RECAP SECT'!$G$6:$CU$253,26,FALSE) -> 6% | O25: =VLOOKUP($C25,'RECAP SECT'!$G$6:$CU$253,27,FALSE) -> 6% | P25: =VLOOKUP($C25,'RECAP SECT'!$G$6:$CU$253,28,FALSE) -> 2
A26: 80 | B26: VOSGES | C26: 57 | D26: EPINAL | E26: =VLOOKUP($C26,'RECAP SECT'!$G$6:$CU$253,3,FALSE) -> 53.0 | F26: =VLOOKUP($C26,'RECAP SECT'!$G$6:$CU$253,18,FALSE) -> 1,153 | G26: =VLOOKUP($C26,'RECAP SECT'!$G$6:$CU$253,19,FALSE) -> 21.76 | H26: =VLOOKUP($C26,'RECAP SECT'!$G$6:$CU$253,20,FALSE) -> 44% | I26: =VLOOKUP($C26,'RECAP SECT'!$G$6:$CU$253,21,FALSE) -> 7 | J26: =VLOOKUP($C26,'RECAP SECT'!$G$6:$CU$253,22,FALSE) -> 3,507 | K26: =VLOOKUP($C26,'RECAP SECT'!$G$6:$CU$253,23,FALSE) -> 66.21 | L26: =VLOOKUP($C26,'RECAP SECT'!$G$6:$CU$253,24,FALSE) -> 33% | M26: =VLOOKUP($C26,'RECAP SECT'!$G$6:$CU$253,25,FALSE) -> 13 | N26: =VLOOKUP($C26,'RECAP SECT'!$G$6:$CU$253,26,FALSE) -> 39% | O26: =VLOOKUP($C26,'RECAP SECT'!$G$6:$CU$253,27,FALSE) -> 39% | P26: =VLOOKUP($C26,'RECAP SECT'!$G$6:$CU$253,28,FALSE) -> 9
A27: 80 | B27: VOSGES | C27: 55 | D27: SAINT DIE | E27: =VLOOKUP($C27,'RECAP SECT'!$G$6:$CU$253,3,FALSE) -> 40.0 | F27: =VLOOKUP($C27,'RECAP SECT'!$G$6:$CU$253,18,FALSE) -> 599 | G27: =VLOOKUP($C27,'RECAP SECT'!$G$6:$CU$253,19,FALSE) -> 14.97 | H27: =VLOOKUP($C27,'RECAP SECT'!$G$6:$CU$253,20,FALSE) -> 61% | I27: =VLOOKUP($C27,'RECAP SECT'!$G$6:$CU$253,21,FALSE) -> 15 | J27: =VLOOKUP($C27,'RECAP SECT'!$G$6:$CU$253,22,FALSE) -> 2,302 | K27: =VLOOKUP($C27,'RECAP SECT'!$G$6:$CU$253,23,FALSE) -> 57.54 | L27: =VLOOKUP($C27,'RECAP SECT'!$G$6:$CU$253,24,FALSE) -> 41% | M27: =VLOOKUP($C27,'RECAP SECT'!$G$6:$CU$253,25,FALSE) -> 17 | N27: =VLOOKUP($C27,'RECAP SECT'!$G$6:$CU$253,26,FALSE) -> 53% | O27: =VLOOKUP($C27,'RECAP SECT'!$G$6:$CU$253,27,FALSE) -> 53% | P27: =VLOOKUP($C27,'RECAP SECT'!$G$6:$CU$253,28,FALSE) -> 15
A28: Total CEGEE Directions Régionales | E28: =SUM(E10:E27) -> 946

Sheet SE_EPARGNE
B1: Accueil | F1: BAROMETRE BDD - TERRITOIRES
F2: EPARGNE
F3: =ACCUEIL!F7 -> 2022-12-04
F7: Excédent Epargne hors DAV pondéré | J7: Ventes sur client non détenteur de l’univers | N7: Total Epargne
F8: =DATEMAJ!C14 -> au 04/12 | H8: coef | I8: ='RECAP DIRCOM'!AP4 -> 12% | J8: =DATEMAJ!C15 -> au 04/12 | L8: coef | M8: ='RECAP DIRCOM'!AT4 -> 8% | O8: coef | P8: ='RECAP DIRCOM'!AW4 -> 20%
A9: eds | B9: Direction | C9: eds | D9: Territoire | E9: ="ETP perf "&DATEMAJ!$C$28 -> ETP perf 04-déc | F9: Excédent | G9: Excédent / ETP | H9: % Ecart au 1er | I9: Rang | J9: VB | K9: VB / ETP | L9: % Ecart au 1er | M9: Rang | N9: Moyenne ecart au 1er | O9: % Ecart au 1er | P9: Rang CEGEE
A10: 50 | B10: AUBE HAUTE MARNE | C10: 21 | D10: CHAUMONT | E10: =VLOOKUP($C10,'RECAP SECT'!$G$6:$CU$253,3,FALSE) -> 33.5 | F10: =VLOOKUP($C10,'RECAP SECT'!$G$6:$CU$253,33,FALSE) -> 15,281 | G10: =VLOOKUP($C10,'RECAP SECT'!$G$6:$CU$253,34,FALSE) -> 456.70 | H10: =VLOOKUP($C10,'RECAP SECT'!$G$6:$CU$253,35,FALSE) -> 14% | I10: =VLOOKUP($C10,'RECAP SECT'!$G$6:$CU$253,36,FALSE) -> 4 | J10: =VLOOKUP($C10,'RECAP SECT'!$G$6:$CU$253,37,FALSE) -> 2,200 | K10: =VLOOKUP($C10,'RECAP SECT'!$G$6:$CU$253,38,FALSE) -> 65.75 | L10: =VLOOKUP($C10,'RECAP SECT'!$G$6:$CU$253,39,FALSE) -> 33% | M10: =VLOOKUP($C10,'RECAP SECT'!$G$6:$CU$253,40,FALSE) -> 10 | N10: =VLOOKUP($C10,'RECAP SECT'!$G$6:$CU$253,41,FALSE) -> 22% | O10: =VLOOKUP($C10,'RECAP SECT'!$G$6:$CU$253,42,FALSE) -> 16% | P10: =VLOOKUP($C10,'RECAP SECT'!$G$6:$CU$253,43,FALSE) -> 6
A11: 50 | B11: AUBE HAUTE MARNE | C11: 14 | D11: TROYES | E11: =VLOOKUP($C11,'RECAP SECT'!$G$6:$CU$253,3,FALSE) -> 53.8 | F11: =VLOOKUP($C11,'RECAP SECT'!$G$6:$CU$253,33,FALSE) -> 4,487 | G11: =VLOOKUP($C11,'RECAP SECT'!$G$6:$CU$253,34,FALSE) -> 83.34 | H11: =VLOOKUP($C11,'RECAP SECT'!$G$6:$CU$253,35,FALSE) -> 84% | I11: =VLOOKUP($C11,'RECAP SECT'!$G$6:$CU$253,36,FALSE) -> 16 | J11: =VLOOKUP($C11,'RECAP SECT'!$G$6:$CU$253,37,FALSE) -> 3,488 | K11: =VLOOKUP($C11,'RECAP SECT'!$G$6:$CU$253,38,FALSE) -> 64.78 | L11: =VLOOKUP($C11,'RECAP SECT'!$G$6:$CU$253,39,FALSE) -> 34% | M11: =VLOOKUP($C11,'RECAP SECT'!$G$6:$CU$253,40,FALSE) -> 12 | N11: =VLOOKUP($C11,'RECAP SECT'!$G$6:$CU$253,41,FALSE) -> 64% | O11: =VLOOKUP($C11,'RECAP SECT'!$G$6:$CU$253,42,FALSE) -> 58% | P11: =VLOOKUP($C11,'RECAP SECT'!$G$6:$CU$253,43,FALSE) -> 16
A12: 262 | B12: BAS-RHIN | C12: 5060 | D12: HAGUENAU | E12: =VLOOKUP($C12,'RECAP SECT'!$G$6:$CU$253,3,FALSE) -> 55.8 | F12: =VLOOKUP($C12,'RECAP SECT'!$G$6:$CU$253,33,FALSE) -> 20,181 | G12: =VLOOKUP($C12,'RECAP SECT'!$G$6:$CU$253,34,FALSE) -> 361.99 | H12: =VLOOKUP($C12,'RECAP SECT'!$G$6:$CU$253,35,FALSE) -> 32% | I12: =VLOOKUP($C12,'RECAP SECT'!$G$6:$CU$253,36,FALSE) -> 10 | J12: =VLOOKUP($C12,'RECAP SECT'!$G$6:$CU$253,37,FALSE) -> 3,432 | K12: =VLOOKUP($C12,'RECAP SECT'!$G$6:$CU$253,38,FALSE) -> 61.56 | L12: =VLOOKUP($C12,'RECAP SECT'!$G$6:$CU$253,39,FALSE) -> 37% | M12: =VLOOKUP($C12,'RECAP SECT'!$G$6:$CU$253,40,FALSE) -> 14 | N12: =VLOOKUP($C12,'RECAP SECT'!$G$6:$CU$253,41,FALSE) -> 34% | O12: =VLOOKUP($C12,'RECAP SECT'!$G$6:$CU$253,42,FALSE) -> 28% | P12: =VLOOKUP($C12,'RECAP SECT'!$G$6:$CU$253,43,FALSE) -> 12
A13: 262 | B13: BAS-RHIN | C13: 5101 | D13: SELESTAT | E13: =VLOOKUP($C13,'RECAP SECT'!$G$6:$CU$253,3,FALSE) -> 50.6 | F13: =VLOOKUP($C13,'RECAP SECT'!$G$6:$CU$253,33,FALSE) -> 18,988 | G13: =VLOOKUP($C13,'RECAP SECT'!$G$6:$CU$253,34,FALSE) -> 375.26 | H13: =VLOOKUP($C13,'RECAP SECT'!$G$6:$CU$253,35,FALSE) -> 30% | I13: =VLOOKUP($C13,'RECAP SECT'!$G$6:$CU$253,36,FALSE) -> 9 | J13: =VLOOKUP($C13,'RECAP SECT'!$G$6:$CU$253,37,FALSE) -> 3,102 | K13: =VLOOKUP($C13,'RECAP SECT'!$G$6:$CU$253,38,FALSE) -> 61.30 | L13: =VLOOKUP($C13,'RECAP SECT'!$G$6:$CU$253,39,FALSE) -> 38% | M13: =VLOOKUP($C13,'RECAP SECT'!$G$6:$CU$253,40,FALSE) -> 15 | N13: =VLOOKUP($C13,'RECAP SECT'!$G$6:$CU$253,41,FALSE) -> 33% | O13: =VLOOKUP($C13,'RECAP SECT'!$G$6:$CU$253,42,FALSE) -> 27% | P13: =VLOOKUP($C13,'RECAP SECT'!$G$6:$CU$253,43,FALSE) -> 11
A14: 262 | B14: BAS-RHIN | C14: 5006 | D14: STRASBOURG | E14: =VLOOKUP($C14,'RECAP SECT'!$G$6:$CU$253,3,FALSE) -> 64.5 | F14: =VLOOKUP($C14,'RECAP SECT'!$G$6:$CU$253,33,FALSE) -> 33,398 | G14: =VLOOKUP($C14,'RECAP SECT'!$G$6:$CU$253,34,FALSE) -> 517.88 | H14: =VLOOKUP($C14,'RECAP SECT'!$G$6:$CU$253,35,FALSE) -> 3% | I14: =VLOOKUP($C14,'RECAP SECT'!$G$6:$CU$253,36,FALSE) -> 2 | J14: =VLOOKUP($C14,'RECAP SECT'!$G$6:$CU$253,37,FALSE) -> 5,622 | K14: =VLOOKUP($C14,'RECAP SECT'!$G$6:$CU$253,38,FALSE) -> 87.18 | L14: =VLOOKUP($C14,'RECAP SECT'!$G$6:$CU$253,39,FALSE) -> 11% | M14: =VLOOKUP($C14,'RECAP SECT'!$G$6:$CU$253,40,FALSE) -> 4 | N14: =VLOOKUP($C14,'RECAP SECT'!$G$6:$CU$253,41,FALSE) -> 6% | O14: =VLOOKUP($C14,'RECAP SECT'!$G$6:$CU$253,42,FALSE) -> 0% | P14: =VLOOKUP($C14,'RECAP SECT'!$G$6:$CU$253,43,FALSE) -> 1
A15: 264 | B15: HAUT-RHIN | C15: 5130 | D15: COLMAR | E15: =VLOOKUP($C15,'RECAP SECT'!$G$6:$CU$253,3,FALSE) -> 45.4 | F15: =VLOOKUP($C15,'RECAP SECT'!$G$6:$CU$253,33,FALSE) -> 758 | G15: =VLOOKUP($C15,'RECAP SECT'!$G$6:$CU$253,34,FALSE) -> 16.72 | H15: =VLOOKUP($C15,'RECAP SECT'!$G$6:$CU$253,35,FALSE) -> 97% | I15: =VLOOKUP($C15,'RECAP SECT'!$G$6:$CU$253,36,FALSE) -> 17 | J15: =VLOOKUP($C15,'RECAP SECT'!$G$6:$CU$253,37,FALSE) -> 2,284 | K15: =VLOOKUP($C15,'RECAP SECT'!$G$6:$CU$253,38,FALSE) -> 50.35 | L15: =VLOOKUP($C15,'RECAP SECT'!$G$6:$CU$253,39,FALSE) -> 49% | M15: =VLOOKUP($C15,'RECAP SECT'!$G$6:$CU$253,40,FALSE) -> 18 | N15: =VLOOKUP($C15,'RECAP SECT'!$G$6:$CU$253,41,FALSE) -> 78% | O15: =VLOOKUP($C15,'RECAP SECT'!$G$6:$CU$253,42,FALSE) -> 71% | P15: =VLOOKUP($C15,'RECAP SECT'!$G$6:$CU$253,43,FALSE) -> 17
A16: 264 | B16: HAUT-RHIN | C16: 5169 | D16: MULHOUSE | E16: =VLOOKUP($C16,'RECAP SECT'!$G$6:$CU$253,3,FALSE) -> 47.3 | F16: =VLOOKUP($C16,'RECAP SECT'!$G$6:$CU$253,33,FALSE) -> -3,237 | G16: =VLOOKUP($C16,'RECAP SECT'!$G$6:$CU$253,34,FALSE) -> -68.41 | H16: =VLOOKUP($C16,'RECAP SECT'!$G$6:$CU$253,35,FALSE) -> 113% | I16: =VLOOKUP($C16,'RECAP SECT'!$G$6:$CU$253,36,FALSE) -> 18 | J16: =VLOOKUP($C16,'RECAP SECT'!$G$6:$CU$253,37,FALSE) -> 2,749 | K16: =VLOOKUP($C16,'RECAP SECT'!$G$6:$CU$253,38,FALSE) -> 58.09 | L16: =VLOOKUP($C16,'RECAP SECT'!$G$6:$CU$253,39,FALSE) -> 41% | M16: =VLOOKUP($C16,'RECAP SECT'!$G$6:$CU$253,40,FALSE) -> 16 | N16: =VLOOKUP($C16,'RECAP SECT'!$G$6:$CU$253,41,FALSE) -> 84% | O16: =VLOOKUP($C16,'RECAP SECT'!$G$6:$CU$253,42,FALSE) -> 78% | P16: =VLOOKUP($C16,'RECAP SECT'!$G$6:$CU$253,43,FALSE) -> 18
A17: 30 | B17: MARNE-ARDENNES | C17: 6 | D17: CHALONS EN CHAMPAGNE | E17: =VLOOKUP($C17,'RECAP SECT'!$G$6:$CU$253,3,FALSE) -> 37.3 | F17: =VLOOKUP($C17,'RECAP SECT'!$G$6:$CU$253,33,FALSE) -> 14,922 | G17: =VLOOKUP($C17,'RECAP SECT'!$G$6:$CU$253,34,FALSE) -> 400.37 | H17: =VLOOKUP($C17,'RECAP SECT'!$G$6:$CU$253,35,FALSE) -> 25% | I17: =VLOOKUP($C17,'RECAP SECT'!$G$6:$CU$253,36,FALSE) -> 6 | J17: =VLOOKUP($C17,'RECAP SECT'!$G$6:$CU$253,37,FALSE) -> 3,127 | K17: =VLOOKUP($C17,'RECAP SECT'!$G$6:$CU$253,38,FALSE) -> 83.90 | L17: =VLOOKUP($C17,'RECAP SECT'!$G$6:$CU$253,39,FALSE) -> 15% | M17: =VLOOKUP($C17,'RECAP SECT'!$G$6:$CU$253,40,FALSE) -> 5 | N17: =VLOOKUP($C17,'RECAP SECT'!$G$6:$CU$253,41,FALSE) -> 21% | O17: =VLOOKUP($C17,'RECAP SECT'!$G$6:$CU$253,42,FALSE) -> 15% | P17: =VLOOKUP($C17,'RECAP SECT'!$G$6:$CU$253,43,FALSE) -> 5
A18: 30 | B18: MARNE-ARDENNES | C18: 2 | D18: CHARLEVILLE MEZIERES | E18: =VLOOKUP($C18,'RECAP SECT'!$G$6:$CU$253,3,FALSE) -> 48.1 | F18: =VLOOKUP($C18,'RECAP SECT'!$G$6:$CU$253,33,FALSE) -> 18,600 | G18: =VLOOKUP($C18,'RECAP SECT'!$G$6:$CU$253,34,FALSE) -> 386.37 | H18: =VLOOKUP($C18,'RECAP SECT'!$G$6:$CU$253,35,FALSE) -> 27% | I18: =VLOOKUP($C18,'RECAP SECT'!$G$6:$CU$253,36,FALSE) -> 7 | J18: =VLOOKUP($C18,'RECAP SECT'!$G$6:$CU$253,37,FALSE) -> 4,253 | K18: =VLOOKUP($C18,'RECAP SECT'!$G$6:$CU$253,38,FALSE) -> 88.35 | L18: =VLOOKUP($C18,'RECAP SECT'!$G$6:$CU$253,39,FALSE) -> 10% | M18: =VLOOKUP($C18,'RECAP SECT'!$G$6:$CU$253,40,FALSE) -> 3 | N18: =VLOOKUP($C18,'RECAP SECT'!$G$6:$CU$253,41,FALSE) -> 21% | O18: =VLOOKUP($C18,'RECAP SECT'!$G$6:$CU$253,42,FALSE) -> 14% | P18: =VLOOKUP($C18,'RECAP SECT'!$G$6:$CU$253,43,FALSE) -> 4
A19: 30 | B19: MARNE-ARDENNES | C19: 11 | D19: REIMS | E19: =VLOOKUP($C19,'RECAP SECT'!$G$6:$CU$253,3,FALSE) -> 67.8 | F19: =VLOOKUP($C19,'RECAP SECT'!$G$6:$CU$253,33,FALSE) -> 20,647 | G19: =VLOOKUP($C19,'RECAP SECT'!$G$6:$CU$253,34,FALSE) -> 304.35 | H19: =VLOOKUP($C19,'RECAP SECT'!$G$6:$CU$253,35,FALSE) -> 43% | I19: =VLOOKUP($C19,'RECAP SECT'!$G$6:$CU$253,36,FALSE) -> 13 | J19: =VLOOKUP($C19,'RECAP SECT'!$G$6:$CU$253,37,FALSE) -> 6,327 | K19: =VLOOKUP($C19,'RECAP SECT'!$G$6:$CU$253,38,FALSE) -> 93.26 | L19: =VLOOKUP($C19,'RECAP SECT'!$G$6:$CU$253,39,FALSE) -> 5% | M19: =VLOOKUP($C19,'RECAP SECT'!$G$6:$CU$253,40,FALSE) -> 2 | N19: =VLOOKUP($C19,'RECAP SECT'!$G$6:$CU$253,41,FALSE) -> 28% | O19: =VLOOKUP($C19,'RECAP SECT'!$G$6:$CU$253,42,FALSE) -> 22% | P19: =VLOOKUP($C19,'RECAP SECT'!$G$6:$CU$253,43,FALSE) -> 10
A20: 110 | B20: MEURTHE ET MOSELLE MEUSE | C20: 26 | D20: NANCY | E20: =VLOOKUP($C20,'RECAP SECT'!$G$6:$CU$253,3,FALSE) -> 54.9 | F20: =VLOOKUP($C20,'RECAP SECT'!$G$6:$CU$253,33,FALSE) -> 20,767 | G20: =VLOOKUP($C20,'RECAP SECT'!$G$6:$CU$253,34,FALSE) -> 378.47 | H20: =VLOOKUP($C20,'RECAP SECT'!$G$6:$CU$253,35,FALSE) -> 29% | I20: =VLOOKUP($C20,'RECAP SECT'!$G$6:$CU$253,36,FALSE) -> 8 | J20: =VLOOKUP($C20,'RECAP SECT'!$G$6:$CU$253,37,FALSE) -> 4,034 | K20: =VLOOKUP($C20,'RECAP SECT'!$G$6:$CU$253,38,FALSE) -> 73.52 | L20: =VLOOKUP($C20,'RECAP SECT'!$G$6:$CU$253,39,FALSE) -> 25% | M20: =VLOOKUP($C20,'RECAP SECT'!$G$6:$CU$253,40,FALSE) -> 8 | N20: =VLOOKUP($C20,'RECAP SECT'!$G$6:$CU$253,41,FALSE) -> 27% | O20: =VLOOKUP($C20,'RECAP SECT'!$G$6:$CU$253,42,FALSE) -> 21% | P20: =VLOOKUP($C20,'RECAP SECT'!$G$6:$CU$253,43,FALSE) -> 9
A21: 110 | B21: MEURTHE ET MOSELLE MEUSE | C21: 27 | D21: PONT A MOUSSON | E21: =VLOOKUP($C21,'RECAP SECT'!$G$6:$CU$253,3,FALSE) -> 59.7 | F21: =VLOOKUP($C21,'RECAP SECT'!$G$6:$CU$253,33,FALSE) -> 28,690 | G21: =VLOOKUP($C21,'RECAP SECT'!$G$6:$CU$253,34,FALSE) -> 480.81 | H21: =VLOOKUP($C21,'RECAP SECT'!$G$6:$CU$253,35,FALSE) -> 10% | I21: =VLOOKUP($C21,'RECAP SECT'!$G$6:$CU$253,36,FALSE) -> 3 | J21: =VLOOKUP($C21,'RECAP SECT'!$G$6:$CU$253,37,FALSE) -> 3,953 | K21: =VLOOKUP($C21,'RECAP SECT'!$G$6:$CU$253,38,FALSE) -> 66.25 | L21: =VLOOKUP($C21,'RECAP SECT'!$G$6:$CU$253,39,FALSE) -> 33% | M21: =VLOOKUP($C21,'RECAP SECT'!$G$6:$CU$253,40,FALSE) -> 9 | N21: =VLOOKUP($C21,'RECAP SECT'!$G$6:$CU$253,41,FALSE) -> 19% | O21: =VLOOKUP($C21,'RECAP SECT'!$G$6:$CU$253,42,FALSE) -> 13% | P21: =VLOOKUP($C21,'RECAP SECT'!$G$6:$CU$253,43,FALSE) -> 3
A22: 110 | B22: MEURTHE ET MOSELLE MEUSE | C22: 31 | D22: VERDUN | E22: =VLOOKUP($C22,'RECAP SECT'!$G$6:$CU$253,3,FALSE) -> 48.7 | F22: =VLOOKUP($C22,'RECAP SECT'!$G$6:$CU$253,33,FALSE) -> 15,720 | G22: =VLOOKUP($C22,'RECAP SECT'!$G$6:$CU$253,34,FALSE) -> 322.52 | H22: =VLOOKUP($C22,'RECAP SECT'!$G$6:$CU$253,35,FALSE) -> 39% | I22: =VLOOKUP($C22,'RECAP SECT'!$G$6:$CU$253,36,FALSE) -> 12 | J22: =VLOOKUP($C22,'RECAP SECT'!$G$6:$CU$253,37,FALSE) -> 3,184 | K22: =VLOOKUP($C22,'RECAP SECT'!$G$6:$CU$253,38,FALSE) -> 65.33 | L22: =VLOOKUP($C22,'RECAP SECT'!$G$6:$CU$253,39,FALSE) -> 34% | M22: =VLOOKUP($C22,'RECAP SECT'!$G$6:$CU$253,40,FALSE) -> 11 | N22: =VLOOKUP($C22,'RECAP SECT'!$G$6:$CU$253,41,FALSE) -> 37% | O22: =VLOOKUP($C22,'RECAP SECT'!$G$6:$CU$253,42,FALSE) -> 31% | P22: =VLOOKUP($C22,'RECAP SECT'!$G$6:$CU$253,43,FALSE) -> 14
A23: 160 | B23: MOSELLE | C23: 45 | D23: METZ | E23: =VLOOKUP($C23,'RECAP SECT'!$G$6:$CU$253,3,FALSE) -> 72.4 | F23: =VLOOKUP($C23,'RECAP SECT'!$G$6:$CU$253,33,FALSE) -> 38,569 | G23: =VLOOKUP($C23,'RECAP SECT'!$G$6:$CU$253,34,FALSE) -> 532.65 | H23: =VLOOKUP($C23,'RECAP SECT'!$G$6:$CU$253,35,FALSE) -> 0% | I23: =VLOOKUP($C23,'RECAP SECT'!$G$6:$CU$253,36,FALSE) -> 1 | J23: =VLOOKUP($C23,'RECAP SECT'!$G$6:$CU$253,37,FALSE) -> 5,811 | K23: =VLOOKUP($C23,'RECAP SECT'!$G$6:$CU$253,38,FALSE) -> 80.25 | L23: =VLOOKUP($C23,'RECAP SECT'!$G$6:$CU$253,39,FALSE) -> 18% | M23: =VLOOKUP($C23,'RECAP SECT'!$G$6:$CU$253,40,FALSE) -> 7 | N23: =VLOOKUP($C23,'RECAP SECT'!$G$6:$CU$253,41,FALSE) -> 7% | O23: =VLOOKUP($C23,'RECAP SECT'!$G$6:$CU$253,42,FALSE) -> 1% | P23: =VLOOKUP($C23,'RECAP SECT'!$G$6:$CU$253,43,FALSE) -> 2
A24: 160 | B24: MOSELLE | C24: 42 | D24: MOSELLE EST | E24: =VLOOKUP($C24,'RECAP SECT'!$G$6:$CU$253,3,FALSE) -> 57.6 | F24: =VLOOKUP($C24,'RECAP SECT'!$G$6:$CU$253,33,FALSE) -> 20,408 | G24: =VLOOKUP($C24,'RECAP SECT'!$G$6:$CU$253,34,FALSE) -> 354.62 | H24: =VLOOKUP($C24,'RECAP SECT'!$G$6:$CU$253,35,FALSE) -> 33% | I24: =VLOOKUP($C24,'RECAP SECT'!$G$6:$CU$253,36,FALSE) -> 11 | J24: =VLOOKUP($C24,'RECAP SECT'!$G$6:$CU$253,37,FALSE) -> 4,800 | K24: =VLOOKUP($C24,'RECAP SECT'!$G$6:$CU$253,38,FALSE) -> 83.41 | L24: =VLOOKUP($C24,'RECAP SECT'!$G$6:$CU$253,39,FALSE) -> 15% | M24: =VLOOKUP($C24,'RECAP SECT'!$G$6:$CU$253,40,FALSE) -> 6 | N24: =VLOOKUP($C24,'RECAP SECT'!$G$6:$CU$253,41,FALSE) -> 26% | O24: =VLOOKUP($C24,'RECAP SECT'!$G$6:$CU$253,42,FALSE) -> 20% | P24: =VLOOKUP($C24,'RECAP SECT'!$G$6:$CU$253,43,FALSE) -> 8
A25: 160 | B25: MOSELLE | C25: 44 | D25: MOSELLE NORD | E25: =VLOOKUP($C25,'RECAP SECT'!$G$6:$CU$253,3,FALSE) -> 55.3 | F25: =VLOOKUP($C25,'RECAP SECT'!$G$6:$CU$253,33,FALSE) -> 11,795 | G25: =VLOOKUP($C25,'RECAP SECT'!$G$6:$CU$253,34,FALSE) -> 213.40 | H25: =VLOOKUP($C25,'RECAP SECT'!$G$6:$CU$253,35,FALSE) -> 60% | I25: =VLOOKUP($C25,'RECAP SECT'!$G$6:$CU$253,36,FALSE) -> 15 | J25: =VLOOKUP($C25,'RECAP SECT'!$G$6:$CU$253,37,FALSE) -> 5,432 | K25: =VLOOKUP($C25,'RECAP SECT'!$G$6:$CU$253,38,FALSE) -> 98.28 | L25: =VLOOKUP($C25,'RECAP SECT'!$G$6:$CU$253,39,FALSE) -> 0% | M25: =VLOOKUP($C25,'RECAP SECT'!$G$6:$CU$253,40,FALSE) -> 1 | N25: =VLOOKUP($C25,'RECAP SECT'!$G$6:$CU$253,41,FALSE) -> 36% | O25: =VLOOKUP($C25,'RECAP SECT'!$G$6:$CU$253,42,FALSE) -> 30% | P25: =VLOOKUP($C25,'RECAP SECT'!$G$6:$CU$253,43,FALSE) -> 13
A26: 80 | B26: VOSGES | C26: 57 | D26: EPINAL | E26: =VLOOKUP($C26,'RECAP SECT'!$G$6:$CU$253,3,FALSE) -> 53.0 | F26: =VLOOKUP($C26,'RECAP SECT'!$G$6:$CU$253,33,FALSE) -> 22,697 | G26: =VLOOKUP($C26,'RECAP SECT'!$G$6:$CU$253,34,FALSE) -> 428.49 | H26: =VLOOKUP($C26,'RECAP SECT'!$G$6:$CU$253,35,FALSE) -> 20% | I26: =VLOOKUP($C26,'RECAP SECT'!$G$6:$CU$253,36,FALSE) -> 5 | J26: =VLOOKUP($C26,'RECAP SECT'!$G$6:$CU$253,37,FALSE) -> 3,429 | K26: =VLOOKUP($C26,'RECAP SECT'!$G$6:$CU$253,38,FALSE) -> 64.73 | L26: =VLOOKUP($C26,'RECAP SECT'!$G$6:$CU$253,39,FALSE) -> 34% | M26: =VLOOKUP($C26,'RECAP SECT'!$G$6:$CU$253,40,FALSE) -> 13 | N26: =VLOOKUP($C26,'RECAP SECT'!$G$6:$CU$253,41,FALSE) -> 25% | O26: =VLOOKUP($C26,'RECAP SECT'!$G$6:$CU$253,42,FALSE) -> 19% | P26: =VLOOKUP($C26,'RECAP SECT'!$G$6:$CU$253,43,FALSE) -> 7
A27: 80 | B27: VOSGES | C27: 55 | D27: SAINT DIE | E27: =VLOOKUP($C27,'RECAP SECT'!$G$6:$CU$253,3,FALSE) -> 40.0 | F27: =VLOOKUP($C27,'RECAP SECT'!$G$6:$CU$253,33,FALSE) -> 9,022 | G27: =VLOOKUP($C27,'RECAP SECT'!$G$6:$CU$253,34,FALSE) -> 225.50 | H27: =VLOOKUP($C27,'RECAP SECT'!$G$6:$CU$253,35,FALSE) -> 58% | I27: =VLOOKUP($C27,'RECAP SECT'!$G$6:$CU$253,36,FALSE) -> 14 | J27: =VLOOKUP($C27,'RECAP SECT'!$G$6:$CU$253,37,FALSE) -> 2,165 | K27: =VLOOKUP($C27,'RECAP SECT'!$G$6:$CU$253,38,FALSE) -> 54.11 | L27: =VLOOKUP($C27,'RECAP SECT'!$G$6:$CU$253,39,FALSE) -> 45% | M27: =VLOOKUP($C27,'RECAP SECT'!$G$6:$CU$253,40,FALSE) -> 17 | N27: =VLOOKUP($C27,'RECAP SECT'!$G$6:$CU$253,41,FALSE) -> 53% | O27: =VLOOKUP($C27,'RECAP SECT'!$G$6:$CU$253,42,FALSE) -> 46% | P27: =VLOOKUP($C27,'RECAP SECT'!$G$6:$CU$253,43,FALSE) -> 15
A28: Total CEGEE Directions Régionales | E28: =SUM(E10:E27) -> 946

Sheet SE_CREDIT
B1: Accueil | F1: BAROMETRE BDD - TERRITOIRES
F2: CREDITS
F3: =ACCUEIL!F7 -> 2022-12-04
F7: Engagements et ventes accessoires pondérés Immo | J7: Engagements et ventes accessoires pondérés Conso | N7: Ventes sur client non détenteur de l’univers | R7: Total Crédits
F8: =DATEMAJ!C18 -> au 04/12 | H8: coef | I8: ='RECAP DIRCOM'!BE4 -> 6% | J8: =DATEMAJ!C19 -> au 04/12 | L8: coef | M8: ='RECAP DIRCOM'!BI4 -> 6% | N8: =DATEMAJ!C20 -> au 04/12 | P8: coef | Q8: ='RECAP DIRCOM'!BM4 -> 8% | S8: coef | T8: ='RECAP DIRCOM'!BP4 -> 20%
B9: Direction | C9: eds | D9: Territoire | E9: ="ETP perf "&DATEMAJ!$C$28 -> ETP perf 04-déc | F9: PNB | G9: PNB / ETP | H9: % Ecart au 1er | I9: Rang | J9: PNB | K9: PNB / ETP | L9: % Ecart au 1er | M9: Rang | N9: VB | O9: VB / ETP | P9: % Ecart au 1er | Q9: Rang | R9: Moyenne ecart au 1er | S9: % Ecart au 1er | T9: Rang CEGEE
A10: 50 | B10: AUBE HAUTE MARNE | C10: 21 | D10: CHAUMONT | E10: =VLOOKUP($C10,'RECAP SECT'!$G$6:$CU$253,3,FALSE) -> 33.5 | F10: =VLOOKUP($C10,'RECAP SECT'!$G$6:$CU$253,48,FALSE) -> 8,818 | G10: =VLOOKUP($C10,'RECAP SECT'!$G$6:$CU$253,49,FALSE) -> 263.55 | H10: =VLOOKUP($C10,'RECAP SECT'!$G$6:$CU$253,50,FALSE) -> 62% | I10: =VLOOKUP($C10,'RECAP SECT'!$G$6:$CU$253,51,FALSE) -> 13 | J10: =VLOOKUP($C10,'RECAP SECT'!$G$6:$CU$253,52,FALSE) -> 2,190 | K10: =VLOOKUP($C10,'RECAP SECT'!$G$6:$CU$253,53,FALSE) -> 65.46 | L10: =VLOOKUP($C10,'RECAP SECT'!$G$6:$CU$253,54,FALSE) -> 6% | M10: =VLOOKUP($C10,'RECAP SECT'!$G$6:$CU$253,55,FALSE) -> 4 | N10: =VLOOKUP($C10,'RECAP SECT'!$G$6:$CU$253,56,FALSE) -> 906 | O10: =VLOOKUP($C10,'RECAP SECT'!$G$6:$CU$253,57,FALSE) -> 27.08 | P10: =VLOOKUP($C10,'RECAP SECT'!$G$6:$CU$253,58,FALSE) -> 42% | Q10: =VLOOKUP($C10,'RECAP SECT'!$G$6:$CU$253,59,FALSE) -> 12 | R10: =VLOOKUP($C10,'RECAP SECT'!$G$6:$CU$253,60,FALSE) -> 37% | S10: =VLOOKUP($C10,'RECAP SECT'!$G$6:$CU$253,61,FALSE) -> 33% | T10: =VLOOKUP($C10,'RECAP SECT'!$G$6:$CU$253,62,FALSE) -> 10
A11: 50 | B11: AUBE HAUTE MARNE | C11: 14 | D11: TROYES | E11: =VLOOKUP($C11,'RECAP SECT'!$G$6:$CU$253,3,FALSE) -> 53.8 | F11: =VLOOKUP($C11,'RECAP SECT'!$G$6:$CU$253,48,FALSE) -> 13,539 | G11: =VLOOKUP($C11,'RECAP SECT'!$G$6:$CU$253,49,FALSE) -> 251.46 | H11: =VLOOKUP($C11,'RECAP SECT'!$G$6:$CU$253,50,FALSE) -> 64% | I11: =VLOOKUP($C11,'RECAP SECT'!$G$6:$CU$253,51,FALSE) -> 16 | J11: =VLOOKUP($C11,'RECAP SECT'!$G$6:$CU$253,52,FALSE) -> 3,126 | K11: =VLOOKUP($C11,'RECAP SECT'!$G$6:$CU$253,53,FALSE) -> 58.06 | L11: =VLOOKUP($C11,'RECAP SECT'!$G$6:$CU$253,54,FALSE) -> 17% | M11: =VLOOKUP($C11,'RECAP SECT'!$G$6:$CU$253,55,FALSE) -> 11 | N11: =VLOOKUP($C11,'RECAP SECT'!$G$6:$CU$253,56,FALSE) -> 1,285 | O11: =VLOOKUP($C11,'RECAP SECT'!$G$6:$CU$253,57,FALSE) -> 23.87 | P11: =VLOOKUP($C11,'RECAP SECT'!$G$6:$CU$253,58,FALSE) -> 49% | Q11: =VLOOKUP($C11,'RECAP SECT'!$G$6:$CU$253,59,FALSE) -> 14 | R11: =VLOOKUP($C11,'RECAP SECT'!$G$6:$CU$253,60,FALSE) -> 44% | S11: =VLOOKUP($C11,'RECAP SECT'!$G$6:$CU$253,61,FALSE) -> 39% | T11: =VLOOKUP($C11,'RECAP SECT'!$G$6:$CU$253,62,FALSE) -> 14
A12: 262 | B12: BAS-RHIN | C12: 5060 | D12: HAGUENAU | E12: =VLOOKUP($C12,'RECAP SECT'!$G$6:$CU$253,3,FALSE) -> 55.8 | F12: =VLOOKUP($C12,'RECAP SECT'!$G$6:$CU$253,48,FALSE) -> 12,032 | G12: =VLOOKUP($C12,'RECAP SECT'!$G$6:$CU$253,49,FALSE) -> 215.81 | H12: =VLOOKUP($C12,'RECAP SECT'!$G$6:$CU$253,50,FALSE) -> 69% | I12: =VLOOKUP($C12,'RECAP SECT'!$G$6:$CU$253,51,FALSE) -> 18 | J12: =VLOOKUP($C12,'RECAP SECT'!$G$6:$CU$253,52,FALSE) -> 3,194 | K12: =VLOOKUP($C12,'RECAP SECT'!$G$6:$CU$253,53,FALSE) -> 57.28 | L12: =VLOOKUP($C12,'RECAP SECT'!$G$6:$CU$253,54,FALSE) -> 18% | M12: =VLOOKUP($C12,'RECAP SECT'!$G$6:$CU$253,55,FALSE) -> 12 | N12: =VLOOKUP($C12,'RECAP SECT'!$G$6:$CU$253,56,FALSE) -> 1,166 | O12: =VLOOKUP($C12,'RECAP SECT'!$G$6:$CU$253,57,FALSE) -> 20.91 | P12: =VLOOKUP($C12,'RECAP SECT'!$G$6:$CU$253,58,FALSE) -> 56% | Q12: =VLOOKUP($C12,'RECAP SECT'!$G$6:$CU$253,59,FALSE) -> 16 | R12: =VLOOKUP($C12,'RECAP SECT'!$G$6:$CU$253,60,FALSE) -> 48% | S12: =VLOOKUP($C12,'RECAP SECT'!$G$6:$CU$253,61,FALSE) -> 44% | T12: =VLOOKUP($C12,'RECAP SECT'!$G$6:$CU$253,62,FALSE) -> 16
A13: 262 | B13: BAS-RHIN | C13: 5101 | D13: SELESTAT | E13: =VLOOKUP($C13,'RECAP SECT'!$G$6:$CU$253,3,FALSE) -> 50.6 | F13: =VLOOKUP($C13,'RECAP SECT'!$G$6:$CU$253,48,FALSE) -> 12,998 | G13: =VLOOKUP($C13,'RECAP SECT'!$G$6:$CU$253,49,FALSE) -> 256.88 | H13: =VLOOKUP($C13,'RECAP SECT'!$G$6:$CU$253,50,FALSE) -> 63% | I13: =VLOOKUP($C13,'RECAP SECT'!$G$6:$CU$253,51,FALSE) -> 15 | J13: =VLOOKUP($C13,'RECAP SECT'!$G$6:$CU$253,52,FALSE) -> 2,689 | K13: =VLOOKUP($C13,'RECAP SECT'!$G$6:$CU$253,53,FALSE) -> 53.15 | L13: =VLOOKUP($C13,'RECAP SECT'!$G$6:$CU$253,54,FALSE) -> 24% | M13: =VLOOKUP($C13,'RECAP SECT'!$G$6:$CU$253,55,FALSE) -> 14 | N13: =VLOOKUP($C13,'RECAP SECT'!$G$6:$CU$253,56,FALSE) -> 1,173 | O13: =VLOOKUP($C13,'RECAP SECT'!$G$6:$CU$253,57,FALSE) -> 23.18 | P13: =VLOOKUP($C13,'RECAP SECT'!$G$6:$CU$253,58,FALSE) -> 51% | Q13: =VLOOKUP($C13,'RECAP SECT'!$G$6:$CU$253,59,FALSE) -> 15 | R13: =VLOOKUP($C13,'RECAP SECT'!$G$6:$CU$253,60,FALSE) -> 46% | S13: =VLOOKUP($C13,'RECAP SECT'!$G$6:$CU$253,61,FALSE) -> 42% | T13: =VLOOKUP($C13,'RECAP SECT'!$G$6:$CU$253,62,FALSE) -> 15
A14: 262 | B14: BAS-RHIN | C14: 5006 | D14: STRASBOURG | E14: =VLOOKUP($C14,'RECAP SECT'!$G$6:$CU$253,3,FALSE) -> 64.5 | F14: =VLOOKUP($C14,'RECAP SECT'!$G$6:$CU$253,48,FALSE) -> 24,182 | G14: =VLOOKUP($C14,'RECAP SECT'!$G$6:$CU$253,49,FALSE) -> 374.97 | H14: =VLOOKUP($C14,'RECAP SECT'!$G$6:$CU$253,50,FALSE) -> 46% | I14: =VLOOKUP($C14,'RECAP SECT'!$G$6:$CU$253,51,FALSE) -> 9 | J14: =VLOOKUP($C14,'RECAP SECT'!$G$6:$CU$253,52,FALSE) -> 2,900 | K14: =VLOOKUP($C14,'RECAP SECT'!$G$6:$CU$253,53,FALSE) -> 44.97 | L14: =VLOOKUP($C14,'RECAP SECT'!$G$6:$CU$253,54,FALSE) -> 36% | M14: =VLOOKUP($C14,'RECAP SECT'!$G$6:$CU$253,55,FALSE) -> 18 | N14: =VLOOKUP($C14,'RECAP SECT'!$G$6:$CU$253,56,FALSE) -> 1,877 | O14: =VLOOKUP($C14,'RECAP SECT'!$G$6:$CU$253,57,FALSE) -> 29.11 | P14: =VLOOKUP($C14,'RECAP SECT'!$G$6:$CU$253,58,FALSE) -> 38% | Q14: =VLOOKUP($C14,'RECAP SECT'!$G$6:$CU$253,59,FALSE) -> 9 | R14: =VLOOKUP($C14,'RECAP SECT'!$G$6:$CU$253,60,FALSE) -> 40% | S14: =VLOOKUP($C14,'RECAP SECT'!$G$6:$CU$253,61,FALSE) -> 35% | T14: =VLOOKUP($C14,'RECAP SECT'!$G$6:$CU$253,62,FALSE) -> 11
A15: 264 | B15: HAUT-RHIN | C15: 5130 | D15: COLMAR | E15: =VLOOKUP($C15,'RECAP SECT'!$G$6:$CU$253,3,FALSE) -> 45.4 | F15: =VLOOKUP($C15,'RECAP SECT'!$G$6:$CU$253,48,FALSE) -> 9,847 | G15: =VLOOKUP($C15,'RECAP SECT'!$G$6:$CU$253,49,FALSE) -> 217.10 | H15: =VLOOKUP($C15,'RECAP SECT'!$G$6:$CU$253,50,FALSE) -> 68% | I15: =VLOOKUP($C15,'RECAP SECT'!$G$6:$CU$253,51,FALSE) -> 17 | J15: =VLOOKUP($C15,'RECAP SECT'!$G$6:$CU$253,52,FALSE) -> 2,403 | K15: =VLOOKUP($C15,'RECAP SECT'!$G$6:$CU$253,53,FALSE) -> 52.97 | L15: =VLOOKUP($C15,'RECAP SECT'!$G$6:$CU$253,54,FALSE) -> 24% | M15: =VLOOKUP($C15,'RECAP SECT'!$G$6:$CU$253,55,FALSE) -> 15 | N15: =VLOOKUP($C15,'RECAP SECT'!$G$6:$CU$253,56,FALSE) -> 937 | O15: =VLOOKUP($C15,'RECAP SECT'!$G$6:$CU$253,57,FALSE) -> 20.66 | P15: =VLOOKUP($C15,'RECAP SECT'!$G$6:$CU$253,58,FALSE) -> 56% | Q15: =VLOOKUP($C15,'RECAP SECT'!$G$6:$CU$253,59,FALSE) -> 17 | R15: =VLOOKUP($C15,'RECAP SECT'!$G$6:$CU$253,60,FALSE) -> 50% | S15: =VLOOKUP($C15,'RECAP SECT'!$G$6:$CU$253,61,FALSE) -> 46% | T15: =VLOOKUP($C15,'RECAP SECT'!$G$6:$CU$253,62,FALSE) -> 17
A16: 264 | B16: HAUT-RHIN | C16: 5169 | D16: MULHOUSE | E16: =VLOOKUP($C16,'RECAP SECT'!$G$6:$CU$253,3,FALSE) -> 47.3 | F16: =VLOOKUP($C16,'RECAP SECT'!$G$6:$CU$253,48,FALSE) -> 12,480 | G16: =VLOOKUP($C16,'RECAP SECT'!$G$6:$CU$253,49,FALSE) -> 263.73 | H16: =VLOOKUP($C16,'RECAP SECT'!$G$6:$CU$253,50,FALSE) -> 62% | I16: =VLOOKUP($C16,'RECAP SECT'!$G$6:$CU$253,51,FALSE) -> 12 | J16: =VLOOKUP($C16,'RECAP SECT'!$G$6:$CU$253,52,FALSE) -> 2,306 | K16: =VLOOKUP($C16,'RECAP SECT'!$G$6:$CU$253,53,FALSE) -> 48.73 | L16: =VLOOKUP($C16,'RECAP SECT'!$G$6:$CU$253,54,FALSE) -> 30% | M16: =VLOOKUP($C16,'RECAP SECT'!$G$6:$CU$253,55,FALSE) -> 17 | N16: =VLOOKUP($C16,'RECAP SECT'!$G$6:$CU$253,56,FALSE) -> 960 | O16: =VLOOKUP($C16,'RECAP SECT'!$G$6:$CU$253,57,FALSE) -> 20.29 | P16: =VLOOKUP($C16,'RECAP SECT'!$G$6:$CU$253,58,FALSE) -> 57% | Q16: =VLOOKUP($C16,'RECAP SECT'!$G$6:$CU$253,59,FALSE) -> 18 | R16: =VLOOKUP($C16,'RECAP SECT'!$G$6:$CU$253,60,FALSE) -> 50% | S16: =VLOOKUP($C16,'RECAP SECT'!$G$6:$CU$253,61,FALSE) -> 46% | T16: =VLOOKUP($C16,'RECAP SECT'!$G$6:$CU$253,62,FALSE) -> 18
A17: 30 | B17: MARNE-ARDENNES | C17: 6 | D17: CHALONS EN CHAMPAGNE | E17: =VLOOKUP($C17,'RECAP SECT'!$G$6:$CU$253,3,FALSE) -> 37.3 | F17: =VLOOKUP($C17,'RECAP SECT'!$G$6:$CU$253,48,FALSE) -> 16,966 | G17: =VLOOKUP($C17,'RECAP SECT'!$G$6:$CU$253,49,FALSE) -> 455.21 | H17: =VLOOKUP($C17,'RECAP SECT'!$G$6:$CU$253,50,FALSE) -> 34% | I17: =VLOOKUP($C17,'RECAP SECT'!$G$6:$CU$253,51,FALSE) -> 5 | J17: =VLOOKUP($C17,'RECAP SECT'!$G$6:$CU$253,52,FALSE) -> 2,330 | K17: =VLOOKUP($C17,'RECAP SECT'!$G$6:$CU$253,53,FALSE) -> 62.52 | L17: =VLOOKUP($C17,'RECAP SECT'!$G$6:$CU$253,54,FALSE) -> 11% | M17: =VLOOKUP($C17,'RECAP SECT'!$G$6:$CU$253,55,FALSE) -> 6 | N17: =VLOOKUP($C17,'RECAP SECT'!$G$6:$CU$253,56,FALSE) -> 1,290 | O17: =VLOOKUP($C17,'RECAP SECT'!$G$6:$CU$253,57,FALSE) -> 34.61 | P17: =VLOOKUP($C17,'RECAP SECT'!$G$6:$CU$253,58,FALSE) -> 26% | Q17: =VLOOKUP($C17,'RECAP SECT'!$G$6:$CU$253,59,FALSE) -> 4 | R17: =VLOOKUP($C17,'RECAP SECT'!$G$6:$CU$253,60,FALSE) -> 24% | S17: =VLOOKUP($C17,'RECAP SECT'!$G$6:$CU$253,61,FALSE) -> 19% | T17: =VLOOKUP($C17,'RECAP SECT'!$G$6:$CU$253,62,FALSE) -> 4
A18: 30 | B18: MARNE-ARDENNES | C18: 2 | D18: CHARLEVILLE MEZIERES | E18: =VLOOKUP($C18,'RECAP SECT'!$G$6:$CU$253,3,FALSE) -> 48.1 | F18: =VLOOKUP($C18,'RECAP SECT'!$G$6:$CU$253,48,FALSE) -> 23,351 | G18: =VLOOKUP($C18,'RECAP SECT'!$G$6:$CU$253,49,FALSE) -> 485.06 | H18: =VLOOKUP($C18,'RECAP SECT'!$G$6:$CU$253,50,FALSE) -> 30% | I18: =VLOOKUP($C18,'RECAP SECT'!$G$6:$CU$253,51,FALSE) -> 3 | J18: =VLOOKUP($C18,'RECAP SECT'!$G$6:$CU$253,52,FALSE) -> 3,037 | K18: =VLOOKUP($C18,'RECAP SECT'!$G$6:$CU$253,53,FALSE) -> 63.08 | L18: =VLOOKUP($C18,'RECAP SECT'!$G$6:$CU$253,54,FALSE) -> 10% | M18: =VLOOKUP($C18,'RECAP SECT'!$G$6:$CU$253,55,FALSE) -> 5 | N18: =VLOOKUP($C18,'RECAP SECT'!$G$6:$CU$253,56,FALSE) -> 1,775 | O18: =VLOOKUP($C18,'RECAP SECT'!$G$6:$CU$253,57,FALSE) -> 36.87 | P18: =VLOOKUP($C18,'RECAP SECT'!$G$6:$CU$253,58,FALSE) -> 22% | Q18: =VLOOKUP($C18,'RECAP SECT'!$G$6:$CU$253,59,FALSE) -> 3 | R18: =VLOOKUP($C18,'RECAP SECT'!$G$6:$CU$253,60,FALSE) -> 20% | S18: =VLOOKUP($C18,'RECAP SECT'!$G$6:$CU$253,61,FALSE) -> 16% | T18: =VLOOKUP($C18,'RECAP SECT'!$G$6:$CU$253,62,FALSE) -> 3
A19: 30 | B19: MARNE-ARDENNES | C19: 11 | D19: REIMS | E19: =VLOOKUP($C19,'RECAP SECT'!$G$6:$CU$253,3,FALSE) -> 67.8 | F19: =VLOOKUP($C19,'RECAP SECT'!$G$6:$CU$253,48,FALSE) -> 46,749 | G19: =VLOOKUP($C19,'RECAP SECT'!$G$6:$CU$253,49,FALSE) -> 689.10 | H19: =VLOOKUP($C19,'RECAP SECT'!$G$6:$CU$253,50,FALSE) -> 0% | I19: =VLOOKUP($C19,'RECAP SECT'!$G$6:$CU$253,51,FALSE) -> 1 | J19: =VLOOKUP($C19,'RECAP SECT'!$G$6:$CU$253,52,FALSE) -> 3,997 | K19: =VLOOKUP($C19,'RECAP SECT'!$G$6:$CU$253,53,FALSE) -> 58.92 | L19: =VLOOKUP($C19,'RECAP SECT'!$G$6:$CU$253,54,FALSE) -> 16% | M19: =VLOOKUP($C19,'RECAP SECT'!$G$6:$CU$253,55,FALSE) -> 10 | N19: =VLOOKUP($C19,'RECAP SECT'!$G$6:$CU$253,56,FALSE) -> 3,189 | O19: =VLOOKUP($C19,'RECAP SECT'!$G$6:$CU$253,57,FALSE) -> 47.01 | P19: =VLOOKUP($C19,'RECAP SECT'!$G$6:$CU$253,58,FALSE) -> 0% | Q19: =VLOOKUP($C19,'RECAP SECT'!$G$6:$CU$253,59,FALSE) -> 1 | R19: =VLOOKUP($C19,'RECAP SECT'!$G$6:$CU$253,60,FALSE) -> 5% | S19: =VLOOKUP($C19,'RECAP SECT'!$G$6:$CU$253,61,FALSE) -> 0% | T19: =VLOOKUP($C19,'RECAP SECT'!$G$6:$CU$253,62,FALSE) -> 1
A20: 110 | B20: MEURTHE ET MOSELLE MEUSE | C20: 26 | D20: NANCY | E20: =VLOOKUP($C20,'RECAP SECT'!$G$6:$CU$253,3,FALSE) -> 54.9 | F20: =VLOOKUP($C20,'RECAP SECT'!$G$6:$CU$253,48,FALSE) -> 26,165 | G20: =VLOOKUP($C20,'RECAP SECT'!$G$6:$CU$253,49,FALSE) -> 476.86 | H20: =VLOOKUP($C20,'RECAP SECT'!$G$6:$CU$253,50,FALSE) -> 31% | I20: =VLOOKUP($C20,'RECAP SECT'!$G$6:$CU$253,51,FALSE) -> 4 | J20: =VLOOKUP($C20,'RECAP SECT'!$G$6:$CU$253,52,FALSE) -> 3,365 | K20: =VLOOKUP($C20,'RECAP SECT'!$G$6:$CU$253,53,FALSE) -> 61.32 | L20: =VLOOKUP($C20,'RECAP SECT'!$G$6:$CU$253,54,FALSE) -> 12% | M20: =VLOOKUP($C20,'RECAP SECT'!$G$6:$CU$253,55,FALSE) -> 9 | N20: =VLOOKUP($C20,'RECAP SECT'!$G$6:$CU$253,56,FALSE) -> 1,807 | O20: =VLOOKUP($C20,'RECAP SECT'!$G$6:$CU$253,57,FALSE) -> 32.93 | P20: =VLOOKUP($C20,'RECAP SECT'!$G$6:$CU$253,58,FALSE) -> 30% | Q20: =VLOOKUP($C20,'RECAP SECT'!$G$6:$CU$253,59,FALSE) -> 5 | R20: =VLOOKUP($C20,'RECAP SECT'!$G$6:$CU$253,60,FALSE) -> 25% | S20: =VLOOKUP($C20,'RECAP SECT'!$G$6:$CU$253,61,FALSE) -> 20% | T20: =VLOOKUP($C20,'RECAP SECT'!$G$6:$CU$253,62,FALSE) -> 5
A21: 110 | B21: MEURTHE ET MOSELLE MEUSE | C21: 27 | D21: PONT A MOUSSON | E21: =VLOOKUP($C21,'RECAP SECT'!$G$6:$CU$253,3,FALSE) -> 59.7 | F21: =VLOOKUP($C21,'RECAP SECT'!$G$6:$CU$253,48,FALSE) -> 26,819 | G21: =VLOOKUP($C21,'RECAP SECT'!$G$6:$CU$253,49,FALSE) -> 449.46 | H21: =VLOOKUP($C21,'RECAP SECT'!$G$6:$CU$253,50,FALSE) -> 35% | I21: =VLOOKUP($C21,'RECAP SECT'!$G$6:$CU$253,51,FALSE) -> 6 | J21: =VLOOKUP($C21,'RECAP SECT'!$G$6:$CU$253,52,FALSE) -> 3,715 | K21: =VLOOKUP($C21,'RECAP SECT'!$G$6:$CU$253,53,FALSE) -> 62.26 | L21: =VLOOKUP($C21,'RECAP SECT'!$G$6:$CU$253,54,FALSE) -> 11% | M21: =VLOOKUP($C21,'RECAP SECT'!$G$6:$CU$253,55,FALSE) -> 7 | N21: =VLOOKUP($C21,'RECAP SECT'!$G$6:$CU$253,56,FALSE) -> 1,896 | O21: =VLOOKUP($C21,'RECAP SECT'!$G$6:$CU$253,57,FALSE) -> 31.77 | P21: =VLOOKUP($C21,'RECAP SECT'!$G$6:$CU$253,58,FALSE) -> 32% | Q21: =VLOOKUP($C21,'RECAP SECT'!$G$6:$CU$253,59,FALSE) -> 6 | R21: =VLOOKUP($C21,'RECAP SECT'!$G$6:$CU$253,60,FALSE) -> 27% | S21: =VLOOKUP($C21,'RECAP SECT'!$G$6:$CU$253,61,FALSE) -> 22% | T21: =VLOOKUP($C21,'RECAP SECT'!$G$6:$CU$253,62,FALSE) -> 6
A22: 110 | B22: MEURTHE ET MOSELLE MEUSE | C22: 31 | D22: VERDUN | E22: =VLOOKUP($C22,'RECAP SECT'!$G$6:$CU$253,3,FALSE) -> 48.7 | F22: =VLOOKUP($C22,'RECAP SECT'!$G$6:$CU$253,48,FALSE) -> 15,930 | G22: =VLOOKUP($C22,'RECAP SECT'!$G$6:$CU$253,49,FALSE) -> 326.83 | H22: =VLOOKUP($C22,'RECAP SECT'!$G$6:$CU$253,50,FALSE) -> 53% | I22: =VLOOKUP($C22,'RECAP SECT'!$G$6:$CU$253,51,FALSE) -> 10 | J22: =VLOOKUP($C22,'RECAP SECT'!$G$6:$CU$253,52,FALSE) -> 3,412 | K22: =VLOOKUP($C22,'RECAP SECT'!$G$6:$CU$253,53,FALSE) -> 70.00 | L22: =VLOOKUP($C22,'RECAP SECT'!$G$6:$CU$253,54,FALSE) -> 0% | M22: =VLOOKUP($C22,'RECAP SECT'!$G$6:$CU$253,55,FALSE) -> 1 | N22: =VLOOKUP($C22,'RECAP SECT'!$G$6:$CU$253,56,FALSE) -> 1,331 | O22: =VLOOKUP($C22,'RECAP SECT'!$G$6:$CU$253,57,FALSE) -> 27.31 | P22: =VLOOKUP($C22,'RECAP SECT'!$G$6:$CU$253,58,FALSE) -> 42% | Q22: =VLOOKUP($C22,'RECAP SECT'!$G$6:$CU$253,59,FALSE) -> 11 | R22: =VLOOKUP($C22,'RECAP SECT'!$G$6:$CU$253,60,FALSE) -> 33% | S22: =VLOOKUP($C22,'RECAP SECT'!$G$6:$CU$253,61,FALSE) -> 28% | T22: =VLOOKUP($C22,'RECAP SECT'!$G$6:$CU$253,62,FALSE) -> 9
A23: 160 | B23: MOSELLE | C23: 45 | D23: METZ | E23: =VLOOKUP($C23,'RECAP SECT'!$G$6:$CU$253,3,FALSE) -> 72.4 | F23: =VLOOKUP($C23,'RECAP SECT'!$G$6:$CU$253,48,FALSE) -> 30,254 | G23: =VLOOKUP($C23,'RECAP SECT'!$G$6:$CU$253,49,FALSE) -> 417.82 | H23: =VLOOKUP($C23,'RECAP SECT'!$G$6:$CU$253,50,FALSE) -> 39% | I23: =VLOOKUP($C23,'RECAP SECT'!$G$6:$CU$253,51,FALSE) -> 7 | J23: =VLOOKUP($C23,'RECAP SECT'!$G$6:$CU$253,52,FALSE) -> 4,462 | K23: =VLOOKUP($C23,'RECAP SECT'!$G$6:$CU$253,53,FALSE) -> 61.62 | L23: =VLOOKUP($C23,'RECAP SECT'!$G$6:$CU$253,54,FALSE) -> 12% | M23: =VLOOKUP($C23,'RECAP SECT'!$G$6:$CU$253,55,FALSE) -> 8 | N23: =VLOOKUP($C23,'RECAP SECT'!$G$6:$CU$253,56,FALSE) -> 2,170 | O23: =VLOOKUP($C23,'RECAP SECT'!$G$6:$CU$253,57,FALSE) -> 29.97 | P23: =VLOOKUP($C23,'RECAP SECT'!$G$6:$CU$253,58,FALSE) -> 36% | Q23: =VLOOKUP($C23,'RECAP SECT'!$G$6:$CU$253,59,FALSE) -> 8 | R23: =VLOOKUP($C23,'RECAP SECT'!$G$6:$CU$253,60,FALSE) -> 30% | S23: =VLOOKUP($C23,'RECAP SECT'!$G$6:$CU$253,61,FALSE) -> 25% | T23: =VLOOKUP($C23,'RECAP SECT'!$G$6:$CU$253,62,FALSE) -> 8
A24: 160 | B24: MOSELLE | C24: 42 | D24: MOSELLE EST | E24: =VLOOKUP($C24,'RECAP SECT'!$G$6:$CU$253,3,FALSE) -> 57.6 | F24: =VLOOKUP($C24,'RECAP SECT'!$G$6:$CU$253,48,FALSE) -> 23,817 | G24: =VLOOKUP($C24,'RECAP SECT'!$G$6:$CU$253,49,FALSE) -> 413.84 | H24: =VLOOKUP($C24,'RECAP SECT'!$G$6:$CU$253,50,FALSE) -> 40% | I24: =VLOOKUP($C24,'RECAP SECT'!$G$6:$CU$253,51,FALSE) -> 8 | J24: =VLOOKUP($C24,'RECAP SECT'!$G$6:$CU$253,52,FALSE) -> 3,866 | K24: =VLOOKUP($C24,'RECAP SECT'!$G$6:$CU$253,53,FALSE) -> 67.18 | L24: =VLOOKUP($C24,'RECAP SECT'!$G$6:$CU$253,54,FALSE) -> 4% | M24: =VLOOKUP($C24,'RECAP SECT'!$G$6:$CU$253,55,FALSE) -> 3 | N24: =VLOOKUP($C24,'RECAP SECT'!$G$6:$CU$253,56,FALSE) -> 1,755 | O24: =VLOOKUP($C24,'RECAP SECT'!$G$6:$CU$253,57,FALSE) -> 30.50 | P24: =VLOOKUP($C24,'RECAP SECT'!$G$6:$CU$253,58,FALSE) -> 35% | Q24: =VLOOKUP($C24,'RECAP SECT'!$G$6:$CU$253,59,FALSE) -> 7 | R24: =VLOOKUP($C24,'RECAP SECT'!$G$6:$CU$253,60,FALSE) -> 27% | S24: =VLOOKUP($C24,'RECAP SECT'!$G$6:$CU$253,61,FALSE) -> 22% | T24: =VLOOKUP($C24,'RECAP SECT'!$G$6:$CU$253,62,FALSE) -> 7
A25: 160 | B25: MOSELLE | C25: 44 | D25: MOSELLE NORD | E25: =VLOOKUP($C25,'RECAP SECT'!$G$6:$CU$253,3,FALSE) -> 55.3 | F25: =VLOOKUP($C25,'RECAP SECT'!$G$6:$CU$253,48,FALSE) -> 36,007 | G25: =VLOOKUP($C25,'RECAP SECT'!$G$6:$CU$253,49,FALSE) -> 651.48 | H25: =VLOOKUP($C25,'RECAP SECT'!$G$6:$CU$253,50,FALSE) -> 5% | I25: =VLOOKUP($C25,'RECAP SECT'!$G$6:$CU$253,51,FALSE) -> 2 | J25: =VLOOKUP($C25,'RECAP SECT'!$G$6:$CU$253,52,FALSE) -> 3,751 | K25: =VLOOKUP($C25,'RECAP SECT'!$G$6:$CU$253,53,FALSE) -> 67.86 | L25: =VLOOKUP($C25,'RECAP SECT'!$G$6:$CU$253,54,FALSE) -> 3% | M25: =VLOOKUP($C25,'RECAP SECT'!$G$6:$CU$253,55,FALSE) -> 2 | N25: =VLOOKUP($C25,'RECAP SECT'!$G$6:$CU$253,56,FALSE) -> 2,190 | O25: =VLOOKUP($C25,'RECAP SECT'!$G$6:$CU$253,57,FALSE) -> 39.62 | P25: =VLOOKUP($C25,'RECAP SECT'!$G$6:$CU$253,58,FALSE) -> 16% | Q25: =VLOOKUP($C25,'RECAP SECT'!$G$6:$CU$253,59,FALSE) -> 2 | R25: =VLOOKUP($C25,'RECAP SECT'!$G$6:$CU$253,60,FALSE) -> 9% | S25: =VLOOKUP($C25,'RECAP SECT'!$G$6:$CU$253,61,FALSE) -> 4% | T25: =VLOOKUP($C25,'RECAP SECT'!$G$6:$CU$253,62,FALSE) -> 2
A26: 80 | B26: VOSGES | C26: 57 | D26: EPINAL | E26: =VLOOKUP($C26,'RECAP SECT'!$G$6:$CU$253,3,FALSE) -> 53.0 | F26: =VLOOKUP($C26,'RECAP SECT'!$G$6:$CU$253,48,FALSE) -> 15,675 | G26: =VLOOKUP($C26,'RECAP SECT'!$G$6:$CU$253,49,FALSE) -> 295.91 | H26: =VLOOKUP($C26,'RECAP SECT'!$G$6:$CU$253,50,FALSE) -> 57% | I26: =VLOOKUP($C26,'RECAP SECT'!$G$6:$CU$253,51,FALSE) -> 11 | J26: =VLOOKUP($C26,'RECAP SECT'!$G$6:$CU$253,52,FALSE) -> 2,701 | K26: =VLOOKUP($C26,'RECAP SECT'!$G$6:$CU$253,53,FALSE) -> 50.98 | L26: =VLOOKUP($C26,'RECAP SECT'!$G$6:$CU$253,54,FALSE) -> 27% | M26: =VLOOKUP($C26,'RECAP SECT'!$G$6:$CU$253,55,FALSE) -> 16 | N26: =VLOOKUP($C26,'RECAP SECT'!$G$6:$CU$253,56,FALSE) -> 1,501 | O26: =VLOOKUP($C26,'RECAP SECT'!$G$6:$CU$253,57,FALSE) -> 28.34 | P26: =VLOOKUP($C26,'RECAP SECT'!$G$6:$CU$253,58,FALSE) -> 40% | Q26: =VLOOKUP($C26,'RECAP SECT'!$G$6:$CU$253,59,FALSE) -> 10 | R26: =VLOOKUP($C26,'RECAP SECT'!$G$6:$CU$253,60,FALSE) -> 41% | S26: =VLOOKUP($C26,'RECAP SECT'!$G$6:$CU$253,61,FALSE) -> 36% | T26: =VLOOKUP($C26,'RECAP SECT'!$G$6:$CU$253,62,FALSE) -> 12
A27: 80 | B27: VOSGES | C27: 55 | D27: SAINT DIE | E27: =VLOOKUP($C27,'RECAP SECT'!$G$6:$CU$253,3,FALSE) -> 40.0 | F27: =VLOOKUP($C27,'RECAP SECT'!$G$6:$CU$253,48,FALSE) -> 10,539 | G27: =VLOOKUP($C27,'RECAP SECT'!$G$6:$CU$253,49,FALSE) -> 263.41 | H27: =VLOOKUP($C27,'RECAP SECT'!$G$6:$CU$253,50,FALSE) -> 62% | I27: =VLOOKUP($C27,'RECAP SECT'!$G$6:$CU$253,51,FALSE) -> 14 | J27: =VLOOKUP($C27,'RECAP SECT'!$G$6:$CU$253,52,FALSE) -> 2,289 | K27: =VLOOKUP($C27,'RECAP SECT'!$G$6:$CU$253,53,FALSE) -> 57.20 | L27: =VLOOKUP($C27,'RECAP SECT'!$G$6:$CU$253,54,FALSE) -> 18% | M27: =VLOOKUP($C27,'RECAP SECT'!$G$6:$CU$253,55,FALSE) -> 13 | N27: =VLOOKUP($C27,'RECAP SECT'!$G$6:$CU$253,56,FALSE) -> 1,042 | O27: =VLOOKUP($C27,'RECAP SECT'!$G$6:$CU$253,57,FALSE) -> 26.04 | P27: =VLOOKUP($C27,'RECAP SECT'!$G$6:$CU$253,58,FALSE) -> 45% | Q27: =VLOOKUP($C27,'RECAP SECT'!$G$6:$CU$253,59,FALSE) -> 13 | R27: =VLOOKUP($C27,'RECAP SECT'!$G$6:$CU$253,60,FALSE) -> 42% | S27: =VLOOKUP($C27,'RECAP SECT'!$G$6:$CU$253,61,FALSE) -> 37% | T27: =VLOOKUP($C27,'RECAP SECT'!$G$6:$CU$253,62,FALSE) -> 13
A28: Total CEGEE Directions Régionales | E28: =SUM(E10:E27) -> 946

Sheet SE_IARD
B1: Accueil | F1: BAROMETRE BDD - TERRITOIRES
F2: IARD ET PREVOYANCE
F3: =ACCUEIL!F7 -> 2022-12-04
F7: Ventes Nettes produits pondérés | J7: Ventes sur client non détenteur de l’univers | N7: Total IARD Prévoyance
F8: =DATEMAJ!C23 -> au 04/12 | H8: coef | I8: ='RECAP DIRCOM'!BX4 -> 12% | J8: =DATEMAJ!C24 -> au 04/12 | L8: coef | M8: ='RECAP DIRCOM'!CB4 -> 8% | O8: coef | P8: ='RECAP DIRCOM'!CE4 -> 20%
B9: Direction | C9: eds | D9: Territoire | E9: ="ETP perf "&DATEMAJ!$C$28 -> ETP perf 04-déc | F9: VN | G9: VN / ETP | H9: % Ecart au 1er | I9: Rang | J9: VB | K9: VB / ETP | L9: % Ecart au 1er | M9: Rang | N9: Moyenne ecart au 1er | O9: % Ecart au 1er | P9: Rang CEGEE
A10: 50 | B10: AUBE HAUTE MARNE | C10: 21 | D10: CHAUMONT | E10: =VLOOKUP($C10,'RECAP SECT'!$G$6:$CU$253,3,FALSE) -> 33.5 | F10: =VLOOKUP($C10,'RECAP SECT'!$G$6:$CU$253,67,FALSE) -> 6,363 | G10: =VLOOKUP($C10,'RECAP SECT'!$G$6:$CU$253,68,FALSE) -> 190.17 | H10: =VLOOKUP($C10,'RECAP SECT'!$G$6:$CU$253,69,FALSE) -> 10% | I10: =VLOOKUP($C10,'RECAP SECT'!$G$6:$CU$253,70,FALSE) -> 3 | J10: =VLOOKUP($C10,'RECAP SECT'!$G$6:$CU$253,71,FALSE) -> 1,598 | K10: =VLOOKUP($C10,'RECAP SECT'!$G$6:$CU$253,72,FALSE) -> 47.76 | L10: =VLOOKUP($C10,'RECAP SECT'!$G$6:$CU$253,73,FALSE) -> 24% | M10: =VLOOKUP($C10,'RECAP SECT'!$G$6:$CU$253,74,FALSE) -> 9 | N10: =VLOOKUP($C10,'RECAP SECT'!$G$6:$CU$253,75,FALSE) -> 16% | O10: =VLOOKUP($C10,'RECAP SECT'!$G$6:$CU$253,76,FALSE) -> 15% | P10: =VLOOKUP($C10,'RECAP SECT'!$G$6:$CU$253,77,FALSE) -> 5
A11: 50 | B11: AUBE HAUTE MARNE | C11: 14 | D11: TROYES | E11: =VLOOKUP($C11,'RECAP SECT'!$G$6:$CU$253,3,FALSE) -> 53.8 | F11: =VLOOKUP($C11,'RECAP SECT'!$G$6:$CU$253,67,FALSE) -> 5,772 | G11: =VLOOKUP($C11,'RECAP SECT'!$G$6:$CU$253,68,FALSE) -> 107.21 | H11: =VLOOKUP($C11,'RECAP SECT'!$G$6:$CU$253,69,FALSE) -> 49% | I11: =VLOOKUP($C11,'RECAP SECT'!$G$6:$CU$253,70,FALSE) -> 12 | J11: =VLOOKUP($C11,'RECAP SECT'!$G$6:$CU$253,71,FALSE) -> 2,350 | K11: =VLOOKUP($C11,'RECAP SECT'!$G$6:$CU$253,72,FALSE) -> 43.65 | L11: =VLOOKUP($C11,'RECAP SECT'!$G$6:$CU$253,73,FALSE) -> 30% | M11: =VLOOKUP($C11,'RECAP SECT'!$G$6:$CU$253,74,FALSE) -> 12 | N11: =VLOOKUP($C11,'RECAP SECT'!$G$6:$CU$253,75,FALSE) -> 42% | O11: =VLOOKUP($C11,'RECAP SECT'!$G$6:$CU$253,76,FALSE) -> 41% | P11: =VLOOKUP($C11,'RECAP SECT'!$G$6:$CU$253,77,FALSE) -> 12
A12: 262 | B12: BAS-RHIN | C12: 5060 | D12: HAGUENAU | E12: =VLOOKUP($C12,'RECAP SECT'!$G$6:$CU$253,3,FALSE) -> 55.8 | F12: =VLOOKUP($C12,'RECAP SECT'!$G$6:$CU$253,67,FALSE) -> 5,540 | G12: =VLOOKUP($C12,'RECAP SECT'!$G$6:$CU$253,68,FALSE) -> 99.37 | H12: =VLOOKUP($C12,'RECAP SECT'!$G$6:$CU$253,69,FALSE) -> 53% | I12: =VLOOKUP($C12,'RECAP SECT'!$G$6:$CU$253,70,FALSE) -> 15 | J12: =VLOOKUP($C12,'RECAP SECT'!$G$6:$CU$253,71,FALSE) -> 2,235 | K12: =VLOOKUP($C12,'RECAP SECT'!$G$6:$CU$253,72,FALSE) -> 40.09 | L12: =VLOOKUP($C12,'RECAP SECT'!$G$6:$CU$253,73,FALSE) -> 36% | M12: =VLOOKUP($C12,'RECAP SECT'!$G$6:$CU$253,74,FALSE) -> 15 | N12: =VLOOKUP($C12,'RECAP SECT'!$G$6:$CU$253,75,FALSE) -> 46% | O12: =VLOOKUP($C12,'RECAP SECT'!$G$6:$CU$253,76,FALSE) -> 46% | P12: =VLOOKUP($C12,'RECAP SECT'!$G$6:$CU$253,77,FALSE) -> 14
A13: 262 | B13: BAS-RHIN | C13: 5101 | D13: SELESTAT | E13: =VLOOKUP($C13,'RECAP SECT'!$G$6:$CU$253,3,FALSE) -> 50.6 | F13: =VLOOKUP($C13,'RECAP SECT'!$G$6:$CU$253,67,FALSE) -> 4,969 | G13: =VLOOKUP($C13,'RECAP SECT'!$G$6:$CU$253,68,FALSE) -> 98.20 | H13: =VLOOKUP($C13,'RECAP SECT'!$G$6:$CU$253,69,FALSE) -> 53% | I13: =VLOOKUP($C13,'RECAP SECT'!$G$6:$CU$253,70,FALSE) -> 16 | J13: =VLOOKUP($C13,'RECAP SECT'!$G$6:$CU$253,71,FALSE) -> 2,045 | K13: =VLOOKUP($C13,'RECAP SECT'!$G$6:$CU$253,72,FALSE) -> 40.42 | L13: =VLOOKUP($C13,'RECAP SECT'!$G$6:$CU$253,73,FALSE) -> 36% | M13: =VLOOKUP($C13,'RECAP SECT'!$G$6:$CU$253,74,FALSE) -> 14 | N13: =VLOOKUP($C13,'RECAP SECT'!$G$6:$CU$253,75,FALSE) -> 46% | O13: =VLOOKUP($C13,'RECAP SECT'!$G$6:$CU$253,76,FALSE) -> 46% | P13: =VLOOKUP($C13,'RECAP SECT'!$G$6:$CU$253,77,FALSE) -> 16
A14: 262 | B14: BAS-RHIN | C14: 5006 | D14: STRASBOURG | E14: =VLOOKUP($C14,'RECAP SECT'!$G$6:$CU$253,3,FALSE) -> 64.5 | F14: =VLOOKUP($C14,'RECAP SECT'!$G$6:$CU$253,67,FALSE) -> 9,337 | G14: =VLOOKUP($C14,'RECAP SECT'!$G$6:$CU$253,68,FALSE) -> 144.78 | H14: =VLOOKUP($C14,'RECAP SECT'!$G$6:$CU$253,69,FALSE) -> 31% | I14: =VLOOKUP($C14,'RECAP SECT'!$G$6:$CU$253,70,FALSE) -> 7 | J14: =VLOOKUP($C14,'RECAP SECT'!$G$6:$CU$253,71,FALSE) -> 3,876 | K14: =VLOOKUP($C14,'RECAP SECT'!$G$6:$CU$253,72,FALSE) -> 60.10 | L14: =VLOOKUP($C14,'RECAP SECT'!$G$6:$CU$253,73,FALSE) -> 4% | M14: =VLOOKUP($C14,'RECAP SECT'!$G$6:$CU$253,74,FALSE) -> 3 | N14: =VLOOKUP($C14,'RECAP SECT'!$G$6:$CU$253,75,FALSE) -> 21% | O14: =VLOOKUP($C14,'RECAP SECT'!$G$6:$CU$253,76,FALSE) -> 20% | P14: =VLOOKUP($C14,'RECAP SECT'!$G$6:$CU$253,77,FALSE) -> 7
A15: 264 | B15: HAUT-RHIN | C15: 5130 | D15: COLMAR | E15: =VLOOKUP($C15,'RECAP SECT'!$G$6:$CU$253,3,FALSE) -> 45.4 | F15: =VLOOKUP($C15,'RECAP SECT'!$G$6:$CU$253,67,FALSE) -> 2,765 | G15: =VLOOKUP($C15,'RECAP SECT'!$G$6:$CU$253,68,FALSE) -> 60.96 | H15: =VLOOKUP($C15,'RECAP SECT'!$G$6:$CU$253,69,FALSE) -> 71% | I15: =VLOOKUP($C15,'RECAP SECT'!$G$6:$CU$253,70,FALSE) -> 17 | J15: =VLOOKUP($C15,'RECAP SECT'!$G$6:$CU$253,71,FALSE) -> 1,724 | K15: =VLOOKUP($C15,'RECAP SECT'!$G$6:$CU$253,72,FALSE) -> 38.01 | L15: =VLOOKUP($C15,'RECAP SECT'!$G$6:$CU$253,73,FALSE) -> 39% | M15: =VLOOKUP($C15,'RECAP SECT'!$G$6:$CU$253,74,FALSE) -> 17 | N15: =VLOOKUP($C15,'RECAP SECT'!$G$6:$CU$253,75,FALSE) -> 58% | O15: =VLOOKUP($C15,'RECAP SECT'!$G$6:$CU$253,76,FALSE) -> 58% | P15: =VLOOKUP($C15,'RECAP SECT'!$G$6:$CU$253,77,FALSE) -> 17
A16: 264 | B16: HAUT-RHIN | C16: 5169 | D16: MULHOUSE | E16: =VLOOKUP($C16,'RECAP SECT'!$G$6:$CU$253,3,FALSE) -> 47.3 | F16: =VLOOKUP($C16,'RECAP SECT'!$G$6:$CU$253,67,FALSE) -> -517 | G16: =VLOOKUP($C16,'RECAP SECT'!$G$6:$CU$253,68,FALSE) -> -10.93 | H16: =VLOOKUP($C16,'RECAP SECT'!$G$6:$CU$253,69,FALSE) -> 105% | I16: =VLOOKUP($C16,'RECAP SECT'!$G$6:$CU$253,70,FALSE) -> 18 | J16: =VLOOKUP($C16,'RECAP SECT'!$G$6:$CU$253,71,FALSE) -> 1,751 | K16: =VLOOKUP($C16,'RECAP SECT'!$G$6:$CU$253,72,FALSE) -> 37.00 | L16: =VLOOKUP($C16,'RECAP SECT'!$G$6:$CU$253,73,FALSE) -> 41% | M16: =VLOOKUP($C16,'RECAP SECT'!$G$6:$CU$253,74,FALSE) -> 18 | N16: =VLOOKUP($C16,'RECAP SECT'!$G$6:$CU$253,75,FALSE) -> 80% | O16: =VLOOKUP($C16,'RECAP SECT'!$G$6:$CU$253,76,FALSE) -> 79% | P16: =VLOOKUP($C16,'RECAP SECT'!$G$6:$CU$253,77,FALSE) -> 18
A17: 30 | B17: MARNE-ARDENNES | C17: 6 | D17: CHALONS EN CHAMPAGNE | E17: =VLOOKUP($C17,'RECAP SECT'!$G$6:$CU$253,3,FALSE) -> 37.3 | F17: =VLOOKUP($C17,'RECAP SECT'!$G$6:$CU$253,67,FALSE) -> 7,064 | G17: =VLOOKUP($C17,'RECAP SECT'!$G$6:$CU$253,68,FALSE) -> 189.54 | H17: =VLOOKUP($C17,'RECAP SECT'!$G$6:$CU$253,69,FALSE) -> 10% | I17: =VLOOKUP($C17,'RECAP SECT'!$G$6:$CU$253,70,FALSE) -> 4 | J17: =VLOOKUP($C17,'RECAP SECT'!$G$6:$CU$253,71,FALSE) -> 2,074 | K17: =VLOOKUP($C17,'RECAP SECT'!$G$6:$CU$253,72,FALSE) -> 55.65 | L17: =VLOOKUP($C17,'RECAP SECT'!$G$6:$CU$253,73,FALSE) -> 11% | M17: =VLOOKUP($C17,'RECAP SECT'!$G$6:$CU$253,74,FALSE) -> 4 | N17: =VLOOKUP($C17,'RECAP SECT'!$G$6:$CU$253,75,FALSE) -> 11% | O17: =VLOOKUP($C17,'RECAP SECT'!$G$6:$CU$253,76,FALSE) -> 10% | P17: =VLOOKUP($C17,'RECAP SECT'!$G$6:$CU$253,77,FALSE) -> 3
A18: 30 | B18: MARNE-ARDENNES | C18: 2 | D18: CHARLEVILLE MEZIERES | E18: =VLOOKUP($C18,'RECAP SECT'!$G$6:$CU$253,3,FALSE) -> 48.1 | F18: =VLOOKUP($C18,'RECAP SECT'!$G$6:$CU$253,67,FALSE) -> 9,245 | G18: =VLOOKUP($C18,'RECAP SECT'!$G$6:$CU$253,68,FALSE) -> 192.04 | H18: =VLOOKUP($C18,'RECAP SECT'!$G$6:$CU$253,69,FALSE) -> 9% | I18: =VLOOKUP($C18,'RECAP SECT'!$G$6:$CU$253,70,FALSE) -> 2 | J18: =VLOOKUP($C18,'RECAP SECT'!$G$6:$CU$253,71,FALSE) -> 2,479 | K18: =VLOOKUP($C18,'RECAP SECT'!$G$6:$CU$253,72,FALSE) -> 51.50 | L18: =VLOOKUP($C18,'RECAP SECT'!$G$6:$CU$253,73,FALSE) -> 18% | M18: =VLOOKUP($C18,'RECAP SECT'!$G$6:$CU$253,74,FALSE) -> 7 | N18: =VLOOKUP($C18,'RECAP SECT'!$G$6:$CU$253,75,FALSE) -> 13% | O18: =VLOOKUP($C18,'RECAP SECT'!$G$6:$CU$253,76,FALSE) -> 12% | P18: =VLOOKUP($C18,'RECAP SECT'!$G$6:$CU$253,77,FALSE) -> 4
A19: 30 | B19: MARNE-ARDENNES | C19: 11 | D19: REIMS | E19: =VLOOKUP($C19,'RECAP SECT'!$G$6:$CU$253,3,FALSE) -> 67.8 | F19: =VLOOKUP($C19,'RECAP SECT'!$G$6:$CU$253,67,FALSE) -> 12,261 | G19: =VLOOKUP($C19,'RECAP SECT'!$G$6:$CU$253,68,FALSE) -> 180.73 | H19: =VLOOKUP($C19,'RECAP SECT'!$G$6:$CU$253,69,FALSE) -> 14% | I19: =VLOOKUP($C19,'RECAP SECT'!$G$6:$CU$253,70,FALSE) -> 5 | J19: =VLOOKUP($C19,'RECAP SECT'!$G$6:$CU$253,71,FALSE) -> 4,260 | K19: =VLOOKUP($C19,'RECAP SECT'!$G$6:$CU$253,72,FALSE) -> 62.79 | L19: =VLOOKUP($C19,'RECAP SECT'!$G$6:$CU$253,73,FALSE) -> 0% | M19: =VLOOKUP($C19,'RECAP SECT'!$G$6:$CU$253,74,FALSE) -> 1 | N19: =VLOOKUP($C19,'RECAP SECT'!$G$6:$CU$253,75,FALSE) -> 9% | O19: =VLOOKUP($C19,'RECAP SECT'!$G$6:$CU$253,76,FALSE) -> 8% | P19: =VLOOKUP($C19,'RECAP SECT'!$G$6:$CU$253,77,FALSE) -> 2
A20: 110 | B20: MEURTHE ET MOSELLE MEUSE | C20: 26 | D20: NANCY | E20: =VLOOKUP($C20,'RECAP SECT'!$G$6:$CU$253,3,FALSE) -> 54.9 | F20: =VLOOKUP($C20,'RECAP SECT'!$G$6:$CU$253,67,FALSE) -> 6,226 | G20: =VLOOKUP($C20,'RECAP SECT'!$G$6:$CU$253,68,FALSE) -> 113.47 | H20: =VLOOKUP($C20,'RECAP SECT'!$G$6:$CU$253,69,FALSE) -> 46% | I20: =VLOOKUP($C20,'RECAP SECT'!$G$6:$CU$253,70,FALSE) -> 11 | J20: =VLOOKUP($C20,'RECAP SECT'!$G$6:$CU$253,71,FALSE) -> 2,673 | K20: =VLOOKUP($C20,'RECAP SECT'!$G$6:$CU$253,72,FALSE) -> 48.72 | L20: =VLOOKUP($C20,'RECAP SECT'!$G$6:$CU$253,73,FALSE) -> 22% | M20: =VLOOKUP($C20,'RECAP SECT'!$G$6:$CU$253,74,FALSE) -> 8 | N20: =VLOOKUP($C20,'RECAP SECT'!$G$6:$CU$253,75,FALSE) -> 37% | O20: =VLOOKUP($C20,'RECAP SECT'!$G$6:$CU$253,76,FALSE) -> 36% | P20: =VLOOKUP($C20,'RECAP SECT'!$G$6:$CU$253,77,FALSE) -> 10
A21: 110 | B21: MEURTHE ET MOSELLE MEUSE | C21: 27 | D21: PONT A MOUSSON | E21: =VLOOKUP($C21,'RECAP SECT'!$G$6:$CU$253,3,FALSE) -> 59.7 | F21: =VLOOKUP($C21,'RECAP SECT'!$G$6:$CU$253,67,FALSE) -> 8,194 | G21: =VLOOKUP($C21,'RECAP SECT'!$G$6:$CU$253,68,FALSE) -> 137.32 | H21: =VLOOKUP($C21,'RECAP SECT'!$G$6:$CU$253,69,FALSE) -> 35% | I21: =VLOOKUP($C21,'RECAP SECT'!$G$6:$CU$253,70,FALSE) -> 8 | J21: =VLOOKUP($C21,'RECAP SECT'!$G$6:$CU$253,71,FALSE) -> 3,176 | K21: =VLOOKUP($C21,'RECAP SECT'!$G$6:$CU$253,72,FALSE) -> 53.23 | L21: =VLOOKUP($C21,'RECAP SECT'!$G$6:$CU$253,73,FALSE) -> 15% | M21: =VLOOKUP($C21,'RECAP SECT'!$G$6:$CU$253,74,FALSE) -> 6 | N21: =VLOOKUP($C21,'RECAP SECT'!$G$6:$CU$253,75,FALSE) -> 27% | O21: =VLOOKUP($C21,'RECAP SECT'!$G$6:$CU$253,76,FALSE) -> 27% | P21: =VLOOKUP($C21,'RECAP SECT'!$G$6:$CU$253,77,FALSE) -> 8
A22: 110 | B22: MEURTHE ET MOSELLE MEUSE | C22: 31 | D22: VERDUN | E22: =VLOOKUP($C22,'RECAP SECT'!$G$6:$CU$253,3,FALSE) -> 48.7 | F22: =VLOOKUP($C22,'RECAP SECT'!$G$6:$CU$253,67,FALSE) -> 5,684 | G22: =VLOOKUP($C22,'RECAP SECT'!$G$6:$CU$253,68,FALSE) -> 116.62 | H22: =VLOOKUP($C22,'RECAP SECT'!$G$6:$CU$253,69,FALSE) -> 45% | I22: =VLOOKUP($C22,'RECAP SECT'!$G$6:$CU$253,70,FALSE) -> 10 | J22: =VLOOKUP($C22,'RECAP SECT'!$G$6:$CU$253,71,FALSE) -> 2,156 | K22: =VLOOKUP($C22,'RECAP SECT'!$G$6:$CU$253,72,FALSE) -> 44.23 | L22: =VLOOKUP($C22,'RECAP SECT'!$G$6:$CU$253,73,FALSE) -> 30% | M22: =VLOOKUP($C22,'RECAP SECT'!$G$6:$CU$253,74,FALSE) -> 11 | N22: =VLOOKUP($C22,'RECAP SECT'!$G$6:$CU$253,75,FALSE) -> 39% | O22: =VLOOKUP($C22,'RECAP SECT'!$G$6:$CU$253,76,FALSE) -> 38% | P22: =VLOOKUP($C22,'RECAP SECT'!$G$6:$CU$253,77,FALSE) -> 11
A23: 160 | B23: MOSELLE | C23: 45 | D23: METZ | E23: =VLOOKUP($C23,'RECAP SECT'!$G$6:$CU$253,3,FALSE) -> 72.4 | F23: =VLOOKUP($C23,'RECAP SECT'!$G$6:$CU$253,67,FALSE) -> 8,989 | G23: =VLOOKUP($C23,'RECAP SECT'!$G$6:$CU$253,68,FALSE) -> 124.14 | H23: =VLOOKUP($C23,'RECAP SECT'!$G$6:$CU$253,69,FALSE) -> 41% | I23: =VLOOKUP($C23,'RECAP SECT'!$G$6:$CU$253,70,FALSE) -> 9 | J23: =VLOOKUP($C23,'RECAP SECT'!$G$6:$CU$253,71,FALSE) -> 3,418 | K23: =VLOOKUP($C23,'RECAP SECT'!$G$6:$CU$253,72,FALSE) -> 47.20 | L23: =VLOOKUP($C23,'RECAP SECT'!$G$6:$CU$253,73,FALSE) -> 25% | M23: =VLOOKUP($C23,'RECAP SECT'!$G$6:$CU$253,74,FALSE) -> 10 | N23: =VLOOKUP($C23,'RECAP SECT'!$G$6:$CU$253,75,FALSE) -> 35% | O23: =VLOOKUP($C23,'RECAP SECT'!$G$6:$CU$253,76,FALSE) -> 34% | P23: =VLOOKUP($C23,'RECAP SECT'!$G$6:$CU$253,77,FALSE) -> 9
A24: 160 | B24: MOSELLE | C24: 42 | D24: MOSELLE EST | E24: =VLOOKUP($C24,'RECAP SECT'!$G$6:$CU$253,3,FALSE) -> 57.6 | F24: =VLOOKUP($C24,'RECAP SECT'!$G$6:$CU$253,67,FALSE) -> 9,910 | G24: =VLOOKUP($C24,'RECAP SECT'!$G$6:$CU$253,68,FALSE) -> 172.20 | H24: =VLOOKUP($C24,'RECAP SECT'!$G$6:$CU$253,69,FALSE) -> 18% | I24: =VLOOKUP($C24,'RECAP SECT'!$G$6:$CU$253,70,FALSE) -> 6 | J24: =VLOOKUP($C24,'RECAP SECT'!$G$6:$CU$253,71,FALSE) -> 3,090 | K24: =VLOOKUP($C24,'RECAP SECT'!$G$6:$CU$253,72,FALSE) -> 53.69 | L24: =VLOOKUP($C24,'RECAP SECT'!$G$6:$CU$253,73,FALSE) -> 14% | M24: =VLOOKUP($C24,'RECAP SECT'!$G$6:$CU$253,74,FALSE) -> 5 | N24: =VLOOKUP($C24,'RECAP SECT'!$G$6:$CU$253,75,FALSE) -> 17% | O24: =VLOOKUP($C24,'RECAP SECT'!$G$6:$CU$253,76,FALSE) -> 16% | P24: =VLOOKUP($C24,'RECAP SECT'!$G$6:$CU$253,77,FALSE) -> 6
A25: 160 | B25: MOSELLE | C25: 44 | D25: MOSELLE NORD | E25: =VLOOKUP($C25,'RECAP SECT'!$G$6:$CU$253,3,FALSE) -> 55.3 | F25: =VLOOKUP($C25,'RECAP SECT'!$G$6:$CU$253,67,FALSE) -> 11,667 | G25: =VLOOKUP($C25,'RECAP SECT'!$G$6:$CU$253,68,FALSE) -> 211.09 | H25: =VLOOKUP($C25,'RECAP SECT'!$G$6:$CU$253,69,FALSE) -> 0% | I25: =VLOOKUP($C25,'RECAP SECT'!$G$6:$CU$253,70,FALSE) -> 1 | J25: =VLOOKUP($C25,'RECAP SECT'!$G$6:$CU$253,71,FALSE) -> 3,437 | K25: =VLOOKUP($C25,'RECAP SECT'!$G$6:$CU$253,72,FALSE) -> 62.19 | L25: =VLOOKUP($C25,'RECAP SECT'!$G$6:$CU$253,73,FALSE) -> 1% | M25: =VLOOKUP($C25,'RECAP SECT'!$G$6:$CU$253,74,FALSE) -> 2 | N25: =VLOOKUP($C25,'RECAP SECT'!$G$6:$CU$253,75,FALSE) -> 0% | O25: =VLOOKUP($C25,'RECAP SECT'!$G$6:$CU$253,76,FALSE) -> 0% | P25: =VLOOKUP($C25,'RECAP SECT'!$G$6:$CU$253,77,FALSE) -> 1
A26: 80 | B26: VOSGES | C26: 57 | D26: EPINAL | E26: =VLOOKUP($C26,'RECAP SECT'!$G$6:$CU$253,3,FALSE) -> 53.0 | F26: =VLOOKUP($C26,'RECAP SECT'!$G$6:$CU$253,67,FALSE) -> 5,675 | G26: =VLOOKUP($C26,'RECAP SECT'!$G$6:$CU$253,68,FALSE) -> 107.14 | H26: =VLOOKUP($C26,'RECAP SECT'!$G$6:$CU$253,69,FALSE) -> 49% | I26: =VLOOKUP($C26,'RECAP SECT'!$G$6:$CU$253,70,FALSE) -> 13 | J26: =VLOOKUP($C26,'RECAP SECT'!$G$6:$CU$253,71,FALSE) -> 2,205 | K26: =VLOOKUP($C26,'RECAP SECT'!$G$6:$CU$253,72,FALSE) -> 41.63 | L26: =VLOOKUP($C26,'RECAP SECT'!$G$6:$CU$253,73,FALSE) -> 34% | M26: =VLOOKUP($C26,'RECAP SECT'!$G$6:$CU$253,74,FALSE) -> 13 | N26: =VLOOKUP($C26,'RECAP SECT'!$G$6:$CU$253,75,FALSE) -> 43% | O26: =VLOOKUP($C26,'RECAP SECT'!$G$6:$CU$253,76,FALSE) -> 43% | P26: =VLOOKUP($C26,'RECAP SECT'!$G$6:$CU$253,77,FALSE) -> 13
A27: 80 | B27: VOSGES | C27: 55 | D27: SAINT DIE | E27: =VLOOKUP($C27,'RECAP SECT'!$G$6:$CU$253,3,FALSE) -> 40.0 | F27: =VLOOKUP($C27,'RECAP SECT'!$G$6:$CU$253,67,FALSE) -> 4,022 | G27: =VLOOKUP($C27,'RECAP SECT'!$G$6:$CU$253,68,FALSE) -> 100.52 | H27: =VLOOKUP($C27,'RECAP SECT'!$G$6:$CU$253,69,FALSE) -> 52% | I27: =VLOOKUP($C27,'RECAP SECT'!$G$6:$CU$253,70,FALSE) -> 14 | J27: =VLOOKUP($C27,'RECAP SECT'!$G$6:$CU$253,71,FALSE) -> 1,579 | K27: =VLOOKUP($C27,'RECAP SECT'!$G$6:$CU$253,72,FALSE) -> 39.47 | L27: =VLOOKUP($C27,'RECAP SECT'!$G$6:$CU$253,73,FALSE) -> 37% | M27: =VLOOKUP($C27,'RECAP SECT'!$G$6:$CU$253,74,FALSE) -> 16 | N27: =VLOOKUP($C27,'RECAP SECT'!$G$6:$CU$253,75,FALSE) -> 46% | O27: =VLOOKUP($C27,'RECAP SECT'!$G$6:$CU$253,76,FALSE) -> 46% | P27: =VLOOKUP($C27,'RECAP SECT'!$G$6:$CU$253,77,FALSE) -> 15
A28: Total CEGEE Directions Régionales | E28: =SUM(E10:E27) -> 946

Sheet SE_SATISFACTION
B1: Accueil | F1: BAROMETRE BDD - TERRITOIRES
F2: SATISFACTION
F3: =ACCUEIL!F7 -> 2022-12-04
F7: NPS à froid (SAE) | I7: NPS à chaud (QHD) | L7: Total Satisfaction Clients
F8: =DATEMAJ!E4 -> au 31/10 | G8: coef | H8: ='RECAP DIRCOM'!M4 -> 10% | I8: =DATEMAJ!C5 -> au 30/09 | J8: coef | K8: ='RECAP DIRCOM'!P4 -> 10% | M8: coef | N8: ='RECAP DIRCOM'!S4 -> 20%
B9: Direction | C9: eds | D9: Territoire | E9: ="ETP perf "&DATEMAJ!$C$28 -> ETP perf 04-déc | G9: % Ecart au 1er | H9: Rang | J9: % Ecart au 1er | K9: Rang | L9: Moyenne ecart au 1er | M9: % Ecart au 1er | N9: Rang CEGEE
A10: 50 | B10: AUBE HAUTE MARNE | C10: 21 | D10: CHAUMONT | E10: =VLOOKUP($C10,'RECAP SECT'!$G$6:$CU$253,3,FALSE) -> 33.5 | F10: =VLOOKUP($C10,'RECAP SECT'!$G$6:$CU$253,5,FALSE) -> 20.25 | G10: =VLOOKUP($C10,'RECAP SECT'!$G$6:$CU$253,6,FALSE) -> 20% | H10: =VLOOKUP($C10,'RECAP SECT'!$G$6:$CU$253,7,FALSE) -> 5 | I10: =VLOOKUP($C10,'RECAP SECT'!$G$6:$CU$253,8,FALSE) -> 65% | J10: =VLOOKUP($C10,'RECAP SECT'!$G$6:$CU$253,9,FALSE) -> 11% | K10: =VLOOKUP($C10,'RECAP SECT'!$G$6:$CU$253,10,FALSE) -> 8 | L10: =VLOOKUP($C10,'RECAP SECT'!$G$6:$CU$253,11,FALSE) -> 16% | M10: =VLOOKUP($C10,'RECAP SECT'!$G$6:$CU$253,12,FALSE) -> 15% | N10: =VLOOKUP($C10,'RECAP SECT'!$G$6:$CU$253,13,FALSE) -> 6
A11: 50 | B11: AUBE HAUTE MARNE | C11: 14 | D11: TROYES | E11: =VLOOKUP($C11,'RECAP SECT'!$G$6:$CU$253,3,FALSE) -> 53.8 | F11: =VLOOKUP($C11,'RECAP SECT'!$G$6:$CU$253,5,FALSE) -> 0 | G11: =VLOOKUP($C11,'RECAP SECT'!$G$6:$CU$253,6,FALSE) -> 100% | H11: =VLOOKUP($C11,'RECAP SECT'!$G$6:$CU$253,7,FALSE) -> 18 | I11: =VLOOKUP($C11,'RECAP SECT'!$G$6:$CU$253,8,FALSE) -> 48% | J11: =VLOOKUP($C11,'RECAP SECT'!$G$6:$CU$253,9,FALSE) -> 35% | K11: =VLOOKUP($C11,'RECAP SECT'!$G$6:$CU$253,10,FALSE) -> 17 | L11: =VLOOKUP($C11,'RECAP SECT'!$G$6:$CU$253,11,FALSE) -> 67% | M11: =VLOOKUP($C11,'RECAP SECT'!$G$6:$CU$253,12,FALSE) -> 67% | N11: =VLOOKUP($C11,'RECAP SECT'!$G$6:$CU$253,13,FALSE) -> 18
A12: 262 | B12: BAS-RHIN | C12: 5060 | D12: HAGUENAU | E12: =VLOOKUP($C12,'RECAP SECT'!$G$6:$CU$253,3,FALSE) -> 55.8 | F12: =VLOOKUP($C12,'RECAP SECT'!$G$6:$CU$253,5,FALSE) -> 11.25 | G12: =VLOOKUP($C12,'RECAP SECT'!$G$6:$CU$253,6,FALSE) -> 55% | H12: =VLOOKUP($C12,'RECAP SECT'!$G$6:$CU$253,7,FALSE) -> 11 | I12: =VLOOKUP($C12,'RECAP SECT'!$G$6:$CU$253,8,FALSE) -> 61% | J12: =VLOOKUP($C12,'RECAP SECT'!$G$6:$CU$253,9,FALSE) -> 17% | K12: =VLOOKUP($C12,'RECAP SECT'!$G$6:$CU$253,10,FALSE) -> 10 | L12: =VLOOKUP($C12,'RECAP SECT'!$G$6:$CU$253,11,FALSE) -> 36% | M12: =VLOOKUP($C12,'RECAP SECT'!$G$6:$CU$253,12,FALSE) -> 36% | N12: =VLOOKUP($C12,'RECAP SECT'!$G$6:$CU$253,13,FALSE) -> 11
A13: 262 | B13: BAS-RHIN | C13: 5101 | D13: SELESTAT | E13: =VLOOKUP($C13,'RECAP SECT'!$G$6:$CU$253,3,FALSE) -> 50.6 | F13: =VLOOKUP($C13,'RECAP SECT'!$G$6:$CU$253,5,FALSE) -> 2.25 | G13: =VLOOKUP($C13,'RECAP SECT'!$G$6:$CU$253,6,FALSE) -> 91% | H13: =VLOOKUP($C13,'RECAP SECT'!$G$6:$CU$253,7,FALSE) -> 16 | I13: =VLOOKUP($C13,'RECAP SECT'!$G$6:$CU$253,8,FALSE) -> 60% | J13: =VLOOKUP($C13,'RECAP SECT'!$G$6:$CU$253,9,FALSE) -> 19% | K13: =VLOOKUP($C13,'RECAP SECT'!$G$6:$CU$253,10,FALSE) -> 13 | L13: =VLOOKUP($C13,'RECAP SECT'!$G$6:$CU$253,11,FALSE) -> 55% | M13: =VLOOKUP($C13,'RECAP SECT'!$G$6:$CU$253,12,FALSE) -> 54% | N13: =VLOOKUP($C13,'RECAP SECT'!$G$6:$CU$253,13,FALSE) -> 15
A14: 262 | B14: BAS-RHIN | C14: 5006 | D14: STRASBOURG | E14: =VLOOKUP($C14,'RECAP SECT'!$G$6:$CU$253,3,FALSE) -> 64.5 | F14: =VLOOKUP($C14,'RECAP SECT'!$G$6:$CU$253,5,FALSE) -> 8.5 | G14: =VLOOKUP($C14,'RECAP SECT'!$G$6:$CU$253,6,FALSE) -> 66% | H14: =VLOOKUP($C14,'RECAP SECT'!$G$6:$CU$253,7,FALSE) -> 13 | I14: =VLOOKUP($C14,'RECAP SECT'!$G$6:$CU$253,8,FALSE) -> 66% | J14: =VLOOKUP($C14,'RECAP SECT'!$G$6:$CU$253,9,FALSE) -> 10% | K14: =VLOOKUP($C14,'RECAP SECT'!$G$6:$CU$253,10,FALSE) -> 5 | L14: =VLOOKUP($C14,'RECAP SECT'!$G$6:$CU$253,11,FALSE) -> 38% | M14: =VLOOKUP($C14,'RECAP SECT'!$G$6:$CU$253,12,FALSE) -> 38% | N14: =VLOOKUP($C14,'RECAP SECT'!$G$6:$CU$253,13,FALSE) -> 12
A15: 264 | B15: HAUT-RHIN | C15: 5130 | D15: COLMAR | E15: =VLOOKUP($C15,'RECAP SECT'!$G$6:$CU$253,3,FALSE) -> 45.4 | F15: =VLOOKUP($C15,'RECAP SECT'!$G$6:$CU$253,5,FALSE) -> 2.25 | G15: =VLOOKUP($C15,'RECAP SECT'!$G$6:$CU$253,6,FALSE) -> 91% | H15: =VLOOKUP($C15,'RECAP SECT'!$G$6:$CU$253,7,FALSE) -> 16 | I15: =VLOOKUP($C15,'RECAP SECT'!$G$6:$CU$253,8,FALSE) -> 49% | J15: =VLOOKUP($C15,'RECAP SECT'!$G$6:$CU$253,9,FALSE) -> 34% | K15: =VLOOKUP($C15,'RECAP SECT'!$G$6:$CU$253,10,FALSE) -> 16 | L15: =VLOOKUP($C15,'RECAP SECT'!$G$6:$CU$253,11,FALSE) -> 62% | M15: =VLOOKUP($C15,'RECAP SECT'!$G$6:$CU$253,12,FALSE) -> 62% | N15: =VLOOKUP($C15,'RECAP SECT'!$G$6:$CU$253,13,FALSE) -> 16
A16: 264 | B16: HAUT-RHIN | C16: 5169 | D16: MULHOUSE | E16: =VLOOKUP($C16,'RECAP SECT'!$G$6:$CU$253,3,FALSE) -> 47.3 | F16: =VLOOKUP($C16,'RECAP SECT'!$G$6:$CU$253,5,FALSE) -> 3.25 | G16: =VLOOKUP($C16,'RECAP SECT'!$G$6:$CU$253,6,FALSE) -> 87% | H16: =VLOOKUP($C16,'RECAP SECT'!$G$6:$CU$253,7,FALSE) -> 15 | I16: =VLOOKUP($C16,'RECAP SECT'!$G$6:$CU$253,8,FALSE) -> 45% | J16: =VLOOKUP($C16,'RECAP SECT'!$G$6:$CU$253,9,FALSE) -> 39% | K16: =VLOOKUP($C16,'RECAP SECT'!$G$6:$CU$253,10,FALSE) -> 18 | L16: =VLOOKUP($C16,'RECAP SECT'!$G$6:$CU$253,11,FALSE) -> 63% | M16: =VLOOKUP($C16,'RECAP SECT'!$G$6:$CU$253,12,FALSE) -> 63% | N16: =VLOOKUP($C16,'RECAP SECT'!$G$6:$CU$253,13,FALSE) -> 17
A17: 30 | B17: MARNE-ARDENNES | C17: 6 | D17: CHALONS EN CHAMPAGNE | E17: =VLOOKUP($C17,'RECAP SECT'!$G$6:$CU$253,3,FALSE) -> 37.3 | F17: =VLOOKUP($C17,'RECAP SECT'!$G$6:$CU$253,5,FALSE) -> 25 | G17: =VLOOKUP($C17,'RECAP SECT'!$G$6:$CU$253,6,FALSE) -> 1% | H17: =VLOOKUP($C17,'RECAP SECT'!$G$6:$CU$253,7,FALSE) -> 2 | I17: =VLOOKUP($C17,'RECAP SECT'!$G$6:$CU$253,8,FALSE) -> 73% | J17: =VLOOKUP($C17,'RECAP SECT'!$G$6:$CU$253,9,FALSE) -> 0% | K17: =VLOOKUP($C17,'RECAP SECT'!$G$6:$CU$253,10,FALSE) -> 1 | L17: =VLOOKUP($C17,'RECAP SECT'!$G$6:$CU$253,11,FALSE) -> 0% | M17: =VLOOKUP($C17,'RECAP SECT'!$G$6:$CU$253,12,FALSE) -> 0% | N17: =VLOOKUP($C17,'RECAP SECT'!$G$6:$CU$253,13,FALSE) -> 1
A18: 30 | B18: MARNE-ARDENNES | C18: 2 | D18: CHARLEVILLE MEZIERES | E18: =VLOOKUP($C18,'RECAP SECT'!$G$6:$CU$253,3,FALSE) -> 48.1 | F18: =VLOOKUP($C18,'RECAP SECT'!$G$6:$CU$253,5,FALSE) -> 14.5 | G18: =VLOOKUP($C18,'RECAP SECT'!$G$6:$CU$253,6,FALSE) -> 43% | H18: =VLOOKUP($C18,'RECAP SECT'!$G$6:$CU$253,7,FALSE) -> 9 | I18: =VLOOKUP($C18,'RECAP SECT'!$G$6:$CU$253,8,FALSE) -> 66% | J18: =VLOOKUP($C18,'RECAP SECT'!$G$6:$CU$253,9,FALSE) -> 11% | K18: =VLOOKUP($C18,'RECAP SECT'!$G$6:$CU$253,10,FALSE) -> 7 | L18: =VLOOKUP($C18,'RECAP SECT'!$G$6:$CU$253,11,FALSE) -> 27% | M18: =VLOOKUP($C18,'RECAP SECT'!$G$6:$CU$253,12,FALSE) -> 26% | N18: =VLOOKUP($C18,'RECAP SECT'!$G$6:$CU$253,13,FALSE) -> 7
A19: 30 | B19: MARNE-ARDENNES | C19: 11 | D19: REIMS | E19: =VLOOKUP($C19,'RECAP SECT'!$G$6:$CU$253,3,FALSE) -> 67.8 | F19: =VLOOKUP($C19,'RECAP SECT'!$G$6:$CU$253,5,FALSE) -> 16.25 | G19: =VLOOKUP($C19,'RECAP SECT'!$G$6:$CU$253,6,FALSE) -> 36% | H19: =VLOOKUP($C19,'RECAP SECT'!$G$6:$CU$253,7,FALSE) -> 7 | I19: =VLOOKUP($C19,'RECAP SECT'!$G$6:$CU$253,8,FALSE) -> 60% | J19: =VLOOKUP($C19,'RECAP SECT'!$G$6:$CU$253,9,FALSE) -> 18% | K19: =VLOOKUP($C19,'RECAP SECT'!$G$6:$CU$253,10,FALSE) -> 12 | L19: =VLOOKUP($C19,'RECAP SECT'!$G$6:$CU$253,11,FALSE) -> 27% | M19: =VLOOKUP($C19,'RECAP SECT'!$G$6:$CU$253,12,FALSE) -> 26% | N19: =VLOOKUP($C19,'RECAP SECT'!$G$6:$CU$253,13,FALSE) -> 8
A20: 110 | B20: MEURTHE ET MOSELLE MEUSE | C20: 26 | D20: NANCY | E20: =VLOOKUP($C20,'RECAP SECT'!$G$6:$CU$253,3,FALSE) -> 54.9 | F20: =VLOOKUP($C20,'RECAP SECT'!$G$6:$CU$253,5,FALSE) -> 13.25 | G20: =VLOOKUP($C20,'RECAP SECT'!$G$6:$CU$253,6,FALSE) -> 48% | H20: =VLOOKUP($C20,'RECAP SECT'!$G$6:$CU$253,7,FALSE) -> 10 | I20: =VLOOKUP($C20,'RECAP SECT'!$G$6:$CU$253,8,FALSE) -> 62% | J20: =VLOOKUP($C20,'RECAP SECT'!$G$6:$CU$253,9,FALSE) -> 16% | K20: =VLOOKUP($C20,'RECAP SECT'!$G$6:$CU$253,10,FALSE) -> 9 | L20: =VLOOKUP($C20,'RECAP SECT'!$G$6:$CU$253,11,FALSE) -> 32% | M20: =VLOOKUP($C20,'RECAP SECT'!$G$6:$CU$253,12,FALSE) -> 31% | N20: =VLOOKUP($C20,'RECAP SECT'!$G$6:$CU$253,13,FALSE) -> 10
A21: 110 | B21: MEURTHE ET MOSELLE MEUSE | C21: 27 | D21: PONT A MOUSSON | E21: =VLOOKUP($C21,'RECAP SECT'!$G$6:$CU$253,3,FALSE) -> 59.7 | F21: =VLOOKUP($C21,'RECAP SECT'!$G$6:$CU$253,5,FALSE) -> 4.75 | G21: =VLOOKUP($C21,'RECAP SECT'!$G$6:$CU$253,6,FALSE) -> 81% | H21: =VLOOKUP($C21,'RECAP SECT'!$G$6:$CU$253,7,FALSE) -> 14 | I21: =VLOOKUP($C21,'RECAP SECT'!$G$6:$CU$253,8,FALSE) -> 54% | J21: =VLOOKUP($C21,'RECAP SECT'!$G$6:$CU$253,9,FALSE) -> 27% | K21: =VLOOKUP($C21,'RECAP SECT'!$G$6:$CU$253,10,FALSE) -> 15 | L21: =VLOOKUP($C21,'RECAP SECT'!$G$6:$CU$253,11,FALSE) -> 54% | M21: =VLOOKUP($C21,'RECAP SECT'!$G$6:$CU$253,12,FALSE) -> 53% | N21: =VLOOKUP($C21,'RECAP SECT'!$G$6:$CU$253,13,FALSE) -> 14
A22: 110 | B22: MEURTHE ET MOSELLE MEUSE | C22: 31 | D22: VERDUN | E22: =VLOOKUP($C22,'RECAP SECT'!$G$6:$CU$253,3,FALSE) -> 48.7 | F22: =VLOOKUP($C22,'RECAP SECT'!$G$6:$CU$253,5,FALSE) -> 20.75 | G22: =VLOOKUP($C22,'RECAP SECT'!$G$6:$CU$253,6,FALSE) -> 18% | H22: =VLOOKUP($C22,'RECAP SECT'!$G$6:$CU$253,7,FALSE) -> 4 | I22: =VLOOKUP($C22,'RECAP SECT'!$G$6:$CU$253,8,FALSE) -> 67% | J22: =VLOOKUP($C22,'RECAP SECT'!$G$6:$CU$253,9,FALSE) -> 9% | K22: =VLOOKUP($C22,'RECAP SECT'!$G$6:$CU$253,10,FALSE) -> 4 | L22: =VLOOKUP($C22,'RECAP SECT'!$G$6:$CU$253,11,FALSE) -> 13% | M22: =VLOOKUP($C22,'RECAP SECT'!$G$6:$CU$253,12,FALSE) -> 13% | N22: =VLOOKUP($C22,'RECAP SECT'!$G$6:$CU$253,13,FALSE) -> 4
A23: 160 | B23: MOSELLE | C23: 45 | D23: METZ | E23: =VLOOKUP($C23,'RECAP SECT'!$G$6:$CU$253,3,FALSE) -> 72.4 | F23: =VLOOKUP($C23,'RECAP SECT'!$G$6:$CU$253,5,FALSE) -> 15.25 | G23: =VLOOKUP($C23,'RECAP SECT'!$G$6:$CU$253,6,FALSE) -> 40% | H23: =VLOOKUP($C23,'RECAP SECT'!$G$6:$CU$253,7,FALSE) -> 8 | I23: =VLOOKUP($C23,'RECAP SECT'!$G$6:$CU$253,8,FALSE) -> 59% | J23: =VLOOKUP($C23,'RECAP SECT'!$G$6:$CU$253,9,FALSE) -> 20% | K23: =VLOOKUP($C23,'RECAP SECT'!$G$6:$CU$253,10,FALSE) -> 14 | L23: =VLOOKUP($C23,'RECAP SECT'!$G$6:$CU$253,11,FALSE) -> 30% | M23: =VLOOKUP($C23,'RECAP SECT'!$G$6:$CU$253,12,FALSE) -> 29% | N23: =VLOOKUP($C23,'RECAP SECT'!$G$6:$CU$253,13,FALSE) -> 9
A24: 160 | B24: MOSELLE | C24: 42 | D24: MOSELLE EST | E24: =VLOOKUP($C24,'RECAP SECT'!$G$6:$CU$253,3,FALSE) -> 57.6 | F24: =VLOOKUP($C24,'RECAP SECT'!$G$6:$CU$253,5,FALSE) -> 20 | G24: =VLOOKUP($C24,'RECAP SECT'!$G$6:$CU$253,6,FALSE) -> 21% | H24: =VLOOKUP($C24,'RECAP SECT'!$G$6:$CU$253,7,FALSE) -> 6 | I24: =VLOOKUP($C24,'RECAP SECT'!$G$6:$CU$253,8,FALSE) -> 66% | J24: =VLOOKUP($C24,'RECAP SECT'!$G$6:$CU$253,9,FALSE) -> 10% | K24: =VLOOKUP($C24,'RECAP SECT'!$G$6:$CU$253,10,FALSE) -> 6 | L24: =VLOOKUP($C24,'RECAP SECT'!$G$6:$CU$253,11,FALSE) -> 16% | M24: =VLOOKUP($C24,'RECAP SECT'!$G$6:$CU$253,12,FALSE) -> 15% | N24: =VLOOKUP($C24,'RECAP SECT'!$G$6:$CU$253,13,FALSE) -> 5
A25: 160 | B25: MOSELLE | C25: 44 | D25: MOSELLE NORD | E25: =VLOOKUP($C25,'RECAP SECT'!$G$6:$CU$253,3,FALSE) -> 55.3 | F25: =VLOOKUP($C25,'RECAP SECT'!$G$6:$CU$253,5,FALSE) -> 9.5 | G25: =VLOOKUP($C25,'RECAP SECT'!$G$6:$CU$253,6,FALSE) -> 62% | H25: =VLOOKUP($C25,'RECAP SECT'!$G$6:$CU$253,7,FALSE) -> 12 | I25: =VLOOKUP($C25,'RECAP SECT'!$G$6:$CU$253,8,FALSE) -> 61% | J25: =VLOOKUP($C25,'RECAP SECT'!$G$6:$CU$253,9,FALSE) -> 17% | K25: =VLOOKUP($C25,'RECAP SECT'!$G$6:$CU$253,10,FALSE) -> 11 | L25: =VLOOKUP($C25,'RECAP SECT'!$G$6:$CU$253,11,FALSE) -> 40% | M25: =VLOOKUP($C25,'RECAP SECT'!$G$6:$CU$253,12,FALSE) -> 39% | N25: =VLOOKUP($C25,'RECAP SECT'!$G$6:$CU$253,13,FALSE) -> 13
A26: 80 | B26: VOSGES | C26: 57 | D26: EPINAL | E26: =VLOOKUP($C26,'RECAP SECT'!$G$6:$CU$253,3,FALSE) -> 53.0 | F26: =VLOOKUP($C26,'RECAP SECT'!$G$6:$CU$253,5,FALSE) -> 22.25 | G26: =VLOOKUP($C26,'RECAP SECT'!$G$6:$CU$253,6,FALSE) -> 12% | H26: =VLOOKUP($C26,'RECAP SECT'!$G$6:$CU$253,7,FALSE) -> 3 | I26: =VLOOKUP($C26,'RECAP SECT'!$G$6:$CU$253,8,FALSE) -> 70% | J26: =VLOOKUP($C26,'RECAP SECT'!$G$6:$CU$253,9,FALSE) -> 5% | K26: =VLOOKUP($C26,'RECAP SECT'!$G$6:$CU$253,10,FALSE) -> 2 | L26: =VLOOKUP($C26,'RECAP SECT'!$G$6:$CU$253,11,FALSE) -> 8% | M26: =VLOOKUP($C26,'RECAP SECT'!$G$6:$CU$253,12,FALSE) -> 8% | N26: =VLOOKUP($C26,'RECAP SECT'!$G$6:$CU$253,13,FALSE) -> 3
A27: 80 | B27: VOSGES | C27: 55 | D27: SAINT DIE | E27: =VLOOKUP($C27,'RECAP SECT'!$G$6:$CU$253,3,FALSE) -> 40.0 | F27: =VLOOKUP($C27,'RECAP SECT'!$G$6:$CU$253,5,FALSE) -> 25.25 | G27: =VLOOKUP($C27,'RECAP SECT'!$G$6:$CU$253,6,FALSE) -> 0% | H27: =VLOOKUP($C27,'RECAP SECT'!$G$6:$CU$253,7,FALSE) -> 1 | I27: =VLOOKUP($C27,'RECAP SECT'!$G$6:$CU$253,8,FALSE) -> 69% | J27: =VLOOKUP($C27,'RECAP SECT'!$G$6:$CU$253,9,FALSE) -> 6% | K27: =VLOOKUP($C27,'RECAP SECT'!$G$6:$CU$253,10,FALSE) -> 3 | L27: =VLOOKUP($C27,'RECAP SECT'!$G$6:$CU$253,11,FALSE) -> 3% | M27: =VLOOKUP($C27,'RECAP SECT'!$G$6:$CU$253,12,FALSE) -> 3% | N27: =VLOOKUP($C27,'RECAP SECT'!$G$6:$CU$253,13,FALSE) -> 2
A28: Total CEGEE Directions Régionales | E28: =SUM(E10:E27) -> 946

Sheet AG_CLASS
B1: Accueil | H1: BAROMETRE BDD - AGENCES
H2: CLASSEMENTS
H3: =ACCUEIL!F7 -> 2022-12-04
H8: CLASSEMENT GENERAL | I8: CRITERE Satisfaction Clients | J8: NPS à froid (SAE) | K8: NPS à chaud (QHD) | L8: CRITERE BANCARISATION | M8: Ventes Nettes produits pondérés | N8: Ventes sur client non détenteur de l’univers | O8: CRITERE EPARGNE | P8: Excédent Epargne hors DAV pondéré | Q8: Ventes sur client non détenteur de l’univers | R8: CRITERE IARD PREVOYANCE | S8: Ventes Nettes produits pondérés | T8: Ventes sur client non détenteur de l’univers | U8: CRITERE CREDITS | V8: Engagements et ventes accessoires pondérés Immo | W8: Engagements et ventes accessoires pondérés Conso | X8: Ventes sur client non détenteur de l’univers
B9: Direction | C9: eds | D9: Territoire | E9: eds | F9: Agence | G9: ="ETP perf "&DATEMAJ!$C$28 -> ETP perf 04-déc | H9: Rang | I9: Rang | J9: Rang | K9: Rang | L9: Rang | M9: Rang | N9: Rang | O9: Rang | P9: Rang | Q9: Rang | R9: Rang | S9: Rang | T9: Rang | U9: Rang | V9: Rang | W9: Rang | X9: Rang
A10: 50 | B10: MOSELLE | C10: 44 | D10: MOSELLE NORD | E10: 557508 | F10: NILVANGE | G10: 1.4 | H10: 1 | I10: 65 | J10: 77 | K10: 40 | L10: 1 | M10: 1 | N10: 1 | O10: 3 | P10: 74 | Q10: 1 | R10: 1 | S10: 1 | T10: 1 | U10: 1 | V10: 1 | W10: 1 | X10: 1
A11: 50 | B11: MARNE ARDENNES | C11: 11 | D11: REIMS | E11: 551340 | F11: BETHENY | G11: 2.2 | H11: 2 | I11: 53 | J11: 34 | K11: 113 | L11: 3 | M11: 4 | N11: 4 | O11: 6 | P11: 7 | Q11: 8 | R11: 50 | S11: 64 | T11: 32 | U11: 5 | V11: 3 | W11: 61 | X11: 8
A12: 50 | B12: MEURTHE ET MOSELLE MEUSE | C12: 27 | D12: PONT A MOUSSON | E12: 554381 | F12: LAXOU ARISTIDE BRIAND | G12: 2.3 | H12: 3 | I12: 142 | J12: 151 | K12: 128 | L12: 2 | M12: 2 | N12: 2 | O12: 33 | P12: 81 | Q12: 7 | R12: 4 | S12: 13 | T12: 6 | U12: 3 | V12: 4 | W12: 12 | X12: 6
A13: 50 | B13: VOSGES | C13: 57 | D13: EPINAL | E13: 488288 | F13: EPINAL LEOPOLD BOURG | G13: 1.9 | H13: 4 | I13: 4 | J13: 8 | K13: 2 | L13: 19 | M13: 12 | N13: 46 | O13: 7 | P13: 4 | Q13: 35 | R13: 60 | S13: 40 | T13: 135 | U13: 24 | V13: 16 | W13: 111 | X13: 30
A14: 50 | B14: MARNE ARDENNES | C14: 11 | D14: REIMS | E14: 551305 | F14: REIMS HIPPODROME | G14: 5.0 | H14: 5 | I14: 81 | J14: 78 | K14: 84 | L14: 10 | M14: 19 | N14: 8 | O14: 28 | P14: 58 | Q14: 11 | R14: 10 | S14: 15 | T14: 10 | U14: 6 | V14: 7 | W14: 66 | X14: 3
A15: 50 | B15: MARNE ARDENNES | C15: 6 | D15: CHALONS EN CHAMPAGNE | E15: 551330 | F15: MONTMIRAIL | G15: 2.8 | H15: 6 | I15: 9 | J15: 9 | K15: 19 | L15: 12 | M15: 6 | N15: 53 | O15: 41 | P15: 41 | Q15: 76 | R15: 9 | S15: 6 | T15: 20 | U15: 46 | V15: 37 | W15: 163 | X15: 27
A16: 50 | B16: MARNE ARDENNES | C16: 11 | D16: REIMS | E16: 551349 | F16: REIMS SAINT REMI | G16: 2.9 | H16: 7 | I16: 117 | J16: 124 | K16: 94 | L16: 4 | M16: 3 | N16: 7 | O16: 19 | P16: 50 | Q16: 9 | R16: 15 | S16: 27 | T16: 12 | U16: 9 | V16: 11 | W16: 38 | X16: 9
A17: 50 | B17: BAS RHIN | C17: 5006 | D17: STRASBOURG | E17: 4048 | F17: STRASBOURG KOENIGSHOFFEN | G17: 1.5 | H17: 8 | I17: 156 | J17: 184 | K17: 133 | L17: 6 | M17: 15 | N17: 3 | O17: 5 | P17: 9 | Q17: 3 | R17: 7 | S17: 70 | T17: 2 | U17: 16 | V17: 55 | W17: 16 | X17: 10
A18: 50 | B18: MARNE ARDENNES | C18: 6 | D18: CHALONS EN CHAMPAGNE | E18: 451115 | F18: MOURMELON LE GRAND | G18: 2.8 | H18: 9 | I18: 98 | J18: 128 | K18: 25 | L18: 9 | M18: 8 | N18: 15 | O18: 13 | P18: 45 | Q18: 4 | R18: 18 | S18: 37 | T18: 9 | U18: 18 | V18: 46 | W18: 9 | X18: 32
A19: 50 | B19: MOSELLE | C19: 44 | D19: MOSELLE NORD | E19: 557660 | F19: UCKANGE | G19: 1.9 | H19: 10 | I19: 217 | J19: 163 | K19: 224 | L19: 14 | M19: 46 | N19: 9 | O19: 38 | P19: 190 | Q19: 2 | R19: 2 | S19: 2 | T19: 3 | U19: 2 | V19: 2 | W19: 46 | X19: 2
A20: 50 | B20: MOSELLE | C20: 44 | D20: MOSELLE NORD | E20: 557113 | F20: AUDUN LE TICHE | G20: 2.0 | H20: 11 | I20: 106 | J20: 153 | K20: 12 | L20: 7 | M20: 11 | N20: 6 | O20: 16 | P20: 52 | Q20: 6 | R20: 33 | S20: 59 | T20: 17 | U20: 11 | V20: 14 | W20: 7 | X20: 24
A21: 50 | B21: MOSELLE | C21: 45 | D21: METZ | E21: 457443 | F21: METZ REPUBLIQUE | G21: 3.5 | H21: 12 | I21: 37 | J21: 29 | K21: 61 | L21: 92 | M21: 81 | N21: 113 | O21: 1 | P21: 1 | Q21: 82 | R21: 27 | S21: 21 | T21: 53 | U21: 110 | V21: 120 | W21: 110 | X21: 100
A22: 50 | B22: MEURTHE ET MOSELLE MEUSE | C22: 26 | D22: NANCY | E22: 554476 | F22: NANCY ARTEM | G22: 2.8 | H22: 13 | I22: 21 | J22: 31 | K22: 11 | L22: 13 | M22: 22 | N22: 16 | O22: 139 | P22: 155 | Q22: 65 | R22: 88 | S22: 81 | T22: 118 | U22: 8 | V22: 5 | W22: 106 | X22: 7
A23: 50 | B23: MARNE ARDENNES | C23: 6 | D23: CHALONS EN CHAMPAGNE | E23: 451120 | F23: SARRY | G23: 2.2 | H23: 14 | I23: 11 | J23: 14 | K23: 7 | L23: 22 | M23: 13 | N23: 72 | O23: 114 | P23: 141 | Q23: 33 | R23: 24 | S23: 19 | T23: 72 | U23: 48 | V23: 25 | W23: 86 | X23: 59
A24: 50 | B24: MARNE ARDENNES | C24: 2 | D24: CHARLEVILLE MEZIERES | E24: 508820 | F24: VOUZIERS | G24: 2.7 | H24: 15 | I24: 39 | J24: 31 | K24: 62 | L24: 38 | M24: 39 | N24: 57 | O24: 54 | P24: 43 | Q24: 161 | R24: 8 | S24: 5 | T24: 24 | U24: 31 | V24: 81 | W24: 6 | X24: 52
A25: 50 | B25: MARNE ARDENNES | C25: 11 | D25: REIMS | E25: 551365 | F25: DORMANS | G25: 2.5 | H25: 16 | I25: 36 | J25: 31 | K25: 53 | L25: 8 | M25: 5 | N25: 19 | O25: 167 | P25: 208 | Q25: 15 | R25: 37 | S25: 45 | T25: 37 | U25: 23 | V25: 32 | W25: 144 | X25: 13
A26: 50 | B26: MOSELLE | C26: 42 | D26: MOSELLE EST | E26: 457165 | F26: BITCHE | G26: 2.3 | H26: 17 | I26: 17 | J26: 16 | K26: 31 | L26: 15 | M26: 10 | N26: 59 | O26: 91 | P26: 127 | Q26: 24 | R26: 36 | S26: 35 | T26: 60 | U26: 122 | V26: 118 | W26: 58 | X26: 187
A27: 50 | B27: BAS RHIN | C27: 5006 | D27: STRASBOURG | E27: 4037 | F27: SHOPPING PROMENADE CŒUR ALSACE | G27: 3.8 | H27: 18 | I27: 85 | J27: 85 | K27: 85 | L27: 17 | M27: 21 | N27: 20 | O27: 124 | P27: 168 | Q27: 25 | R27: 12 | S27: 8 | T27: 18 | U27: 33 | V27: 20 | W27: 185 | X27: 21
A28: 262 | B28: MARNE ARDENNES | C28: 11 | D28: REIMS | E28: 451350 | F28: REIMS CENTRE VILLE | G28: 6.2 | H28: 19 | I28: 185 | J28: 166 | K28: 187 | L28: 5 | M28: 9 | N28: 10 | O28: 152 | P28: 193 | Q28: 23 | R28: 19 | S28: 28 | T28: 19 | U28: 4 | V28: 6 | W28: 41 | X28: 4
A29: 262 | B29: MOSELLE | C29: 45 | D29: METZ | E29: 457453 | F29: MONTIGNY LES METZ | G29: 7.0 | H29: 20 | I29: 13 | J29: 15 | K29: 20 | L29: 43 | M29: 25 | N29: 103 | O29: 63 | P29: 107 | Q29: 14 | R29: 139 | S29: 117 | T29: 181 | U29: 45 | V29: 29 | W29: 70 | X29: 63
A30: 262 | B30: VOSGES | C30: 57 | D30: EPINAL | E30: 588336 | F30: GOLBEY | G30: 2.8 | H30: 21 | I30: 34 | J30: 27 | K30: 42 | L30: 97 | M30: 110 | N30: 89 | O30: 29 | P30: 17 | Q30: 102 | R30: 23 | S30: 17 | T30: 71 | U30: 70 | V30: 108 | W30: 100 | X30: 43
A31: 262 | B31: MARNE ARDENNES | C31: 6 | D31: CHALONS EN CHAMPAGNE | E31: 551354 | F31: VERTUS | G31: 2.0 | H31: 22 | I31: 2 | J31: 2 | K31: 1 | L31: 115 | M31: 78 | N31: 186 | O31: 20 | P31: 14 | Q31: 130 | R31: 194 | S31: 200 | T31: 150 | U31: 98 | V31: 166 | W31: 53 | X31: 109
A32: 262 | B32: MOSELLE | C32: 45 | D32: METZ | E32: 457446 | F32: METZ SERPENOISE | G32: 5.7 | H32: 23 | I32: 92 | J32: 93 | K32: 83 | L32: 21 | M32: 20 | N32: 32 | O32: 74 | P32: 132 | Q32: 10 | R32: 65 | S32: 61 | T32: 88 | U32: 19 | V32: 13 | W32: 153 | X32: 20
A33: 262 | B33: MARNE ARDENNES | C33: 2 | D33: CHARLEVILLE MEZIERES | E33: 508839 | F33: GIVET | G33: 3.4 | H33: 24 | I33: 71 | J33: 66 | K33: 100 | L33: 57 | M33: 72 | N33: 51 | O33: 122 | P33: 154 | Q33: 36 | R33: 6 | S33: 4 | T33: 39 | U33: 42 | V33: 68 | W33: 24 | X33: 56
A34: 262 | B34: MOSELLE | C34: 42 | D34: MOSELLE EST | E34: 457308 | F34: FORBACH CENTRALE | G34: 10.0 | H34: 25 | I34: 109 | J34: 100 | K34: 120 | L34: 28 | M34: 31 | N34: 41 | O34: 68 | P34: 87 | Q34: 42 | R34: 31 | S34: 36 | T34: 36 | U34: 35 | V34: 53 | W34: 21 | X34: 65
A35: 262 | B35: MARNE ARDENNES | C35: 2 | D35: CHARLEVILLE MEZIERES | E35: 508833 | F35: VILLERS SEMEUSE CORA | G35: 3.0 | H35: 26 | I35: 181 | J35: 205 | K35: 163 | L35: 83 | M35: 147 | N35: 29 | O35: 30 | P35: 44 | Q35: 22 | R35: 11 | S35: 11 | T35: 13 | U35: 12 | V35: 19 | W35: 4 | X35: 14
A36: 262 | B36: MARNE ARDENNES | C36: 11 | D36: REIMS | E36: 451336 | F36: TINQUEUX | G36: 5.0 | H36: 27 | I36: 144 | J36: 131 | K36: 168 | L36: 47 | M36: 47 | N36: 70 | O36: 2 | P36: 2 | Q36: 61 | R36: 117 | S36: 131 | T36: 95 | U36: 59 | V36: 22 | W36: 162 | X36: 57
A37: 262 | B37: AUBE HAUTE MARNE | C37: 21 | D37: CHAUMONT | E37: 510590 | F37: CHAUMONT REPUBLIQUE | G37: 2.9 | H37: 28 | I37: 50 | J37: 76 | K37: 23 | L37: 132 | M37: 166 | N37: 77 | O37: 23 | P37: 21 | Q37: 54 | R37: 28 | S37: 26 | T37: 55 | U37: 69 | V37: 107 | W37: 44 | X37: 74
A38: 262 | B38: MOSELLE | C38: 42 | D38: MOSELLE EST | E38: 557250 | F38: CREUTZWALD | G38: 2.5 | H38: 29 | I38: 14 | J38: 12 | K38: 41 | L38: 135 | M38: 162 | N38: 97 | O38: 79 | P38: 83 | Q38: 68 | R38: 38 | S38: 22 | T38: 110 | U38: 82 | V38: 82 | W38: 39 | X38: 141
A39: 262 | B39: MARNE ARDENNES | C39: 11 | D39: REIMS | E39: 451301 | F39: REIMS HOTEL DE VILLE | G39: 6.8 | H39: 30 | I39: 110 | J39: 103 | K39: 119 | L39: 50 | M39: 67 | N39: 47 | O39: 98 | P39: 123 | Q39: 29 | R39: 14 | S39: 14 | T39: 23 | U39: 32 | V39: 15 | W39: 157 | X39: 33
A40: 262 | B40: MOSELLE | C40: 45 | D40: METZ | E40: 557432 | F40: MAIZIERES LES METZ | G40: 2.8 | H40: 31 | I40: 191 | J40: 205 | K40: 174 | L40: 18 | M40: 50 | N40: 11 | O40: 65 | P40: 104 | Q40: 17 | R40: 30 | S40: 31 | T40: 43 | U40: 13 | V40: 9 | W40: 155 | X40: 11
A41: 262 | B41: MEURTHE ET MOSELLE MEUSE | C41: 26 | D41: NANCY | E41: 554601 | F41: SAINT MAX | G41: 3.5 | H41: 32 | I41: 29 | J41: 27 | K41: 34 | L41: 130 | M41: 115 | N41: 145 | O41: 25 | P41: 15 | Q41: 128 | R41: 47 | S41: 41 | T41: 102 | U41: 108 | V41: 99 | W41: 101 | X41: 121
A42: 262 | B42: MEURTHE ET MOSELLE MEUSE | C42: 26 | D42: NANCY | E42: 554356 | F42: JARVILLE LA MALGRANGE | G42: 4.1 | H42: 33 | I42: 20 | J42: 25 | K42: 18 | L42: 31 | M42: 16 | N42: 105 | O42: 197 | P42: 204 | Q42: 78 | R42: 72 | S42: 66 | T42: 93 | U42: 62 | V42: 54 | W42: 127 | X42: 48
A43: 262 | B43: MEURTHE ET MOSELLE MEUSE | C43: 31 | D43: VERDUN | E43: 555406 | F43: LIGNY EN BARROIS | G43: 2.5 | H43: 34 | I43: 22 | J43: 17 | K43: 46 | L43: 113 | M43: 111 | N43: 114 | O43: 4 | P43: 3 | Q43: 140 | R43: 217 | S43: 213 | T43: 197 | U43: 179 | V43: 204 | W43: 154 | X43: 149
A44: 262 | B44: MOSELLE | C44: 45 | D44: METZ | E44: 557447 | F44: METZ SAINT MAXIMIN | G44: 2.4 | H44: 35 | I44: 132 | J44: 138 | K44: 121 | L44: 49 | M44: 86 | N44: 24 | O44: 53 | P44: 99 | Q44: 13 | R44: 3 | S44: 3 | T44: 11 | U44: 133 | V44: 121 | W44: 60 | X44: 209
A45: 262 | B45: MARNE ARDENNES | C45: 11 | D45: REIMS | E45: 551367 | F45: AY CHAMPAGNE | G45: 2.7 | H45: 36 | I45: 38 | J45: 29 | K45: 63 | L45: 110 | M45: 144 | N45: 73 | O45: 84 | P45: 78 | Q45: 93 | R45: 83 | S45: 93 | T45: 80 | U45: 34 | V45: 23 | W45: 167 | X45: 22
A46: 262 | B46: MEURTHE ET MOSELLE MEUSE | C46: 31 | D46: VERDUN | E46: 554413 | F46: LONGWY BAS | G46: 3.4 | H46: 37 | I46: 16 | J46: 11 | K46: 68 | L46: 75 | M46: 70 | N46: 98 | O46: 107 | P46: 96 | Q46: 141 | R46: 99 | S46: 69 | T46: 158 | U46: 94 | V46: 84 | W46: 54 | X46: 169
A47: 262 | B47: MARNE ARDENNES | C47: 11 | D47: REIMS | E47: 451361 | F47: PIERRY LECLERC | G47: 1.9 | H47: 38 | I47: 48 | J47: 51 | K47: 54 | L47: 82 | M47: 77 | N47: 91 | O47: 21 | P47: 16 | Q47: 84 | R47: 118 | S47: 97 | T47: 153 | U47: 91 | V47: 59 | W47: 174 | X47: 88
A48: 262 | B48: BAS RHIN | C48: 5006 | D48: STRASBOURG | E48: 4047 | F48: STRASBOURG CRONENBOURG | G48: 4.0 | H48: 39 | I48: 100 | J48: 124 | K48: 36 | L48: 24 | M48: 18 | N48: 61 | O48: 26 | P48: 30 | Q48: 41 | R48: 98 | S48: 106 | T48: 92 | U48: 99 | V48: 63 | W48: 161 | X48: 101
A49: 262 | B49: MOSELLE | C49: 44 | D49: MOSELLE NORD | E49: 557352 | F49: HETTANGE GRANDE | G49: 3.2 | H49: 40 | I49: 139 | J49: 106 | K49: 183 | L49: 27 | M49: 51 | N49: 22 | O49: 104 | P49: 120 | Q49: 44 | R49: 42 | S49: 55 | T49: 35 | U49: 20 | V49: 36 | W49: 29 | X49: 29
A50: 262 | B50: MARNE ARDENNES | C50: 6 | D50: CHALONS EN CHAMPAGNE | E50: 551103 | F50: FAGNIERES LECLERC | G50: 2.5 | H50: 41 | I50: 76 | J50: 102 | K50: 24 | L50: 87 | M50: 90 | N50: 86 | O50: 147 | P50: 182 | Q50: 39 | R50: 13 | S50: 7 | T50: 25 | U50: 61 | V50: 78 | W50: 33 | X50: 81
A51: 262 | B51: MARNE ARDENNES | C51: 2 | D51: CHARLEVILLE MEZIERES | E51: 408801 | F51: CHARLEVILLE JEAN JAURES | G51: 8.9 | H51: 42 | I51: 75 | J51: 85 | K51: 51 | L51: 80 | M51: 79 | N51: 80 | O51: 78 | P51: 102 | Q51: 27 | R51: 57 | S51: 49 | T51: 89 | U51: 49 | V51: 21 | W51: 187 | X51: 35
A52: 262 | B52: MEURTHE ET MOSELLE MEUSE | C52: 27 | D52: PONT A MOUSSON | E52: 554686 | F52: VEZELISE | G52: 1.9 | H52: 43 | I52: 1 | J52: 1 | K52: 10 | L52: 128 | M52: 118 | N52: 133 | O52: 59 | P52: 42 | Q52: 192 | R52: 179 | S52: 161 | T52: 191 | U52: 230 | V52: 219 | W52: 183 | X52: 230
A53: 262 | B53: MARNE ARDENNES | C53: 2 | D53: CHARLEVILLE MEZIERES | E53: 508819 | F53: MOUZON | G53: 1.9 | H53: 44 | I53: 130 | J53: 138 | K53: 108 | L53: 108 | M53: 160 | N53: 55 | O53: 15 | P53: 12 | Q53: 96 | R53: 58 | S53: 54 | T53: 81 | U53: 29 | V53: 96 | W53: 13 | X53: 34
A54: 262 | B54: MOSELLE | C54: 42 | D54: MOSELLE EST | E54: 557305 | F54: FAULQUEMONT | G54: 3.7 | H54: 45 | I54: 233 | J54: 205 | K54: 228 | L54: 16 | M54: 40 | N54: 12 | O54: 126 | P54: 184 | Q54: 18 | R54: 32 | S54: 58 | T54: 16 | U54: 7 | V54: 8 | W54: 52 | X54: 5
A55: 262 | B55: MOSELLE | C55: 45 | D55: METZ | E55: 557439 | F55: METZ POMPIDOU | G55: 2.7 | H55: 46 | I55: 66 | J55: 58 | K55: 99 | L55: 63 | M55: 106 | N55: 33 | O55: 27 | P55: 27 | Q55: 45 | R55: 144 | S55: 176 | T55: 63 | U55: 84 | V55: 62 | W55: 105 | X55: 107
A56: 262 | B56: MOSELLE | C56: 42 | D56: MOSELLE EST | E56: 457583 | F56: SAINT AVOLD | G56: 6.9 | H56: 47 | I56: 64 | J56: 78 | K56: 39 | L56: 40 | M56: 38 | N56: 68 | O56: 112 | P56: 136 | Q56: 38 | R56: 63 | S56: 63 | T56: 67 | U56: 92 | V56: 83 | W56: 116 | X56: 99
A57: 262 | B57: MEURTHE ET MOSELLE MEUSE | C57: 27 | D57: PONT A MOUSSON | E57: 554516 | F57: PAGNY SUR MOSELLE | G57: 2.7 | H57: 48 | I57: 111 | J57: 100 | K57: 125 | L57: 54 | M57: 48 | N57: 93 | O57: 85 | P57: 76 | Q57: 100 | R57: 41 | S57: 53 | T57: 40 | U57: 55 | V57: 48 | W57: 104 | X57: 48
A58: 262 | B58: BAS RHIN | C58: 5006 | D58: STRASBOURG | E58: 4038 | F58: OBERHAUSBERGEN | G58: 3.4 | H58: 49 | I58: 61 | J58: 59 | K58: 80 | L58: 62 | M58: 105 | N58: 36 | O58: 17 | P58: 19 | Q58: 40 | R58: 192 | S58: 219 | T58: 66 | U58: 71 | V58: 51 | W58: 138 | X58: 83
A59: 262 | B59: BAS RHIN | C59: 5101 | D59: SELESTAT | E59: 4113 | F59: BARR | G59: 2.9 | H59: 50 | I59: 18 | J59: 25 | K59: 6 | L59: 46 | M59: 29 | N59: 108 | O59: 116 | P59: 134 | Q59: 46 | R59: 136 | S59: 108 | T59: 183 | U59: 161 | V59: 66 | W59: 239 | X59: 87
A60: 262 | B60: MEURTHE ET MOSELLE MEUSE | C60: 26 | D60: NANCY | E60: 554636 | F60: TOMBLAINE | G60: 2.5 | H60: 51 | I60: 15 | J60: 21 | K60: 4 | L60: 127 | M60: 149 | N60: 96 | O60: 69 | P60: 69 | Q60: 73 | R60: 127 | S60: 139 | T60: 103 | U60: 121 | V60: 116 | W60: 130 | X60: 104
A61: 262 | B61: MARNE ARDENNES | C61: 6 | D61: CHALONS EN CHAMPAGNE | E61: 551110 | F61: CHALONS ROOSEVELT | G61: 4.4 | H61: 52 | I61: 58 | J61: 57 | K61: 75 | L61: 107 | M61: 87 | N61: 149 | O61: 94 | P61: 98 | Q61: 87 | R61: 20 | S61: 9 | T61: 90 | U61: 119 | V61: 69 | W61: 192 | X61: 103
A62: 262 | B62: MARNE ARDENNES | C62: 6 | D62: CHALONS EN CHAMPAGNE | E62: 451381 | F62: SEZANNE | G62: 4.7 | H62: 53 | I62: 79 | J62: 69 | K62: 102 | L62: 59 | M62: 60 | N62: 75 | O62: 36 | P62: 32 | Q62: 88 | R62: 161 | S62: 168 | T62: 124 | U62: 64 | V62: 56 | W62: 131 | X62: 46
A63: 262 | B63: MEURTHE ET MOSELLE MEUSE | C63: 31 | D63: VERDUN | E63: 455678 | F63: VERDUN CENTRALE | G63: 10.6 | H63: 54 | I63: 27 | J63: 18 | K63: 67 | L63: 73 | M63: 73 | N63: 82 | O63: 169 | P63: 173 | Q63: 101 | R63: 156 | S63: 158 | T63: 130 | U63: 37 | V63: 38 | W63: 73 | X63: 39
A64: 262 | B64: AUBE HAUTE MARNE | C64: 21 | D64: CHAUMONT | E64: 410541 | F64: LANGRES | G64: 7.9 | H64: 55 | I64: 51 | J64: 52 | K64: 64 | L64: 90 | M64: 57 | N64: 161 | O64: 97 | P64: 84 | Q64: 147 | R64: 46 | S64: 34 | T64: 121 | U64: 111 | V64: 169 | W64: 51 | X64: 130
A65: 262 | B65: MOSELLE | C65: 44 | D65: MOSELLE NORD | E65: 457348 | F65: HAGONDANGE | G65: 8.0 | H65: 56 | I65: 125 | J65: 133 | K65: 104 | L65: 34 | M65: 27 | N65: 63 | O65: 134 | P65: 148 | Q65: 67 | R65: 34 | S65: 29 | T65: 70 | U65: 54 | V65: 30 | W65: 136 | X65: 47
A66: 262 | B66: MEURTHE ET MOSELLE MEUSE | C66: 31 | D66: VERDUN | E66: 555679 | F66: VERDUN MAZEL | G66: 3.7 | H66: 57 | I66: 19 | J66: 23 | K66: 13 | L66: 114 | M66: 102 | N66: 129 | O66: 70 | P66: 57 | Q66: 152 | R66: 111 | S66: 77 | T66: 169 | U66: 162 | V66: 153 | W66: 196 | X66: 108
A67: 262 | B67: MOSELLE | C67: 44 | D67: MOSELLE NORD | E67: 557303 | F67: FAMECK | G67: 2.7 | H67: 58 | I67: 43 | J67: 52 | K67: 35 | L67: 100 | M67: 202 | N67: 14 | O67: 32 | P67: 34 | Q67: 62 | R67: 219 | S67: 224 | T67: 141 | U67: 41 | V67: 70 | W67: 17 | X67: 60
A68: 262 | B68: MARNE ARDENNES | C68: 6 | D68: CHALONS EN CHAMPAGNE | E68: 451101 | F68: CHALONS VIVIERS | G68: 9.3 | H68: 59 | I68: 26 | J68: 39 | K68: 14 | L68: 117 | M68: 99 | N68: 141 | O68: 117 | P68: 124 | Q68: 71 | R68: 82 | S68: 80 | T68: 106 | U68: 90 | V68: 87 | W68: 145 | X68: 75
A69: 262 | B69: MARNE ARDENNES | C69: 11 | D69: REIMS | E69: 551310 | F69: REIMS CHATILLONS | G69: 4.0 | H69: 60 | I69: 136 | J69: 120 | K69: 159 | L69: 29 | M69: 36 | N69: 37 | O69: 111 | P69: 103 | Q69: 114 | R69: 68 | S69: 89 | T69: 34 | U69: 36 | V69: 44 | W69: 112 | X69: 28
A70: 262 | B70: MOSELLE | C70: 44 | D70: MOSELLE NORD | E70: 557347 | F70: GUENANGE | G70: 4.7 | H70: 61 | I70: 173 | J70: 157 | K70: 184 | L70: 26 | M70: 17 | N70: 65 | O70: 89 | P70: 94 | Q70: 86 | R70: 44 | S70: 39 | T70: 84 | U70: 27 | V70: 17 | W70: 68 | X70: 40
A71: 262 | B71: BAS RHIN | C71: 5006 | D71: STRASBOURG | E71: 4010 | F71: STRASBOURG MEINAU | G71: 3.0 | H71: 62 | I71: 88 | J71: 63 | K71: 140 | L71: 37 | M71: 55 | N71: 25 | O71: 109 | P71: 114 | Q71: 75 | R71: 45 | S71: 83 | T71: 15 | U71: 141 | V71: 182 | W71: 82 | X71: 156
A72: 262 | B72: MEURTHE ET MOSELLE MEUSE | C72: 27 | D72: PONT A MOUSSON | E72: 554506 | F72: CHALIGNY NEUVES MAISONS | G72: 3.6 | H72: 63 | I72: 167 | J72: 161 | K72: 177 | L72: 23 | M72: 34 | N72: 27 | O72: 193 | P72: 203 | Q72: 69 | R72: 16 | S72: 16 | T72: 27 | U72: 21 | V72: 42 | W72: 35 | X72: 23
A73: 262 | B73: BAS RHIN | C73: 5006 | D73: STRASBOURG | E73: 4054 | F73: STRASBOURG MONTAGNE VERTE | G73: 2.7 | H73: 64 | I73: 68 | J73: 49 | K73: 127 | L73: 81 | M73: 155 | N73: 23 | O73: 49 | P73: 53 | Q73: 89 | R73: 35 | S73: 52 | T73: 21 | U73: 217 | V73: 231 | W73: 205 | X73: 152
A74: 264 | B74: MARNE ARDENNES | C74: 11 | D74: REIMS | E74: 451370 | F74: EPERNAY | G74: 9.2 | H74: 65 | I74: 63 | J74: 75 | K74: 50 | L74: 42 | M74: 32 | N74: 88 | O74: 155 | P74: 167 | Q74: 58 | R74: 108 | S74: 114 | T74: 114 | U74: 74 | V74: 80 | W74: 125 | X74: 50
A75: 264 | B75: VOSGES | C75: 57 | D75: EPINAL | E75: 588396 | F75: LE VAL D AJOL | G75: 2.5 | H75: 66 | I75: 3 | J75: 4 | K75: 5 | L75: 169 | M75: 138 | N75: 206 | O75: 67 | P75: 56 | Q75: 150 | R75: 166 | S75: 133 | T75: 215 | U75: 221 | V75: 165 | W75: 231 | X75: 180
A76: 264 | B76: MEURTHE ET MOSELLE MEUSE | C76: 26 | D76: NANCY | E76: 554116 | F76: BACCARAT | G76: 2.8 | H76: 67 | I76: 10 | J76: 10 | K76: 22 | L76: 133 | M76: 95 | N76: 203 | O76: 102 | P76: 67 | Q76: 220 | R76: 140 | S76: 126 | T76: 149 | U76: 191 | V76: 150 | W76: 159 | X76: 207
A77: 264 | B77: MOSELLE | C77: 42 | D77: MOSELLE EST | E77: 557523 | F77: PHALSBOURG | G77: 2.6 | H77: 68 | I77: 84 | J77: 89 | K77: 74 | L77: 139 | M77: 137 | N77: 137 | O77: 34 | P77: 33 | Q77: 77 | R77: 62 | S77: 33 | T77: 170 | U77: 96 | V77: 86 | W77: 134 | X77: 96
A78: 264 | B78: MOSELLE | C78: 44 | D78: MOSELLE NORD | E78: 457632 | F78: THIONVILLE CENTRALE | G78: 10.0 | H78: 69 | I78: 121 | J78: 123 | K78: 112 | L78: 30 | M78: 28 | N78: 50 | O78: 200 | P78: 218 | Q78: 43 | R78: 26 | S78: 30 | T78: 33 | U78: 51 | V78: 26 | W78: 119 | X78: 54
A79: 264 | B79: MEURTHE ET MOSELLE MEUSE | C79: 27 | D79: PONT A MOUSSON | E79: 554531 | F79: POMPEY | G79: 3.3 | H79: 70 | I79: 209 | J79: 181 | K79: 208 | L79: 33 | M79: 63 | N79: 21 | O79: 51 | P79: 72 | Q79: 28 | R79: 77 | S79: 111 | T79: 51 | U79: 17 | V79: 18 | W79: 19 | X79: 25
A80: 264 | B80: MOSELLE | C80: 44 | D80: MOSELLE NORD | E80: 457350 | F80: HAYANGE | G80: 6.3 | H80: 71 | I80: 135 | J80: 131 | K80: 138 | L80: 48 | M80: 45 | N80: 85 | O80: 130 | P80: 164 | Q80: 32 | R80: 22 | S80: 25 | T80: 38 | U80: 60 | V80: 41 | W80: 149 | X80: 53
A81: 264 | B81: VOSGES | C81: 57 | D81: EPINAL | E81: 488561 | F81: REMIREMONT | G81: 7.2 | H81: 72 | I81: 8 | J81: 7 | K81: 33 | L81: 116 | M81: 71 | N81: 207 | O81: 131 | P81: 113 | Q81: 185 | R81: 142 | S81: 86 | T81: 221 | U81: 196 | V81: 111 | W81: 226 | X81: 136
A82: 264 | B82: VOSGES | C82: 55 | D82: SAINT DIE | E82: 488246 | F82: CORNIMONT LA BRESSE | G82: 2.7 | H82: 73 | I82: 12 | J82: 13 | K82: 15 | L82: 102 | M82: 103 | N82: 109 | O82: 171 | P82: 146 | Q82: 219 | R82: 96 | S82: 67 | T82: 167 | U82: 165 | V82: 220 | W82: 79 | X82: 179
A83: 264 | B83: MEURTHE ET MOSELLE MEUSE | C83: 31 | D83: VERDUN | E83: 454414 | F83: LONGWY HAUT | G83: 3.4 | H83: 74 | I83: 80 | J83: 81 | K83: 79 | L83: 71 | M83: 84 | N83: 64 | O83: 121 | P83: 115 | Q83: 122 | R83: 56 | S83: 62 | T83: 48 | U83: 93 | V83: 95 | W83: 85 | X83: 105
A84: 264 | B84: AUBE HAUTE MARNE | C84: 21 | D84: CHAUMONT | E84: 451154 | F84: JOINVILLE | G84: 1.8 | H84: 75 | I84: 40 | J84: 43 | K84: 48 | L84: 67 | M84: 93 | N84: 52 | O84: 218 | P84: 224 | Q84: 95 | R84: 25 | S84: 24 | T84: 46 | U84: 102 | V84: 158 | W84: 96 | X84: 80
A85: 264 | B85: MEURTHE ET MOSELLE MEUSE | C85: 26 | D85: NANCY | E85: 454481 | F85: NANCY PLACE DOMBASLE | G85: 7.8 | H85: 76 | I85: 163 | J85: 195 | K85: 145 | L85: 76 | M85: 123 | N85: 31 | O85: 75 | P85: 128 | Q85: 12 | R85: 73 | S85: 84 | T85: 52 | U85: 15 | V85: 12 | W85: 76 | X85: 19
A86: 264 | B86: MARNE ARDENNES | C86: 11 | D86: REIMS | E86: 551314 | F86: FISMES | G86: 2.6 | H86: 77 | I86: 33 | J86: 52 | K86: 9 | L86: 41 | M86: 52 | N86: 48 | O86: 224 | P86: 232 | Q86: 30 | R86: 134 | S86: 166 | T86: 62 | U86: 50 | V86: 39 | W86: 147 | X86: 38
A87: 264 | B87: MOSELLE | C87: 42 | D87: MOSELLE EST | E87: 457617 | F87: SARREGUEMINES | G87: 6.5 | H87: 78 | I87: 145 | J87: 145 | K87: 151 | L87: 55 | M87: 66 | N87: 58 | O87: 60 | P87: 85 | Q87: 31 | R87: 70 | S87: 74 | T87: 65 | U87: 40 | V87: 34 | W87: 102 | X87: 41
A88: 264 | B88: MOSELLE | C88: 45 | D88: METZ | E88: 457574 | F88: ROMBAS | G88: 2.5 | H88: 79 | I88: 69 | J88: 50 | K88: 124 | L88: 106 | M88: 113 | N88: 101 | O88: 137 | P88: 153 | Q88: 72 | R88: 29 | S88: 18 | T88: 91 | U88: 116 | V88: 131 | W88: 59 | X88: 161
A89: 264 | B89: MARNE ARDENNES | C89: 6 | D89: CHALONS EN CHAMPAGNE | E89: 551128 | F89: SAINTE MENEHOULD | G89: 2.9 | H89: 80 | I89: 41 | J89: 45 | K89: 47 | L89: 69 | M89: 30 | N89: 213 | O89: 151 | P89: 121 | Q89: 212 | R89: 55 | S89: 46 | T89: 97 | U89: 183 | V89: 181 | W89: 94 | X89: 221
A90: 264 | B90: VOSGES | C90: 55 | D90: SAINT DIE | E90: 488326 | F90: GERARDMER | G90: 3.9 | H90: 81 | I90: 74 | J90: 64 | K90: 107 | L90: 125 | M90: 125 | N90: 119 | O90: 80 | P90: 62 | Q90: 168 | R90: 104 | S90: 107 | T90: 105 | U90: 63 | V90: 72 | W90: 49 | X90: 78
A91: 264 | B91: VOSGES | C91: 55 | D91: SAINT DIE | E91: 588551 | F91: RAMBERVILLERS | G91: 2.6 | H91: 82 | I91: 25 | J91: 19 | K91: 56 | L91: 152 | M91: 181 | N91: 79 | O91: 55 | P91: 40 | Q91: 174 | R91: 223 | S91: 222 | T91: 190 | U91: 57 | V91: 76 | W91: 81 | X91: 36
A92: 264 | B92: MOSELLE | C92: 45 | D92: METZ | E92: 557444 | F92: SAINT JULIEN LES METZ | G92: 3.6 | H92: 83 | I92: 231 | J92: 205 | K92: 226 | L92: 61 | M92: 101 | N92: 34 | O92: 8 | P92: 10 | Q92: 21 | R92: 59 | S92: 115 | T92: 14 | U92: 47 | V92: 90 | W92: 10 | X92: 67
A93: 264 | B93: MEURTHE ET MOSELLE MEUSE | C93: 31 | D93: VERDUN | E93: 554700 | F93: VILLERUPT | G93: 2.7 | H93: 84 | I93: 42 | J93: 45 | K93: 58 | L93: 74 | M93: 68 | N93: 104 | O93: 86 | P93: 88 | Q93: 83 | R93: 115 | S93: 94 | T93: 156 | U93: 176 | V93: 205 | W93: 50 | X93: 235
A94: 264 | B94: MOSELLE | C94: 42 | D94: MOSELLE EST | E94: 457543 | F94: PUTTELANGE AUX LACS | G94: 2.3 | H94: 85 | I94: 143 | J94: 181 | K94: 97 | L94: 65 | M94: 61 | N94: 92 | O94: 82 | P94: 90 | Q94: 49 | R94: 21 | S94: 23 | T94: 29 | U94: 87 | V94: 61 | W94: 188 | X94: 61
A95: 264 | B95: MOSELLE | C95: 44 | D95: MOSELLE NORD | E95: 457158 | F95: YUTZ | G95: 4.7 | H95: 86 | I95: 150 | J95: 165 | K95: 135 | L95: 56 | M95: 54 | N95: 81 | O95: 88 | P95: 91 | Q95: 81 | R95: 39 | S95: 42 | T95: 64 | U95: 52 | V95: 60 | W95: 40 | X95: 64
A96: 30 | B96: MARNE ARDENNES | C96: 11 | D96: REIMS | E96: 551306 | F96: REIMS SAINT MARCEAUX | G96: 3.0 | H96: 87 | I96: 107 | J96: 87 | K96: 146 | L96: 11 | M96: 7 | N96: 42 | O96: 234 | P96: 237 | Q96: 52 | R96: 66 | S96: 71 | T96: 59 | U96: 43 | V96: 50 | W96: 107 | X96: 31
A97: 30 | B97: MARNE ARDENNES | C97: 11 | D97: REIMS | E97: 551369 | F97: DAMERY | G97: 1.7 | H97: 88 | I97: 93 | J97: 66 | K97: 139 | L97: 20 | M97: 35 | N97: 18 | O97: 238 | P97: 238 | Q97: 142 | R97: 52 | S97: 68 | T97: 28 | U97: 28 | V97: 24 | W97: 148 | X97: 17
A98: 30 | B98: BAS RHIN | C98: 5006 | D98: STRASBOURG | E98: 4043 | F98: STRASBOURG HALLES | G98: 7.6 | H98: 89 | I98: 146 | J98: 205 | K98: 92 | L98: 44 | M98: 89 | N98: 17 | O98: 168 | P98: 206 | Q98: 19 | R98: 5 | S98: 10 | T98: 8 | U98: 120 | V98: 65 | W98: 235 | X98: 51
A99: 30 | B99: MOSELLE | C99: 44 | D99: MOSELLE NORD | E99: 457306 | F99: FLORANGE | G99: 4.6 | H99: 90 | I99: 227 | J99: 205 | K99: 222 | L99: 32 | M99: 37 | N99: 45 | O99: 103 | P99: 145 | Q99: 20 | R99: 93 | S99: 127 | T99: 50 | U99: 10 | V99: 10 | W99: 23 | X99: 16
A100: 30 | B100: MOSELLE | C100: 45 | D100: METZ | E100: 557434 | F100: MARLY | G100: 3.1 | H100: 91 | I100: 35 | J100: 23 | K100: 87 | L100: 126 | M100: 97 | N100: 180 | O100: 50 | P100: 35 | Q100: 175 | R100: 201 | S100: 187 | T100: 208 | U100: 106 | V100: 67 | W100: 194 | X100: 86
A101: 30 | B101: MARNE ARDENNES | C101: 2 | D101: CHARLEVILLE MEZIERES | E101: 408822 | F101: CHARLEVILLE MEZIERES | G101: 5.2 | H101: 92 | I101: 190 | J101: 171 | K101: 189 | L101: 111 | M101: 177 | N101: 38 | O101: 22 | P101: 61 | Q101: 5 | R101: 54 | S101: 72 | T101: 26 | U101: 38 | V101: 28 | W101: 190 | X101: 18
A102: 30 | B102: HAUT RHIN | C102: 5130 | D102: COLMAR | E102: 4143 | F102: MUNSTER | G102: 4.1 | H102: 93 | I102: 114 | J102: 126 | K102: 78 | L102: 58 | M102: 23 | N102: 194 | O102: 57 | P102: 36 | Q102: 204 | R102: 76 | S102: 56 | T102: 162 | U102: 135 | V102: 162 | W102: 78 | X102: 162
A103: 30 | B103: MOSELLE | C103: 42 | D103: MOSELLE EST | E103: 557668 | F103: VALMONT | G103: 2.9 | H103: 94 | I103: 54 | J103: 36 | K103: 111 | L103: 196 | M103: 190 | N103: 184 | O103: 37 | P103: 22 | Q103: 160 | R103: 64 | S103: 44 | T103: 136 | U103: 172 | V103: 217 | W103: 77 | X103: 204
A104: 30 | B104: VOSGES | C104: 57 | D104: EPINAL | E104: 588716 | F104: XERTIGNY | G104: 2.8 | H104: 95 | I104: 62 | J104: 82 | K104: 28 | L104: 122 | M104: 75 | N104: 210 | O104: 39 | P104: 29 | Q104: 113 | R104: 135 | S104: 82 | T104: 218 | U104: 157 | V104: 170 | W104: 146 | X104: 145
A105: 30 | B105: BAS RHIN | C105: 5060 | D105: HAGUENAU | E105: 4071 | F105: WISSEMBOURG | G105: 8.2 | H105: 96 | I105: 30 | J105: 36 | K105: 26 | L105: 96 | M105: 96 | N105: 110 | O105: 113 | P105: 108 | Q105: 103 | R105: 116 | S105: 118 | T105: 126 | U105: 211 | V105: 214 | W105: 175 | X105: 202
A106: 30 | B106: BAS RHIN | C106: 5006 | D106: STRASBOURG | E106: 4024 | F106: STRASBOURG AUSTERLITZ | G106: 1.5 | H106: 97 | I106: 235 | J106: 179 | K106: 237 | L106: 45 | M106: 126 | N106: 13 | O106: 12 | P106: 20 | Q106: 16 | R106: 51 | S106: 146 | T106: 4 | U106: 75 | V106: 43 | W106: 173 | X106: 73
A107: 30 | B107: MARNE ARDENNES | C107: 2 | D107: CHARLEVILLE MEZIERES | E107: 408862 | F107: REVIN | G107: 3.9 | H107: 98 | I107: 56 | J107: 69 | K107: 32 | L107: 136 | M107: 129 | N107: 143 | O107: 176 | P107: 189 | Q107: 92 | R107: 67 | S107: 60 | T107: 109 | U107: 100 | V107: 85 | W107: 164 | X107: 77
A108: 30 | B108: MARNE ARDENNES | C108: 2 | D108: CHARLEVILLE MEZIERES | E108: 408840 | F108: RETHEL | G108: 4.2 | H108: 99 | I108: 134 | J108: 133 | K108: 134 | L108: 64 | M108: 58 | N108: 94 | O108: 99 | P108: 93 | Q108: 117 | R108: 79 | S108: 65 | T108: 133 | U108: 79 | V108: 91 | W108: 92 | X108: 66
A109: 30 | B109: VOSGES | C109: 55 | D109: SAINT DIE | E109: 588386 | F109: LE THILLOT | G109: 2.6 | H109: 100 | I109: 5 | J109: 5 | K109: 21 | L109: 164 | M109: 82 | N109: 239 | O109: 170 | P109: 133 | Q109: 235 | R109: 191 | S109: 162 | T109: 222 | U109: 202 | V109: 190 | W109: 176 | X109: 178
A110: 30 | B110: MEURTHE ET MOSELLE MEUSE | C110: 31 | D110: VERDUN | E110: 554412 | F110: LONGUYON | G110: 2.8 | H110: 101 | I110: 73 | J110: 97 | K110: 30 | L110: 72 | M110: 83 | N110: 66 | O110: 146 | P110: 139 | Q110: 120 | R110: 105 | S110: 78 | T110: 143 | U110: 137 | V110: 155 | W110: 129 | X110: 123
A111: 30 | B111: MEURTHE ET MOSELLE MEUSE | C111: 27 | D111: PONT A MOUSSON | E111: 554357 | F111: JOEUF | G111: 3.1 | H111: 102 | I111: 59 | J111: 39 | K111: 123 | L111: 141 | M111: 178 | N111: 71 | O111: 128 | P111: 122 | Q111: 127 | R111: 160 | S111: 185 | T111: 94 | U111: 67 | V111: 103 | W111: 11 | X111: 129
A112: 30 | B112: MEURTHE ET MOSELLE MEUSE | C112: 31 | D112: VERDUN | E112: 455151 | F112: BAR LE DUC | G112: 9.8 | H112: 103 | I112: 49 | J112: 68 | K112: 29 | L112: 123 | M112: 98 | N112: 167 | O112: 153 | P112: 143 | Q112: 138 | R112: 97 | S112: 76 | T112: 134 | U112: 139 | V112: 193 | W112: 63 | X112: 165
A113: 30 | B113: BAS RHIN | C113: 5101 | D113: SELESTAT | E113: 4104 | F113: ERSTEIN | G113: 3.8 | H113: 104 | I113: 202 | J113: 191 | K113: 196 | L113: 25 | M113: 14 | N113: 90 | O113: 76 | P113: 68 | Q113: 98 | R113: 81 | S113: 57 | T113: 174 | U113: 77 | V113: 47 | W113: 171 | X113: 76
A114: 30 | B114: BAS RHIN | C114: 5101 | D114: SELESTAT | E114: 4121 | F114: SCHIRMECK | G114: 2.8 | H114: 105 | I114: 55 | J114: 91 | K114: 8 | L114: 85 | M114: 59 | N114: 140 | O114: 140 | P114: 140 | Q114: 94 | R114: 174 | S114: 154 | T114: 192 | U114: 118 | V114: 129 | W114: 88 | X114: 123
A115: 30 | B115: VOSGES | C115: 57 | D115: EPINAL | E115: 488281 | F115: ELOYES | G115: 3.4 | H115: 106 | I115: 47 | J115: 36 | K115: 93 | L115: 177 | M115: 146 | N115: 217 | O115: 48 | P115: 39 | Q115: 143 | R115: 199 | S115: 184 | T115: 214 | U115: 107 | V115: 177 | W115: 42 | X115: 134
A116: 30 | B116: MEURTHE ET MOSELLE MEUSE | C116: 27 | D116: PONT A MOUSSON | E116: 554416 | F116: LUDRES | G116: 3.7 | H116: 107 | I116: 70 | J116: 78 | K116: 52 | L116: 159 | M116: 142 | N116: 171 | O116: 42 | P116: 26 | Q116: 166 | R116: 146 | S116: 99 | T116: 217 | U116: 175 | V116: 105 | W116: 214 | X116: 132
A117: 30 | B117: BAS RHIN | C117: 5006 | D117: STRASBOURG | E117: 4006 | F117: STRASBOURG NEUDORF | G117: 7.8 | H117: 108 | I117: 24 | J117: 34 | K117: 16 | L117: 181 | M117: 193 | N117: 130 | O117: 115 | P117: 97 | Q117: 183 | R117: 90 | S117: 87 | T117: 107 | U117: 216 | V117: 176 | W117: 234 | X117: 138
A118: 30 | B118: BAS RHIN | C118: 5006 | D118: STRASBOURG | E118: 4019 | F118: STRASBOURG ANVERS | G118: 4.4 | H118: 109 | I118: 176 | J118: 184 | K118: 167 | L118: 52 | M118: 69 | N118: 44 | O118: 44 | P118: 64 | Q118: 26 | R118: 74 | S118: 73 | T118: 75 | U118: 124 | V118: 49 | W118: 224 | X118: 106
A119: 30 | B119: BAS RHIN | C119: 5006 | D119: STRASBOURG | E119: 4027 | F119: SCHILTIGHEIM CENTRE | G119: 3.9 | H119: 110 | I119: 207 | J119: 205 | K119: 194 | L119: 39 | M119: 43 | N119: 54 | O119: 46 | P119: 51 | Q119: 74 | R119: 95 | S119: 134 | T119: 44 | U119: 78 | V119: 74 | W119: 97 | X119: 82
A120: 30 | B120: BAS RHIN | C120: 5060 | D120: HAGUENAU | E120: 4057 | F120: BISCHWILLER | G120: 6.7 | H120: 111 | I120: 57 | J120: 59 | K120: 60 | L120: 66 | M120: 33 | N120: 195 | O120: 183 | P120: 174 | Q120: 187 | R120: 112 | S120: 95 | T120: 146 | U120: 163 | V120: 225 | W120: 47 | X120: 219
A121: 30 | B121: VOSGES | C121: 57 | D121: EPINAL | E121: 488286 | F121: EPINAL ARISTIDE BRIAND | G121: 8.1 | H121: 112 | I121: 170 | J121: 205 | K121: 149 | L121: 35 | M121: 53 | N121: 28 | O121: 66 | P121: 79 | Q121: 48 | R121: 101 | S121: 132 | T121: 56 | U121: 117 | V121: 93 | W121: 210 | X121: 55
A122: 30 | B122: MOSELLE | C122: 44 | D122: MOSELLE NORD | E122: 557307 | F122: FONTOY | G122: 1.9 | H122: 113 | I122: 72 | J122: 69 | K122: 91 | L122: 172 | M122: 170 | N122: 151 | O122: 92 | P122: 86 | Q122: 131 | R122: 173 | S122: 177 | T122: 137 | U122: 68 | V122: 75 | W122: 22 | X122: 127
A123: 30 | B123: BAS RHIN | C123: 5060 | D123: HAGUENAU | E123: 4092 | F123: HOCHFELDEN | G123: 2.1 | H123: 114 | I123: 89 | J123: 95 | K123: 65 | L123: 183 | M123: 188 | N123: 142 | O123: 47 | P123: 46 | Q123: 108 | R123: 103 | S123: 112 | T123: 101 | U123: 143 | V123: 92 | W123: 156 | X123: 166
A124: 30 | B124: VOSGES | C124: 55 | D124: SAINT DIE | E124: 588666 | F124: VAGNEY | G124: 3.5 | H124: 115 | I124: 23 | J124: 20 | K124: 45 | L124: 180 | M124: 145 | N124: 231 | O124: 61 | P124: 37 | Q124: 213 | R124: 204 | S124: 165 | T124: 238 | U124: 188 | V124: 196 | W124: 150 | X124: 174
A125: 30 | B125: VOSGES | C125: 55 | D125: SAINT DIE | E125: 588316 | F125: FRAIZE | G125: 3.6 | H125: 116 | I125: 77 | J125: 92 | K125: 43 | L125: 154 | M125: 119 | N125: 193 | O125: 154 | P125: 150 | Q125: 118 | R125: 75 | S125: 50 | T125: 172 | U125: 128 | V125: 144 | W125: 108 | X125: 119
A126: 30 | B126: VOSGES | C126: 57 | D126: EPINAL | E126: 588631 | F126: THAON LES VOSGES | G126: 4.7 | H126: 117 | I126: 95 | J126: 82 | K126: 110 | L126: 112 | M126: 85 | N126: 155 | O126: 143 | P126: 130 | Q126: 153 | R126: 126 | S126: 145 | T126: 79 | U126: 89 | V126: 161 | W126: 36 | X126: 110
A127: 30 | B127: MOSELLE | C127: 44 | D127: MOSELLE NORD | E127: 457192 | F127: CATTENOM | G127: 1.4 | H127: 118 | I127: 141 | J127: 141 | K127: 144 | L127: 68 | M127: 65 | N127: 99 | O127: 141 | P127: 176 | Q127: 34 | R127: 106 | S127: 120 | T127: 97 | U127: 65 | V127: 57 | W127: 43 | X127: 112
A128: 30 | B128: MOSELLE | C128: 45 | D128: METZ | E128: 557105 | F128: ARS SUR MOSELLE | G128: 2.8 | H128: 119 | I128: 119 | J128: 64 | K128: 201 | L128: 109 | M128: 157 | N128: 60 | O128: 213 | P128: 223 | Q128: 59 | R128: 94 | S128: 148 | T128: 22 | U128: 25 | V128: 33 | W128: 32 | X128: 42
A129: 30 | B129: MARNE ARDENNES | C129: 11 | D129: REIMS | E129: 551341 | F129: REIMS JEAN JAURES | G129: 4.4 | H129: 120 | I129: 197 | J129: 166 | K129: 202 | L129: 53 | M129: 80 | N129: 30 | O129: 149 | P129: 166 | Q129: 57 | R129: 91 | S129: 128 | T129: 45 | U129: 30 | V129: 27 | W129: 181 | X129: 15
A130: 30 | B130: MEURTHE ET MOSELLE MEUSE | C130: 27 | D130: PONT A MOUSSON | E130: 554376 | F130: LAXOU BOUFFLERS | G130: 2.5 | H130: 121 | I130: 236 | J130: 205 | K130: 235 | L130: 36 | M130: 134 | N130: 5 | O130: 158 | P130: 161 | Q130: 91 | R130: 110 | S130: 208 | T130: 7 | U130: 14 | V130: 35 | W130: 15 | X130: 12
A131: 30 | B131: VOSGES | C131: 55 | D131: SAINT DIE | E131: 588186 | F131: BRUYERES | G131: 3.5 | H131: 122 | I131: 28 | J131: 22 | K131: 55 | L131: 138 | M131: 148 | N131: 120 | O131: 227 | P131: 229 | Q131: 114 | R131: 128 | S131: 167 | T131: 49 | U131: 95 | V131: 113 | W131: 122 | X131: 71
A132: 30 | B132: BAS RHIN | C132: 5060 | D132: HAGUENAU | E132: 4041 | F132: HOERDT | G132: 1.7 | H132: 123 | I132: 83 | J132: 87 | K132: 76 | L132: 134 | M132: 107 | N132: 185 | O132: 43 | P132: 28 | Q132: 172 | R132: 147 | S132: 105 | T132: 219 | U132: 226 | V132: 180 | W132: 208 | X132: 227
A133: 30 | B133: MOSELLE | C133: 45 | D133: METZ | E133: 557612 | F133: SAINTE MARIE AUX CHENES | G133: 3.7 | H133: 124 | I133: 31 | J133: 61 | K133: 3 | L133: 215 | M133: 192 | N133: 234 | O133: 96 | P133: 59 | Q133: 238 | R133: 122 | S133: 75 | T133: 204 | U133: 212 | V133: 215 | W133: 206 | X133: 143
A134: 30 | B134: VOSGES | C134: 55 | D134: SAINT DIE | E134: 588461 | F134: MOYENMOUTIER | G134: 4.2 | H134: 125 | I134: 67 | J134: 69 | K134: 73 | L134: 98 | M134: 49 | N134: 224 | O134: 129 | P134: 100 | Q134: 218 | R134: 141 | S134: 123 | T134: 159 | U134: 214 | V134: 239 | W134: 117 | X134: 216
A135: 110 | B135: BAS RHIN | C135: 5101 | D135: SELESTAT | E135: 4126 | F135: MUTZIG | G135: 2.7 | H135: 126 | I135: 147 | J135: 205 | K135: 95 | L135: 51 | M135: 26 | N135: 138 | O135: 62 | P135: 70 | Q135: 50 | R135: 154 | S135: 147 | T135: 144 | U135: 140 | V135: 104 | W135: 222 | X135: 68
A136: 110 | B136: MARNE ARDENNES | C136: 2 | D136: CHARLEVILLE MEZIERES | E136: 508802 | F136: CHARLEVILLE NEVERS | G136: 2.8 | H136: 127 | I136: 32 | J136: 39 | K136: 27 | L136: 206 | M136: 189 | N136: 222 | O136: 214 | P136: 210 | Q136: 169 | R136: 69 | S136: 51 | T136: 139 | U136: 126 | V136: 77 | W136: 84 | X136: 211
A137: 110 | B137: AUBE HAUTE MARNE | C137: 14 | D137: TROYES | E137: 510570 | F137: NOGENT SUR SEINE | G137: 3.9 | H137: 128 | I137: 45 | J137: 39 | K137: 81 | L137: 121 | M137: 112 | N137: 135 | O137: 164 | P137: 157 | Q137: 129 | R137: 180 | S137: 159 | T137: 199 | U137: 156 | V137: 114 | W137: 178 | X137: 147
A138: 110 | B138: MARNE ARDENNES | C138: 2 | D138: CHARLEVILLE MEZIERES | E138: 508815 | F138: CARIGNAN | G138: 2.6 | H138: 129 | I138: 86 | J138: 61 | K138: 137 | L138: 94 | M138: 92 | N138: 116 | O138: 194 | P138: 197 | Q138: 107 | R138: 130 | S138: 91 | T138: 196 | U138: 109 | V138: 130 | W138: 83 | X138: 111
A139: 110 | B139: AUBE HAUTE MARNE | C139: 21 | D139: CHAUMONT | E139: 451156 | F139: SAINT DIZIER CENTRE | G139: 8.6 | H139: 130 | I139: 137 | J139: 120 | K139: 160 | L139: 137 | M139: 163 | N139: 100 | O139: 144 | P139: 137 | Q139: 110 | R139: 49 | S139: 48 | T139: 69 | U139: 97 | V139: 128 | W139: 113 | X139: 79
A140: 110 | B140: MEURTHE ET MOSELLE MEUSE | C140: 31 | D140: VERDUN | E140: 455566 | F140: REVIGNY SUR ORNAIN | G140: 2.7 | H140: 131 | I140: 90 | J140: 84 | K140: 98 | L140: 142 | M140: 108 | N140: 200 | O140: 118 | P140: 92 | Q140: 208 | R140: 129 | S140: 113 | T140: 163 | U140: 150 | V140: 237 | W140: 26 | X140: 217
A141: 110 | B141: VOSGES | C141: 57 | D141: EPINAL | E141: 588206 | F141: CHARMES | G141: 3.0 | H141: 132 | I141: 87 | J141: 104 | K141: 38 | L141: 158 | M141: 154 | N141: 147 | O141: 108 | P141: 77 | Q141: 224 | R141: 107 | S141: 116 | T141: 108 | U141: 197 | V141: 236 | W141: 139 | X141: 154
A142: 110 | B142: MEURTHE ET MOSELLE MEUSE | C142: 26 | D142: NANCY | E142: 454426 | F142: LUNEVILLE CARNOT | G142: 8.4 | H142: 133 | I142: 201 | J142: 171 | K142: 205 | L142: 95 | M142: 122 | N142: 69 | O142: 52 | P142: 49 | Q142: 112 | R142: 158 | S142: 183 | T142: 85 | U142: 39 | V142: 58 | W142: 37 | X142: 44
A143: 110 | B143: MEURTHE ET MOSELLE MEUSE | C143: 27 | D143: PONT A MOUSSON | E143: 454355 | F143: JARNY | G143: 4.2 | H143: 134 | I143: 91 | J143: 97 | K143: 69 | L143: 151 | M143: 139 | N143: 153 | O143: 77 | P143: 60 | Q143: 179 | R143: 145 | S143: 136 | T143: 138 | U143: 210 | V143: 189 | W143: 193 | X143: 198
A144: 110 | B144: MEURTHE ET MOSELLE MEUSE | C144: 26 | D144: NANCY | E144: 554486 | F144: NANCY POINT CENTRAL | G144: 3.1 | H144: 135 | I144: 131 | J144: 94 | K144: 181 | L144: 188 | M144: 216 | N144: 84 | O144: 24 | P144: 18 | Q144: 70 | R144: 165 | S144: 182 | T144: 120 | U144: 112 | V144: 89 | W144: 75 | X144: 176
A145: 110 | B145: AUBE HAUTE MARNE | C145: 21 | D145: CHAUMONT | E145: 410566 | F145: CHAUMONT HOTEL DE VILLE | G145: 10.3 | H145: 136 | I145: 82 | J145: 74 | K145: 103 | L145: 184 | M145: 179 | N145: 188 | O145: 90 | P145: 71 | Q145: 167 | R145: 133 | S145: 100 | T145: 189 | U145: 174 | V145: 179 | W145: 123 | X145: 200
A146: 110 | B146: BAS RHIN | C146: 5006 | D146: STRASBOURG | E146: 4020 | F146: STRASBOURG ROBERTSAU | G146: 5.3 | H146: 137 | I146: 118 | J146: 126 | K146: 96 | L146: 182 | M146: 180 | N146: 176 | O146: 11 | P146: 6 | Q146: 124 | R146: 197 | S146: 173 | T146: 228 | U146: 199 | V146: 183 | W146: 165 | X146: 193
A147: 110 | B147: MEURTHE ET MOSELLE MEUSE | C147: 27 | D147: PONT A MOUSSON | E147: 554496 | F147: NANCY TROIS MAISONS | G147: 2.4 | H147: 138 | I147: 149 | J147: 184 | K147: 115 | L147: 99 | M147: 104 | N147: 102 | O147: 125 | P147: 109 | Q147: 191 | R147: 92 | S147: 92 | T147: 104 | U147: 83 | V147: 136 | W147: 45 | X147: 93
A148: 110 | B148: BAS RHIN | C148: 5101 | D148: SELESTAT | E148: 4127 | F148: ROSHEIM | G148: 1.6 | H148: 139 | I148: 112 | J148: 106 | K148: 114 | L148: 199 | M148: 200 | N148: 166 | O148: 35 | P148: 23 | Q148: 145 | R148: 155 | S148: 137 | T148: 182 | U148: 154 | V148: 112 | W148: 225 | X148: 84
A149: 110 | B149: MOSELLE | C149: 42 | D149: MOSELLE EST | E149: 457435 | F149: MERLEBACH | G149: 2.7 | H149: 140 | I149: 105 | J149: 110 | K149: 89 | L149: 150 | M149: 207 | N149: 39 | O149: 178 | P149: 196 | Q149: 56 | R149: 163 | S149: 215 | T149: 30 | U149: 66 | V149: 178 | W149: 8 | X149: 91
A150: 110 | B150: MEURTHE ET MOSELLE MEUSE | C150: 26 | D150: NANCY | E150: 554296 | F150: ESSEY LES NANCY | G150: 3.6 | H150: 141 | I150: 44 | J150: 45 | K150: 59 | L150: 143 | M150: 141 | N150: 136 | O150: 161 | P150: 138 | Q150: 194 | R150: 221 | S150: 214 | T150: 211 | U150: 151 | V150: 157 | W150: 200 | X150: 85
A151: 110 | B151: MARNE ARDENNES | C151: 2 | D151: CHARLEVILLE MEZIERES | E151: 408806 | F151: SEDAN | G151: 7.4 | H151: 142 | I151: 99 | J151: 114 | K151: 57 | L151: 156 | M151: 135 | N151: 175 | O151: 119 | P151: 119 | Q151: 85 | R151: 203 | S151: 181 | T151: 226 | U151: 101 | V151: 101 | W151: 114 | X151: 98
A152: 110 | B152: VOSGES | C152: 57 | D152: EPINAL | E152: 588201 | F152: CHANTRAINE | G152: 3.7 | H152: 143 | I152: 102 | J152: 106 | K152: 88 | L152: 118 | M152: 91 | N152: 157 | O152: 81 | P152: 63 | Q152: 163 | R152: 218 | S152: 198 | T152: 234 | U152: 185 | V152: 135 | W152: 203 | X152: 135
A153: 110 | B153: MEURTHE ET MOSELLE MEUSE | C153: 26 | D153: NANCY | E153: 554266 | F153: DOMBASLE SUR MEURTHE | G153: 3.4 | H153: 144 | I153: 169 | J153: 201 | K153: 153 | L153: 201 | M153: 203 | N153: 179 | O153: 18 | P153: 13 | Q153: 132 | R153: 124 | S153: 144 | T153: 78 | U153: 115 | V153: 174 | W153: 34 | X153: 171
A154: 110 | B154: BAS RHIN | C154: 5006 | D154: STRASBOURG | E154: 4023 | F154: STRASBOURG VOSGES | G154: 3.0 | H154: 145 | I154: 123 | J154: 117 | K154: 131 | L154: 120 | M154: 117 | N154: 118 | O154: 31 | P154: 25 | Q154: 55 | R154: 206 | S154: 199 | T154: 205 | U154: 222 | V154: 123 | W154: 240 | X154: 128
A155: 110 | B155: VOSGES | C155: 57 | D155: EPINAL | E155: 488706 | F155: VITTEL | G155: 3.1 | H155: 146 | I155: 115 | J155: 128 | K155: 71 | L155: 176 | M155: 153 | N155: 209 | O155: 133 | P155: 110 | Q155: 205 | R155: 123 | S155: 122 | T155: 125 | U155: 136 | V155: 139 | W155: 172 | X155: 94
A156: 110 | B156: MEURTHE ET MOSELLE MEUSE | C156: 27 | D156: PONT A MOUSSON | E156: 454696 | F156: VILLERS GENERAL LECLERC | G156: 3.9 | H156: 147 | I156: 155 | J156: 163 | K156: 152 | L156: 179 | M156: 196 | N156: 124 | O156: 9 | P156: 5 | Q156: 119 | R156: 159 | S156: 151 | T156: 147 | U156: 225 | V156: 200 | W156: 223 | X156: 190
A157: 110 | B157: MOSELLE | C157: 42 | D157: MOSELLE EST | E157: 457614 | F157: SARREBOURG | G157: 7.1 | H157: 148 | I157: 140 | J157: 128 | K157: 161 | L157: 155 | M157: 133 | N157: 165 | O157: 93 | P157: 89 | Q157: 111 | R157: 132 | S157: 110 | T157: 179 | U157: 149 | V157: 164 | W157: 89 | X157: 189
A158: 110 | B158: MOSELLE | C158: 45 | D158: METZ | E158: 557459 | F158: MOULINS LES METZ | G158: 2.6 | H158: 149 | I158: 96 | J158: 69 | K158: 142 | L158: 170 | M158: 161 | N158: 187 | O158: 180 | P158: 178 | Q158: 158 | R158: 138 | S158: 96 | T158: 198 | U158: 144 | V158: 140 | W158: 143 | X158: 131
A159: 110 | B159: MEURTHE ET MOSELLE MEUSE | C159: 27 | D159: PONT A MOUSSON | E159: 454651 | F159: TOUL | G159: 9.2 | H159: 150 | I159: 198 | J159: 157 | K159: 212 | L159: 189 | M159: 208 | N159: 115 | O159: 83 | P159: 80 | Q159: 80 | R159: 109 | S159: 141 | T159: 61 | U159: 53 | V159: 45 | W159: 67 | X159: 69
A160: 110 | B160: BAS RHIN | C160: 5060 | D160: HAGUENAU | E160: 4030 | F160: BRUMATH | G160: 3.8 | H160: 151 | I160: 215 | J160: 204 | K160: 209 | L160: 77 | M160: 44 | N160: 182 | O160: 10 | P160: 8 | Q160: 79 | R160: 216 | S160: 211 | T160: 207 | U160: 184 | V160: 117 | W160: 168 | X160: 206
A161: 110 | B161: BAS RHIN | C161: 5060 | D161: HAGUENAU | E161: 4031 | F161: TRUCHTERSHEIM | G161: 2.4 | H161: 152 | I161: 97 | J161: 99 | K161: 86 | L161: 79 | M161: 24 | N161: 230 | O161: 73 | P161: 47 | Q161: 229 | R161: 214 | S161: 195 | T161: 232 | U161: 240 | V161: 229 | W161: 237 | X161: 240
A162: 110 | B162: BAS RHIN | C162: 5060 | D162: HAGUENAU | E162: 4067 | F162: PFAFFENHOFFEN | G162: 1.9 | H162: 153 | I162: 133 | J162: 145 | K162: 106 | L162: 70 | M162: 56 | N162: 112 | O162: 110 | P162: 101 | Q162: 123 | R162: 205 | S162: 207 | T162: 168 | U162: 171 | V162: 149 | W162: 217 | X162: 95
A163: 110 | B163: BAS RHIN | C163: 5006 | D163: STRASBOURG | E163: 4029 | F163: SCHILTIGHEIM KLEBER | G163: 0.6 | H163: 154 | I163: 148 | J163: 142 | K163: 166 | L163: 235 | M163: 233 | N163: 152 | O163: 45 | P163: 38 | Q163: 126 | R163: 102 | S163: 212 | T163: 5 | U163: 81 | V163: 100 | W163: 55 | X163: 97
A164: 110 | B164: AUBE HAUTE MARNE | C164: 14 | D164: TROYES | E164: 510513 | F164: SAINT PARRES AUX TERTRES | G164: 2.9 | H164: 155 | I164: 234 | J164: 205 | K164: 233 | L164: 84 | M164: 116 | N164: 49 | O164: 132 | P164: 165 | Q164: 37 | R164: 17 | S164: 12 | T164: 42 | U164: 168 | V164: 241 | W164: 90 | X164: 112
A165: 110 | B165: AUBE HAUTE MARNE | C165: 14 | D165: TROYES | E165: 410550 | F165: BAR SUR AUBE | G165: 5.3 | H165: 156 | I165: 94 | J165: 95 | K165: 82 | L165: 178 | M165: 167 | N165: 190 | O165: 165 | P165: 147 | Q165: 195 | R165: 150 | S165: 140 | T165: 175 | U165: 167 | V165: 221 | W165: 72 | X165: 192
A166: 110 | B166: MEURTHE ET MOSELLE MEUSE | C166: 27 | D166: PONT A MOUSSON | E166: 454535 | F166: PONT A MOUSSON CENTRALE | G166: 5.9 | H166: 157 | I166: 230 | J166: 195 | K166: 227 | L166: 89 | M166: 136 | N166: 43 | O166: 166 | P166: 151 | Q166: 188 | R166: 84 | S166: 103 | T166: 68 | U166: 44 | V166: 31 | W166: 128 | X166: 37
A167: 110 | B167: MEURTHE ET MOSELLE MEUSE | C167: 26 | D167: NANCY | E167: 554166 | F167: BLAINVILLE | G167: 2.9 | H167: 158 | I167: 162 | J167: 195 | K167: 141 | L167: 101 | M167: 94 | N167: 121 | O167: 190 | P167: 186 | Q167: 176 | R167: 53 | S167: 47 | T167: 86 | U167: 147 | V167: 138 | W167: 160 | X167: 122
A168: 110 | B168: MARNE ARDENNES | C168: 2 | D168: CHARLEVILLE MEZIERES | E168: 508860 | F168: ROCROI | G168: 2.3 | H168: 159 | I168: 205 | J168: 195 | K168: 197 | L168: 60 | M168: 62 | N168: 76 | O168: 175 | P168: 183 | Q168: 99 | R168: 125 | S168: 129 | T168: 119 | U168: 80 | V168: 64 | W168: 141 | X168: 70
A169: 110 | B169: BAS RHIN | C169: 5101 | D169: SELESTAT | E169: 4109 | F169: MARCKOLSHEIM | G169: 2.3 | H169: 160 | I169: 113 | J169: 135 | K169: 49 | L169: 147 | M169: 132 | N169: 154 | O169: 173 | P169: 175 | Q169: 116 | R169: 168 | S169: 194 | T169: 82 | U169: 142 | V169: 208 | W169: 95 | X169: 118
A170: 110 | B170: MOSELLE | C170: 45 | D170: METZ | E170: 557440 | F170: METZ MOZART | G170: 2.7 | H170: 161 | I170: 151 | J170: 205 | K170: 105 | L170: 149 | M170: 114 | N170: 201 | O170: 64 | P170: 48 | Q170: 197 | R170: 143 | S170: 104 | T170: 201 | U170: 200 | V170: 137 | W170: 220 | X170: 142
A171: 110 | B171: BAS RHIN | C171: 5101 | D171: SELESTAT | E171: 4007 | F171: ILLKIRCH CENTRE | G171: 6.3 | H171: 162 | I171: 183 | J171: 188 | K171: 172 | L171: 157 | M171: 140 | N171: 159 | O171: 163 | P171: 152 | Q171: 165 | R171: 48 | S171: 38 | T171: 110 | U171: 130 | V171: 109 | W171: 115 | X171: 148
A172: 110 | B172: BAS RHIN | C172: 5006 | D172: STRASBOURG | E172: 4028 | F172: BISCHHEIM | G172: 3.1 | H172: 163 | I172: 175 | J172: 205 | K172: 157 | L172: 167 | M172: 175 | N172: 122 | O172: 71 | P172: 75 | Q172: 66 | R172: 89 | S172: 109 | T172: 73 | U172: 195 | V172: 156 | W172: 191 | X172: 173
A173: 110 | B173: MEURTHE ET MOSELLE MEUSE | C173: 27 | D173: PONT A MOUSSON | E173: 554196 | F173: CHAMPIGNEULLES | G173: 2.6 | H173: 164 | I173: 157 | J173: 205 | K173: 118 | L173: 168 | M173: 120 | N173: 221 | O173: 136 | P173: 112 | Q173: 211 | R173: 61 | S173: 43 | T173: 128 | U173: 193 | V173: 119 | W173: 198 | X173: 185
A174: 110 | B174: MOSELLE | C174: 42 | D174: MOSELLE EST | E174: 557210 | F174: CHATEAU SALINS | G174: 1.9 | H174: 165 | I174: 174 | J174: 205 | K174: 156 | L174: 86 | M174: 64 | N174: 133 | O174: 210 | P174: 201 | Q174: 206 | R174: 40 | S174: 32 | T174: 96 | U174: 186 | V174: 222 | W174: 65 | X174: 220
A175: 110 | B175: BAS RHIN | C175: 5101 | D175: SELESTAT | E175: 4008 | F175: FEGERSHEIM | G175: 2.4 | H175: 166 | I175: 127 | J175: 140 | K175: 101 | L175: 91 | M175: 41 | N175: 223 | O175: 106 | P175: 73 | Q175: 227 | R175: 200 | S175: 179 | T175: 220 | U175: 232 | V175: 212 | W175: 218 | X175: 214
A176: 110 | B176: BAS RHIN | C176: 5060 | D176: HAGUENAU | E176: 4085 | F176: INGWILLER | G176: 3.5 | H176: 167 | I176: 129 | J176: 112 | K176: 155 | L176: 140 | M176: 127 | N176: 150 | O176: 177 | P176: 163 | Q176: 180 | R176: 157 | S176: 170 | T176: 112 | U176: 145 | V176: 175 | W176: 62 | X176: 203
A177: 160 | B177: BAS RHIN | C177: 5006 | D177: STRASBOURG | E177: 4039 | F177: REICHSTETT | G177: 1.4 | H177: 168 | I177: 138 | J177: 143 | K177: 122 | L177: 185 | M177: 182 | N177: 174 | O177: 105 | P177: 95 | Q177: 137 | R177: 137 | S177: 142 | T177: 116 | U177: 181 | V177: 88 | W177: 221 | X177: 151
A178: 160 | B178: MEURTHE ET MOSELLE MEUSE | C178: 31 | D178: VERDUN | E178: 555624 | F178: STENAY | G178: 3.1 | H178: 169 | I178: 168 | J178: 205 | K178: 148 | L178: 88 | M178: 159 | N178: 26 | O178: 207 | P178: 212 | Q178: 104 | R178: 222 | S178: 231 | T178: 100 | U178: 22 | V178: 110 | W178: 2 | X178: 58
A179: 160 | B179: BAS RHIN | C179: 5060 | D179: HAGUENAU | E179: 4060 | F179: HAGUENAU HOUBLON | G179: 8.6 | H179: 170 | I179: 188 | J179: 166 | K179: 192 | L179: 173 | M179: 165 | N179: 177 | O179: 72 | P179: 55 | Q179: 182 | R179: 114 | S179: 98 | T179: 145 | U179: 182 | V179: 203 | W179: 126 | X179: 175
A180: 160 | B180: AUBE HAUTE MARNE | C180: 14 | D180: TROYES | E180: 510523 | F180: LA CHAPELLE ST LUC | G180: 4.5 | H180: 171 | I180: 218 | J180: 188 | K180: 218 | L180: 144 | M180: 184 | N180: 62 | O180: 148 | P180: 171 | Q180: 47 | R180: 71 | S180: 102 | T180: 31 | U180: 114 | V180: 147 | W180: 109 | X180: 92
A181: 160 | B181: MARNE ARDENNES | C181: 11 | D181: REIMS | E181: 551309 | F181: REIMS EUROPE | G181: 2.3 | H181: 172 | I181: 164 | J181: 118 | K181: 217 | L181: 129 | M181: 174 | N181: 56 | O181: 209 | P181: 216 | Q181: 90 | R181: 85 | S181: 125 | T181: 41 | U181: 123 | V181: 71 | W181: 228 | X181: 62
A182: 160 | B182: MARNE ARDENNES | C182: 6 | D182: CHALONS EN CHAMPAGNE | E182: 451166 | F182: VITRY LE FRANCOIS | G182: 3.8 | H182: 173 | I182: 214 | J182: 205 | K182: 207 | L182: 78 | M182: 88 | N182: 67 | O182: 229 | P182: 233 | Q182: 51 | R182: 149 | S182: 160 | T182: 113 | U182: 26 | V182: 52 | W182: 48 | X182: 26
A183: 160 | B183: MOSELLE | C183: 42 | D183: MOSELLE EST | E183: 557503 | F183: NEUNKIRCH | G183: 3.0 | H183: 174 | I183: 6 | J183: 6 | K183: 17 | L183: 220 | M183: 199 | N183: 233 | O183: 230 | P183: 226 | Q183: 232 | R183: 235 | S183: 234 | T183: 237 | U183: 209 | V183: 213 | W183: 137 | X183: 224
A184: 160 | B184: BAS RHIN | C184: 5101 | D184: SELESTAT | E184: 4119 | F184: OBERNAI | G184: 3.3 | H184: 175 | I184: 177 | J184: 157 | K184: 185 | L184: 209 | M184: 206 | N184: 202 | O184: 14 | P184: 11 | Q184: 146 | R184: 176 | S184: 157 | T184: 193 | U184: 215 | V184: 233 | W184: 124 | X184: 228
A185: 160 | B185: BAS RHIN | C185: 5101 | D185: SELESTAT | E185: 4101 | F185: SELESTAT CENTRE | G185: 7.9 | H185: 176 | I185: 178 | J185: 171 | K185: 175 | L185: 119 | M185: 76 | N185: 199 | O185: 162 | P185: 131 | Q185: 221 | R185: 119 | S185: 119 | T185: 127 | U185: 178 | V185: 216 | W185: 91 | X185: 191
A186: 160 | B186: MOSELLE | C186: 45 | D186: METZ | E186: 557441 | F186: METZ PLAPPEVILLE | G186: 2.7 | H186: 177 | I186: 179 | J186: 145 | K186: 199 | L186: 203 | M186: 210 | N186: 163 | O186: 40 | P186: 24 | Q186: 189 | R186: 164 | S186: 152 | T186: 173 | U186: 155 | V186: 207 | W186: 69 | X186: 197
A187: 160 | B187: MOSELLE | C187: 45 | D187: METZ | E187: 557445 | F187: METZ SAINT LIVIER | G187: 2.6 | H187: 178 | I187: 104 | J187: 89 | K187: 132 | L187: 166 | M187: 158 | N187: 172 | O187: 159 | P187: 158 | Q187: 105 | R187: 225 | S187: 210 | T187: 235 | U187: 166 | V187: 79 | W187: 207 | X187: 171
A188: 160 | B188: BAS RHIN | C188: 5060 | D188: HAGUENAU | E188: 4066 | F188: NIEDERBRONN LES BAINS | G188: 5.7 | H188: 179 | I188: 103 | J188: 112 | K188: 77 | L188: 197 | M188: 194 | N188: 181 | O188: 160 | P188: 142 | Q188: 186 | R188: 193 | S188: 175 | T188: 213 | U188: 187 | V188: 227 | W188: 120 | X188: 163
A189: 160 | B189: MOSELLE | C189: 45 | D189: METZ | E189: 557712 | F189: WOIPPY | G189: 4.2 | H189: 180 | I189: 223 | J189: 157 | K189: 231 | L189: 124 | M189: 130 | N189: 111 | O189: 145 | P189: 160 | Q189: 53 | R189: 80 | S189: 85 | T189: 87 | U189: 132 | V189: 98 | W189: 142 | X189: 137
A190: 160 | B190: MARNE ARDENNES | C190: 11 | D190: REIMS | E190: 451308 | F190: REIMS SAINT THOMAS | G190: 5.7 | H190: 181 | I190: 238 | J190: 191 | K190: 239 | L190: 105 | M190: 121 | N190: 87 | O190: 192 | P190: 194 | Q190: 109 | R190: 86 | S190: 101 | T190: 74 | U190: 56 | V190: 40 | W190: 133 | X190: 45
A191: 160 | B191: HAUT RHIN | C191: 5169 | D191: MULHOUSE | E191: 4180 | F191: RIEDISHEIM | G191: 3.3 | H191: 182 | I191: 78 | J191: 56 | K191: 129 | L191: 175 | M191: 156 | N191: 205 | O191: 221 | P191: 215 | Q191: 215 | R191: 151 | S191: 135 | T191: 180 | U191: 229 | V191: 134 | W191: 233 | X191: 218
A192: 160 | B192: HAUT RHIN | C192: 5169 | D192: MULHOUSE | E192: 4170 | F192: MULHOUSE REUNION | G192: 8.1 | H192: 183 | I192: 161 | J192: 136 | K192: 195 | L192: 162 | M192: 168 | N192: 125 | O192: 211 | P192: 211 | Q192: 156 | R192: 100 | S192: 130 | T192: 54 | U192: 125 | V192: 106 | W192: 103 | X192: 144
A193: 160 | B193: MOSELLE | C193: 45 | D193: METZ | E193: 557559 | F193: REMILLY | G193: 3.0 | H193: 184 | I193: 200 | J193: 191 | K193: 188 | L193: 160 | M193: 164 | N193: 131 | O193: 120 | P193: 105 | Q193: 149 | R193: 210 | S193: 217 | T193: 148 | U193: 72 | V193: 132 | W193: 30 | X193: 90
A194: 160 | B194: HAUT RHIN | C194: 5130 | D194: COLMAR | E194: 4157 | F194: NEUF BRISACH | G194: 2.6 | H194: 185 | I194: 196 | J194: 205 | K194: 178 | L194: 163 | M194: 186 | N194: 83 | O194: 201 | P194: 213 | Q194: 60 | R194: 78 | S194: 88 | T194: 77 | U194: 105 | V194: 184 | W194: 56 | X194: 102
A195: 160 | B195: AUBE HAUTE MARNE | C195: 14 | D195: TROYES | E195: 410510 | F195: TROYES GAMBETTA | G195: 8.6 | H195: 186 | I195: 208 | J195: 205 | K195: 198 | L195: 146 | M195: 152 | N195: 126 | O195: 184 | P195: 180 | Q195: 171 | R195: 87 | S195: 79 | T195: 117 | U195: 134 | V195: 97 | W195: 169 | X195: 114
A196: 160 | B196: BAS RHIN | C196: 5101 | D196: SELESTAT | E196: 4107 | F196: VILLE | G196: 2.3 | H196: 187 | I196: 206 | J196: 205 | K196: 191 | L196: 103 | M196: 42 | N196: 236 | O196: 56 | P196: 31 | Q196: 233 | R196: 186 | S196: 155 | T196: 225 | U196: 234 | V196: 232 | W196: 184 | X196: 237
A197: 160 | B197: BAS RHIN | C197: 5060 | D197: HAGUENAU | E197: 4082 | F197: BOUXWILLER | G197: 2.5 | H197: 188 | I197: 52 | J197: 52 | K197: 70 | L197: 192 | M197: 176 | N197: 208 | O197: 239 | P197: 239 | Q197: 154 | R197: 121 | S197: 121 | T197: 122 | U197: 170 | V197: 125 | W197: 179 | X197: 158
A198: 160 | B198: MOSELLE | C198: 45 | D198: METZ | E198: 557436 | F198: METZ CATHEDRALE | G198: 4.1 | H198: 189 | I198: 224 | J198: 205 | K198: 219 | L198: 131 | M198: 109 | N198: 173 | O198: 87 | P198: 65 | Q198: 181 | R198: 148 | S198: 138 | T198: 160 | U198: 173 | V198: 192 | W198: 135 | X198: 167
A199: 160 | B199: HAUT RHIN | C199: 5169 | D199: MULHOUSE | E199: 4178 | F199: SAINT LOUIS | G199: 6.6 | H199: 190 | I199: 172 | J199: 155 | K199: 186 | L199: 145 | M199: 150 | N199: 127 | O199: 58 | P199: 54 | Q199: 121 | R199: 202 | S199: 201 | T199: 176 | U199: 227 | V199: 163 | W199: 227 | X199: 213
A200: 160 | B200: MOSELLE | C200: 42 | D200: MOSELLE EST | E200: 457258 | F200: DIEUZE | G200: 3.1 | H200: 191 | I200: 46 | J200: 48 | K200: 66 | L200: 227 | M200: 209 | N200: 235 | O200: 212 | P200: 200 | Q200: 223 | R200: 185 | S200: 180 | T200: 185 | U200: 223 | V200: 223 | W200: 197 | X200: 208
A201: 160 | B201: BAS RHIN | C201: 5006 | D201: STRASBOURG | E201: 4045 | F201: STRASBOURG FRANCS BOURGEOIS | G201: 4.2 | H201: 192 | I201: 120 | J201: 145 | K201: 44 | L201: 93 | M201: 100 | N201: 95 | O201: 235 | P201: 236 | Q201: 63 | R201: 172 | S201: 150 | T201: 187 | U201: 205 | V201: 115 | W201: 230 | X201: 159
A202: 160 | B202: VOSGES | C202: 57 | D202: EPINAL | E202: 588501 | F202: NEUFCHATEAU | G202: 4.6 | H202: 193 | I202: 101 | J202: 105 | K202: 90 | L202: 174 | M202: 169 | N202: 164 | O202: 217 | P202: 219 | Q202: 170 | R202: 211 | S202: 209 | T202: 186 | U202: 192 | V202: 186 | W202: 189 | X202: 139
A203: 160 | B203: MOSELLE | C203: 45 | D203: METZ | E203: 557433 | F203: MARANGE SILVANGE | G203: 2.5 | H203: 194 | I203: 166 | J203: 166 | K203: 170 | L203: 194 | M203: 185 | N203: 197 | O203: 188 | P203: 181 | Q203: 184 | R203: 184 | S203: 188 | T203: 161 | U203: 76 | V203: 167 | W203: 14 | X203: 116
A204: 160 | B204: HAUT RHIN | C204: 5130 | D204: COLMAR | E204: 4132 | F204: COLMAR MARAICHERS | G204: 3.2 | H204: 195 | I204: 152 | J204: 150 | K204: 162 | L204: 148 | M204: 143 | N204: 148 | O204: 182 | P204: 187 | Q204: 133 | R204: 208 | S204: 203 | T204: 202 | U204: 160 | V204: 194 | W204: 80 | X204: 196
... 47 more rows

Sheet AG_FICHE
A1: Accueil
A2: BAROMETRE GRAND PUBLIC
A4: UNITE: | B4: Agence | E4: ETP perf : | F4: =VLOOKUP(A5,'RECAP AG'!$G$6:$CY$248,3,FALSE) -> 5.24
A5: =VLOOKUP(B5,LISTES!$C$6:$D$246,2,FALSE) -> 4189 | B5: ALTKIRCH
C6: Coefficient du critère | E6: Résultats | I6: Ecart au 1ier | K6: =IF(OR(A5=4017,A5=4022),"Rang estimé","Rang") -> Rang
E7: du 1ier | G7: de l'Agence
A9: RANG GRAND PUBLIC | K9: =VLOOKUP($A$5,'RECAP AG'!$G$6:$CY$248,96,FALSE) -> 241
A11: SATISFACTION CLIENTS | C11: 20% | K11: =VLOOKUP($A$5,'RECAP AG'!$G$6:$CY$248,13,FALSE) -> 241
B12: NPS à froid (SAE) | C12: 10% | E12: =+'RECAP AG'!K4 -> 63 | G12: =VLOOKUP($A$5,'RECAP AG'!$G$6:$CY$248,5,FALSE) -> 0.0 | I12: =VLOOKUP($A$5,'RECAP AG'!$G$6:$CY$248,6,FALSE) -> 100% | K12: =VLOOKUP($A$5,'RECAP AG'!$G$6:$CY$248,7,FALSE) -> 205
B13: NPS à chaud (QHD) | C13: 10% | E13: =+'RECAP AG'!N4 -> 87% | G13: =VLOOKUP($A$5,'RECAP AG'!$G$6:$CY$248,8,FALSE) -> 9% | I13: =VLOOKUP($A$5,'RECAP AG'!$G$6:$CY$248,9,FALSE) -> 89% | K13: =VLOOKUP($A$5,'RECAP AG'!$G$6:$CY$248,10,FALSE) -> 241
A15: BANCARISATION | C15: 20% | K15: =VLOOKUP($A$5,'RECAP AG'!$G$6:$CY$248,28,FALSE) -> 240
B16: Ventes Nettes produits pondérés | C16: 12% | E16: ='RECAP AG'!X4 -> 118.8 | G16: =VLOOKUP($A$5,'RECAP AG'!$G$6:$CY$248,19,FALSE) -> -19.4 | I16: =VLOOKUP($A$5,'RECAP AG'!$G$6:$CY$248,20,FALSE) -> 116% | K16: =VLOOKUP($A$5,'RECAP AG'!$G$6:$CY$248,21,FALSE) -> 238
B17: Ventes sur client non détenteur de l’univers | C17: 8% | E17: ='RECAP AG'!AB4 -> 173.0 | G17: =VLOOKUP($A$5,'RECAP AG'!$G$6:$CY$248,23,FALSE) -> 40.3 | I17: =VLOOKUP($A$5,'RECAP AG'!$G$6:$CY$248,24,FALSE) -> 77% | K17: =VLOOKUP($A$5,'RECAP AG'!$G$6:$CY$248,25,FALSE) -> 237
A19: EPARGNE | C19: 20% | K19: =VLOOKUP($A$5,'RECAP AG'!$G$6:$CY$248,43,FALSE) -> 228
B20: Excédent Epargne hors DAV pondéré | C20: 12% | E20: ='RECAP AG'!AM4 -> 2707.2 | G20: =VLOOKUP($A$5,'RECAP AG'!$G$6:$CY$248,34,FALSE) -> -430.0 | I20: =VLOOKUP($A$5,'RECAP AG'!$G$6:$CY$248,35,FALSE) -> 106% | K20: =VLOOKUP($A$5,'RECAP AG'!$G$6:$CY$248,36,FALSE) -> 227
B21: Ventes sur client non détenteur de l’univers | C21: 8% | E21: ='RECAP AG'!AQ4 -> 326.3 | G21: =VLOOKUP($A$5,'RECAP AG'!$G$6:$CY$248,38,FALSE) -> 44.5 | I21: =VLOOKUP($A$5,'RECAP AG'!$G$6:$CY$248,39,FALSE) -> 86% | K21: =VLOOKUP($A$5,'RECAP AG'!$G$6:$CY$248,40,FALSE) -> 226
A23: IARD PREVOYANCE | C23: 20% | K23: =VLOOKUP($A$5,'RECAP AG'!$G$6:$CY$248,77,FALSE) -> 239
B24: Ventes Nettes produits pondérés | C24: 12% | E24: ='RECAP AG'!BU4 -> 701.5 | G24: =VLOOKUP($A$5,'RECAP AG'!$G$6:$CY$248,68,FALSE) -> -135.7 | I24: =VLOOKUP($A$5,'RECAP AG'!$G$6:$CY$248,69,FALSE) -> 115% | K24: =VLOOKUP($A$5,'RECAP AG'!$G$6:$CY$248,70,FALSE) -> 238
B25: Ventes sur client non détenteur de l’univers | C25: 8% | E25: ='RECAP AG'!BY4 -> 175.9 | G25: =VLOOKUP($A$5,'RECAP AG'!$G$6:$CY$248,72,FALSE) -> 26.7 | I25: =VLOOKUP($A$5,'RECAP AG'!$G$6:$CY$248,73,FALSE) -> 85% | K25: =VLOOKUP($A$5,'RECAP AG'!$G$6:$CY$248,74,FALSE) -> 230
A27: CREDITS | C27: 20% | K27: =VLOOKUP($A$5,'RECAP AG'!$G$6:$CY$248,62,FALSE) -> 237
B28: Engagements et ventes accessoires pondérés Immo | C28: 6% | E28: ='RECAP AG'!BB4 -> 1534.9 | G28: =VLOOKUP($A$5,'RECAP AG'!$G$6:$CY$248,49,FALSE) -> 117.9 | I28: =VLOOKUP($A$5,'RECAP AG'!$G$6:$CY$248,50,FALSE) -> 92% | K28: =VLOOKUP($A$5,'RECAP AG'!$G$6:$CY$248,51,FALSE) -> 234
B29: Engagements et ventes accessoires pondérés Conso | C29: 6% | E29: ='RECAP AG'!BF4 -> 129.5 | G29: =VLOOKUP($A$5,'RECAP AG'!$G$6:$CY$248,53,FALSE) -> 43.1 | I29: =VLOOKUP($A$5,'RECAP AG'!$G$6:$CY$248,54,FALSE) -> 67% | K29: =VLOOKUP($A$5,'RECAP AG'!$G$6:$CY$248,55,FALSE) -> 204
B30: Ventes sur client non détenteur de l’univers | C30: 8% | E30: ='RECAP AG'!BJ4 -> 100.7 | G30: =VLOOKUP($A$5,'RECAP AG'!$G$6:$CY$248,57,FALSE) -> 13.4 | I30: =VLOOKUP($A$5,'RECAP AG'!$G$6:$CY$248,58,FALSE) -> 87% | K30: =VLOOKUP($A$5,'RECAP AG'!$G$6:$CY$248,59,FALSE) -> 238

Sheet AG_TOTAL
B1: Accueil | H1: BAROMETRE BDD - AGENCES
H2: TOTAL GENERAL
H3: =ACCUEIL!F7 -> 2022-12-04
H7: TOTAL GENERAL | K7: Total Satisfaction Clients | N7: Total Bancarisation | Q7: Total Epargne | T7: Total IARD Prévoyance | W7: Total Crédits
I8: coef | J8: =M8+P8+S8+V8+Y8 -> 100% | L8: coef | M8: =AG_SATISFACTION!P8 -> 20% | O8: coef | P8: =AG_BANCA!R8 -> 20% | R8: coef | S8: =AG_EPARGNE!R8 -> 20% | U8: coef | V8: =AG_IARD!R8 -> 20% | X8: coef | Y8: =AG_CREDIT!V8 -> 20%
B9: Direction | C9: eds | D9: Territoire | E9: eds | F9: Agence | G9: ="ETP perf "&DATEMAJ!$C$28 -> ETP perf 04-déc | H9: Moyenne ecart au 1er | I9: % Ecart au 1er | J9: Rang CEGEE | K9: Moyenne ecart au 1er | L9: % Ecart au 1er | M9: Rang CEGEE | N9: Moyenne ecart au 1er | O9: % Ecart au 1er | P9: Rang CEGEE | Q9: Moyenne ecart au 1er | R9: % Ecart au 1er | S9: Rang CEGEE | T9: Moyenne ecart au 1er | U9: % Ecart au 1er | V9: Rang CEGEE | W9: Moyenne ecart au 1er | X9: % Ecart au 1er | Y9: Rang CEGEE
A10: 50 | B10: MOSELLE | C10: 44 | D10: MOSELLE NORD | E10: 557508 | F10: NILVANGE | G10: 1.4 | H10: 10% | I10: 0% | J10: 1 | K10: 40% | L10: 36% | M10: 65 | N10: 0% | O10: 0% | P10: 1 | Q10: 43% | R10: 12% | S10: 3 | T10: 0% | U10: 0% | V10: 1 | W10: 0% | X10: 0% | Y10: 1
A11: 50 | B11: MARNE ARDENNES | C11: 11 | D11: REIMS | E11: 551340 | F11: BETHENY | G11: 2.2 | H11: 39% | I11: 29% | J11: 2 | K11: 37% | L11: 34% | M11: 53 | N11: 36% | O11: 36% | P11: 3 | Q11: 49% | R11: 19% | S11: 6 | T11: 68% | U11: 68% | V11: 50 | W11: 37% | X11: 37% | Y11: 5
A12: 50 | B12: MEURTHE ET MOSELLE MEUSE | C12: 27 | D12: PONT A MOUSSON | E12: 554381 | F12: LAXOU ARISTIDE BRIAND | G12: 2.3 | H12: 41% | I12: 31% | J12: 3 | K12: 60% | L12: 56% | M12: 142 | N12: 26% | O12: 26% | P12: 2 | Q12: 67% | R12: 36% | S12: 33 | T12: 54% | U12: 54% | V12: 4 | W12: 31% | X12: 31% | Y12: 3
A13: 50 | B13: VOSGES | C13: 57 | D13: EPINAL | E13: 488288 | F13: EPINAL LEOPOLD BOURG | G13: 1.9 | H13: 41% | I13: 31% | J13: 4 | K13: 13% | L13: 9% | M13: 4 | N13: 54% | O13: 54% | P13: 19 | Q13: 50% | R13: 20% | S13: 7 | T13: 69% | U13: 69% | V13: 60 | W13: 54% | X13: 54% | Y13: 24
A14: 50 | B14: MARNE ARDENNES | C14: 11 | D14: REIMS | E14: 551305 | F14: REIMS HIPPODROME | G14: 5.0 | H14: 43% | I14: 33% | J14: 5 | K14: 43% | L14: 39% | M14: 81 | N14: 47% | O14: 47% | P14: 10 | Q14: 65% | R14: 34% | S14: 28 | T14: 56% | U14: 56% | V14: 10 | W14: 38% | X14: 38% | Y14: 6
A15: 50 | B15: MARNE ARDENNES | C15: 6 | D15: CHALONS EN CHAMPAGNE | E15: 551330 | F15: MONTMIRAIL | G15: 2.8 | H15: 43% | I15: 33% | J15: 6 | K15: 17% | L15: 14% | M15: 9 | N15: 51% | O15: 51% | P15: 12 | Q15: 68% | R15: 38% | S15: 41 | T15: 56% | U15: 56% | V15: 9 | W15: 58% | X15: 58% | Y15: 46
A16: 50 | B16: MARNE ARDENNES | C16: 11 | D16: REIMS | E16: 551349 | F16: REIMS SAINT REMI | G16: 2.9 | H16: 43% | I16: 34% | J16: 7 | K16: 52% | L16: 48% | M16: 117 | N16: 36% | O16: 36% | P16: 4 | Q16: 63% | R16: 32% | S16: 19 | T16: 59% | U16: 59% | V16: 15 | W16: 42% | X16: 42% | Y16: 9
A17: 50 | B17: BAS RHIN | C17: 5006 | D17: STRASBOURG | E17: 4048 | F17: STRASBOURG KOENIGSHOFFEN | G17: 1.5 | H17: 44% | I17: 34% | J17: 8 | K17: 63% | L17: 60% | M17: 156 | N17: 42% | O17: 42% | P17: 6 | Q17: 46% | R17: 15% | S17: 5 | T17: 55% | U17: 55% | V17: 7 | W17: 48% | X17: 48% | Y17: 16
A18: 50 | B18: MARNE ARDENNES | C18: 6 | D18: CHALONS EN CHAMPAGNE | E18: 451115 | F18: MOURMELON LE GRAND | G18: 2.8 | H18: 46% | I18: 36% | J18: 9 | K18: 47% | L18: 43% | M18: 98 | N18: 45% | O18: 45% | P18: 9 | Q18: 60% | R18: 30% | S18: 13 | T18: 60% | U18: 60% | V18: 18 | W18: 51% | X18: 51% | Y18: 18
A19: 50 | B19: MOSELLE | C19: 44 | D19: MOSELLE NORD | E19: 557660 | F19: UCKANGE | G19: 1.9 | H19: 46% | I19: 36% | J19: 10 | K19: 75% | L19: 71% | M19: 217 | N19: 52% | O19: 52% | P19: 14 | Q19: 67% | R19: 37% | S19: 38 | T19: 37% | U19: 37% | V19: 2 | W19: 31% | X19: 31% | Y19: 2
A20: 50 | B20: MOSELLE | C20: 44 | D20: MOSELLE NORD | E20: 557113 | F20: AUDUN LE TICHE | G20: 2.0 | H20: 46% | I20: 36% | J20: 11 | K20: 49% | L20: 46% | M20: 106 | N20: 44% | O20: 44% | P20: 7 | Q20: 62% | R20: 32% | S20: 16 | T20: 64% | U20: 64% | V20: 33 | W20: 44% | X20: 44% | Y20: 11
A21: 50 | B21: MOSELLE | C21: 45 | D21: METZ | E21: 457443 | F21: METZ REPUBLIQUE | G21: 3.5 | H21: 46% | I21: 36% | J21: 12 | K21: 33% | L21: 29% | M21: 37 | N21: 71% | O21: 71% | P21: 92 | Q21: 30% | R21: 0% | S21: 1 | T21: 63% | U21: 63% | V21: 27 | W21: 68% | X21: 68% | Y21: 110
A22: 50 | B22: MEURTHE ET MOSELLE MEUSE | C22: 26 | D22: NANCY | E22: 554476 | F22: NANCY ARTEM | G22: 2.8 | H22: 48% | I22: 38% | J22: 13 | K22: 28% | L22: 24% | M22: 21 | N22: 52% | O22: 52% | P22: 13 | Q22: 81% | R22: 51% | S22: 139 | T22: 73% | U22: 73% | V22: 88 | W22: 40% | X22: 40% | Y22: 8
A23: 50 | B23: MARNE ARDENNES | C23: 6 | D23: CHALONS EN CHAMPAGNE | E23: 451120 | F23: SARRY | G23: 2.2 | H23: 48% | I23: 38% | J23: 14 | K23: 20% | L23: 16% | M23: 11 | N23: 56% | O23: 56% | P23: 22 | Q23: 78% | R23: 48% | S23: 114 | T23: 62% | U23: 62% | V23: 24 | W23: 59% | X23: 59% | Y23: 48
A24: 50 | B24: MARNE ARDENNES | C24: 2 | D24: CHARLEVILLE MEZIERES | E24: 508820 | F24: VOUZIERS | G24: 2.7 | H24: 48% | I24: 39% | J24: 15 | K24: 33% | L24: 30% | M24: 39 | N24: 61% | O24: 61% | P24: 38 | Q24: 71% | R24: 40% | S24: 54 | T24: 55% | U24: 55% | V24: 8 | W24: 56% | X24: 56% | Y24: 31
A25: 50 | B25: MARNE ARDENNES | C25: 11 | D25: REIMS | E25: 551365 | F25: DORMANS | G25: 2.5 | H25: 49% | I25: 39% | J25: 16 | K25: 33% | L25: 29% | M25: 36 | N25: 44% | O25: 44% | P25: 8 | Q25: 84% | R25: 54% | S25: 167 | T25: 65% | U25: 65% | V25: 37 | W25: 54% | X25: 54% | Y25: 23
A26: 50 | B26: MOSELLE | C26: 42 | D26: MOSELLE EST | E26: 457165 | F26: BITCHE | G26: 2.3 | H26: 50% | I26: 41% | J26: 17 | K26: 24% | L26: 20% | M26: 17 | N26: 53% | O26: 53% | P26: 15 | Q26: 76% | R26: 45% | S26: 91 | T26: 65% | U26: 65% | V26: 36 | W26: 69% | X26: 69% | Y26: 122
A27: 50 | B27: BAS RHIN | C27: 5006 | D27: STRASBOURG | E27: 4037 | F27: SHOPPING PROMENADE CŒUR ALSACE | G27: 3.8 | H27: 51% | I27: 41% | J27: 18 | K27: 44% | L27: 41% | M27: 85 | N27: 53% | O27: 53% | P27: 17 | Q27: 80% | R27: 49% | S27: 124 | T27: 56% | U27: 56% | V27: 12 | W27: 56% | X27: 56% | Y27: 33
A28: 262 | B28: MARNE ARDENNES | C28: 11 | D28: REIMS | E28: 451350 | F28: REIMS CENTRE VILLE | G28: 6.2 | H28: 51% | I28: 41% | J28: 19 | K28: 68% | L28: 65% | M28: 185 | N28: 42% | O28: 42% | P28: 5 | Q28: 82% | R28: 52% | S28: 152 | T28: 61% | U28: 61% | V28: 19 | W28: 36% | X28: 36% | Y28: 4
A29: 262 | B29: MOSELLE | C29: 45 | D29: METZ | E29: 457453 | F29: MONTIGNY LES METZ | G29: 7.0 | H29: 52% | I29: 42% | J29: 20 | K29: 22% | L29: 18% | M29: 13 | N29: 62% | O29: 62% | P29: 43 | Q29: 72% | R29: 42% | S29: 63 | T29: 78% | U29: 78% | V29: 139 | W29: 58% | X29: 58% | Y29: 45
A30: 262 | B30: VOSGES | C30: 57 | D30: EPINAL | E30: 588336 | F30: GOLBEY | G30: 2.8 | H30: 52% | I30: 42% | J30: 21 | K30: 31% | L30: 28% | M30: 34 | N30: 71% | O30: 71% | P30: 97 | Q30: 65% | R30: 34% | S30: 29 | T30: 62% | U30: 62% | V30: 23 | W30: 63% | X30: 63% | Y30: 70
A31: 262 | B31: MARNE ARDENNES | C31: 6 | D31: CHALONS EN CHAMPAGNE | E31: 551354 | F31: VERTUS | G31: 2.0 | H31: 52% | I31: 42% | J31: 22 | K31: 6% | L31: 3% | M31: 2 | N31: 73% | O31: 73% | P31: 115 | Q31: 63% | R31: 32% | S31: 20 | T31: 85% | U31: 85% | V31: 194 | W31: 67% | X31: 67% | Y31: 98
A32: 262 | B32: MOSELLE | C32: 45 | D32: METZ | E32: 457446 | F32: METZ SERPENOISE | G32: 5.7 | H32: 52% | I32: 42% | J32: 23 | K32: 45% | L32: 42% | M32: 92 | N32: 55% | O32: 55% | P32: 21 | Q32: 73% | R32: 43% | S32: 74 | T32: 70% | U32: 70% | V32: 65 | W32: 52% | X32: 52% | Y32: 19
A33: 262 | B33: MARNE ARDENNES | C33: 2 | D33: CHARLEVILLE MEZIERES | E33: 508839 | F33: GIVET | G33: 3.4 | H33: 53% | I33: 43% | J33: 24 | K33: 42% | L33: 38% | M33: 71 | N33: 65% | O33: 65% | P33: 57 | Q33: 79% | R33: 49% | S33: 122 | T33: 54% | U33: 54% | V33: 6 | W33: 58% | X33: 58% | Y33: 42
A34: 262 | B34: MOSELLE | C34: 42 | D34: MOSELLE EST | E34: 457308 | F34: FORBACH CENTRALE | G34: 10.0 | H34: 53% | I34: 44% | J34: 25 | K34: 50% | L34: 46% | M34: 109 | N34: 58% | O34: 58% | P34: 28 | Q34: 73% | R34: 42% | S34: 68 | T34: 64% | U34: 64% | V34: 31 | W34: 57% | X34: 57% | Y34: 35
A35: 262 | B35: MARNE ARDENNES | C35: 2 | D35: CHARLEVILLE MEZIERES | E35: 508833 | F35: VILLERS SEMEUSE CORA | G35: 3.0 | H35: 53% | I35: 44% | J35: 26 | K35: 68% | L35: 64% | M35: 181 | N35: 69% | O35: 69% | P35: 83 | Q35: 65% | R35: 34% | S35: 30 | T35: 56% | U35: 56% | V35: 11 | W35: 44% | X35: 44% | Y35: 12
A36: 262 | B36: MARNE ARDENNES | C36: 11 | D36: REIMS | E36: 451336 | F36: TINQUEUX | G36: 5.0 | H36: 54% | I36: 44% | J36: 27 | K36: 60% | L36: 57% | M36: 144 | N36: 63% | O36: 63% | P36: 47 | Q36: 42% | R36: 11% | S36: 2 | T36: 76% | U36: 76% | V36: 117 | W36: 61% | X36: 61% | Y36: 59
A37: 262 | B37: AUBE HAUTE MARNE | C37: 21 | D37: CHAUMONT | E37: 510590 | F37: CHAUMONT REPUBLIQUE | G37: 2.9 | H37: 54% | I37: 44% | J37: 28 | K37: 37% | L37: 33% | M37: 50 | N37: 75% | O37: 75% | P37: 132 | Q37: 64% | R37: 33% | S37: 23 | T37: 63% | U37: 63% | V37: 28 | W37: 63% | X37: 63% | Y37: 69
A38: 262 | B38: MOSELLE | C38: 42 | D38: MOSELLE EST | E38: 557250 | F38: CREUTZWALD | G38: 2.5 | H38: 54% | I38: 44% | J38: 29 | K38: 23% | L38: 20% | M38: 14 | N38: 76% | O38: 76% | P38: 135 | Q38: 74% | R38: 43% | S38: 79 | T38: 65% | U38: 65% | V38: 38 | W38: 65% | X38: 65% | Y38: 82
A39: 262 | B39: MARNE ARDENNES | C39: 11 | D39: REIMS | E39: 451301 | F39: REIMS HOTEL DE VILLE | G39: 6.8 | H39: 54% | I39: 44% | J39: 30 | K39: 50% | L39: 47% | M39: 110 | N39: 64% | O39: 64% | P39: 50 | Q39: 76% | R39: 46% | S39: 98 | T39: 58% | U39: 58% | V39: 14 | W39: 56% | X39: 56% | Y39: 32
A40: 262 | B40: MOSELLE | C40: 45 | D40: METZ | E40: 557432 | F40: MAIZIERES LES METZ | G40: 2.8 | H40: 54% | I40: 44% | J40: 31 | K40: 69% | L40: 65% | M40: 191 | N40: 53% | O40: 53% | P40: 18 | Q40: 72% | R40: 42% | S40: 65 | T40: 64% | U40: 64% | V40: 30 | W40: 46% | X40: 46% | Y40: 13
A41: 262 | B41: MEURTHE ET MOSELLE MEUSE | C41: 26 | D41: NANCY | E41: 554601 | F41: SAINT MAX | G41: 3.5 | H41: 54% | I41: 44% | J41: 32 | K41: 31% | L41: 27% | M41: 29 | N41: 75% | O41: 75% | P41: 130 | Q41: 64% | R41: 34% | S41: 25 | T41: 67% | U41: 67% | V41: 47 | W41: 68% | X41: 68% | Y41: 108
A42: 262 | B42: MEURTHE ET MOSELLE MEUSE | C42: 26 | D42: NANCY | E42: 554356 | F42: JARVILLE LA MALGRANGE | G42: 4.1 | H42: 54% | I42: 45% | J42: 33 | K42: 26% | L42: 23% | M42: 20 | N42: 59% | O42: 59% | P42: 31 | Q42: 88% | R42: 58% | S42: 197 | T42: 71% | U42: 71% | V42: 72 | W42: 61% | X42: 61% | Y42: 62
A43: 262 | B43: MEURTHE ET MOSELLE MEUSE | C43: 31 | D43: VERDUN | E43: 555406 | F43: LIGNY EN BARROIS | G43: 2.5 | H43: 55% | I43: 45% | J43: 34 | K43: 28% | L43: 24% | M43: 22 | N43: 73% | O43: 73% | P43: 113 | Q43: 45% | R43: 14% | S43: 4 | T43: 88% | U43: 88% | V43: 217 | W43: 74% | X43: 74% | Y43: 179
A44: 262 | B44: MOSELLE | C44: 45 | D44: METZ | E44: 557447 | F44: METZ SAINT MAXIMIN | G44: 2.4 | H44: 55% | I44: 45% | J44: 35 | K44: 57% | L44: 53% | M44: 132 | N44: 64% | O44: 64% | P44: 49 | Q44: 70% | R44: 40% | S44: 53 | T44: 48% | U44: 48% | V44: 3 | W44: 70% | X44: 70% | Y44: 133
A45: 262 | B45: MARNE ARDENNES | C45: 11 | D45: REIMS | E45: 551367 | F45: AY CHAMPAGNE | G45: 2.7 | H45: 55% | I45: 45% | J45: 36 | K45: 33% | L45: 29% | M45: 38 | N45: 73% | O45: 73% | P45: 110 | Q45: 74% | R45: 44% | S45: 84 | T45: 73% | U45: 73% | V45: 83 | W45: 57% | X45: 57% | Y45: 34
A46: 262 | B46: MEURTHE ET MOSELLE MEUSE | C46: 31 | D46: VERDUN | E46: 554413 | F46: LONGWY BAS | G46: 3.4 | H46: 55% | I46: 45% | J46: 37 | K46: 24% | L46: 20% | M46: 16 | N46: 68% | O46: 68% | P46: 75 | Q46: 77% | R46: 47% | S46: 107 | T46: 74% | U46: 74% | V46: 99 | W46: 67% | X46: 67% | Y46: 94
A47: 262 | B47: MARNE ARDENNES | C47: 11 | D47: REIMS | E47: 451361 | F47: PIERRY LECLERC | G47: 1.9 | H47: 55% | I47: 45% | J47: 38 | K47: 36% | L47: 32% | M47: 48 | N47: 69% | O47: 69% | P47: 82 | Q47: 63% | R47: 32% | S47: 21 | T47: 76% | U47: 76% | V47: 118 | W47: 66% | X47: 66% | Y47: 91
A48: 262 | B48: BAS RHIN | C48: 5006 | D48: STRASBOURG | E48: 4047 | F48: STRASBOURG CRONENBOURG | G48: 4.0 | H48: 55% | I48: 46% | J48: 39 | K48: 48% | L48: 44% | M48: 100 | N48: 57% | O48: 57% | P48: 24 | Q48: 65% | R48: 34% | S48: 26 | T48: 74% | U48: 74% | V48: 98 | W48: 67% | X48: 67% | Y48: 99
A49: 262 | B49: MOSELLE | C49: 44 | D49: MOSELLE NORD | E49: 557352 | F49: HETTANGE GRANDE | G49: 3.2 | H49: 55% | I49: 46% | J49: 40 | K49: 58% | L49: 54% | M49: 139 | N49: 57% | O49: 57% | P49: 27 | Q49: 77% | R49: 47% | S49: 104 | T49: 67% | U49: 67% | V49: 42 | W49: 52% | X49: 52% | Y49: 20
A50: 262 | B50: MARNE ARDENNES | C50: 6 | D50: CHALONS EN CHAMPAGNE | E50: 551103 | F50: FAGNIERES LECLERC | G50: 2.5 | H50: 55% | I50: 46% | J50: 41 | K50: 42% | L50: 39% | M50: 76 | N50: 69% | O50: 69% | P50: 87 | Q50: 82% | R50: 52% | S50: 147 | T50: 57% | U50: 57% | V50: 13 | W50: 61% | X50: 61% | Y50: 61
A51: 262 | B51: MARNE ARDENNES | C51: 2 | D51: CHARLEVILLE MEZIERES | E51: 408801 | F51: CHARLEVILLE JEAN JAURES | G51: 8.9 | H51: 56% | I51: 46% | J51: 42 | K51: 42% | L51: 39% | M51: 75 | N51: 68% | O51: 68% | P51: 80 | Q51: 74% | R51: 43% | S51: 78 | T51: 68% | U51: 68% | V51: 57 | W51: 59% | X51: 59% | Y51: 49
A52: 262 | B52: MEURTHE ET MOSELLE MEUSE | C52: 27 | D52: PONT A MOUSSON | E52: 554686 | F52: VEZELISE | G52: 1.9 | H52: 56% | I52: 46% | J52: 43 | K52: 4% | L52: 0% | M52: 1 | N52: 75% | O52: 75% | P52: 128 | Q52: 72% | R52: 41% | S52: 59 | T52: 83% | U52: 83% | V52: 179 | W52: 80% | X52: 80% | Y52: 230
A53: 262 | B53: MARNE ARDENNES | C53: 2 | D53: CHARLEVILLE MEZIERES | E53: 508819 | F53: MOUZON | G53: 1.9 | H53: 56% | I53: 46% | J53: 44 | K53: 55% | L53: 52% | M53: 130 | N53: 73% | O53: 73% | P53: 108 | Q53: 61% | R53: 31% | S53: 15 | T53: 69% | U53: 69% | V53: 58 | W53: 56% | X53: 56% | Y53: 29
A54: 262 | B54: MOSELLE | C54: 42 | D54: MOSELLE EST | E54: 557305 | F54: FAULQUEMONT | G54: 3.7 | H54: 56% | I54: 46% | J54: 45 | K54: 79% | L54: 76% | M54: 233 | N54: 53% | O54: 53% | P54: 16 | Q54: 80% | R54: 50% | S54: 126 | T54: 64% | U54: 64% | V54: 32 | W54: 38% | X54: 38% | Y54: 7
A55: 262 | B55: MOSELLE | C55: 45 | D55: METZ | E55: 557439 | F55: METZ POMPIDOU | G55: 2.7 | H55: 56% | I55: 46% | J55: 46 | K55: 40% | L55: 36% | M55: 66 | N55: 66% | O55: 66% | P55: 63 | Q55: 65% | R55: 34% | S55: 27 | T55: 79% | U55: 79% | V55: 144 | W55: 65% | X55: 65% | Y55: 84
A56: 262 | B56: MOSELLE | C56: 42 | D56: MOSELLE EST | E56: 457583 | F56: SAINT AVOLD | G56: 6.9 | H56: 56% | I56: 46% | J56: 47 | K56: 40% | L56: 36% | M56: 64 | N56: 61% | O56: 61% | P56: 40 | Q56: 78% | R56: 48% | S56: 112 | T56: 70% | U56: 70% | V56: 63 | W56: 66% | X56: 66% | Y56: 92
A57: 262 | B57: MEURTHE ET MOSELLE MEUSE | C57: 27 | D57: PONT A MOUSSON | E57: 554516 | F57: PAGNY SUR MOSELLE | G57: 2.7 | H57: 56% | I57: 46% | J57: 48 | K57: 50% | L57: 47% | M57: 111 | N57: 64% | O57: 64% | P57: 54 | Q57: 74% | R57: 44% | S57: 85 | T57: 66% | U57: 66% | V57: 41 | W57: 60% | X57: 60% | Y57: 55
A58: 262 | B58: BAS RHIN | C58: 5006 | D58: STRASBOURG | E58: 4038 | F58: OBERHAUSBERGEN | G58: 3.4 | H58: 56% | I58: 47% | J58: 49 | K58: 39% | L58: 36% | M58: 61 | N58: 66% | O58: 66% | P58: 62 | Q58: 62% | R58: 32% | S58: 17 | T58: 85% | U58: 85% | V58: 192 | W58: 64% | X58: 64% | Y58: 71
A59: 262 | B59: BAS RHIN | C59: 5101 | D59: SELESTAT | E59: 4113 | F59: BARR | G59: 2.9 | H59: 56% | I59: 47% | J59: 50 | K59: 25% | L59: 21% | M59: 18 | N59: 62% | O59: 62% | P59: 46 | Q59: 78% | R59: 48% | S59: 116 | T59: 78% | U59: 78% | V59: 136 | W59: 73% | X59: 73% | Y59: 161
A60: 262 | B60: MEURTHE ET MOSELLE MEUSE | C60: 26 | D60: NANCY | E60: 554636 | F60: TOMBLAINE | G60: 2.5 | H60: 56% | I60: 47% | J60: 51 | K60: 23% | L60: 20% | M60: 15 | N60: 75% | O60: 75% | P60: 127 | Q60: 73% | R60: 42% | S60: 69 | T60: 77% | U60: 77% | V60: 127 | W60: 69% | X60: 69% | Y60: 121
A61: 262 | B61: MARNE ARDENNES | C61: 6 | D61: CHALONS EN CHAMPAGNE | E61: 551110 | F61: CHALONS ROOSEVELT | G61: 4.4 | H61: 57% | I61: 47% | J61: 52 | K61: 38% | L61: 35% | M61: 58 | N61: 72% | O61: 72% | P61: 107 | Q61: 76% | R61: 45% | S61: 94 | T61: 61% | U61: 61% | V61: 20 | W61: 69% | X61: 69% | Y61: 119
A62: 262 | B62: MARNE ARDENNES | C62: 6 | D62: CHALONS EN CHAMPAGNE | E62: 451381 | F62: SEZANNE | G62: 4.7 | H62: 57% | I62: 47% | J62: 53 | K62: 43% | L62: 39% | M62: 79 | N62: 65% | O62: 65% | P62: 59 | Q62: 67% | R62: 37% | S62: 36 | T62: 81% | U62: 81% | V62: 161 | W62: 62% | X62: 62% | Y62: 64
A63: 262 | B63: MEURTHE ET MOSELLE MEUSE | C63: 31 | D63: VERDUN | E63: 455678 | F63: VERDUN CENTRALE | G63: 10.6 | H63: 57% | I63: 47% | J63: 54 | K63: 29% | L63: 26% | M63: 27 | N63: 68% | O63: 68% | P63: 73 | Q63: 84% | R63: 54% | S63: 169 | T63: 80% | U63: 80% | V63: 156 | W63: 57% | X63: 57% | Y63: 37
A64: 262 | B64: AUBE HAUTE MARNE | C64: 21 | D64: CHAUMONT | E64: 410541 | F64: LANGRES | G64: 7.9 | H64: 57% | I64: 47% | J64: 55 | K64: 37% | L64: 33% | M64: 51 | N64: 70% | O64: 70% | P64: 90 | Q64: 76% | R64: 46% | S64: 97 | T64: 67% | U64: 67% | V64: 46 | W64: 68% | X64: 68% | Y64: 111
A65: 262 | B65: MOSELLE | C65: 44 | D65: MOSELLE NORD | E65: 457348 | F65: HAGONDANGE | G65: 8.0 | H65: 57% | I65: 47% | J65: 56 | K65: 54% | L65: 51% | M65: 125 | N65: 60% | O65: 60% | P65: 34 | Q65: 81% | R65: 50% | S65: 134 | T65: 65% | U65: 65% | V65: 34 | W65: 60% | X65: 60% | Y65: 54
A66: 262 | B66: MEURTHE ET MOSELLE MEUSE | C66: 31 | D66: VERDUN | E66: 555679 | F66: VERDUN MAZEL | G66: 3.7 | H66: 57% | I66: 47% | J66: 57 | K66: 26% | L66: 22% | M66: 19 | N66: 73% | O66: 73% | P66: 114 | Q66: 73% | R66: 42% | S66: 70 | T66: 75% | U66: 75% | V66: 111 | W66: 73% | X66: 73% | Y66: 162
A67: 262 | B67: MOSELLE | C67: 44 | D67: MOSELLE NORD | E67: 557303 | F67: FAMECK | G67: 2.7 | H67: 57% | I67: 47% | J67: 58 | K67: 35% | L67: 31% | M67: 43 | N67: 71% | O67: 71% | P67: 100 | Q67: 67% | R67: 36% | S67: 32 | T67: 89% | U67: 89% | V67: 219 | W67: 58% | X67: 58% | Y67: 41
A68: 262 | B68: MARNE ARDENNES | C68: 6 | D68: CHALONS EN CHAMPAGNE | E68: 451101 | F68: CHALONS VIVIERS | G68: 9.3 | H68: 57% | I68: 47% | J68: 59 | K68: 29% | L68: 25% | M68: 26 | N68: 73% | O68: 73% | P68: 117 | Q68: 79% | R68: 48% | S68: 117 | T68: 73% | U68: 73% | V68: 82 | W68: 66% | X68: 66% | Y68: 90
A69: 262 | B69: MARNE ARDENNES | C69: 11 | D69: REIMS | E69: 551310 | F69: REIMS CHATILLONS | G69: 4.0 | H69: 57% | I69: 47% | J69: 60 | K69: 57% | L69: 54% | M69: 136 | N69: 58% | O69: 58% | P69: 29 | Q69: 78% | R69: 47% | S69: 111 | T69: 70% | U69: 70% | V69: 68 | W69: 57% | X69: 57% | Y69: 36
A70: 262 | B70: MOSELLE | C70: 44 | D70: MOSELLE NORD | E70: 557347 | F70: GUENANGE | G70: 4.7 | H70: 57% | I70: 48% | J70: 61 | K70: 67% | L70: 63% | M70: 173 | N70: 57% | O70: 57% | P70: 26 | Q70: 75% | R70: 45% | S70: 89 | T70: 67% | U70: 67% | V70: 44 | W70: 54% | X70: 54% | Y70: 27
A71: 262 | B71: BAS RHIN | C71: 5006 | D71: STRASBOURG | E71: 4010 | F71: STRASBOURG MEINAU | G71: 3.0 | H71: 57% | I71: 48% | J71: 62 | K71: 45% | L71: 41% | M71: 88 | N71: 60% | O71: 60% | P71: 37 | Q71: 78% | R71: 47% | S71: 109 | T71: 67% | U71: 67% | V71: 45 | W71: 71% | X71: 71% | Y71: 141
A72: 262 | B72: MEURTHE ET MOSELLE MEUSE | C72: 27 | D72: PONT A MOUSSON | E72: 554506 | F72: CHALIGNY NEUVES MAISONS | G72: 3.6 | H72: 58% | I72: 48% | J72: 63 | K72: 66% | L72: 62% | M72: 167 | N72: 57% | O72: 57% | P72: 23 | Q72: 88% | R72: 57% | S72: 193 | T72: 59% | U72: 59% | V72: 16 | W72: 52% | X72: 52% | Y72: 21
A73: 262 | B73: BAS RHIN | C73: 5006 | D73: STRASBOURG | E73: 4054 | F73: STRASBOURG MONTAGNE VERTE | G73: 2.7 | H73: 58% | I73: 48% | J73: 64 | K73: 41% | L73: 37% | M73: 68 | N73: 68% | O73: 68% | P73: 81 | Q73: 70% | R73: 40% | S73: 49 | T73: 65% | U73: 65% | V73: 35 | W73: 78% | X73: 78% | Y73: 217
A74: 264 | B74: MARNE ARDENNES | C74: 11 | D74: REIMS | E74: 451370 | F74: EPERNAY | G74: 9.2 | H74: 58% | I74: 48% | J74: 65 | K74: 40% | L74: 36% | M74: 63 | N74: 62% | O74: 62% | P74: 42 | Q74: 83% | R74: 52% | S74: 155 | T74: 75% | U74: 75% | V74: 108 | W74: 64% | X74: 64% | Y74: 74
A75: 264 | B75: VOSGES | C75: 57 | D75: EPINAL | E75: 588396 | F75: LE VAL D AJOL | G75: 2.5 | H75: 58% | I75: 48% | J75: 66 | K75: 11% | L75: 8% | M75: 3 | N75: 79% | O75: 79% | P75: 169 | Q75: 73% | R75: 42% | S75: 67 | T75: 81% | U75: 81% | V75: 166 | W75: 79% | X75: 79% | Y75: 221
A76: 264 | B76: MEURTHE ET MOSELLE MEUSE | C76: 26 | D76: NANCY | E76: 554116 | F76: BACCARAT | G76: 2.8 | H76: 58% | I76: 48% | J76: 67 | K76: 18% | L76: 15% | M76: 10 | N76: 75% | O76: 75% | P76: 133 | Q76: 77% | R76: 46% | S76: 102 | T76: 78% | U76: 78% | V76: 140 | W76: 75% | X76: 75% | Y76: 191
A77: 264 | B77: MOSELLE | C77: 42 | D77: MOSELLE EST | E77: 557523 | F77: PHALSBOURG | G77: 2.6 | H77: 58% | I77: 48% | J77: 68 | K77: 44% | L77: 40% | M77: 84 | N77: 76% | O77: 76% | P77: 139 | Q77: 67% | R77: 36% | S77: 34 | T77: 69% | U77: 69% | V77: 62 | W77: 67% | X77: 67% | Y77: 96
A78: 264 | B78: MOSELLE | C78: 44 | D78: MOSELLE NORD | E78: 457632 | F78: THIONVILLE CENTRALE | G78: 10.0 | H78: 58% | I78: 48% | J78: 69 | K78: 53% | L78: 50% | M78: 121 | N78: 59% | O78: 59% | P78: 30 | Q78: 89% | R78: 59% | S78: 200 | T78: 63% | U78: 63% | V78: 26 | W78: 59% | X78: 59% | Y78: 51
A79: 264 | B79: MEURTHE ET MOSELLE MEUSE | C79: 27 | D79: PONT A MOUSSON | E79: 554531 | F79: POMPEY | G79: 3.3 | H79: 58% | I79: 48% | J79: 70 | K79: 72% | L79: 69% | M79: 209 | N79: 59% | O79: 59% | P79: 33 | Q79: 70% | R79: 40% | S79: 51 | T79: 73% | U79: 73% | V79: 77 | W79: 49% | X79: 49% | Y79: 17
A80: 264 | B80: MOSELLE | C80: 44 | D80: MOSELLE NORD | E80: 457350 | F80: HAYANGE | G80: 6.3 | H80: 58% | I80: 48% | J80: 71 | K80: 57% | L80: 53% | M80: 135 | N80: 63% | O80: 63% | P80: 48 | Q80: 80% | R80: 50% | S80: 130 | T80: 62% | U80: 62% | V80: 22 | W80: 61% | X80: 61% | Y80: 60
A81: 264 | B81: VOSGES | C81: 57 | D81: EPINAL | E81: 488561 | F81: REMIREMONT | G81: 7.2 | H81: 58% | I81: 48% | J81: 72 | K81: 17% | L81: 13% | M81: 8 | N81: 73% | O81: 73% | P81: 116 | Q81: 80% | R81: 50% | S81: 131 | T81: 78% | U81: 78% | V81: 142 | W81: 75% | X81: 75% | Y81: 196
A82: 264 | B82: VOSGES | C82: 55 | D82: SAINT DIE | E82: 488246 | F82: CORNIMONT LA BRESSE | G82: 2.7 | H82: 58% | I82: 48% | J82: 73 | K82: 21% | L82: 17% | M82: 12 | N82: 72% | O82: 72% | P82: 102 | Q82: 85% | R82: 54% | S82: 171 | T82: 74% | U82: 74% | V82: 96 | W82: 73% | X82: 73% | Y82: 165
A83: 264 | B83: MEURTHE ET MOSELLE MEUSE | C83: 31 | D83: VERDUN | E83: 454414 | F83: LONGWY HAUT | G83: 3.4 | H83: 58% | I83: 48% | J83: 74 | K83: 43% | L83: 39% | M83: 80 | N83: 68% | O83: 68% | P83: 71 | Q83: 79% | R83: 49% | S83: 121 | T83: 68% | U83: 68% | V83: 56 | W83: 67% | X83: 67% | Y83: 93
A84: 264 | B84: AUBE HAUTE MARNE | C84: 21 | D84: CHAUMONT | E84: 451154 | F84: JOINVILLE | G84: 1.8 | H84: 58% | I84: 48% | J84: 75 | K84: 34% | L84: 30% | M84: 40 | N84: 67% | O84: 67% | P84: 67 | Q84: 94% | R84: 63% | S84: 218 | T84: 63% | U84: 63% | V84: 25 | W84: 67% | X84: 67% | Y84: 102
A85: 264 | B85: MEURTHE ET MOSELLE MEUSE | C85: 26 | D85: NANCY | E85: 454481 | F85: NANCY PLACE DOMBASLE | G85: 7.8 | H85: 58% | I85: 48% | J85: 76 | K85: 65% | L85: 61% | M85: 163 | N85: 68% | O85: 68% | P85: 76 | Q85: 73% | R85: 43% | S85: 75 | T85: 71% | U85: 71% | V85: 73 | W85: 48% | X85: 48% | Y85: 15
A86: 264 | B86: MARNE ARDENNES | C86: 11 | D86: REIMS | E86: 551314 | F86: FISMES | G86: 2.6 | H86: 58% | I86: 48% | J86: 77 | K86: 31% | L86: 28% | M86: 33 | N86: 62% | O86: 62% | P86: 41 | Q86: 95% | R86: 65% | S86: 224 | T86: 78% | U86: 78% | V86: 134 | W86: 59% | X86: 59% | Y86: 50
A87: 264 | B87: MOSELLE | C87: 42 | D87: MOSELLE EST | E87: 457617 | F87: SARREGUEMINES | G87: 6.5 | H87: 58% | I87: 49% | J87: 78 | K87: 61% | L87: 57% | M87: 145 | N87: 65% | O87: 65% | P87: 55 | Q87: 72% | R87: 41% | S87: 60 | T87: 71% | U87: 71% | V87: 70 | W87: 58% | X87: 58% | Y87: 40
A88: 264 | B88: MOSELLE | C88: 45 | D88: METZ | E88: 457574 | F88: ROMBAS | G88: 2.5 | H88: 58% | I88: 49% | J88: 79 | K88: 41% | L88: 37% | M88: 69 | N88: 72% | O88: 72% | P88: 106 | Q88: 81% | R88: 51% | S88: 137 | T88: 63% | U88: 63% | V88: 29 | W88: 69% | X88: 69% | Y88: 116
A89: 264 | B89: MARNE ARDENNES | C89: 6 | D89: CHALONS EN CHAMPAGNE | E89: 551128 | F89: SAINTE MENEHOULD | G89: 2.9 | H89: 58% | I89: 49% | J89: 80 | K89: 34% | L89: 31% | M89: 41 | N89: 67% | O89: 67% | P89: 69 | Q89: 82% | R89: 52% | S89: 151 | T89: 68% | U89: 68% | V89: 55 | W89: 74% | X89: 74% | Y89: 183
A90: 264 | B90: VOSGES | C90: 55 | D90: SAINT DIE | E90: 488326 | F90: GERARDMER | G90: 3.9 | H90: 58% | I90: 49% | J90: 81 | K90: 42% | L90: 39% | M90: 74 | N90: 74% | O90: 74% | P90: 125 | Q90: 74% | R90: 43% | S90: 80 | T90: 75% | U90: 75% | V90: 104 | W90: 62% | X90: 62% | Y90: 63
A91: 264 | B91: VOSGES | C91: 55 | D91: SAINT DIE | E91: 588551 | F91: RAMBERVILLERS | G91: 2.6 | H91: 59% | I91: 49% | J91: 82 | K91: 29% | L91: 25% | M91: 25 | N91: 77% | O91: 77% | P91: 152 | Q91: 71% | R91: 40% | S91: 55 | T91: 90% | U91: 90% | V91: 223 | W91: 60% | X91: 60% | Y91: 57
A92: 264 | B92: MOSELLE | C92: 45 | D92: METZ | E92: 557444 | F92: SAINT JULIEN LES METZ | G92: 3.6 | H92: 59% | I92: 49% | J92: 83 | K92: 78% | L92: 75% | M92: 231 | N92: 66% | O92: 66% | P92: 61 | Q92: 55% | R92: 25% | S92: 8 | T92: 69% | U92: 69% | V92: 59 | W92: 58% | X92: 58% | Y92: 47
A93: 264 | B93: MEURTHE ET MOSELLE MEUSE | C93: 31 | D93: VERDUN | E93: 554700 | F93: VILLERUPT | G93: 2.7 | H93: 59% | I93: 49% | J93: 84 | K93: 35% | L93: 31% | M93: 42 | N93: 68% | O93: 68% | P93: 74 | Q93: 75% | R93: 44% | S93: 86 | T93: 76% | U93: 76% | V93: 115 | W93: 74% | X93: 74% | Y93: 176
A94: 264 | B94: MOSELLE | C94: 42 | D94: MOSELLE EST | E94: 457543 | F94: PUTTELANGE AUX LACS | G94: 2.3 | H94: 59% | I94: 49% | J94: 85 | K94: 60% | L94: 56% | M94: 143 | N94: 67% | O94: 67% | P94: 65 | Q94: 74% | R94: 43% | S94: 82 | T94: 61% | U94: 61% | V94: 21 | W94: 66% | X94: 66% | Y94: 87
A95: 264 | B95: MOSELLE | C95: 44 | D95: MOSELLE NORD | E95: 457158 | F95: YUTZ | G95: 4.7 | H95: 59% | I95: 49% | J95: 86 | K95: 62% | L95: 58% | M95: 150 | N95: 65% | O95: 65% | P95: 56 | Q95: 75% | R95: 45% | S95: 88 | T95: 66% | U95: 66% | V95: 39 | W95: 59% | X95: 59% | Y95: 52
A96: 30 | B96: MARNE ARDENNES | C96: 11 | D96: REIMS | E96: 551306 | F96: REIMS SAINT MARCEAUX | G96: 3.0 | H96: 59% | I96: 49% | J96: 87 | K96: 50% | L96: 46% | M96: 107 | N96: 50% | O96: 50% | P96: 11 | Q96: 101% | R96: 70% | S96: 234 | T96: 70% | U96: 70% | V96: 66 | W96: 58% | X96: 58% | Y96: 43
A97: 30 | B97: MARNE ARDENNES | C97: 11 | D97: REIMS | E97: 551369 | F97: DAMERY | G97: 1.7 | H97: 59% | I97: 49% | J97: 88 | K97: 45% | L97: 42% | M97: 93 | N97: 55% | O97: 55% | P97: 20 | Q97: 107% | R97: 76% | S97: 238 | T97: 68% | U97: 68% | V97: 52 | W97: 55% | X97: 55% | Y97: 28
A98: 30 | B98: BAS RHIN | C98: 5006 | D98: STRASBOURG | E98: 4043 | F98: STRASBOURG HALLES | G98: 7.6 | H98: 59% | I98: 49% | J98: 89 | K98: 61% | L98: 57% | M98: 146 | N98: 62% | O98: 62% | P98: 44 | Q98: 84% | R98: 54% | S98: 168 | T98: 54% | U98: 54% | V98: 5 | W98: 69% | X98: 69% | Y98: 120
A99: 30 | B99: MOSELLE | C99: 44 | D99: MOSELLE NORD | E99: 457306 | F99: FLORANGE | G99: 4.6 | H99: 59% | I99: 49% | J99: 90 | K99: 77% | L99: 74% | M99: 227 | N99: 59% | O99: 59% | P99: 32 | Q99: 77% | R99: 46% | S99: 103 | T99: 74% | U99: 74% | V99: 93 | W99: 43% | X99: 43% | Y99: 10
A100: 30 | B100: MOSELLE | C100: 45 | D100: METZ | E100: 557434 | F100: MARLY | G100: 3.1 | H100: 59% | I100: 49% | J100: 91 | K100: 32% | L100: 28% | M100: 35 | N100: 74% | O100: 74% | P100: 126 | Q100: 70% | R100: 40% | S100: 50 | T100: 86% | U100: 86% | V100: 201 | W100: 68% | X100: 68% | Y100: 106
A101: 30 | B101: MARNE ARDENNES | C101: 2 | D101: CHARLEVILLE MEZIERES | E101: 408822 | F101: CHARLEVILLE MEZIERES | G101: 5.2 | H101: 59% | I101: 49% | J101: 92 | K101: 69% | L101: 65% | M101: 190 | N101: 73% | O101: 73% | P101: 111 | Q101: 63% | R101: 33% | S101: 22 | T101: 68% | U101: 68% | V101: 54 | W101: 57% | X101: 57% | Y101: 38
A102: 30 | B102: HAUT RHIN | C102: 5130 | D102: COLMAR | E102: 4143 | F102: MUNSTER | G102: 4.1 | H102: 59% | I102: 50% | J102: 93 | K102: 51% | L102: 47% | M102: 114 | N102: 65% | O102: 65% | P102: 58 | Q102: 71% | R102: 41% | S102: 57 | T102: 73% | U102: 73% | V102: 76 | W102: 71% | X102: 71% | Y102: 135
A103: 30 | B103: MOSELLE | C103: 42 | D103: MOSELLE EST | E103: 557668 | F103: VALMONT | G103: 2.9 | H103: 59% | I103: 50% | J103: 94 | K103: 37% | L103: 34% | M103: 54 | N103: 83% | O103: 83% | P103: 196 | Q103: 67% | R103: 37% | S103: 37 | T103: 70% | U103: 70% | V103: 64 | W103: 74% | X103: 74% | Y103: 172
A104: 30 | B104: VOSGES | C104: 57 | D104: EPINAL | E104: 588716 | F104: XERTIGNY | G104: 2.8 | H104: 59% | I104: 50% | J104: 95 | K104: 40% | L104: 36% | M104: 62 | N104: 74% | O104: 74% | P104: 122 | Q104: 68% | R104: 37% | S104: 39 | T104: 78% | U104: 78% | V104: 135 | W104: 73% | X104: 73% | Y104: 157
A105: 30 | B105: BAS RHIN | C105: 5060 | D105: HAGUENAU | E105: 4071 | F105: WISSEMBOURG | G105: 8.2 | H105: 60% | I105: 50% | J105: 96 | K105: 31% | L105: 27% | M105: 30 | N105: 71% | O105: 71% | P105: 96 | Q105: 78% | R105: 48% | S105: 113 | T105: 76% | U105: 76% | V105: 116 | W105: 77% | X105: 77% | Y105: 211
A106: 30 | B106: BAS RHIN | C106: 5006 | D106: STRASBOURG | E106: 4024 | F106: STRASBOURG AUSTERLITZ | G106: 1.5 | H106: 60% | I106: 50% | J106: 97 | K106: 81% | L106: 77% | M106: 235 | N106: 62% | O106: 62% | P106: 45 | Q106: 60% | R106: 29% | S106: 12 | T106: 68% | U106: 68% | V106: 51 | W106: 64% | X106: 64% | Y106: 75
A107: 30 | B107: MARNE ARDENNES | C107: 2 | D107: CHARLEVILLE MEZIERES | E107: 408862 | F107: REVIN | G107: 3.9 | H107: 61% | I107: 51% | J107: 98 | K107: 38% | L107: 34% | M107: 56 | N107: 76% | O107: 76% | P107: 136 | Q107: 85% | R107: 55% | S107: 176 | T107: 70% | U107: 70% | V107: 67 | W107: 67% | X107: 67% | Y107: 100
A108: 30 | B108: MARNE ARDENNES | C108: 2 | D108: CHARLEVILLE MEZIERES | E108: 408840 | F108: RETHEL | G108: 4.2 | H108: 61% | I108: 51% | J108: 99 | K108: 57% | L108: 53% | M108: 134 | N108: 66% | O108: 66% | P108: 64 | Q108: 76% | R108: 46% | S108: 99 | T108: 73% | U108: 73% | V108: 79 | W108: 64% | X108: 64% | Y108: 79
A109: 30 | B109: VOSGES | C109: 55 | D109: SAINT DIE | E109: 588386 | F109: LE THILLOT | G109: 2.6 | H109: 61% | I109: 51% | J109: 100 | K109: 14% | L109: 10% | M109: 5 | N109: 79% | O109: 79% | P109: 164 | Q109: 85% | R109: 54% | S109: 170 | T109: 84% | U109: 84% | V109: 191 | W109: 76% | X109: 76% | Y109: 202
A110: 30 | B110: MEURTHE ET MOSELLE MEUSE | C110: 31 | D110: VERDUN | E110: 554412 | F110: LONGUYON | G110: 2.8 | H110: 61% | I110: 51% | J110: 101 | K110: 42% | L110: 38% | M110: 73 | N110: 68% | O110: 68% | P110: 72 | Q110: 82% | R110: 52% | S110: 146 | T110: 75% | U110: 75% | V110: 105 | W110: 71% | X110: 71% | Y110: 137
A111: 30 | B111: MEURTHE ET MOSELLE MEUSE | C111: 27 | D111: PONT A MOUSSON | E111: 554357 | F111: JOEUF | G111: 3.1 | H111: 61% | I111: 51% | J111: 102 | K111: 39% | L111: 35% | M111: 59 | N111: 76% | O111: 76% | P111: 141 | Q111: 80% | R111: 50% | S111: 128 | T111: 81% | U111: 81% | V111: 160 | W111: 62% | X111: 62% | Y111: 67
A112: 30 | B112: MEURTHE ET MOSELLE MEUSE | C112: 31 | D112: VERDUN | E112: 455151 | F112: BAR LE DUC | G112: 9.8 | H112: 61% | I112: 51% | J112: 103 | K112: 37% | L112: 33% | M112: 49 | N112: 74% | O112: 74% | P112: 123 | Q112: 83% | R112: 52% | S112: 153 | T112: 74% | U112: 74% | V112: 97 | W112: 71% | X112: 71% | Y112: 139
A113: 30 | B113: BAS RHIN | C113: 5101 | D113: SELESTAT | E113: 4104 | F113: ERSTEIN | G113: 3.8 | H113: 61% | I113: 51% | J113: 104 | K113: 71% | L113: 67% | M113: 202 | N113: 57% | O113: 57% | P113: 25 | Q113: 74% | R113: 43% | S113: 76 | T113: 73% | U113: 73% | V113: 81 | W113: 64% | X113: 64% | Y113: 77
A114: 30 | B114: BAS RHIN | C114: 5101 | D114: SELESTAT | E114: 4121 | F114: SCHIRMECK | G114: 2.8 | H114: 61% | I114: 51% | J114: 105 | K114: 38% | L114: 34% | M114: 55 | N114: 69% | O114: 69% | P114: 85 | Q114: 81% | R114: 51% | S114: 140 | T114: 82% | U114: 82% | V114: 174 | W114: 69% | X114: 69% | Y114: 118
A115: 30 | B115: VOSGES | C115: 57 | D115: EPINAL | E115: 488281 | F115: ELOYES | G115: 3.4 | H115: 61% | I115: 51% | J115: 106 | K115: 36% | L115: 32% | M115: 47 | N115: 80% | O115: 80% | P115: 177 | Q115: 70% | R115: 40% | S115: 48 | T115: 86% | U115: 86% | V115: 199 | W115: 68% | X115: 68% | Y115: 107
A116: 30 | B116: MEURTHE ET MOSELLE MEUSE | C116: 27 | D116: PONT A MOUSSON | E116: 554416 | F116: LUDRES | G116: 3.7 | H116: 61% | I116: 51% | J116: 107 | K116: 41% | L116: 37% | M116: 70 | N116: 78% | O116: 78% | P116: 159 | Q116: 69% | R116: 38% | S116: 42 | T116: 79% | U116: 79% | V116: 146 | W116: 74% | X116: 74% | Y116: 175
A117: 30 | B117: BAS RHIN | C117: 5006 | D117: STRASBOURG | E117: 4006 | F117: STRASBOURG NEUDORF | G117: 7.8 | H117: 61% | I117: 51% | J117: 108 | K117: 29% | L117: 25% | M117: 24 | N117: 81% | O117: 81% | P117: 181 | Q117: 78% | R117: 48% | S117: 115 | T117: 73% | U117: 73% | V117: 90 | W117: 78% | X117: 78% | Y117: 216
A118: 30 | B118: BAS RHIN | C118: 5006 | D118: STRASBOURG | E118: 4019 | F118: STRASBOURG ANVERS | G118: 4.4 | H118: 61% | I118: 51% | J118: 109 | K118: 67% | L118: 63% | M118: 176 | N118: 64% | O118: 64% | P118: 52 | Q118: 69% | R118: 38% | S118: 44 | T118: 71% | U118: 71% | V118: 74 | W118: 69% | X118: 69% | Y118: 124
A119: 30 | B119: BAS RHIN | C119: 5006 | D119: STRASBOURG | E119: 4027 | F119: SCHILTIGHEIM CENTRE | G119: 3.9 | H119: 61% | I119: 52% | J119: 110 | K119: 72% | L119: 68% | M119: 207 | N119: 61% | O119: 61% | P119: 39 | Q119: 70% | R119: 39% | S119: 46 | T119: 74% | U119: 74% | V119: 95 | W119: 64% | X119: 64% | Y119: 78
A120: 30 | B120: BAS RHIN | C120: 5060 | D120: HAGUENAU | E120: 4057 | F120: BISCHWILLER | G120: 6.7 | H120: 61% | I120: 52% | J120: 111 | K120: 38% | L120: 35% | M120: 57 | N120: 67% | O120: 67% | P120: 66 | Q120: 87% | R120: 56% | S120: 183 | T120: 76% | U120: 76% | V120: 112 | W120: 73% | X120: 73% | Y120: 163
A121: 30 | B121: VOSGES | C121: 57 | D121: EPINAL | E121: 488286 | F121: EPINAL ARISTIDE BRIAND | G121: 8.1 | H121: 61% | I121: 52% | J121: 112 | K121: 66% | L121: 62% | M121: 170 | N121: 60% | O121: 60% | P121: 35 | Q121: 73% | R121: 42% | S121: 66 | T121: 75% | U121: 75% | V121: 101 | W121: 69% | X121: 69% | Y121: 117
A122: 30 | B122: MOSELLE | C122: 44 | D122: MOSELLE NORD | E122: 557307 | F122: FONTOY | G122: 1.9 | H122: 62% | I122: 52% | J122: 113 | K122: 42% | L122: 38% | M122: 72 | N122: 80% | O122: 80% | P122: 172 | Q122: 76% | R122: 45% | S122: 92 | T122: 82% | U122: 82% | V122: 173 | W122: 62% | X122: 62% | Y122: 68
A123: 30 | B123: BAS RHIN | C123: 5060 | D123: HAGUENAU | E123: 4092 | F123: HOCHFELDEN | G123: 2.1 | H123: 62% | I123: 52% | J123: 114 | K123: 45% | L123: 41% | M123: 89 | N123: 82% | O123: 82% | P123: 183 | Q123: 70% | R123: 39% | S123: 47 | T123: 75% | U123: 75% | V123: 103 | W123: 71% | X123: 71% | Y123: 143
A124: 30 | B124: VOSGES | C124: 55 | D124: SAINT DIE | E124: 588666 | F124: VAGNEY | G124: 3.5 | H124: 62% | I124: 52% | J124: 115 | K124: 29% | L124: 25% | M124: 23 | N124: 81% | O124: 81% | P124: 180 | Q124: 72% | R124: 41% | S124: 61 | T124: 86% | U124: 86% | V124: 204 | W124: 74% | X124: 74% | Y124: 188
A125: 30 | B125: VOSGES | C125: 55 | D125: SAINT DIE | E125: 588316 | F125: FRAIZE | G125: 3.6 | H125: 62% | I125: 52% | J125: 116 | K125: 42% | L125: 39% | M125: 77 | N125: 77% | O125: 77% | P125: 154 | Q125: 83% | R125: 52% | S125: 154 | T125: 72% | U125: 72% | V125: 75 | W125: 70% | X125: 70% | Y125: 128
A126: 30 | B126: VOSGES | C126: 57 | D126: EPINAL | E126: 588631 | F126: THAON LES VOSGES | G126: 4.7 | H126: 62% | I126: 52% | J126: 117 | K126: 46% | L126: 43% | M126: 95 | N126: 73% | O126: 73% | P126: 112 | Q126: 82% | R126: 51% | S126: 143 | T126: 77% | U126: 77% | V126: 126 | W126: 66% | X126: 66% | Y126: 89
A127: 30 | B127: MOSELLE | C127: 44 | D127: MOSELLE NORD | E127: 457192 | F127: CATTENOM | G127: 1.4 | H127: 62% | I127: 52% | J127: 118 | K127: 59% | L127: 55% | M127: 141 | N127: 67% | O127: 67% | P127: 68 | Q127: 81% | R127: 51% | S127: 141 | T127: 75% | U127: 75% | V127: 106 | W127: 62% | X127: 62% | Y127: 65
A128: 30 | B128: MOSELLE | C128: 45 | D128: METZ | E128: 557105 | F128: ARS SUR MOSELLE | G128: 2.8 | H128: 62% | I128: 52% | J128: 119 | K128: 52% | L128: 49% | M128: 119 | N128: 73% | O128: 73% | P128: 109 | Q128: 92% | R128: 61% | S128: 213 | T128: 74% | U128: 74% | V128: 94 | W128: 54% | X128: 54% | Y128: 25
A129: 30 | B129: MARNE ARDENNES | C129: 11 | D129: REIMS | E129: 551341 | F129: REIMS JEAN JAURES | G129: 4.4 | H129: 62% | I129: 53% | J129: 120 | K129: 70% | L129: 66% | M129: 197 | N129: 64% | O129: 64% | P129: 53 | Q129: 82% | R129: 52% | S129: 149 | T129: 74% | U129: 74% | V129: 91 | W129: 56% | X129: 56% | Y129: 30
A130: 30 | B130: MEURTHE ET MOSELLE MEUSE | C130: 27 | D130: PONT A MOUSSON | E130: 554376 | F130: LAXOU BOUFFLERS | G130: 2.5 | H130: 62% | I130: 53% | J130: 121 | K130: 81% | L130: 77% | M130: 236 | N130: 60% | O130: 60% | P130: 36 | Q130: 83% | R130: 53% | S130: 158 | T130: 75% | U130: 75% | V130: 110 | W130: 46% | X130: 46% | Y130: 14
A131: 30 | B131: VOSGES | C131: 55 | D131: SAINT DIE | E131: 588186 | F131: BRUYERES | G131: 3.5 | H131: 62% | I131: 53% | J131: 122 | K131: 30% | L131: 26% | M131: 28 | N131: 76% | O131: 76% | P131: 138 | Q131: 97% | R131: 66% | S131: 227 | T131: 77% | U131: 77% | V131: 128 | W131: 67% | X131: 67% | Y131: 95
A132: 30 | B132: BAS RHIN | C132: 5060 | D132: HAGUENAU | E132: 4041 | F132: HOERDT | G132: 1.7 | H132: 63% | I132: 53% | J132: 123 | K132: 44% | L132: 40% | M132: 83 | N132: 75% | O132: 75% | P132: 134 | Q132: 69% | R132: 38% | S132: 43 | T132: 79% | U132: 79% | V132: 147 | W132: 79% | X132: 79% | Y132: 226
A133: 30 | B133: MOSELLE | C133: 45 | D133: METZ | E133: 557612 | F133: SAINTE MARIE AUX CHENES | G133: 3.7 | H133: 63% | I133: 53% | J133: 124 | K133: 31% | L133: 27% | M133: 31 | N133: 87% | O133: 87% | P133: 215 | Q133: 76% | R133: 46% | S133: 96 | T133: 77% | U133: 77% | V133: 122 | W133: 77% | X133: 77% | Y133: 212
A134: 30 | B134: VOSGES | C134: 55 | D134: SAINT DIE | E134: 588461 | F134: MOYENMOUTIER | G134: 4.2 | H134: 63% | I134: 53% | J134: 125 | K134: 41% | L134: 37% | M134: 67 | N134: 71% | O134: 71% | P134: 98 | Q134: 80% | R134: 50% | S134: 129 | T134: 78% | U134: 78% | V134: 141 | W134: 77% | X134: 77% | Y134: 214
A135: 110 | B135: BAS RHIN | C135: 5101 | D135: SELESTAT | E135: 4126 | F135: MUTZIG | G135: 2.7 | H135: 63% | I135: 53% | J135: 126 | K135: 61% | L135: 57% | M135: 147 | N135: 64% | O135: 64% | P135: 51 | Q135: 72% | R135: 41% | S135: 62 | T135: 80% | U135: 80% | V135: 154 | W135: 71% | X135: 71% | Y135: 140
A136: 110 | B136: MARNE ARDENNES | C136: 2 | D136: CHARLEVILLE MEZIERES | E136: 508802 | F136: CHARLEVILLE NEVERS | G136: 2.8 | H136: 63% | I136: 53% | J136: 127 | K136: 31% | L136: 27% | M136: 32 | N136: 86% | O136: 86% | P136: 206 | Q136: 92% | R136: 61% | S136: 214 | T136: 71% | U136: 71% | V136: 69 | W136: 69% | X136: 69% | Y136: 126
A137: 110 | B137: AUBE HAUTE MARNE | C137: 14 | D137: TROYES | E137: 510570 | F137: NOGENT SUR SEINE | G137: 3.9 | H137: 63% | I137: 53% | J137: 128 | K137: 35% | L137: 31% | M137: 45 | N137: 74% | O137: 74% | P137: 121 | Q137: 84% | R137: 53% | S137: 164 | T137: 83% | U137: 83% | V137: 180 | W137: 73% | X137: 73% | Y137: 156
A138: 110 | B138: MARNE ARDENNES | C138: 2 | D138: CHARLEVILLE MEZIERES | E138: 508815 | F138: CARIGNAN | G138: 2.6 | H138: 63% | I138: 53% | J138: 129 | K138: 44% | L138: 41% | M138: 86 | N138: 71% | O138: 71% | P138: 94 | Q138: 88% | R138: 58% | S138: 194 | T138: 77% | U138: 77% | V138: 130 | W138: 68% | X138: 68% | Y138: 109
A139: 110 | B139: AUBE HAUTE MARNE | C139: 21 | D139: CHAUMONT | E139: 451156 | F139: SAINT DIZIER CENTRE | G139: 8.6 | H139: 63% | I139: 53% | J139: 130 | K139: 57% | L139: 54% | M139: 137 | N139: 76% | O139: 76% | P139: 137 | Q139: 82% | R139: 51% | S139: 144 | T139: 67% | U139: 67% | V139: 49 | W139: 67% | X139: 67% | Y139: 97
A140: 110 | B140: MEURTHE ET MOSELLE MEUSE | C140: 31 | D140: VERDUN | E140: 455566 | F140: REVIGNY SUR ORNAIN | G140: 2.7 | H140: 63% | I140: 53% | J140: 131 | K140: 45% | L140: 41% | M140: 90 | N140: 76% | O140: 76% | P140: 142 | Q140: 79% | R140: 48% | S140: 118 | T140: 77% | U140: 77% | V140: 129 | W140: 72% | X140: 72% | Y140: 150
A141: 110 | B141: VOSGES | C141: 57 | D141: EPINAL | E141: 588206 | F141: CHARMES | G141: 3.0 | H141: 63% | I141: 53% | J141: 132 | K141: 44% | L141: 41% | M141: 87 | N141: 77% | O141: 77% | P141: 158 | Q141: 78% | R141: 47% | S141: 108 | T141: 75% | U141: 75% | V141: 107 | W141: 75% | X141: 75% | Y141: 197
A142: 110 | B142: MEURTHE ET MOSELLE MEUSE | C142: 26 | D142: NANCY | E142: 454426 | F142: LUNEVILLE CARNOT | G142: 8.4 | H142: 63% | I142: 53% | J142: 133 | K142: 71% | L142: 67% | M142: 201 | N142: 71% | O142: 71% | P142: 95 | Q142: 70% | R142: 40% | S142: 52 | T142: 80% | U142: 80% | V142: 158 | W142: 57% | X142: 57% | Y142: 39
A143: 110 | B143: MEURTHE ET MOSELLE MEUSE | C143: 27 | D143: PONT A MOUSSON | E143: 454355 | F143: JARNY | G143: 4.2 | H143: 63% | I143: 54% | J143: 134 | K143: 45% | L143: 42% | M143: 91 | N143: 77% | O143: 77% | P143: 151 | Q143: 74% | R143: 43% | S143: 77 | T143: 79% | U143: 79% | V143: 145 | W143: 77% | X143: 77% | Y143: 210
A144: 110 | B144: MEURTHE ET MOSELLE MEUSE | C144: 26 | D144: NANCY | E144: 554486 | F144: NANCY POINT CENTRAL | G144: 3.1 | H144: 63% | I144: 54% | J144: 135 | K144: 56% | L144: 52% | M144: 131 | N144: 82% | O144: 82% | P144: 188 | Q144: 64% | R144: 33% | S144: 24 | T144: 81% | U144: 81% | V144: 165 | W144: 68% | X144: 68% | Y144: 112
A145: 110 | B145: AUBE HAUTE MARNE | C145: 21 | D145: CHAUMONT | E145: 410566 | F145: CHAUMONT HOTEL DE VILLE | G145: 10.3 | H145: 63% | I145: 54% | J145: 136 | K145: 43% | L145: 40% | M145: 82 | N145: 82% | O145: 82% | P145: 184 | Q145: 75% | R145: 45% | S145: 90 | T145: 78% | U145: 78% | V145: 133 | W145: 74% | X145: 74% | Y145: 174
A146: 110 | B146: BAS RHIN | C146: 5006 | D146: STRASBOURG | E146: 4020 | F146: STRASBOURG ROBERTSAU | G146: 5.3 | H146: 64% | I146: 54% | J146: 137 | K146: 52% | L146: 48% | M146: 118 | N146: 82% | O146: 82% | P146: 182 | Q146: 58% | R146: 27% | S146: 11 | T146: 85% | U146: 85% | V146: 197 | W146: 75% | X146: 75% | Y146: 199
A147: 110 | B147: MEURTHE ET MOSELLE MEUSE | C147: 27 | D147: PONT A MOUSSON | E147: 554496 | F147: NANCY TROIS MAISONS | G147: 2.4 | H147: 64% | I147: 54% | J147: 138 | K147: 62% | L147: 58% | M147: 149 | N147: 71% | O147: 71% | P147: 99 | Q147: 80% | R147: 50% | S147: 125 | T147: 74% | U147: 74% | V147: 92 | W147: 65% | X147: 65% | Y147: 83
A148: 110 | B148: BAS RHIN | C148: 5101 | D148: SELESTAT | E148: 4127 | F148: ROSHEIM | G148: 1.6 | H148: 64% | I148: 54% | J148: 139 | K148: 50% | L148: 47% | M148: 112 | N148: 84% | O148: 84% | P148: 199 | Q148: 67% | R148: 37% | S148: 35 | T148: 80% | U148: 80% | V148: 155 | W148: 72% | X148: 72% | Y148: 154
A149: 110 | B149: MOSELLE | C149: 42 | D149: MOSELLE EST | E149: 457435 | F149: MERLEBACH | G149: 2.7 | H149: 64% | I149: 54% | J149: 140 | K149: 49% | L149: 45% | M149: 105 | N149: 77% | O149: 77% | P149: 150 | Q149: 86% | R149: 56% | S149: 178 | T149: 81% | U149: 81% | V149: 163 | W149: 62% | X149: 62% | Y149: 66
A150: 110 | B150: MEURTHE ET MOSELLE MEUSE | C150: 26 | D150: NANCY | E150: 554296 | F150: ESSEY LES NANCY | G150: 3.6 | H150: 64% | I150: 55% | J150: 141 | K150: 35% | L150: 31% | M150: 44 | N150: 76% | O150: 76% | P150: 143 | Q150: 84% | R150: 53% | S150: 161 | T150: 89% | U150: 89% | V150: 221 | W150: 72% | X150: 72% | Y150: 151
A151: 110 | B151: MARNE ARDENNES | C151: 2 | D151: CHARLEVILLE MEZIERES | E151: 408806 | F151: SEDAN | G151: 7.4 | H151: 65% | I151: 55% | J151: 142 | K151: 48% | L151: 44% | M151: 99 | N151: 77% | O151: 77% | P151: 156 | Q151: 79% | R151: 48% | S151: 119 | T151: 86% | U151: 86% | V151: 203 | W151: 67% | X151: 67% | Y151: 101
A152: 110 | B152: VOSGES | C152: 57 | D152: EPINAL | E152: 588201 | F152: CHANTRAINE | G152: 3.7 | H152: 65% | I152: 55% | J152: 143 | K152: 48% | L152: 45% | M152: 102 | N152: 73% | O152: 73% | P152: 118 | Q152: 74% | R152: 43% | S152: 81 | T152: 89% | U152: 89% | V152: 218 | W152: 74% | X152: 74% | Y152: 185
A153: 110 | B153: MEURTHE ET MOSELLE MEUSE | C153: 26 | D153: NANCY | E153: 554266 | F153: DOMBASLE SUR MEURTHE | G153: 3.4 | H153: 65% | I153: 55% | J153: 144 | K153: 66% | L153: 62% | M153: 169 | N153: 85% | O153: 85% | P153: 201 | Q153: 62% | R153: 32% | S153: 18 | T153: 77% | U153: 77% | V153: 124 | W153: 69% | X153: 69% | Y153: 115
A154: 110 | B154: BAS RHIN | C154: 5006 | D154: STRASBOURG | E154: 4023 | F154: STRASBOURG VOSGES | G154: 3.0 | H154: 65% | I154: 55% | J154: 145 | K154: 54% | L154: 50% | M154: 123 | N154: 74% | O154: 74% | P154: 120 | Q154: 65% | R154: 35% | S154: 31 | T154: 87% | U154: 87% | V154: 206 | W154: 79% | X154: 79% | Y154: 222
A155: 110 | B155: VOSGES | C155: 57 | D155: EPINAL | E155: 488706 | F155: VITTEL | G155: 3.1 | H155: 65% | I155: 55% | J155: 146 | K155: 51% | L155: 47% | M155: 115 | N155: 80% | O155: 80% | P155: 176 | Q155: 81% | R155: 50% | S155: 133 | T155: 77% | U155: 77% | V155: 123 | W155: 71% | X155: 71% | Y155: 136
A156: 110 | B156: MEURTHE ET MOSELLE MEUSE | C156: 27 | D156: PONT A MOUSSON | E156: 454696 | F156: VILLERS GENERAL LECLERC | G156: 3.9 | H156: 65% | I156: 56% | J156: 147 | K156: 63% | L156: 60% | M156: 155 | N156: 81% | O156: 81% | P156: 179 | Q156: 57% | R156: 26% | S156: 9 | T156: 81% | U156: 81% | V156: 159 | W156: 79% | X156: 79% | Y156: 225
A157: 110 | B157: MOSELLE | C157: 42 | D157: MOSELLE EST | E157: 457614 | F157: SARREBOURG | G157: 7.1 | H157: 65% | I157: 56% | J157: 148 | K157: 59% | L157: 55% | M157: 140 | N157: 77% | O157: 77% | P157: 155 | Q157: 76% | R157: 45% | S157: 93 | T157: 78% | U157: 78% | V157: 132 | W157: 72% | X157: 72% | Y157: 149
A158: 110 | B158: MOSELLE | C158: 45 | D158: METZ | E158: 557459 | F158: MOULINS LES METZ | G158: 2.6 | H158: 65% | I158: 56% | J158: 149 | K158: 46% | L158: 43% | M158: 96 | N158: 79% | O158: 79% | P158: 170 | Q158: 86% | R158: 56% | S158: 180 | T158: 78% | U158: 78% | V158: 138 | W158: 71% | X158: 71% | Y158: 144
A159: 110 | B159: MEURTHE ET MOSELLE MEUSE | C159: 27 | D159: PONT A MOUSSON | E159: 454651 | F159: TOUL | G159: 9.2 | H159: 65% | I159: 56% | J159: 150 | K159: 70% | L159: 67% | M159: 198 | N159: 82% | O159: 82% | P159: 189 | Q159: 74% | R159: 44% | S159: 83 | T159: 75% | U159: 75% | V159: 109 | W159: 60% | X159: 60% | Y159: 53
A160: 110 | B160: BAS RHIN | C160: 5060 | D160: HAGUENAU | E160: 4030 | F160: BRUMATH | G160: 3.8 | H160: 65% | I160: 56% | J160: 151 | K160: 74% | L160: 70% | M160: 215 | N160: 68% | O160: 68% | P160: 77 | Q160: 57% | R160: 27% | S160: 10 | T160: 88% | U160: 88% | V160: 216 | W160: 74% | X160: 74% | Y160: 184
A161: 110 | B161: BAS RHIN | C161: 5060 | D161: HAGUENAU | E161: 4031 | F161: TRUCHTERSHEIM | G161: 2.4 | H161: 65% | I161: 56% | J161: 152 | K161: 47% | L161: 43% | M161: 97 | N161: 68% | O161: 68% | P161: 79 | Q161: 73% | R161: 43% | S161: 73 | T161: 88% | U161: 88% | V161: 214 | W161: 85% | X161: 85% | Y161: 240
A162: 110 | B162: BAS RHIN | C162: 5060 | D162: HAGUENAU | E162: 4067 | F162: PFAFFENHOFFEN | G162: 1.9 | H162: 66% | I162: 56% | J162: 153 | K162: 57% | L162: 53% | M162: 133 | N162: 67% | O162: 67% | P162: 70 | Q162: 78% | R162: 47% | S162: 110 | T162: 86% | U162: 86% | V162: 205 | W162: 73% | X162: 73% | Y162: 171
A163: 110 | B163: BAS RHIN | C163: 5006 | D163: STRASBOURG | E163: 4029 | F163: SCHILTIGHEIM KLEBER | G163: 0.6 | H163: 66% | I163: 56% | J163: 154 | K163: 62% | L163: 58% | M163: 148 | N163: 91% | O163: 91% | P163: 235 | Q163: 70% | R163: 39% | S163: 45 | T163: 75% | U163: 75% | V163: 102 | W163: 65% | X163: 65% | Y163: 81
A164: 110 | B164: AUBE HAUTE MARNE | C164: 14 | D164: TROYES | E164: 510513 | F164: SAINT PARRES AUX TERTRES | G164: 2.9 | H164: 66% | I164: 56% | J164: 155 | K164: 80% | L164: 77% | M164: 234 | N164: 69% | O164: 69% | P164: 84 | Q164: 81% | R164: 50% | S164: 132 | T164: 59% | U164: 59% | V164: 17 | W164: 73% | X164: 73% | Y164: 168
A165: 110 | B165: AUBE HAUTE MARNE | C165: 14 | D165: TROYES | E165: 410550 | F165: BAR SUR AUBE | G165: 5.3 | H165: 66% | I165: 56% | J165: 156 | K165: 46% | L165: 42% | M165: 94 | N165: 81% | O165: 81% | P165: 178 | Q165: 84% | R165: 53% | S165: 165 | T165: 80% | U165: 80% | V165: 150 | W165: 73% | X165: 73% | Y165: 167
A166: 110 | B166: MEURTHE ET MOSELLE MEUSE | C166: 27 | D166: PONT A MOUSSON | E166: 454535 | F166: PONT A MOUSSON CENTRALE | G166: 5.9 | H166: 66% | I166: 56% | J166: 157 | K166: 78% | L166: 75% | M166: 230 | N166: 70% | O166: 70% | P166: 89 | Q166: 84% | R166: 54% | S166: 166 | T166: 73% | U166: 73% | V166: 84 | W166: 58% | X166: 58% | Y166: 44
A167: 110 | B167: MEURTHE ET MOSELLE MEUSE | C167: 26 | D167: NANCY | E167: 554166 | F167: BLAINVILLE | G167: 2.9 | H167: 66% | I167: 56% | J167: 158 | K167: 65% | L167: 61% | M167: 162 | N167: 72% | O167: 72% | P167: 101 | Q167: 87% | R167: 57% | S167: 190 | T167: 68% | U167: 68% | V167: 53 | W167: 72% | X167: 72% | Y167: 147
A168: 110 | B168: MARNE ARDENNES | C168: 2 | D168: CHARLEVILLE MEZIERES | E168: 508860 | F168: ROCROI | G168: 2.3 | H168: 66% | I168: 56% | J168: 159 | K168: 71% | L168: 68% | M168: 205 | N168: 66% | O168: 66% | P168: 60 | Q168: 85% | R168: 55% | S168: 175 | T168: 77% | U168: 77% | V168: 125 | W168: 64% | X168: 64% | Y168: 80
A169: 110 | B169: BAS RHIN | C169: 5101 | D169: SELESTAT | E169: 4109 | F169: MARCKOLSHEIM | G169: 2.3 | H169: 66% | I169: 56% | J169: 160 | K169: 51% | L169: 47% | M169: 113 | N169: 77% | O169: 77% | P169: 147 | Q169: 85% | R169: 55% | S169: 173 | T169: 81% | U169: 81% | V169: 168 | W169: 71% | X169: 71% | Y169: 142
A170: 110 | B170: MOSELLE | C170: 45 | D170: METZ | E170: 557440 | F170: METZ MOZART | G170: 2.7 | H170: 66% | I170: 56% | J170: 161 | K170: 62% | L170: 59% | M170: 151 | N170: 77% | O170: 77% | P170: 149 | Q170: 72% | R170: 42% | S170: 64 | T170: 79% | U170: 79% | V170: 143 | W170: 75% | X170: 75% | Y170: 200
A171: 110 | B171: BAS RHIN | C171: 5101 | D171: SELESTAT | E171: 4007 | F171: ILLKIRCH CENTRE | G171: 6.3 | H171: 66% | I171: 57% | J171: 162 | K171: 68% | L171: 64% | M171: 183 | N171: 77% | O171: 77% | P171: 157 | Q171: 84% | R171: 53% | S171: 163 | T171: 67% | U171: 67% | V171: 48 | W171: 70% | X171: 70% | Y171: 130
A172: 110 | B172: BAS RHIN | C172: 5006 | D172: STRASBOURG | E172: 4028 | F172: BISCHHEIM | G172: 3.1 | H172: 67% | I172: 57% | J172: 163 | K172: 67% | L172: 63% | M172: 175 | N172: 79% | O172: 79% | P172: 167 | Q172: 73% | R172: 42% | S172: 71 | T172: 73% | U172: 73% | V172: 89 | W172: 75% | X172: 75% | Y172: 195
A173: 110 | B173: MEURTHE ET MOSELLE MEUSE | C173: 27 | D173: PONT A MOUSSON | E173: 554196 | F173: CHAMPIGNEULLES | G173: 2.6 | H173: 67% | I173: 57% | J173: 164 | K173: 64% | L173: 60% | M173: 157 | N173: 79% | O173: 79% | P173: 168 | Q173: 81% | R173: 51% | S173: 136 | T173: 69% | U173: 69% | V173: 61 | W173: 75% | X173: 75% | Y173: 193
A174: 110 | B174: MOSELLE | C174: 42 | D174: MOSELLE EST | E174: 557210 | F174: CHATEAU SALINS | G174: 1.9 | H174: 67% | I174: 57% | J174: 165 | K174: 67% | L174: 63% | M174: 174 | N174: 69% | O174: 69% | P174: 86 | Q174: 91% | R174: 61% | S174: 210 | T174: 66% | U174: 66% | V174: 40 | W174: 74% | X174: 74% | Y174: 186
A175: 110 | B175: BAS RHIN | C175: 5101 | D175: SELESTAT | E175: 4008 | F175: FEGERSHEIM | G175: 2.4 | H175: 67% | I175: 57% | J175: 166 | K175: 55% | L175: 51% | M175: 127 | N175: 70% | O175: 70% | P175: 91 | Q175: 77% | R175: 47% | S175: 106 | T175: 86% | U175: 86% | V175: 200 | W175: 80% | X175: 80% | Y175: 232
A176: 110 | B176: BAS RHIN | C176: 5060 | D176: HAGUENAU | E176: 4085 | F176: INGWILLER | G176: 3.5 | H176: 67% | I176: 57% | J176: 167 | K176: 55% | L176: 51% | M176: 129 | N176: 76% | O176: 76% | P176: 140 | Q176: 85% | R176: 55% | S176: 177 | T176: 80% | U176: 80% | V176: 157 | W176: 71% | X176: 71% | Y176: 145
A177: 160 | B177: BAS RHIN | C177: 5006 | D177: STRASBOURG | E177: 4039 | F177: REICHSTETT | G177: 1.4 | H177: 67% | I177: 57% | J177: 168 | K177: 58% | L177: 54% | M177: 138 | N177: 82% | O177: 82% | P177: 185 | Q177: 77% | R177: 47% | S177: 105 | T177: 78% | U177: 78% | V177: 137 | W177: 74% | X177: 74% | Y177: 181
A178: 160 | B178: MEURTHE ET MOSELLE MEUSE | C178: 31 | D178: VERDUN | E178: 555624 | F178: STENAY | G178: 3.1 | H178: 67% | I178: 57% | J178: 169 | K178: 66% | L178: 62% | M178: 168 | N178: 69% | O178: 69% | P178: 88 | Q178: 91% | R178: 60% | S178: 207 | T178: 89% | U178: 89% | V178: 222 | W178: 53% | X178: 53% | Y178: 22
A179: 160 | B179: BAS RHIN | C179: 5060 | D179: HAGUENAU | E179: 4060 | F179: HAGUENAU HOUBLON | G179: 8.6 | H179: 68% | I179: 58% | J179: 170 | K179: 69% | L179: 65% | M179: 188 | N179: 80% | O179: 80% | P179: 173 | Q179: 73% | R179: 43% | S179: 72 | T179: 76% | U179: 76% | V179: 114 | W179: 74% | X179: 74% | Y179: 182
A180: 160 | B180: AUBE HAUTE MARNE | C180: 14 | D180: TROYES | E180: 510523 | F180: LA CHAPELLE ST LUC | G180: 4.5 | H180: 68% | I180: 58% | J180: 171 | K180: 75% | L180: 71% | M180: 218 | N180: 76% | O180: 76% | P180: 144 | Q180: 82% | R180: 52% | S180: 148 | T180: 71% | U180: 71% | V180: 71 | W180: 68% | X180: 68% | Y180: 114
A181: 160 | B181: MARNE ARDENNES | C181: 11 | D181: REIMS | E181: 551309 | F181: REIMS EUROPE | G181: 2.3 | H181: 68% | I181: 58% | J181: 172 | K181: 65% | L181: 62% | M181: 164 | N181: 75% | O181: 75% | P181: 129 | Q181: 91% | R181: 61% | S181: 209 | T181: 73% | U181: 73% | V181: 85 | W181: 69% | X181: 69% | Y181: 123
A182: 160 | B182: MARNE ARDENNES | C182: 6 | D182: CHALONS EN CHAMPAGNE | E182: 451166 | F182: VITRY LE FRANCOIS | G182: 3.8 | H182: 68% | I182: 58% | J182: 173 | K182: 74% | L182: 70% | M182: 214 | N182: 68% | O182: 68% | P182: 78 | Q182: 98% | R182: 68% | S182: 229 | T182: 80% | U182: 80% | V182: 149 | W182: 54% | X182: 54% | Y182: 26
A183: 160 | B183: MOSELLE | C183: 42 | D183: MOSELLE EST | E183: 557503 | F183: NEUNKIRCH | G183: 3.0 | H183: 68% | I183: 58% | J183: 174 | K183: 14% | L183: 10% | M183: 6 | N183: 88% | O183: 88% | P183: 220 | Q183: 98% | R183: 68% | S183: 230 | T183: 97% | U183: 97% | V183: 235 | W183: 77% | X183: 77% | Y183: 209
A184: 160 | B184: BAS RHIN | C184: 5101 | D184: SELESTAT | E184: 4119 | F184: OBERNAI | G184: 3.3 | H184: 68% | I184: 58% | J184: 175 | K184: 67% | L184: 63% | M184: 177 | N184: 86% | O184: 86% | P184: 209 | Q184: 61% | R184: 31% | S184: 14 | T184: 83% | U184: 83% | V184: 176 | W184: 78% | X184: 78% | Y184: 215
A185: 160 | B185: BAS RHIN | C185: 5101 | D185: SELESTAT | E185: 4101 | F185: SELESTAT CENTRE | G185: 7.9 | H185: 68% | I185: 58% | J185: 176 | K185: 67% | L185: 63% | M185: 178 | N185: 73% | O185: 73% | P185: 119 | Q185: 84% | R185: 53% | S185: 162 | T185: 76% | U185: 76% | V185: 119 | W185: 74% | X185: 74% | Y185: 178
A186: 160 | B186: MOSELLE | C186: 45 | D186: METZ | E186: 557441 | F186: METZ PLAPPEVILLE | G186: 2.7 | H186: 68% | I186: 58% | J186: 177 | K186: 67% | L186: 63% | M186: 179 | N186: 85% | O186: 85% | P186: 203 | Q186: 68% | R186: 38% | S186: 40 | T186: 81% | U186: 81% | V186: 164 | W186: 72% | X186: 72% | Y186: 155
A187: 160 | B187: MOSELLE | C187: 45 | D187: METZ | E187: 557445 | F187: METZ SAINT LIVIER | G187: 2.6 | H187: 68% | I187: 58% | J187: 178 | K187: 49% | L187: 45% | M187: 104 | N187: 79% | O187: 79% | P187: 166 | Q187: 83% | R187: 53% | S187: 159 | T187: 90% | U187: 90% | V187: 225 | W187: 73% | X187: 73% | Y187: 166
A188: 160 | B188: BAS RHIN | C188: 5060 | D188: HAGUENAU | E188: 4066 | F188: NIEDERBRONN LES BAINS | G188: 5.7 | H188: 68% | I188: 58% | J188: 179 | K188: 49% | L188: 45% | M188: 103 | N188: 83% | O188: 83% | P188: 197 | Q188: 84% | R188: 53% | S188: 160 | T188: 85% | U188: 85% | V188: 193 | W188: 74% | X188: 74% | Y188: 187
A189: 160 | B189: MOSELLE | C189: 45 | D189: METZ | E189: 557712 | F189: WOIPPY | G189: 4.2 | H189: 68% | I189: 58% | J189: 180 | K189: 76% | L189: 72% | M189: 223 | N189: 74% | O189: 74% | P189: 124 | Q189: 82% | R189: 51% | S189: 145 | T189: 73% | U189: 73% | V189: 80 | W189: 70% | X189: 70% | Y189: 132
A190: 160 | B190: MARNE ARDENNES | C190: 11 | D190: REIMS | E190: 451308 | F190: REIMS SAINT THOMAS | G190: 5.7 | H190: 68% | I190: 59% | J190: 181 | K190: 83% | L190: 80% | M190: 238 | N190: 72% | O190: 72% | P190: 105 | Q190: 88% | R190: 57% | S190: 192 | T190: 73% | U190: 73% | V190: 86 | W190: 60% | X190: 60% | Y190: 56
A191: 160 | B191: HAUT RHIN | C191: 5169 | D191: MULHOUSE | E191: 4180 | F191: RIEDISHEIM | G191: 3.3 | H191: 68% | I191: 59% | J191: 182 | K191: 43% | L191: 39% | M191: 78 | N191: 80% | O191: 80% | P191: 175 | Q191: 94% | R191: 64% | S191: 221 | T191: 80% | U191: 80% | V191: 151 | W191: 79% | X191: 79% | Y191: 229
A192: 160 | B192: HAUT RHIN | C192: 5169 | D192: MULHOUSE | E192: 4170 | F192: MULHOUSE REUNION | G192: 8.1 | H192: 69% | I192: 59% | J192: 183 | K192: 64% | L192: 61% | M192: 161 | N192: 78% | O192: 78% | P192: 162 | Q192: 92% | R192: 61% | S192: 211 | T192: 74% | U192: 74% | V192: 100 | W192: 69% | X192: 69% | Y192: 125
A193: 160 | B193: MOSELLE | C193: 45 | D193: METZ | E193: 557559 | F193: REMILLY | G193: 3.0 | H193: 69% | I193: 59% | J193: 184 | K193: 70% | L193: 67% | M193: 200 | N193: 78% | O193: 78% | P193: 160 | Q193: 79% | R193: 48% | S193: 120 | T193: 87% | U193: 87% | V193: 210 | W193: 64% | X193: 64% | Y193: 72
A194: 160 | B194: HAUT RHIN | C194: 5130 | D194: COLMAR | E194: 4157 | F194: NEUF BRISACH | G194: 2.6 | H194: 69% | I194: 59% | J194: 185 | K194: 70% | L194: 66% | M194: 196 | N194: 78% | O194: 78% | P194: 163 | Q194: 89% | R194: 59% | S194: 201 | T194: 73% | U194: 73% | V194: 78 | W194: 68% | X194: 68% | Y194: 105
A195: 160 | B195: AUBE HAUTE MARNE | C195: 14 | D195: TROYES | E195: 410510 | F195: TROYES GAMBETTA | G195: 8.6 | H195: 69% | I195: 59% | J195: 186 | K195: 72% | L195: 69% | M195: 208 | N195: 76% | O195: 76% | P195: 146 | Q195: 87% | R195: 56% | S195: 184 | T195: 73% | U195: 73% | V195: 87 | W195: 70% | X195: 70% | Y195: 134
A196: 160 | B196: BAS RHIN | C196: 5101 | D196: SELESTAT | E196: 4107 | F196: VILLE | G196: 2.3 | H196: 69% | I196: 59% | J196: 187 | K196: 72% | L196: 68% | M196: 206 | N196: 72% | O196: 72% | P196: 103 | Q196: 71% | R196: 41% | S196: 56 | T196: 84% | U196: 84% | V196: 186 | W196: 81% | X196: 81% | Y196: 234
A197: 160 | B197: BAS RHIN | C197: 5060 | D197: HAGUENAU | E197: 4082 | F197: BOUXWILLER | G197: 2.5 | H197: 69% | I197: 59% | J197: 188 | K197: 37% | L197: 34% | M197: 52 | N197: 83% | O197: 83% | P197: 192 | Q197: 109% | R197: 79% | S197: 239 | T197: 76% | U197: 76% | V197: 121 | W197: 73% | X197: 73% | Y197: 170
A198: 160 | B198: MOSELLE | C198: 45 | D198: METZ | E198: 557436 | F198: METZ CATHEDRALE | G198: 4.1 | H198: 69% | I198: 59% | J198: 189 | K198: 76% | L198: 73% | M198: 224 | N198: 75% | O198: 75% | P198: 131 | Q198: 75% | R198: 44% | S198: 87 | T198: 79% | U198: 79% | V198: 148 | W198: 74% | X198: 74% | Y198: 173
A199: 160 | B199: HAUT RHIN | C199: 5169 | D199: MULHOUSE | E199: 4178 | F199: SAINT LOUIS | G199: 6.6 | H199: 69% | I199: 59% | J199: 190 | K199: 67% | L199: 63% | M199: 172 | N199: 76% | O199: 76% | P199: 145 | Q199: 72% | R199: 41% | S199: 58 | T199: 86% | U199: 86% | V199: 202 | W199: 79% | X199: 79% | Y199: 227
A200: 160 | B200: MOSELLE | C200: 42 | D200: MOSELLE EST | E200: 457258 | F200: DIEUZE | G200: 3.1 | H200: 69% | I200: 59% | J200: 191 | K200: 36% | L200: 32% | M200: 46 | N200: 90% | O200: 90% | P200: 227 | Q200: 92% | R200: 61% | S200: 212 | T200: 84% | U200: 84% | V200: 185 | W200: 79% | X200: 79% | Y200: 223
A201: 160 | B201: BAS RHIN | C201: 5006 | D201: STRASBOURG | E201: 4045 | F201: STRASBOURG FRANCS BOURGEOIS | G201: 4.2 | H201: 70% | I201: 60% | J201: 192 | K201: 53% | L201: 49% | M201: 120 | N201: 71% | O201: 71% | P201: 93 | Q201: 101% | R201: 70% | S201: 235 | T201: 82% | U201: 82% | V201: 172 | W201: 76% | X201: 76% | Y201: 205
A202: 160 | B202: VOSGES | C202: 57 | D202: EPINAL | E202: 588501 | F202: NEUFCHATEAU | G202: 4.6 | H202: 70% | I202: 60% | J202: 193 | K202: 48% | L202: 44% | M202: 101 | N202: 80% | O202: 80% | P202: 174 | Q202: 93% | R202: 63% | S202: 217 | T202: 87% | U202: 87% | V202: 211 | W202: 75% | X202: 75% | Y202: 192
A203: 160 | B203: MOSELLE | C203: 45 | D203: METZ | E203: 557433 | F203: MARANGE SILVANGE | G203: 2.5 | H203: 70% | I203: 60% | J203: 194 | K203: 66% | L203: 62% | M203: 166 | N203: 83% | O203: 83% | P203: 194 | Q203: 87% | R203: 57% | S203: 188 | T203: 84% | U203: 84% | V203: 184 | W203: 64% | X203: 64% | Y203: 76
... 48 more rows

Sheet AG_BANCA
B1: Accueil | H1: BAROMETRE BDD - AGENCES
H2: BANCARISATION
H3: =ACCUEIL!F7 -> 2022-12-04
H7: Ventes Nettes produits pondérés | L7: Ventes sur client non détenteur de l’univers | P7: Total Bancarisation
H8: =DATEMAJ!C8 -> au 04/12 | J8: coef | K8: ='RECAP DIRCOM'!AA4 -> 12% | L8: =DATEMAJ!C9 -> au 04/12 | N8: coef | O8: ='RECAP DIRCOM'!AE4 -> 8% | Q8: coef | R8: ='RECAP DIRCOM'!$AH$4 -> 20%
B9: Direction | C9: eds | D9: Territoire | E9: eds | F9: Agence | G9: ="ETP perf "&DATEMAJ!$C$28 -> ETP perf 04-déc | H9: VN | I9: VN / ETP | J9: % Ecart au 1er | K9: Rang | L9: VB | M9: VB / ETP | N9: % Ecart au 1er | O9: Rang | P9: Moyenne ecart au 1er | Q9: % Ecart au 1er | R9: Rang CEGEE
A10: 50 | B10: AUBE HAUTE MARNE | C10: 21 | D10: CHAUMONT | E10: 410541 | F10: LANGRES | G10: =VLOOKUP($E10,'RECAP AG'!$G$6:$CU$247,3,FALSE) -> 7.9 | H10: =VLOOKUP($E10,'RECAP AG'!$G$6:$CU$247,18,FALSE) -> 249.7 | I10: =VLOOKUP($E10,'RECAP AG'!$G$6:$CU$247,19,FALSE) -> 31.45 | J10: =VLOOKUP($E10,'RECAP AG'!$G$6:$CU$247,20,FALSE) -> 74% | K10: =VLOOKUP($E10,'RECAP AG'!$G$6:$CU$247,21,FALSE) -> 57 | L10: =VLOOKUP($E10,'RECAP AG'!$G$6:$CU$247,22,FALSE) -> 488 | M10: =VLOOKUP($E10,'RECAP AG'!$G$6:$CU$247,23,FALSE) -> 61.46 | N10: =VLOOKUP($E10,'RECAP AG'!$G$6:$CU$247,24,FALSE) -> 64% | O10: =VLOOKUP($E10,'RECAP AG'!$G$6:$CU$247,25,FALSE) -> 161 | P10: =VLOOKUP($E10,'RECAP AG'!$G$6:$CU$247,26,FALSE) -> 70% | Q10: =VLOOKUP($E10,'RECAP AG'!$G$6:$CU$247,27,FALSE) -> 70% | R10: =VLOOKUP($E10,'RECAP AG'!$G$6:$CU$247,28,FALSE) -> 90
A11: 50 | B11: AUBE HAUTE MARNE | C11: 21 | D11: CHAUMONT | E11: 410566 | F11: CHAUMONT HOTEL DE VILLE | G11: =VLOOKUP($E11,'RECAP AG'!$G$6:$CU$247,3,FALSE) -> 10.3 | H11: =VLOOKUP($E11,'RECAP AG'!$G$6:$CU$247,18,FALSE) -> 99.9 | I11: =VLOOKUP($E11,'RECAP AG'!$G$6:$CU$247,19,FALSE) -> 9.70 | J11: =VLOOKUP($E11,'RECAP AG'!$G$6:$CU$247,20,FALSE) -> 92% | K11: =VLOOKUP($E11,'RECAP AG'!$G$6:$CU$247,21,FALSE) -> 179 | L11: =VLOOKUP($E11,'RECAP AG'!$G$6:$CU$247,22,FALSE) -> 601 | M11: =VLOOKUP($E11,'RECAP AG'!$G$6:$CU$247,23,FALSE) -> 58.35 | N11: =VLOOKUP($E11,'RECAP AG'!$G$6:$CU$247,24,FALSE) -> 66% | O11: =VLOOKUP($E11,'RECAP AG'!$G$6:$CU$247,25,FALSE) -> 188 | P11: =VLOOKUP($E11,'RECAP AG'!$G$6:$CU$247,26,FALSE) -> 82% | Q11: =VLOOKUP($E11,'RECAP AG'!$G$6:$CU$247,27,FALSE) -> 82% | R11: =VLOOKUP($E11,'RECAP AG'!$G$6:$CU$247,28,FALSE) -> 184
A12: 50 | B12: AUBE HAUTE MARNE | C12: 21 | D12: CHAUMONT | E12: 510590 | F12: CHAUMONT REPUBLIQUE | G12: =VLOOKUP($E12,'RECAP AG'!$G$6:$CU$247,3,FALSE) -> 2.9 | H12: =VLOOKUP($E12,'RECAP AG'!$G$6:$CU$247,18,FALSE) -> 34.5 | I12: =VLOOKUP($E12,'RECAP AG'!$G$6:$CU$247,19,FALSE) -> 12.06 | J12: =VLOOKUP($E12,'RECAP AG'!$G$6:$CU$247,20,FALSE) -> 90% | K12: =VLOOKUP($E12,'RECAP AG'!$G$6:$CU$247,21,FALSE) -> 166 | L12: =VLOOKUP($E12,'RECAP AG'!$G$6:$CU$247,22,FALSE) -> 232 | M12: =VLOOKUP($E12,'RECAP AG'!$G$6:$CU$247,23,FALSE) -> 81.12 | N12: =VLOOKUP($E12,'RECAP AG'!$G$6:$CU$247,24,FALSE) -> 53% | O12: =VLOOKUP($E12,'RECAP AG'!$G$6:$CU$247,25,FALSE) -> 77 | P12: =VLOOKUP($E12,'RECAP AG'!$G$6:$CU$247,26,FALSE) -> 75% | Q12: =VLOOKUP($E12,'RECAP AG'!$G$6:$CU$247,27,FALSE) -> 75% | R12: =VLOOKUP($E12,'RECAP AG'!$G$6:$CU$247,28,FALSE) -> 132
A13: 50 | B13: AUBE HAUTE MARNE | C13: 21 | D13: CHAUMONT | E13: 451154 | F13: JOINVILLE | G13: =VLOOKUP($E13,'RECAP AG'!$G$6:$CU$247,3,FALSE) -> 1.8 | H13: =VLOOKUP($E13,'RECAP AG'!$G$6:$CU$247,18,FALSE) -> 44.6 | I13: =VLOOKUP($E13,'RECAP AG'!$G$6:$CU$247,19,FALSE) -> 24.51 | J13: =VLOOKUP($E13,'RECAP AG'!$G$6:$CU$247,20,FALSE) -> 79% | K13: =VLOOKUP($E13,'RECAP AG'!$G$6:$CU$247,21,FALSE) -> 93 | L13: =VLOOKUP($E13,'RECAP AG'!$G$6:$CU$247,22,FALSE) -> 161 | M13: =VLOOKUP($E13,'RECAP AG'!$G$6:$CU$247,23,FALSE) -> 88.46 | N13: =VLOOKUP($E13,'RECAP AG'!$G$6:$CU$247,24,FALSE) -> 49% | O13: =VLOOKUP($E13,'RECAP AG'!$G$6:$CU$247,25,FALSE) -> 52 | P13: =VLOOKUP($E13,'RECAP AG'!$G$6:$CU$247,26,FALSE) -> 67% | Q13: =VLOOKUP($E13,'RECAP AG'!$G$6:$CU$247,27,FALSE) -> 67% | R13: =VLOOKUP($E13,'RECAP AG'!$G$6:$CU$247,28,FALSE) -> 67
A14: 50 | B14: AUBE HAUTE MARNE | C14: 21 | D14: CHAUMONT | E14: 451156 | F14: SAINT DIZIER CENTRE | G14: =VLOOKUP($E14,'RECAP AG'!$G$6:$CU$247,3,FALSE) -> 8.6 | H14: =VLOOKUP($E14,'RECAP AG'!$G$6:$CU$247,18,FALSE) -> 116.0 | I14: =VLOOKUP($E14,'RECAP AG'!$G$6:$CU$247,19,FALSE) -> 13.47 | J14: =VLOOKUP($E14,'RECAP AG'!$G$6:$CU$247,20,FALSE) -> 89% | K14: =VLOOKUP($E14,'RECAP AG'!$G$6:$CU$247,21,FALSE) -> 163 | L14: =VLOOKUP($E14,'RECAP AG'!$G$6:$CU$247,22,FALSE) -> 645 | M14: =VLOOKUP($E14,'RECAP AG'!$G$6:$CU$247,23,FALSE) -> 74.91 | N14: =VLOOKUP($E14,'RECAP AG'!$G$6:$CU$247,24,FALSE) -> 57% | O14: =VLOOKUP($E14,'RECAP AG'!$G$6:$CU$247,25,FALSE) -> 100 | P14: =VLOOKUP($E14,'RECAP AG'!$G$6:$CU$247,26,FALSE) -> 76% | Q14: =VLOOKUP($E14,'RECAP AG'!$G$6:$CU$247,27,FALSE) -> 76% | R14: =VLOOKUP($E14,'RECAP AG'!$G$6:$CU$247,28,FALSE) -> 137
A15: 50 | B15: AUBE HAUTE MARNE | C15: 21 | D15: CHAUMONT | E15: 451151 | F15: WASSY | G15: =VLOOKUP($E15,'RECAP AG'!$G$6:$CU$247,3,FALSE) -> 1.9 | H15: =VLOOKUP($E15,'RECAP AG'!$G$6:$CU$247,18,FALSE) -> 29.8 | I15: =VLOOKUP($E15,'RECAP AG'!$G$6:$CU$247,19,FALSE) -> 15.44 | J15: =VLOOKUP($E15,'RECAP AG'!$G$6:$CU$247,20,FALSE) -> 87% | K15: =VLOOKUP($E15,'RECAP AG'!$G$6:$CU$247,21,FALSE) -> 151 | L15: =VLOOKUP($E15,'RECAP AG'!$G$6:$CU$247,22,FALSE) -> 119 | M15: =VLOOKUP($E15,'RECAP AG'!$G$6:$CU$247,23,FALSE) -> 61.66 | N15: =VLOOKUP($E15,'RECAP AG'!$G$6:$CU$247,24,FALSE) -> 64% | O15: =VLOOKUP($E15,'RECAP AG'!$G$6:$CU$247,25,FALSE) -> 160 | P15: =VLOOKUP($E15,'RECAP AG'!$G$6:$CU$247,26,FALSE) -> 78% | Q15: =VLOOKUP($E15,'RECAP AG'!$G$6:$CU$247,27,FALSE) -> 78% | R15: =VLOOKUP($E15,'RECAP AG'!$G$6:$CU$247,28,FALSE) -> 161
A16: 50 | B16: AUBE HAUTE MARNE | C16: 14 | D16: TROYES | E16: 510523 | F16: LA CHAPELLE ST LUC | G16: =VLOOKUP($E16,'RECAP AG'!$G$6:$CU$247,3,FALSE) -> 4.5 | H16: =VLOOKUP($E16,'RECAP AG'!$G$6:$CU$247,18,FALSE) -> 33.4 | I16: =VLOOKUP($E16,'RECAP AG'!$G$6:$CU$247,19,FALSE) -> 7.51 | J16: =VLOOKUP($E16,'RECAP AG'!$G$6:$CU$247,20,FALSE) -> 94% | K16: =VLOOKUP($E16,'RECAP AG'!$G$6:$CU$247,21,FALSE) -> 184 | L16: =VLOOKUP($E16,'RECAP AG'!$G$6:$CU$247,22,FALSE) -> 383 | M16: =VLOOKUP($E16,'RECAP AG'!$G$6:$CU$247,23,FALSE) -> 86.07 | N16: =VLOOKUP($E16,'RECAP AG'!$G$6:$CU$247,24,FALSE) -> 50% | O16: =VLOOKUP($E16,'RECAP AG'!$G$6:$CU$247,25,FALSE) -> 62 | P16: =VLOOKUP($E16,'RECAP AG'!$G$6:$CU$247,26,FALSE) -> 76% | Q16: =VLOOKUP($E16,'RECAP AG'!$G$6:$CU$247,27,FALSE) -> 76% | R16: =VLOOKUP($E16,'RECAP AG'!$G$6:$CU$247,28,FALSE) -> 144
A17: 50 | B17: AUBE HAUTE MARNE | C17: 14 | D17: TROYES | E17: 510530 | F17: ARCIS SUR AUBE | G17: =VLOOKUP($E17,'RECAP AG'!$G$6:$CU$247,3,FALSE) -> 3.7 | H17: =VLOOKUP($E17,'RECAP AG'!$G$6:$CU$247,18,FALSE) -> 64.7 | I17: =VLOOKUP($E17,'RECAP AG'!$G$6:$CU$247,19,FALSE) -> 17.68 | J17: =VLOOKUP($E17,'RECAP AG'!$G$6:$CU$247,20,FALSE) -> 85% | K17: =VLOOKUP($E17,'RECAP AG'!$G$6:$CU$247,21,FALSE) -> 131 | L17: =VLOOKUP($E17,'RECAP AG'!$G$6:$CU$247,22,FALSE) -> 224 | M17: =VLOOKUP($E17,'RECAP AG'!$G$6:$CU$247,23,FALSE) -> 61.20 | N17: =VLOOKUP($E17,'RECAP AG'!$G$6:$CU$247,24,FALSE) -> 65% | O17: =VLOOKUP($E17,'RECAP AG'!$G$6:$CU$247,25,FALSE) -> 162 | P17: =VLOOKUP($E17,'RECAP AG'!$G$6:$CU$247,26,FALSE) -> 77% | Q17: =VLOOKUP($E17,'RECAP AG'!$G$6:$CU$247,27,FALSE) -> 77% | R17: =VLOOKUP($E17,'RECAP AG'!$G$6:$CU$247,28,FALSE) -> 153
A18: 50 | B18: AUBE HAUTE MARNE | C18: 14 | D18: TROYES | E18: 410550 | F18: BAR SUR AUBE | G18: =VLOOKUP($E18,'RECAP AG'!$G$6:$CU$247,3,FALSE) -> 5.3 | H18: =VLOOKUP($E18,'RECAP AG'!$G$6:$CU$247,18,FALSE) -> 62.0 | I18: =VLOOKUP($E18,'RECAP AG'!$G$6:$CU$247,19,FALSE) -> 11.79 | J18: =VLOOKUP($E18,'RECAP AG'!$G$6:$CU$247,20,FALSE) -> 90% | K18: =VLOOKUP($E18,'RECAP AG'!$G$6:$CU$247,21,FALSE) -> 167 | L18: =VLOOKUP($E18,'RECAP AG'!$G$6:$CU$247,22,FALSE) -> 305 | M18: =VLOOKUP($E18,'RECAP AG'!$G$6:$CU$247,23,FALSE) -> 57.98 | N18: =VLOOKUP($E18,'RECAP AG'!$G$6:$CU$247,24,FALSE) -> 66% | O18: =VLOOKUP($E18,'RECAP AG'!$G$6:$CU$247,25,FALSE) -> 190 | P18: =VLOOKUP($E18,'RECAP AG'!$G$6:$CU$247,26,FALSE) -> 81% | Q18: =VLOOKUP($E18,'RECAP AG'!$G$6:$CU$247,27,FALSE) -> 81% | R18: =VLOOKUP($E18,'RECAP AG'!$G$6:$CU$247,28,FALSE) -> 178
A19: 50 | B19: AUBE HAUTE MARNE | C19: 14 | D19: TROYES | E19: 510556 | F19: BAR SUR SEINE | G19: =VLOOKUP($E19,'RECAP AG'!$G$6:$CU$247,3,FALSE) -> 2.7 | H19: =VLOOKUP($E19,'RECAP AG'!$G$6:$CU$247,18,FALSE) -> 15.5 | I19: =VLOOKUP($E19,'RECAP AG'!$G$6:$CU$247,19,FALSE) -> 5.85 | J19: =VLOOKUP($E19,'RECAP AG'!$G$6:$CU$247,20,FALSE) -> 95% | K19: =VLOOKUP($E19,'RECAP AG'!$G$6:$CU$247,21,FALSE) -> 191 | L19: =VLOOKUP($E19,'RECAP AG'!$G$6:$CU$247,22,FALSE) -> 123 | M19: =VLOOKUP($E19,'RECAP AG'!$G$6:$CU$247,23,FALSE) -> 46.42 | N19: =VLOOKUP($E19,'RECAP AG'!$G$6:$CU$247,24,FALSE) -> 73% | O19: =VLOOKUP($E19,'RECAP AG'!$G$6:$CU$247,25,FALSE) -> 228 | P19: =VLOOKUP($E19,'RECAP AG'!$G$6:$CU$247,26,FALSE) -> 86% | Q19: =VLOOKUP($E19,'RECAP AG'!$G$6:$CU$247,27,FALSE) -> 86% | R19: =VLOOKUP($E19,'RECAP AG'!$G$6:$CU$247,28,FALSE) -> 210
A20: 50 | B20: AUBE HAUTE MARNE | C20: 14 | D20: TROYES | E20: 510570 | F20: NOGENT SUR SEINE | G20: =VLOOKUP($E20,'RECAP AG'!$G$6:$CU$247,3,FALSE) -> 3.9 | H20: =VLOOKUP($E20,'RECAP AG'!$G$6:$CU$247,18,FALSE) -> 81.5 | I20: =VLOOKUP($E20,'RECAP AG'!$G$6:$CU$247,19,FALSE) -> 20.84 | J20: =VLOOKUP($E20,'RECAP AG'!$G$6:$CU$247,20,FALSE) -> 82% | K20: =VLOOKUP($E20,'RECAP AG'!$G$6:$CU$247,21,FALSE) -> 112 | L20: =VLOOKUP($E20,'RECAP AG'!$G$6:$CU$247,22,FALSE) -> 261 | M20: =VLOOKUP($E20,'RECAP AG'!$G$6:$CU$247,23,FALSE) -> 66.75 | N20: =VLOOKUP($E20,'RECAP AG'!$G$6:$CU$247,24,FALSE) -> 61% | O20: =VLOOKUP($E20,'RECAP AG'!$G$6:$CU$247,25,FALSE) -> 135 | P20: =VLOOKUP($E20,'RECAP AG'!$G$6:$CU$247,26,FALSE) -> 74% | Q20: =VLOOKUP($E20,'RECAP AG'!$G$6:$CU$247,27,FALSE) -> 74% | R20: =VLOOKUP($E20,'RECAP AG'!$G$6:$CU$247,28,FALSE) -> 121
A21: 50 | B21: AUBE HAUTE MARNE | C21: 14 | D21: TROYES | E21: 410571 | F21: ROMILLY SUR SEINE | G21: =VLOOKUP($E21,'RECAP AG'!$G$6:$CU$247,3,FALSE) -> 4.4 | H21: =VLOOKUP($E21,'RECAP AG'!$G$6:$CU$247,18,FALSE) -> -8.7 | I21: =VLOOKUP($E21,'RECAP AG'!$G$6:$CU$247,19,FALSE) -> -2.00 | J21: =VLOOKUP($E21,'RECAP AG'!$G$6:$CU$247,20,FALSE) -> 102% | K21: =VLOOKUP($E21,'RECAP AG'!$G$6:$CU$247,21,FALSE) -> 218 | L21: =VLOOKUP($E21,'RECAP AG'!$G$6:$CU$247,22,FALSE) -> 303 | M21: =VLOOKUP($E21,'RECAP AG'!$G$6:$CU$247,23,FALSE) -> 69.50 | N21: =VLOOKUP($E21,'RECAP AG'!$G$6:$CU$247,24,FALSE) -> 60% | O21: =VLOOKUP($E21,'RECAP AG'!$G$6:$CU$247,25,FALSE) -> 123 | P21: =VLOOKUP($E21,'RECAP AG'!$G$6:$CU$247,26,FALSE) -> 85% | Q21: =VLOOKUP($E21,'RECAP AG'!$G$6:$CU$247,27,FALSE) -> 85% | R21: =VLOOKUP($E21,'RECAP AG'!$G$6:$CU$247,28,FALSE) -> 202
A22: 50 | B22: AUBE HAUTE MARNE | C22: 14 | D22: TROYES | E22: 510520 | F22: SAINT ANDRE LES VERGERS | G22: =VLOOKUP($E22,'RECAP AG'!$G$6:$CU$247,3,FALSE) -> 3.2 | H22: =VLOOKUP($E22,'RECAP AG'!$G$6:$CU$247,18,FALSE) -> -24.6 | I22: =VLOOKUP($E22,'RECAP AG'!$G$6:$CU$247,19,FALSE) -> -7.78 | J22: =VLOOKUP($E22,'RECAP AG'!$G$6:$CU$247,20,FALSE) -> 107% | K22: =VLOOKUP($E22,'RECAP AG'!$G$6:$CU$247,21,FALSE) -> 229 | L22: =VLOOKUP($E22,'RECAP AG'!$G$6:$CU$247,22,FALSE) -> 254 | M22: =VLOOKUP($E22,'RECAP AG'!$G$6:$CU$247,23,FALSE) -> 80.38 | N22: =VLOOKUP($E22,'RECAP AG'!$G$6:$CU$247,24,FALSE) -> 54% | O22: =VLOOKUP($E22,'RECAP AG'!$G$6:$CU$247,25,FALSE) -> 78 | P22: =VLOOKUP($E22,'RECAP AG'!$G$6:$CU$247,26,FALSE) -> 85% | Q22: =VLOOKUP($E22,'RECAP AG'!$G$6:$CU$247,27,FALSE) -> 85% | R22: =VLOOKUP($E22,'RECAP AG'!$G$6:$CU$247,28,FALSE) -> 205
A23: 50 | B23: AUBE HAUTE MARNE | C23: 14 | D23: TROYES | E23: 410524 | F23: SAINT JULIEN LES VILLAS | G23: =VLOOKUP($E23,'RECAP AG'!$G$6:$CU$247,3,FALSE) -> 5.1 | H23: =VLOOKUP($E23,'RECAP AG'!$G$6:$CU$247,18,FALSE) -> 28.4 | I23: =VLOOKUP($E23,'RECAP AG'!$G$6:$CU$247,19,FALSE) -> 5.58 | J23: =VLOOKUP($E23,'RECAP AG'!$G$6:$CU$247,20,FALSE) -> 95% | K23: =VLOOKUP($E23,'RECAP AG'!$G$6:$CU$247,21,FALSE) -> 195 | L23: =VLOOKUP($E23,'RECAP AG'!$G$6:$CU$247,22,FALSE) -> 331 | M23: =VLOOKUP($E23,'RECAP AG'!$G$6:$CU$247,23,FALSE) -> 65.03 | N23: =VLOOKUP($E23,'RECAP AG'!$G$6:$CU$247,24,FALSE) -> 62% | O23: =VLOOKUP($E23,'RECAP AG'!$G$6:$CU$247,25,FALSE) -> 146 | P23: =VLOOKUP($E23,'RECAP AG'!$G$6:$CU$247,26,FALSE) -> 82% | Q23: =VLOOKUP($E23,'RECAP AG'!$G$6:$CU$247,27,FALSE) -> 82% | R23: =VLOOKUP($E23,'RECAP AG'!$G$6:$CU$247,28,FALSE) -> 187
A24: 50 | B24: AUBE HAUTE MARNE | C24: 14 | D24: TROYES | E24: 410521 | F24: SAINTE SAVINE | G24: =VLOOKUP($E24,'RECAP AG'!$G$6:$CU$247,3,FALSE) -> 4.2 | H24: =VLOOKUP($E24,'RECAP AG'!$G$6:$CU$247,18,FALSE) -> 2.4 | I24: =VLOOKUP($E24,'RECAP AG'!$G$6:$CU$247,19,FALSE) -> 0.57 | J24: =VLOOKUP($E24,'RECAP AG'!$G$6:$CU$247,20,FALSE) -> 100% | K24: =VLOOKUP($E24,'RECAP AG'!$G$6:$CU$247,21,FALSE) -> 212 | L24: =VLOOKUP($E24,'RECAP AG'!$G$6:$CU$247,22,FALSE) -> 256 | M24: =VLOOKUP($E24,'RECAP AG'!$G$6:$CU$247,23,FALSE) -> 60.81 | N24: =VLOOKUP($E24,'RECAP AG'!$G$6:$CU$247,24,FALSE) -> 65% | O24: =VLOOKUP($E24,'RECAP AG'!$G$6:$CU$247,25,FALSE) -> 169 | P24: =VLOOKUP($E24,'RECAP AG'!$G$6:$CU$247,26,FALSE) -> 86% | Q24: =VLOOKUP($E24,'RECAP AG'!$G$6:$CU$247,27,FALSE) -> 86% | R24: =VLOOKUP($E24,'RECAP AG'!$G$6:$CU$247,28,FALSE) -> 207
A25: 50 | B25: AUBE HAUTE MARNE | C25: 14 | D25: TROYES | E25: 510513 | F25: SAINT PARRES AUX TERTRES | G25: =VLOOKUP($E25,'RECAP AG'!$G$6:$CU$247,3,FALSE) -> 2.9 | H25: =VLOOKUP($E25,'RECAP AG'!$G$6:$CU$247,18,FALSE) -> 57.9 | I25: =VLOOKUP($E25,'RECAP AG'!$G$6:$CU$247,19,FALSE) -> 20.10 | J25: =VLOOKUP($E25,'RECAP AG'!$G$6:$CU$247,20,FALSE) -> 83% | K25: =VLOOKUP($E25,'RECAP AG'!$G$6:$CU$247,21,FALSE) -> 116 | L25: =VLOOKUP($E25,'RECAP AG'!$G$6:$CU$247,22,FALSE) -> 261 | M25: =VLOOKUP($E25,'RECAP AG'!$G$6:$CU$247,23,FALSE) -> 90.63 | N25: =VLOOKUP($E25,'RECAP AG'!$G$6:$CU$247,24,FALSE) -> 48% | O25: =VLOOKUP($E25,'RECAP AG'!$G$6:$CU$247,25,FALSE) -> 49 | P25: =VLOOKUP($E25,'RECAP AG'!$G$6:$CU$247,26,FALSE) -> 69% | Q25: =VLOOKUP($E25,'RECAP AG'!$G$6:$CU$247,27,FALSE) -> 69% | R25: =VLOOKUP($E25,'RECAP AG'!$G$6:$CU$247,28,FALSE) -> 84
A26: 50 | B26: AUBE HAUTE MARNE | C26: 14 | D26: TROYES | E26: 410510 | F26: TROYES GAMBETTA | G26: =VLOOKUP($E26,'RECAP AG'!$G$6:$CU$247,3,FALSE) -> 8.6 | H26: =VLOOKUP($E26,'RECAP AG'!$G$6:$CU$247,18,FALSE) -> 131.2 | I26: =VLOOKUP($E26,'RECAP AG'!$G$6:$CU$247,19,FALSE) -> 15.26 | J26: =VLOOKUP($E26,'RECAP AG'!$G$6:$CU$247,20,FALSE) -> 87% | K26: =VLOOKUP($E26,'RECAP AG'!$G$6:$CU$247,21,FALSE) -> 152 | L26: =VLOOKUP($E26,'RECAP AG'!$G$6:$CU$247,22,FALSE) -> 591 | M26: =VLOOKUP($E26,'RECAP AG'!$G$6:$CU$247,23,FALSE) -> 68.72 | N26: =VLOOKUP($E26,'RECAP AG'!$G$6:$CU$247,24,FALSE) -> 60% | O26: =VLOOKUP($E26,'RECAP AG'!$G$6:$CU$247,25,FALSE) -> 126 | P26: =VLOOKUP($E26,'RECAP AG'!$G$6:$CU$247,26,FALSE) -> 76% | Q26: =VLOOKUP($E26,'RECAP AG'!$G$6:$CU$247,27,FALSE) -> 76% | R26: =VLOOKUP($E26,'RECAP AG'!$G$6:$CU$247,28,FALSE) -> 146
A27: 50 | B27: AUBE HAUTE MARNE | C27: 14 | D27: TROYES | E27: 410512 | F27: TROYES ZOLA | G27: =VLOOKUP($E27,'RECAP AG'!$G$6:$CU$247,3,FALSE) -> 5.6 | H27: =VLOOKUP($E27,'RECAP AG'!$G$6:$CU$247,18,FALSE) -> -24.7 | I27: =VLOOKUP($E27,'RECAP AG'!$G$6:$CU$247,19,FALSE) -> -4.40 | J27: =VLOOKUP($E27,'RECAP AG'!$G$6:$CU$247,20,FALSE) -> 104% | K27: =VLOOKUP($E27,'RECAP AG'!$G$6:$CU$247,21,FALSE) -> 225 | L27: =VLOOKUP($E27,'RECAP AG'!$G$6:$CU$247,22,FALSE) -> 352 | M27: =VLOOKUP($E27,'RECAP AG'!$G$6:$CU$247,23,FALSE) -> 62.75 | N27: =VLOOKUP($E27,'RECAP AG'!$G$6:$CU$247,24,FALSE) -> 64% | O27: =VLOOKUP($E27,'RECAP AG'!$G$6:$CU$247,25,FALSE) -> 156 | P27: =VLOOKUP($E27,'RECAP AG'!$G$6:$CU$247,26,FALSE) -> 88% | Q27: =VLOOKUP($E27,'RECAP AG'!$G$6:$CU$247,27,FALSE) -> 88% | R27: =VLOOKUP($E27,'RECAP AG'!$G$6:$CU$247,28,FALSE) -> 217
A28: 262 | B28: BAS RHIN | C28: 5060 | D28: HAGUENAU | E28: 4057 | F28: BISCHWILLER | G28: =VLOOKUP($E28,'RECAP AG'!$G$6:$CU$247,3,FALSE) -> 6.7 | H28: =VLOOKUP($E28,'RECAP AG'!$G$6:$CU$247,18,FALSE) -> 262.6 | I28: =VLOOKUP($E28,'RECAP AG'!$G$6:$CU$247,19,FALSE) -> 39.25 | J28: =VLOOKUP($E28,'RECAP AG'!$G$6:$CU$247,20,FALSE) -> 67% | K28: =VLOOKUP($E28,'RECAP AG'!$G$6:$CU$247,21,FALSE) -> 33 | L28: =VLOOKUP($E28,'RECAP AG'!$G$6:$CU$247,22,FALSE) -> 381 | M28: =VLOOKUP($E28,'RECAP AG'!$G$6:$CU$247,23,FALSE) -> 56.95 | N28: =VLOOKUP($E28,'RECAP AG'!$G$6:$CU$247,24,FALSE) -> 67% | O28: =VLOOKUP($E28,'RECAP AG'!$G$6:$CU$247,25,FALSE) -> 195 | P28: =VLOOKUP($E28,'RECAP AG'!$G$6:$CU$247,26,FALSE) -> 67% | Q28: =VLOOKUP($E28,'RECAP AG'!$G$6:$CU$247,27,FALSE) -> 67% | R28: =VLOOKUP($E28,'RECAP AG'!$G$6:$CU$247,28,FALSE) -> 66
A29: 262 | B29: BAS RHIN | C29: 5060 | D29: HAGUENAU | E29: 4082 | F29: BOUXWILLER | G29: =VLOOKUP($E29,'RECAP AG'!$G$6:$CU$247,3,FALSE) -> 2.5 | H29: =VLOOKUP($E29,'RECAP AG'!$G$6:$CU$247,18,FALSE) -> 24.2 | I29: =VLOOKUP($E29,'RECAP AG'!$G$6:$CU$247,19,FALSE) -> 9.80 | J29: =VLOOKUP($E29,'RECAP AG'!$G$6:$CU$247,20,FALSE) -> 92% | K29: =VLOOKUP($E29,'RECAP AG'!$G$6:$CU$247,21,FALSE) -> 176 | L29: =VLOOKUP($E29,'RECAP AG'!$G$6:$CU$247,22,FALSE) -> 130 | M29: =VLOOKUP($E29,'RECAP AG'!$G$6:$CU$247,23,FALSE) -> 52.63 | N29: =VLOOKUP($E29,'RECAP AG'!$G$6:$CU$247,24,FALSE) -> 70% | O29: =VLOOKUP($E29,'RECAP AG'!$G$6:$CU$247,25,FALSE) -> 208 | P29: =VLOOKUP($E29,'RECAP AG'!$G$6:$CU$247,26,FALSE) -> 83% | Q29: =VLOOKUP($E29,'RECAP AG'!$G$6:$CU$247,27,FALSE) -> 83% | R29: =VLOOKUP($E29,'RECAP AG'!$G$6:$CU$247,28,FALSE) -> 192
A30: 262 | B30: BAS RHIN | C30: 5060 | D30: HAGUENAU | E30: 4030 | F30: BRUMATH | G30: =VLOOKUP($E30,'RECAP AG'!$G$6:$CU$247,3,FALSE) -> 3.8 | H30: =VLOOKUP($E30,'RECAP AG'!$G$6:$CU$247,18,FALSE) -> 139.8 | I30: =VLOOKUP($E30,'RECAP AG'!$G$6:$CU$247,19,FALSE) -> 36.60 | J30: =VLOOKUP($E30,'RECAP AG'!$G$6:$CU$247,20,FALSE) -> 69% | K30: =VLOOKUP($E30,'RECAP AG'!$G$6:$CU$247,21,FALSE) -> 44 | L30: =VLOOKUP($E30,'RECAP AG'!$G$6:$CU$247,22,FALSE) -> 226 | M30: =VLOOKUP($E30,'RECAP AG'!$G$6:$CU$247,23,FALSE) -> 59.16 | N30: =VLOOKUP($E30,'RECAP AG'!$G$6:$CU$247,24,FALSE) -> 66% | O30: =VLOOKUP($E30,'RECAP AG'!$G$6:$CU$247,25,FALSE) -> 182 | P30: =VLOOKUP($E30,'RECAP AG'!$G$6:$CU$247,26,FALSE) -> 68% | Q30: =VLOOKUP($E30,'RECAP AG'!$G$6:$CU$247,27,FALSE) -> 68% | R30: =VLOOKUP($E30,'RECAP AG'!$G$6:$CU$247,28,FALSE) -> 77
A31: 262 | B31: BAS RHIN | C31: 5060 | D31: HAGUENAU | E31: 4060 | F31: HAGUENAU HOUBLON | G31: =VLOOKUP($E31,'RECAP AG'!$G$6:$CU$247,3,FALSE) -> 8.6 | H31: =VLOOKUP($E31,'RECAP AG'!$G$6:$CU$247,18,FALSE) -> 108.0 | I31: =VLOOKUP($E31,'RECAP AG'!$G$6:$CU$247,19,FALSE) -> 12.54 | J31: =VLOOKUP($E31,'RECAP AG'!$G$6:$CU$247,20,FALSE) -> 89% | K31: =VLOOKUP($E31,'RECAP AG'!$G$6:$CU$247,21,FALSE) -> 165 | L31: =VLOOKUP($E31,'RECAP AG'!$G$6:$CU$247,22,FALSE) -> 515 | M31: =VLOOKUP($E31,'RECAP AG'!$G$6:$CU$247,23,FALSE) -> 59.81 | N31: =VLOOKUP($E31,'RECAP AG'!$G$6:$CU$247,24,FALSE) -> 65% | O31: =VLOOKUP($E31,'RECAP AG'!$G$6:$CU$247,25,FALSE) -> 177 | P31: =VLOOKUP($E31,'RECAP AG'!$G$6:$CU$247,26,FALSE) -> 80% | Q31: =VLOOKUP($E31,'RECAP AG'!$G$6:$CU$247,27,FALSE) -> 80% | R31: =VLOOKUP($E31,'RECAP AG'!$G$6:$CU$247,28,FALSE) -> 173
A32: 262 | B32: BAS RHIN | C32: 5060 | D32: HAGUENAU | E32: 4092 | F32: HOCHFELDEN | G32: =VLOOKUP($E32,'RECAP AG'!$G$6:$CU$247,3,FALSE) -> 2.1 | H32: =VLOOKUP($E32,'RECAP AG'!$G$6:$CU$247,18,FALSE) -> 13.8 | I32: =VLOOKUP($E32,'RECAP AG'!$G$6:$CU$247,19,FALSE) -> 6.48 | J32: =VLOOKUP($E32,'RECAP AG'!$G$6:$CU$247,20,FALSE) -> 95% | K32: =VLOOKUP($E32,'RECAP AG'!$G$6:$CU$247,21,FALSE) -> 188 | L32: =VLOOKUP($E32,'RECAP AG'!$G$6:$CU$247,22,FALSE) -> 140 | M32: =VLOOKUP($E32,'RECAP AG'!$G$6:$CU$247,23,FALSE) -> 65.73 | N32: =VLOOKUP($E32,'RECAP AG'!$G$6:$CU$247,24,FALSE) -> 62% | O32: =VLOOKUP($E32,'RECAP AG'!$G$6:$CU$247,25,FALSE) -> 142 | P32: =VLOOKUP($E32,'RECAP AG'!$G$6:$CU$247,26,FALSE) -> 82% | Q32: =VLOOKUP($E32,'RECAP AG'!$G$6:$CU$247,27,FALSE) -> 82% | R32: =VLOOKUP($E32,'RECAP AG'!$G$6:$CU$247,28,FALSE) -> 183
A33: 262 | B33: BAS RHIN | C33: 5060 | D33: HAGUENAU | E33: 4041 | F33: HOERDT | G33: =VLOOKUP($E33,'RECAP AG'!$G$6:$CU$247,3,FALSE) -> 1.7 | H33: =VLOOKUP($E33,'RECAP AG'!$G$6:$CU$247,18,FALSE) -> 36.5 | I33: =VLOOKUP($E33,'RECAP AG'!$G$6:$CU$247,19,FALSE) -> 21.86 | J33: =VLOOKUP($E33,'RECAP AG'!$G$6:$CU$247,20,FALSE) -> 82% | K33: =VLOOKUP($E33,'RECAP AG'!$G$6:$CU$247,21,FALSE) -> 107 | L33: =VLOOKUP($E33,'RECAP AG'!$G$6:$CU$247,22,FALSE) -> 98 | M33: =VLOOKUP($E33,'RECAP AG'!$G$6:$CU$247,23,FALSE) -> 58.68 | N33: =VLOOKUP($E33,'RECAP AG'!$G$6:$CU$247,24,FALSE) -> 66% | O33: =VLOOKUP($E33,'RECAP AG'!$G$6:$CU$247,25,FALSE) -> 185 | P33: =VLOOKUP($E33,'RECAP AG'!$G$6:$CU$247,26,FALSE) -> 75% | Q33: =VLOOKUP($E33,'RECAP AG'!$G$6:$CU$247,27,FALSE) -> 75% | R33: =VLOOKUP($E33,'RECAP AG'!$G$6:$CU$247,28,FALSE) -> 134
A34: 262 | B34: BAS RHIN | C34: 5060 | D34: HAGUENAU | E34: 4085 | F34: INGWILLER | G34: =VLOOKUP($E34,'RECAP AG'!$G$6:$CU$247,3,FALSE) -> 3.5 | H34: =VLOOKUP($E34,'RECAP AG'!$G$6:$CU$247,18,FALSE) -> 64.2 | I34: =VLOOKUP($E34,'RECAP AG'!$G$6:$CU$247,19,FALSE) -> 18.24 | J34: =VLOOKUP($E34,'RECAP AG'!$G$6:$CU$247,20,FALSE) -> 85% | K34: =VLOOKUP($E34,'RECAP AG'!$G$6:$CU$247,21,FALSE) -> 127 | L34: =VLOOKUP($E34,'RECAP AG'!$G$6:$CU$247,22,FALSE) -> 225 | M34: =VLOOKUP($E34,'RECAP AG'!$G$6:$CU$247,23,FALSE) -> 63.92 | N34: =VLOOKUP($E34,'RECAP AG'!$G$6:$CU$247,24,FALSE) -> 63% | O34: =VLOOKUP($E34,'RECAP AG'!$G$6:$CU$247,25,FALSE) -> 150 | P34: =VLOOKUP($E34,'RECAP AG'!$G$6:$CU$247,26,FALSE) -> 76% | Q34: =VLOOKUP($E34,'RECAP AG'!$G$6:$CU$247,27,FALSE) -> 76% | R34: =VLOOKUP($E34,'RECAP AG'!$G$6:$CU$247,28,FALSE) -> 140
A35: 262 | B35: BAS RHIN | C35: 5060 | D35: HAGUENAU | E35: 4066 | F35: NIEDERBRONN LES BAINS | G35: =VLOOKUP($E35,'RECAP AG'!$G$6:$CU$247,3,FALSE) -> 5.7 | H35: =VLOOKUP($E35,'RECAP AG'!$G$6:$CU$247,18,FALSE) -> 31.8 | I35: =VLOOKUP($E35,'RECAP AG'!$G$6:$CU$247,19,FALSE) -> 5.59 | J35: =VLOOKUP($E35,'RECAP AG'!$G$6:$CU$247,20,FALSE) -> 95% | K35: =VLOOKUP($E35,'RECAP AG'!$G$6:$CU$247,21,FALSE) -> 194 | L35: =VLOOKUP($E35,'RECAP AG'!$G$6:$CU$247,22,FALSE) -> 339 | M35: =VLOOKUP($E35,'RECAP AG'!$G$6:$CU$247,23,FALSE) -> 59.58 | N35: =VLOOKUP($E35,'RECAP AG'!$G$6:$CU$247,24,FALSE) -> 66% | O35: =VLOOKUP($E35,'RECAP AG'!$G$6:$CU$247,25,FALSE) -> 181 | P35: =VLOOKUP($E35,'RECAP AG'!$G$6:$CU$247,26,FALSE) -> 83% | Q35: =VLOOKUP($E35,'RECAP AG'!$G$6:$CU$247,27,FALSE) -> 83% | R35: =VLOOKUP($E35,'RECAP AG'!$G$6:$CU$247,28,FALSE) -> 197
A36: 262 | B36: BAS RHIN | C36: 5060 | D36: HAGUENAU | E36: 4067 | F36: PFAFFENHOFFEN | G36: =VLOOKUP($E36,'RECAP AG'!$G$6:$CU$247,3,FALSE) -> 1.9 | H36: =VLOOKUP($E36,'RECAP AG'!$G$6:$CU$247,18,FALSE) -> 58.5 | I36: =VLOOKUP($E36,'RECAP AG'!$G$6:$CU$247,19,FALSE) -> 31.45 | J36: =VLOOKUP($E36,'RECAP AG'!$G$6:$CU$247,20,FALSE) -> 74% | K36: =VLOOKUP($E36,'RECAP AG'!$G$6:$CU$247,21,FALSE) -> 56 | L36: =VLOOKUP($E36,'RECAP AG'!$G$6:$CU$247,22,FALSE) -> 134 | M36: =VLOOKUP($E36,'RECAP AG'!$G$6:$CU$247,23,FALSE) -> 72.04 | N36: =VLOOKUP($E36,'RECAP AG'!$G$6:$CU$247,24,FALSE) -> 58% | O36: =VLOOKUP($E36,'RECAP AG'!$G$6:$CU$247,25,FALSE) -> 112 | P36: =VLOOKUP($E36,'RECAP AG'!$G$6:$CU$247,26,FALSE) -> 67% | Q36: =VLOOKUP($E36,'RECAP AG'!$G$6:$CU$247,27,FALSE) -> 67% | R36: =VLOOKUP($E36,'RECAP AG'!$G$6:$CU$247,28,FALSE) -> 70
A37: 262 | B37: BAS RHIN | C37: 5060 | D37: HAGUENAU | E37: 4095 | F37: SARRE UNION | G37: =VLOOKUP($E37,'RECAP AG'!$G$6:$CU$247,3,FALSE) -> 3.1 | H37: =VLOOKUP($E37,'RECAP AG'!$G$6:$CU$247,18,FALSE) -> 33.7 | I37: =VLOOKUP($E37,'RECAP AG'!$G$6:$CU$247,19,FALSE) -> 11.05 | J37: =VLOOKUP($E37,'RECAP AG'!$G$6:$CU$247,20,FALSE) -> 91% | K37: =VLOOKUP($E37,'RECAP AG'!$G$6:$CU$247,21,FALSE) -> 171 | L37: =VLOOKUP($E37,'RECAP AG'!$G$6:$CU$247,22,FALSE) -> 154 | M37: =VLOOKUP($E37,'RECAP AG'!$G$6:$CU$247,23,FALSE) -> 50.49 | N37: =VLOOKUP($E37,'RECAP AG'!$G$6:$CU$247,24,FALSE) -> 71% | O37: =VLOOKUP($E37,'RECAP AG'!$G$6:$CU$247,25,FALSE) -> 216 | P37: =VLOOKUP($E37,'RECAP AG'!$G$6:$CU$247,26,FALSE) -> 83% | Q37: =VLOOKUP($E37,'RECAP AG'!$G$6:$CU$247,27,FALSE) -> 83% | R37: =VLOOKUP($E37,'RECAP AG'!$G$6:$CU$247,28,FALSE) -> 190
A38: 262 | B38: BAS RHIN | C38: 5060 | D38: HAGUENAU | E38: 4087 | F38: SAVERNE | G38: =VLOOKUP($E38,'RECAP AG'!$G$6:$CU$247,3,FALSE) -> 5.6 | H38: =VLOOKUP($E38,'RECAP AG'!$G$6:$CU$247,18,FALSE) -> 154.2 | I38: =VLOOKUP($E38,'RECAP AG'!$G$6:$CU$247,19,FALSE) -> 27.58 | J38: =VLOOKUP($E38,'RECAP AG'!$G$6:$CU$247,20,FALSE) -> 77% | K38: =VLOOKUP($E38,'RECAP AG'!$G$6:$CU$247,21,FALSE) -> 74 | L38: =VLOOKUP($E38,'RECAP AG'!$G$6:$CU$247,22,FALSE) -> 340 | M38: =VLOOKUP($E38,'RECAP AG'!$G$6:$CU$247,23,FALSE) -> 60.82 | N38: =VLOOKUP($E38,'RECAP AG'!$G$6:$CU$247,24,FALSE) -> 65% | O38: =VLOOKUP($E38,'RECAP AG'!$G$6:$CU$247,25,FALSE) -> 168 | P38: =VLOOKUP($E38,'RECAP AG'!$G$6:$CU$247,26,FALSE) -> 72% | Q38: =VLOOKUP($E38,'RECAP AG'!$G$6:$CU$247,27,FALSE) -> 72% | R38: =VLOOKUP($E38,'RECAP AG'!$G$6:$CU$247,28,FALSE) -> 104
A39: 262 | B39: BAS RHIN | C39: 5060 | D39: HAGUENAU | E39: 4031 | F39: TRUCHTERSHEIM | G39: =VLOOKUP($E39,'RECAP AG'!$G$6:$CU$247,3,FALSE) -> 2.4 | H39: =VLOOKUP($E39,'RECAP AG'!$G$6:$CU$247,18,FALSE) -> 103.0 | I39: =VLOOKUP($E39,'RECAP AG'!$G$6:$CU$247,19,FALSE) -> 42.56 | J39: =VLOOKUP($E39,'RECAP AG'!$G$6:$CU$247,20,FALSE) -> 64% | K39: =VLOOKUP($E39,'RECAP AG'!$G$6:$CU$247,21,FALSE) -> 24 | L39: =VLOOKUP($E39,'RECAP AG'!$G$6:$CU$247,22,FALSE) -> 109 | M39: =VLOOKUP($E39,'RECAP AG'!$G$6:$CU$247,23,FALSE) -> 45.04 | N39: =VLOOKUP($E39,'RECAP AG'!$G$6:$CU$247,24,FALSE) -> 74% | O39: =VLOOKUP($E39,'RECAP AG'!$G$6:$CU$247,25,FALSE) -> 230 | P39: =VLOOKUP($E39,'RECAP AG'!$G$6:$CU$247,26,FALSE) -> 68% | Q39: =VLOOKUP($E39,'RECAP AG'!$G$6:$CU$247,27,FALSE) -> 68% | R39: =VLOOKUP($E39,'RECAP AG'!$G$6:$CU$247,28,FALSE) -> 79
A40: 262 | B40: BAS RHIN | C40: 5060 | D40: HAGUENAU | E40: 4071 | F40: WISSEMBOURG | G40: =VLOOKUP($E40,'RECAP AG'!$G$6:$CU$247,3,FALSE) -> 8.2 | H40: =VLOOKUP($E40,'RECAP AG'!$G$6:$CU$247,18,FALSE) -> 195.2 | I40: =VLOOKUP($E40,'RECAP AG'!$G$6:$CU$247,19,FALSE) -> 23.72 | J40: =VLOOKUP($E40,'RECAP AG'!$G$6:$CU$247,20,FALSE) -> 80% | K40: =VLOOKUP($E40,'RECAP AG'!$G$6:$CU$247,21,FALSE) -> 96 | L40: =VLOOKUP($E40,'RECAP AG'!$G$6:$CU$247,22,FALSE) -> 599 | M40: =VLOOKUP($E40,'RECAP AG'!$G$6:$CU$247,23,FALSE) -> 72.78 | N40: =VLOOKUP($E40,'RECAP AG'!$G$6:$CU$247,24,FALSE) -> 58% | O40: =VLOOKUP($E40,'RECAP AG'!$G$6:$CU$247,25,FALSE) -> 110 | P40: =VLOOKUP($E40,'RECAP AG'!$G$6:$CU$247,26,FALSE) -> 71% | Q40: =VLOOKUP($E40,'RECAP AG'!$G$6:$CU$247,27,FALSE) -> 71% | R40: =VLOOKUP($E40,'RECAP AG'!$G$6:$CU$247,28,FALSE) -> 96
A41: 262 | B41: BAS RHIN | C41: 5101 | D41: SELESTAT | E41: 4113 | F41: BARR | G41: =VLOOKUP($E41,'RECAP AG'!$G$6:$CU$247,3,FALSE) -> 2.9 | H41: =VLOOKUP($E41,'RECAP AG'!$G$6:$CU$247,18,FALSE) -> 116.7 | I41: =VLOOKUP($E41,'RECAP AG'!$G$6:$CU$247,19,FALSE) -> 40.52 | J41: =VLOOKUP($E41,'RECAP AG'!$G$6:$CU$247,20,FALSE) -> 66% | K41: =VLOOKUP($E41,'RECAP AG'!$G$6:$CU$247,21,FALSE) -> 29 | L41: =VLOOKUP($E41,'RECAP AG'!$G$6:$CU$247,22,FALSE) -> 213 | M41: =VLOOKUP($E41,'RECAP AG'!$G$6:$CU$247,23,FALSE) -> 73.96 | N41: =VLOOKUP($E41,'RECAP AG'!$G$6:$CU$247,24,FALSE) -> 57% | O41: =VLOOKUP($E41,'RECAP AG'!$G$6:$CU$247,25,FALSE) -> 108 | P41: =VLOOKUP($E41,'RECAP AG'!$G$6:$CU$247,26,FALSE) -> 62% | Q41: =VLOOKUP($E41,'RECAP AG'!$G$6:$CU$247,27,FALSE) -> 62% | R41: =VLOOKUP($E41,'RECAP AG'!$G$6:$CU$247,28,FALSE) -> 46
A42: 262 | B42: BAS RHIN | C42: 5101 | D42: SELESTAT | E42: 4111 | F42: BENFELD | G42: =VLOOKUP($E42,'RECAP AG'!$G$6:$CU$247,3,FALSE) -> 3.1 | H42: =VLOOKUP($E42,'RECAP AG'!$G$6:$CU$247,18,FALSE) -> 8.1 | I42: =VLOOKUP($E42,'RECAP AG'!$G$6:$CU$247,19,FALSE) -> 2.63 | J42: =VLOOKUP($E42,'RECAP AG'!$G$6:$CU$247,20,FALSE) -> 98% | K42: =VLOOKUP($E42,'RECAP AG'!$G$6:$CU$247,21,FALSE) -> 204 | L42: =VLOOKUP($E42,'RECAP AG'!$G$6:$CU$247,22,FALSE) -> 143 | M42: =VLOOKUP($E42,'RECAP AG'!$G$6:$CU$247,23,FALSE) -> 46.43 | N42: =VLOOKUP($E42,'RECAP AG'!$G$6:$CU$247,24,FALSE) -> 73% | O42: =VLOOKUP($E42,'RECAP AG'!$G$6:$CU$247,25,FALSE) -> 227 | P42: =VLOOKUP($E42,'RECAP AG'!$G$6:$CU$247,26,FALSE) -> 88% | Q42: =VLOOKUP($E42,'RECAP AG'!$G$6:$CU$247,27,FALSE) -> 88% | R42: =VLOOKUP($E42,'RECAP AG'!$G$6:$CU$247,28,FALSE) -> 219
A43: 262 | B43: BAS RHIN | C43: 5101 | D43: SELESTAT | E43: 4104 | F43: ERSTEIN | G43: =VLOOKUP($E43,'RECAP AG'!$G$6:$CU$247,3,FALSE) -> 3.8 | H43: =VLOOKUP($E43,'RECAP AG'!$G$6:$CU$247,18,FALSE) -> 188.5 | I43: =VLOOKUP($E43,'RECAP AG'!$G$6:$CU$247,19,FALSE) -> 49.09 | J43: =VLOOKUP($E43,'RECAP AG'!$G$6:$CU$247,20,FALSE) -> 59% | K43: =VLOOKUP($E43,'RECAP AG'!$G$6:$CU$247,21,FALSE) -> 14 | L43: =VLOOKUP($E43,'RECAP AG'!$G$6:$CU$247,22,FALSE) -> 299 | M43: =VLOOKUP($E43,'RECAP AG'!$G$6:$CU$247,23,FALSE) -> 77.86 | N43: =VLOOKUP($E43,'RECAP AG'!$G$6:$CU$247,24,FALSE) -> 55% | O43: =VLOOKUP($E43,'RECAP AG'!$G$6:$CU$247,25,FALSE) -> 90 | P43: =VLOOKUP($E43,'RECAP AG'!$G$6:$CU$247,26,FALSE) -> 57% | Q43: =VLOOKUP($E43,'RECAP AG'!$G$6:$CU$247,27,FALSE) -> 57% | R43: =VLOOKUP($E43,'RECAP AG'!$G$6:$CU$247,28,FALSE) -> 25
A44: 262 | B44: BAS RHIN | C44: 5101 | D44: SELESTAT | E44: 4008 | F44: FEGERSHEIM | G44: =VLOOKUP($E44,'RECAP AG'!$G$6:$CU$247,3,FALSE) -> 2.4 | H44: =VLOOKUP($E44,'RECAP AG'!$G$6:$CU$247,18,FALSE) -> 89.4 | I44: =VLOOKUP($E44,'RECAP AG'!$G$6:$CU$247,19,FALSE) -> 37.10 | J44: =VLOOKUP($E44,'RECAP AG'!$G$6:$CU$247,20,FALSE) -> 69% | K44: =VLOOKUP($E44,'RECAP AG'!$G$6:$CU$247,21,FALSE) -> 41 | L44: =VLOOKUP($E44,'RECAP AG'!$G$6:$CU$247,22,FALSE) -> 116 | M44: =VLOOKUP($E44,'RECAP AG'!$G$6:$CU$247,23,FALSE) -> 48.13 | N44: =VLOOKUP($E44,'RECAP AG'!$G$6:$CU$247,24,FALSE) -> 72% | O44: =VLOOKUP($E44,'RECAP AG'!$G$6:$CU$247,25,FALSE) -> 223 | P44: =VLOOKUP($E44,'RECAP AG'!$G$6:$CU$247,26,FALSE) -> 70% | Q44: =VLOOKUP($E44,'RECAP AG'!$G$6:$CU$247,27,FALSE) -> 70% | R44: =VLOOKUP($E44,'RECAP AG'!$G$6:$CU$247,28,FALSE) -> 91
A45: 262 | B45: BAS RHIN | C45: 5101 | D45: SELESTAT | E45: 4007 | F45: ILLKIRCH CENTRE | G45: =VLOOKUP($E45,'RECAP AG'!$G$6:$CU$247,3,FALSE) -> 6.3 | H45: =VLOOKUP($E45,'RECAP AG'!$G$6:$CU$247,18,FALSE) -> 105.3 | I45: =VLOOKUP($E45,'RECAP AG'!$G$6:$CU$247,19,FALSE) -> 16.82 | J45: =VLOOKUP($E45,'RECAP AG'!$G$6:$CU$247,20,FALSE) -> 86% | K45: =VLOOKUP($E45,'RECAP AG'!$G$6:$CU$247,21,FALSE) -> 140 | L45: =VLOOKUP($E45,'RECAP AG'!$G$6:$CU$247,22,FALSE) -> 386 | M45: =VLOOKUP($E45,'RECAP AG'!$G$6:$CU$247,23,FALSE) -> 61.66 | N45: =VLOOKUP($E45,'RECAP AG'!$G$6:$CU$247,24,FALSE) -> 64% | O45: =VLOOKUP($E45,'RECAP AG'!$G$6:$CU$247,25,FALSE) -> 159 | P45: =VLOOKUP($E45,'RECAP AG'!$G$6:$CU$247,26,FALSE) -> 77% | Q45: =VLOOKUP($E45,'RECAP AG'!$G$6:$CU$247,27,FALSE) -> 77% | R45: =VLOOKUP($E45,'RECAP AG'!$G$6:$CU$247,28,FALSE) -> 157
A46: 262 | B46: BAS RHIN | C46: 5101 | D46: SELESTAT | E46: 4015 | F46: LINGOLSHEIM | G46: =VLOOKUP($E46,'RECAP AG'!$G$6:$CU$247,3,FALSE) -> 2.6 | H46: =VLOOKUP($E46,'RECAP AG'!$G$6:$CU$247,18,FALSE) -> -35.4 | I46: =VLOOKUP($E46,'RECAP AG'!$G$6:$CU$247,19,FALSE) -> -13.51 | J46: =VLOOKUP($E46,'RECAP AG'!$G$6:$CU$247,20,FALSE) -> 111% | K46: =VLOOKUP($E46,'RECAP AG'!$G$6:$CU$247,21,FALSE) -> 235 | L46: =VLOOKUP($E46,'RECAP AG'!$G$6:$CU$247,22,FALSE) -> 194 | M46: =VLOOKUP($E46,'RECAP AG'!$G$6:$CU$247,23,FALSE) -> 74.05 | N46: =VLOOKUP($E46,'RECAP AG'!$G$6:$CU$247,24,FALSE) -> 57% | O46: =VLOOKUP($E46,'RECAP AG'!$G$6:$CU$247,25,FALSE) -> 107 | P46: =VLOOKUP($E46,'RECAP AG'!$G$6:$CU$247,26,FALSE) -> 90% | Q46: =VLOOKUP($E46,'RECAP AG'!$G$6:$CU$247,27,FALSE) -> 90% | R46: =VLOOKUP($E46,'RECAP AG'!$G$6:$CU$247,28,FALSE) -> 228
A47: 262 | B47: BAS RHIN | C47: 5101 | D47: SELESTAT | E47: 4109 | F47: MARCKOLSHEIM | G47: =VLOOKUP($E47,'RECAP AG'!$G$6:$CU$247,3,FALSE) -> 2.3 | H47: =VLOOKUP($E47,'RECAP AG'!$G$6:$CU$247,18,FALSE) -> 40.1 | I47: =VLOOKUP($E47,'RECAP AG'!$G$6:$CU$247,19,FALSE) -> 17.67 | J47: =VLOOKUP($E47,'RECAP AG'!$G$6:$CU$247,20,FALSE) -> 85% | K47: =VLOOKUP($E47,'RECAP AG'!$G$6:$CU$247,21,FALSE) -> 132 | L47: =VLOOKUP($E47,'RECAP AG'!$G$6:$CU$247,22,FALSE) -> 143 | M47: =VLOOKUP($E47,'RECAP AG'!$G$6:$CU$247,23,FALSE) -> 63.00 | N47: =VLOOKUP($E47,'RECAP AG'!$G$6:$CU$247,24,FALSE) -> 64% | O47: =VLOOKUP($E47,'RECAP AG'!$G$6:$CU$247,25,FALSE) -> 154 | P47: =VLOOKUP($E47,'RECAP AG'!$G$6:$CU$247,26,FALSE) -> 77% | Q47: =VLOOKUP($E47,'RECAP AG'!$G$6:$CU$247,27,FALSE) -> 77% | R47: =VLOOKUP($E47,'RECAP AG'!$G$6:$CU$247,28,FALSE) -> 147
A48: 262 | B48: BAS RHIN | C48: 5101 | D48: SELESTAT | E48: 4120 | F48: WASSELONNE | G48: =VLOOKUP($E48,'RECAP AG'!$G$6:$CU$247,3,FALSE) -> 2.7 | H48: =VLOOKUP($E48,'RECAP AG'!$G$6:$CU$247,18,FALSE) -> -26.3 | I48: =VLOOKUP($E48,'RECAP AG'!$G$6:$CU$247,19,FALSE) -> -9.60 | J48: =VLOOKUP($E48,'RECAP AG'!$G$6:$CU$247,20,FALSE) -> 108% | K48: =VLOOKUP($E48,'RECAP AG'!$G$6:$CU$247,21,FALSE) -> 230 | L48: =VLOOKUP($E48,'RECAP AG'!$G$6:$CU$247,22,FALSE) -> 179 | M48: =VLOOKUP($E48,'RECAP AG'!$G$6:$CU$247,23,FALSE) -> 65.33 | N48: =VLOOKUP($E48,'RECAP AG'!$G$6:$CU$247,24,FALSE) -> 62% | O48: =VLOOKUP($E48,'RECAP AG'!$G$6:$CU$247,25,FALSE) -> 144 | P48: =VLOOKUP($E48,'RECAP AG'!$G$6:$CU$247,26,FALSE) -> 90% | Q48: =VLOOKUP($E48,'RECAP AG'!$G$6:$CU$247,27,FALSE) -> 90% | R48: =VLOOKUP($E48,'RECAP AG'!$G$6:$CU$247,28,FALSE) -> 230
A49: 262 | B49: BAS RHIN | C49: 5101 | D49: SELESTAT | E49: 4116 | F49: MOLSHEIM | G49: =VLOOKUP($E49,'RECAP AG'!$G$6:$CU$247,3,FALSE) -> 3.8 | H49: =VLOOKUP($E49,'RECAP AG'!$G$6:$CU$247,18,FALSE) -> -5.6 | I49: =VLOOKUP($E49,'RECAP AG'!$G$6:$CU$247,19,FALSE) -> -1.48 | J49: =VLOOKUP($E49,'RECAP AG'!$G$6:$CU$247,20,FALSE) -> 101% | K49: =VLOOKUP($E49,'RECAP AG'!$G$6:$CU$247,21,FALSE) -> 217 | L49: =VLOOKUP($E49,'RECAP AG'!$G$6:$CU$247,22,FALSE) -> 179 | M49: =VLOOKUP($E49,'RECAP AG'!$G$6:$CU$247,23,FALSE) -> 47.35 | N49: =VLOOKUP($E49,'RECAP AG'!$G$6:$CU$247,24,FALSE) -> 73% | O49: =VLOOKUP($E49,'RECAP AG'!$G$6:$CU$247,25,FALSE) -> 225 | P49: =VLOOKUP($E49,'RECAP AG'!$G$6:$CU$247,26,FALSE) -> 90% | Q49: =VLOOKUP($E49,'RECAP AG'!$G$6:$CU$247,27,FALSE) -> 90% | R49: =VLOOKUP($E49,'RECAP AG'!$G$6:$CU$247,28,FALSE) -> 231
